Workbook

Sheet INICIO

Sheet Instructivo (hidden)
C1: EMPRESA DE LICORES DE CUNDINAMARCA | G1: Código: PC010100.F12-3
G2: Versión: 3
C3: FORMATO MAPA DE RIESGOS | G3: Fecha de emisión: 19/04/2022 | H3: Pagina: 1 de 2
B6: Matriz Mapa de Riesgos
B8: Teniendo en cuenta que con la expedición del Decreto 1499 de 2017 “Por medio del cual se modifica el Decreto 1083 de 2015, Decreto Único Reglamentario del Sector Función Pública, en lo relacionado con el Sistema de Gestión establecido en el artículo 133 de la Ley 1753 de 2015”, se crea un solo Sistema de Gestión y se alinea con el Sistema de Control Interno, hoy todas las entidades públicas requieren actualizar y/o implementar el Modelo Integrado de Planeación y Gestión MIPG, modelo que incorpora el Modelo Estándar de Control Interno MECI a través de la 7a dimensión del mismo. En este marco general, el proceso de administración del riesgo es un esfuerzo conjunto entre la Alta Dirección y los servidores en todos sus niveles, ejercicio que inicia con la formulación de la política de Administración del Riesgo, la cual incluye los niveles de responsabilidad frente al seguimiento y evaluación, aspectos que deberán definirse acorde con el Esquema de Líneas de Defensa vinculado a la Dimensión 7. Teniendo en cuenta lo anterior y dada la necesidad de las entidades frente a la estructuración de los mapas de riesgos, como herramienta fundamental frente a la gestión del riesgo, el presente formato desarrolla un esquema completo acorde con los contenidos metodológicos de la Guía para la Administración del Riesgo y el diseño de controles V5. El formato cuenta con celdas parametrizadas y permite contar con los respectivos mapas de calor para riesgo inherente y riesgo residual.
B10: Orientaciones Generales
B11: Antes de iniciar con el diligenciamiento de la información en la matriz, se requiere haber avanzado en el análisis del proceso, su objetivo, alcance, actividades clave, considere los lineamientos establecidos en el Paso 2: identificación del riesgo, donde se explica ampliamente las bases para adelanter este análisis. Así mismo, considere en el Paso 3: valoración del riesgo los lineamientos para definir el No. de veces que se hace la actividad con la cual se relaciona el riesgo y su impacto en términos económicos o reputacionales. En este mismo paso se analizan los controles que deben responder a los atributos de eficiencia e informativos. NOTA: Si lo considera pertinente, es posible agregar hojas de trabajo adicionales al presente formato que permitan incluir la traza de estos análisis.
B13: El archivo contiene las siguientes hojas: - Hoja 1 Instructivo - Hoja 2 Mapa Final: Encontrará la totalidad de la estructura para la identificación y valoración de los riesgos por proceso, programa o proyecto, acorde con el nivel de desagregación que la entidad considere necesaria.
C16: Columna | E16: Descripción - Lineamientos para el diligenciamiento
C17: Proceso | E17: Diligencie el nombre del proceso al cual se le identificarán y valorarán los riesgos.
C18: Objetivo | E18: Diligencie el objetivo del proceso.
C19: Alcance | E19: Diligencie el alcance del proceso.
C20: Referencia | E20: Permite definir unl consecutivo de riesgos. Una entidad puede ir en el riesgo 150, pero tener 70 riesgos, lo que permite llevar una traza de los riesgos. Esta información la debe administrar la oficina asesora de planeación o gerencia de riesgos. Cuando un el riesgo salga del mapa no existirá otro riesgo con el mismo número.
C21: Impacto | E21: Analice las consecuencias que puede ocasionar a la organización la materialización del riesgo, redacte de la forma más concreta posible.
C22: Causa Inmediata | E22: Circunstancias bajo las cuales se presenta el riesgo, es la situación más evidente frente al riesgo, redacte de la forma más concreta posible.
C23: Causa Raíz | E23: Causa principal o básica, corresponde a las razones por la cuales se puede presentar el riesgo, redacte de la forma más concreta posible.
C24: Descripción del Riesgo | E24: Consolida o resume los análisis sobre impacto + causa inmediata + causa raíz, permitiendo contar con una redacción clara y concreta del riesgo indentificado. Tenga en cuenta la estructura de alto nivel establecida en al guía, inicia con POSIBILIDAD DE + Impacto para la entidad (Qué) + Causa Inmediata (Cómo) + Causa Raíz (Por qué)
C25: Clasificación del Riesgo | E25: Utilice la lista de despligue que se encuentra parametrizada, le aparecerán las opciones: i)Daños Activos Fisicos, ii)Ejecucion y Administracion de procesos, iii)Fallas Tecnologicas, iv)Fraude Externo, v)Fraude Interno, vi)Relaciones Laborales, vii)Usuarios, productos y practicas organizacionales.
C26: Frecuencia con la cual se lleva a cabo la actividad | E26: Defina el # de veces que se ejecuta la actividad durante el año, (Recuerde la probabilidad e ocurrencia del riesgo se defien como el No. de veces que se pasa por el punto de riesgo en el periodo de 1 año). La matriz automáticamente hará el cálculo para el nivel de probabilidad inherente (Columnas H-I)
C27: Criterios de Impacto | E27: Utilice la lista de despligue que se encuentra parametrizada, le aparecerán las opciones de la tabla de Impacto en la Hoja 6 del presente documento. La matriz automáticamente hará el cálculo para el nivel de impacto inherente (Columnas L-M)
C28: Zona de Riesgo Inherente | E28: Teniendo en cuenta que ingresó la información de PROBABILIDAD e IMPACTO, la matriz automáticamente hará el cálculo para la zona de riesgo inherente (Columna N)
C29: Descripción del Control | E29: Recuerde que el control se define como la medida que permite reducir o mitigar un riesgo. Defina el control (es) que atacan la causa raíz del riesgo, considere la estructura explicada en la guía: Responsable de ejecutar el control + Acción + Complemento
C30: Afectación | E30: Esta casilla no se diligencia, depende de la selección en la columna R.
C31: ATRIBUTOS EFICIENCIA Tipo | E31: Utilice la lista de despligue que se encuentra parametrizada, le aparecerán las opciones: i)Preventivo, ii)Detectivo, iii)Correctivo.
C32: ATRIBUTOS EFICIENCIA Implementación | E32: Utilice la lista de despligue que se encuentra parametrizada, le aparecerán las opciones: i)Automático, ii)Manual.
C33: ATRIBUTOS EFICIENCIA Implementación | E33: Utilice la lista de despligue que se encuentra parametrizada, le aparecerán las opciones: i)Automático, ii)Manual.
C34: ATRIBUTOS EFICIENCIA Calificación | E34: La matriz automáticamente hará el cálculo para el control analizado (Columna T)
C35: ATRIBUTOS INFORMATIVOS Documentación | E35: Utilice la lista de despligue que se encuentra parametrizada, le aparecerán las opciones: i)Documentado, ii)Sin documentar.
C36: ATRIBUTOS INFORMATIVOS Frecuencia | E36: Utilice la lista de despligue que se encuentra parametrizada, le aparecerán las opciones: i)Continua, ii)Aleatoria.
C37: ATRIBUTOS INFORMATIVOS Registro | E37: Utilice la lista de despligue que se encuentra parametrizada, le aparecerán las opciones: i)Con Registro, ii) Sin Registro.
C38: Evaluación del Nivel de Riesgo - Nivel de Riesgo Residual | E38: La matriz automáticamente hará el cálculo, acorde con el control o controles definidos con sus atributos analizados, lo que permitirá establecer el nivel de riesgo inherente (Columnas Y- Z- AA -AB- AC).
C39: Tratamiento | E39: Utilice la lista de despligue que se encuentra parametrizada, le aparecerán las opciones: i)Aceptar, ii)Evitar, iii)Reducir (compartir), iv)Reducir (mitigar).
C40: Plan de Acción Responsable, fecha implementación, fecha seguimiento, seguimiento. | E40: Esta casilla dependerá del tratamiento establecido, si es Aceptar no se requieren acciones adicionales, en caso de escoger Reducir (mitigar) se deben diligenciar las acciones que se adelantarán como complemento a los controles establecidos, no necesariamente son controles adicionales. Para Reducir (compartir), es viable diligenciar la acción que deriva de esta (ejemplo póliza seguros, terceración), indicando información relevante.
C41: Estado | E41: Utilice la lista de despligue que se encuentra parametrizada, le aparecerán las opciones: i)Finalizado, ii)En curso, la selección en este caso dependerá de las acciones del plan que se hayan establecido en cada caso.
B44: - Hoja 3 Matriz de Calor Inherente: En esta hoja, en la medida en que ese diligencia el Mapa Final, se verán reflejados los riesgos en su zona correspondiente. Esta hoja no se diligencia se genera de manera automática.
B45: - Hoja 4 Matriz de Calor Residual: En esta hoja, en la medida en que ese diligencia el Mapa Final, se verán reflejados los riesgos en su zona correspondiente. Esta hoja no se diligencia se genera de manera automática.
B46: - Hoja 5 Tabla de probabilidad: Tabla referente para todos los cálculos (no se diligencia)
B47: - Hoja 6 Tabla de Impacto: Tabla referente para todos los cálculos (no se diligencia)
B48: - Hoja 7 Tabla de Valoración de Controles: Tabla referente para todos los cálculos (no se diligencia)
D51: MATRIZ DE CALOR INHERENTE
E78: MATRIZ DE CALOR RESIDUAL
C108: TABLA CRITERIOS PARA DEFINIR EL NIVEL DE PROBABILIDAD
D110: Frecuencia de la Actividad | G110: Probabilidad
C111: Muy Baja | D111: La actividad que conlleva el riesgo se ejecuta como máximos 2 veces por año | G111: 0.2
C112: Baja | D112: La actividad que conlleva el riesgo se ejecuta de 3 a 24 veces por año | G112: 0.4
C113: Media | D113: La actividad que conlleva el riesgo se ejecuta de 24 a 500 veces por año | G113: 0.6
C114: Alta | D114: La actividad que conlleva el riesgo se ejecuta mínimo 500 veces al año y máximo 5000 veces por año | G114: 0.8
C115: Muy Alta | D115: La actividad que conlleva el riesgo se ejecuta más de 5000 veces por año | G115: 1
C117: TABLA CRITERIOS PARA DEFINIR EL NIVEL DE IMPACTO
D119: Afectación Económica (o presupuestal) | G119: Pérdida Reputacional
C120: Leve 20% | D120: Afectación menor a 10 SMLMV | G120: El riesgo afecta la imagen de alguna área de la organización.
C121: Menor-40% | D121: Entre 10 y 50 SMLMV | G121: El riesgo afecta la imagen de la entidad internamente, de conocimiento general, nivel interno, de junta dircetiva y accionistas y/o de provedores.
C122: Moderado 60% | D122: Entre 50 y 100 SMLMV | G122: El riesgo afecta la imagen de la entidad con algunos usuarios de relevancia frente al logro de los objetivos.
C123: Mayor 80% | D123: Entre 100 y 500 SMLMV | G123: El riesgo afecta la imagen de de la entidad con efecto publicitario sostenido a nivel de sector administrativo, nivel departamental o municipal.
C124: Catastrófico 100% | D124: Mayor a 500 SMLMV | G124: El riesgo afecta la imagen de la entidad a nivel nacional, con efecto publicitarios sostenible a nivel país.
C127: Tabla Atributos de para el diseño del control
C129: Características | F129: Descripción | H129: Peso
C130: Atributos de Eficiencia | D130: Tipo | E130: Preventivo | F130: Va hacia las causas del riesgo, aseguran el resultado final esperado. | H130: 0.25
E131: Detectivo | F131: Detecta que algo ocurre y devuelve el proceso a los controles preventivos. Se pueden generar reprocesos. | H131: 0.15
E132: Correctivo | F132: Dado que permiten reducir el impacto de la materialización del riesgo, tienen un costo en su implementación. | H132: 0.1
D133: Implementación | E133: Automático | F133: Son actividades de procesamiento o validación de información que se ejecutan por un sistema y/o aplicativo de manera automática sin la intervención de personas para su realización. | H133: 0.25
E134: Manual | F134: Controles que son ejecutados por una persona., tiene implícito el error humano. | H134: 0.15
C135: *Atributos de Formalización | D135: Documentación | E135: Documentado | F135: Controles que están documentados en el proceso, ya sea en manuales, procedimientos, flujogramas o cualquier otro documento propio del proceso. | H135: -
E136: Sin Documentar | F136: Identifica a los controles que pese a que se ejecutan en el proceso no se encuentran documentados en ningún documento propio del proceso. | H136: -
D137: Frecuencia | E137: Continua | F137: Este atributo identifica a los controles que se ejecutan siempre que se realiza la actividad originadora del riesgo. | H137: -
E138: Aleatoria | F138: Este atributo identifica a los controles que no siempre se ejecutan cuando se realiza la actividad originadora del riesgo. | H138: -
D139: Evidencia | E139: Con Registro | F139: El control deja un registro que permite evidenciar la ejecución del control. | H139: -
E140: Sin Registro | F140: El control no deja registro de la ejecución del control. | H140: -
C141: *Nota 1: Los atributos de formalización se recogerán de manera informativa, con el fin de conocer el entorno del control y complementar el análisis con elementos cualitativos; éstos no tienen una incidencia directa en su efectividad.
C144: Clasificacion de riesfos
C146: Ejecución y administracion de procesos | E146: Pérdidas derivadas de errores en la ejecución y administración de procesos.
C147: Fraude externo | E147: Pérdida derivada de actos de fraude por personas ajenas a la organización (no participa personal de la entidad).
C148: Fraude interno | E148: Pérdida debido a actos de fraude, actuaciones irregulares, comisión de hechos delictivos abuso de confianza, apropiación indebida, incumplimiento d e regulaciones legales o internas de la entidad en las cuales está involucrado por lo menos 1 participante interno de la organización, son realizadas de forma intencional y/o con ánimo de lucro para sí mismo o para terceros.
C149: Fallas tecnológicas | E149: Errores en hardware, software, telecomunicaciones, interrupción de servicios básicos
C150: Relaciones laborales | E150: Pérdidas que surgen de acciones contrarias a las leyes o acuerdos de empleo, salud o seguridad, del pago de demandas por daños personales o de discriminación.
C151: Usuarios, productos y prácticas | E151: Fallas negligentes o involuntarias de las obligaciones frente a los usuarios y que impiden satisfacer una obligación profesional frente a éstos.
C152: Daños a activos fijos/ eventos externos | E152: Pérdida por daños o extravíos de los activos fijos por desastres naturales u otros riesgos/eventos externos como atentados, vandalismo, orden público.

Sheet Matriz Calor Inherente (hidden)
B2: Matriz de Calor Inherente | J2: Impacto
B6: Probabilidad | E6: Muy Alta 100% | J6: =IF(AND(SIG!$I$12="Muy Alta",SIG!$M$12="Leve"),CONCATENATE("R",SIG!$A$12),"") ->  | L6: =IF(AND(SIG!$I$19="Muy Alta",SIG!$M$19="Leve"),CONCATENATE("R",SIG!$A$19),"") ->  | N6: =IF(AND(SIG!$I$25="Muy Alta",SIG!$M$25="Leve"),CONCATENATE("R",SIG!$A$25),"") ->  | P6: =IF(AND(SIG!$I$12="Muy Alta",SIG!$M$12="Menor"),CONCATENATE("R",SIG!$A$12),"") ->  | R6: =IF(AND(SIG!$I$19="Muy Alta",SIG!$M$19="Menor"),CONCATENATE("R",SIG!$A$19),"") ->  | T6: =IF(AND(SIG!$I$25="Muy Alta",SIG!$M$25="Menor"),CONCATENATE("R",SIG!$A$25),"") ->  | V6: =IF(AND(SIG!$I$12="Muy Alta",SIG!$M$12="Moderado"),CONCATENATE("R",SIG!$A$12),"") ->  | X6: =IF(AND(SIG!$I$19="Muy Alta",SIG!$M$19="Moderado"),CONCATENATE("R",SIG!$A$19),"") ->  | Z6: =IF(AND(SIG!$I$25="Muy Alta",SIG!$M$25="Moderado"),CONCATENATE("R",SIG!$A$25),"") ->  | AB6: =IF(AND(SIG!$I$12="Muy Alta",SIG!$M$12="Mayor"),CONCATENATE("R",SIG!$A$12),"") ->  | AD6: =IF(AND(SIG!$I$19="Muy Alta",SIG!$M$19="Mayor"),CONCATENATE("R",SIG!$A$19),"") ->  | AF6: =IF(AND(SIG!$I$25="Muy Alta",SIG!$M$25="Mayor"),CONCATENATE("R",SIG!$A$25),"") ->  | AH6: =IF(AND(SIG!$I$12="Muy Alta",SIG!$M$12="Catastrófico"),CONCATENATE("R",SIG!$A$12),"") ->  | AJ6: =IF(AND(SIG!$I$19="Muy Alta",SIG!$M$19="Catastrófico"),CONCATENATE("R",SIG!$A$19),"") ->  | AL6: =IF(AND(SIG!$I$25="Muy Alta",SIG!$M$25="Catastrófico"),CONCATENATE("R",SIG!$A$25),"") ->  | AO6: Extremo
J8: =IF(AND(SIG!$I$31="Muy Alta",SIG!$M$31="Leve"),CONCATENATE("R",SIG!$A$31),"") ->  | L8: =IF(AND(SIG!$I$37="Muy Alta",SIG!$M$37="Leve"),CONCATENATE("R",SIG!$A$37),"") ->  | N8: =IF(AND(SIG!$I$43="Muy Alta",SIG!$M$43="Leve"),CONCATENATE("R",SIG!$A$43),"") ->  | P8: =IF(AND(SIG!$I$31="Muy Alta",SIG!$M$31="Menor"),CONCATENATE("R",SIG!$A$31),"") ->  | R8: =IF(AND(SIG!$I$37="Muy Alta",SIG!$M$37="Menor"),CONCATENATE("R",SIG!$A$37),"") ->  | T8: =IF(AND(SIG!$I$43="Muy Alta",SIG!$M$43="Menor"),CONCATENATE("R",SIG!$A$43),"") ->  | V8: =IF(AND(SIG!$I$31="Muy Alta",SIG!$M$31="Moderado"),CONCATENATE("R",SIG!$A$31),"") ->  | X8: =IF(AND(SIG!$I$37="Muy Alta",SIG!$M$37="Moderado"),CONCATENATE("R",SIG!$A$37),"") ->  | Z8: =IF(AND(SIG!$I$43="Muy Alta",SIG!$M$43="Moderado"),CONCATENATE("R",SIG!$A$43),"") ->  | AB8: =IF(AND(SIG!$I$31="Muy Alta",SIG!$M$31="Mayor"),CONCATENATE("R",SIG!$A$31),"") ->  | AD8: =IF(AND(SIG!$I$37="Muy Alta",SIG!$M$37="Mayor"),CONCATENATE("R",SIG!$A$37),"") ->  | AF8: =IF(AND(SIG!$I$43="Muy Alta",SIG!$M$43="Mayor"),CONCATENATE("R",SIG!$A$43),"") ->  | AH8: =IF(AND(SIG!$I$31="Muy Alta",SIG!$M$31="Catastrófico"),CONCATENATE("R",SIG!$A$31),"") ->  | AJ8: =IF(AND(SIG!$I$37="Muy Alta",SIG!$M$37="Catastrófico"),CONCATENATE("R",SIG!$A$37),"") ->  | AL8: =IF(AND(SIG!$I$43="Muy Alta",SIG!$M$43="Catastrófico"),CONCATENATE("R",SIG!$A$43),"") -> 
J10: =IF(AND(SIG!$I$49="Muy Alta",SIG!$M$49="Leve"),CONCATENATE("R",SIG!$A$49),"") ->  | L10: =IF(AND(SIG!$I$55="Muy Alta",SIG!$M$55="Leve"),CONCATENATE("R",SIG!$A$55),"") ->  | N10: =IF(AND(SIG!$I$61="Muy Alta",SIG!$M$61="Leve"),CONCATENATE("R",SIG!$A$61),"") ->  | P10: =IF(AND(SIG!$I$49="Muy Alta",SIG!$M$49="Menor"),CONCATENATE("R",SIG!$A$49),"") ->  | R10: =IF(AND(SIG!$I$55="Muy Alta",SIG!$M$55="Menor"),CONCATENATE("R",SIG!$A$55),"") ->  | T10: =IF(AND(SIG!$I$61="Muy Alta",SIG!$M$61="Menor"),CONCATENATE("R",SIG!$A$61),"") ->  | V10: =IF(AND(SIG!$I$49="Muy Alta",SIG!$M$49="Moderado"),CONCATENATE("R",SIG!$A$49),"") ->  | X10: =IF(AND(SIG!$I$55="Muy Alta",SIG!$M$55="Moderado"),CONCATENATE("R",SIG!$A$55),"") ->  | Z10: =IF(AND(SIG!$I$61="Muy Alta",SIG!$M$61="Moderado"),CONCATENATE("R",SIG!$A$61),"") ->  | AB10: =IF(AND(SIG!$I$49="Muy Alta",SIG!$M$49="Mayor"),CONCATENATE("R",SIG!$A$49),"") ->  | AD10: =IF(AND(SIG!$I$55="Muy Alta",SIG!$M$55="Mayor"),CONCATENATE("R",SIG!$A$55),"") ->  | AF10: =IF(AND(SIG!$I$61="Muy Alta",SIG!$M$61="Mayor"),CONCATENATE("R",SIG!$A$61),"") ->  | AH10: =IF(AND(SIG!$I$49="Muy Alta",SIG!$M$49="Catastrófico"),CONCATENATE("R",SIG!$A$49),"") ->  | AJ10: =IF(AND(SIG!$I$55="Muy Alta",SIG!$M$55="Catastrófico"),CONCATENATE("R",SIG!$A$55),"") ->  | AL10: =IF(AND(SIG!$I$61="Muy Alta",SIG!$M$61="Catastrófico"),CONCATENATE("R",SIG!$A$61),"") -> 
J12: =IF(AND(SIG!$I$67="Muy Alta",SIG!$M$67="Leve"),CONCATENATE("R",SIG!$A$67),"") ->  | L12: =IF(AND(SIG!$I$73="Muy Alta",SIG!$M$73="Leve"),CONCATENATE("R",SIG!$A$73),"") ->  | N12: =IF(AND(SIG!$I$79="Muy Alta",SIG!$M$79="Leve"),CONCATENATE("R",SIG!$A$79),"") ->  | P12: =IF(AND(SIG!$I$67="Muy Alta",SIG!$M$67="Menor"),CONCATENATE("R",SIG!$A$67),"") ->  | R12: =IF(AND(SIG!$I$73="Muy Alta",SIG!$M$73="Menor"),CONCATENATE("R",SIG!$A$73),"") ->  | T12: =IF(AND(SIG!$I$79="Muy Alta",SIG!$M$79="Menor"),CONCATENATE("R",SIG!$A$79),"") ->  | V12: =IF(AND(SIG!$I$67="Muy Alta",SIG!$M$67="Moderado"),CONCATENATE("R",SIG!$A$67),"") ->  | X12: =IF(AND(SIG!$I$73="Muy Alta",SIG!$M$73="Moderado"),CONCATENATE("R",SIG!$A$73),"") ->  | Z12: =IF(AND(SIG!$I$79="Muy Alta",SIG!$M$79="Moderado"),CONCATENATE("R",SIG!$A$79),"") ->  | AB12: =IF(AND(SIG!$I$67="Muy Alta",SIG!$M$67="Mayor"),CONCATENATE("R",SIG!$A$67),"") ->  | AD12: =IF(AND(SIG!$I$73="Muy Alta",SIG!$M$73="Mayor"),CONCATENATE("R",SIG!$A$73),"") ->  | AF12: =IF(AND(SIG!$I$79="Muy Alta",SIG!$M$79="Mayor"),CONCATENATE("R",SIG!$A$79),"") ->  | AH12: =IF(AND(SIG!$I$67="Muy Alta",SIG!$M$67="Catastrófico"),CONCATENATE("R",SIG!$A$67),"") ->  | AJ12: =IF(AND(SIG!$I$73="Muy Alta",SIG!$M$73="Catastrófico"),CONCATENATE("R",SIG!$A$73),"") ->  | AL12: =IF(AND(SIG!$I$79="Muy Alta",SIG!$M$79="Catastrófico"),CONCATENATE("R",SIG!$A$79),"") -> 
E14: Alta 80% | J14: =IF(AND(SIG!$I$12="Alta",SIG!$M$12="Leve"),CONCATENATE("R",SIG!$A$12),"") ->  | L14: =IF(AND(SIG!$I$19="Alta",SIG!$M$19="Leve"),CONCATENATE("R",SIG!$A$19),"") ->  | N14: =IF(AND(SIG!$I$25="Alta",SIG!$M$25="Leve"),CONCATENATE("R",SIG!$A$25),"") ->  | P14: =IF(AND(SIG!$I$12="Alta",SIG!$M$12="Menor"),CONCATENATE("R",SIG!$A$12),"") ->  | R14: =IF(AND(SIG!$I$19="Alta",SIG!$M$19="Menor"),CONCATENATE("R",SIG!$A$19),"") ->  | T14: =IF(AND(SIG!$I$25="Alta",SIG!$M$25="Menor"),CONCATENATE("R",SIG!$A$25),"") ->  | V14: =IF(AND(SIG!$I$12="Alta",SIG!$M$12="Moderado"),CONCATENATE("R",SIG!$A$12),"") ->  | X14: =IF(AND(SIG!$I$19="Alta",SIG!$M$19="Moderado"),CONCATENATE("R",SIG!$A$19),"") ->  | Z14: =IF(AND(SIG!$I$25="Alta",SIG!$M$25="Moderado"),CONCATENATE("R",SIG!$A$25),"") ->  | AB14: =IF(AND(SIG!$I$12="Alta",SIG!$M$12="Mayor"),CONCATENATE("R",SIG!$A$12),"") ->  | AD14: =IF(AND(SIG!$I$19="Alta",SIG!$M$19="Mayor"),CONCATENATE("R",SIG!$A$19),"") ->  | AF14: =IF(AND(SIG!$I$25="Alta",SIG!$M$25="Mayor"),CONCATENATE("R",SIG!$A$25),"") ->  | AH14: =IF(AND(SIG!$I$12="Alta",SIG!$M$12="Catastrófico"),CONCATENATE("R",SIG!$A$12),"") ->  | AJ14: =IF(AND(SIG!$I$19="Alta",SIG!$M$19="Catastrófico"),CONCATENATE("R",SIG!$A$19),"") ->  | AL14: =IF(AND(SIG!$I$25="Alta",SIG!$M$25="Catastrófico"),CONCATENATE("R",SIG!$A$25),"") ->  | AO14: Alto
J16: =IF(AND(SIG!$I$31="Alta",SIG!$M$31="Leve"),CONCATENATE("R",SIG!$A$31),"") ->  | L16: =IF(AND(SIG!$I$37="Alta",SIG!$M$37="Leve"),CONCATENATE("R",SIG!$A$37),"") ->  | N16: =IF(AND(SIG!$I$43="Alta",SIG!$M$43="Leve"),CONCATENATE("R",SIG!$A$43),"") ->  | P16: =IF(AND(SIG!$I$31="Alta",SIG!$M$31="Menor"),CONCATENATE("R",SIG!$A$31),"") ->  | R16: =IF(AND(SIG!$I$37="Alta",SIG!$M$37="Menor"),CONCATENATE("R",SIG!$A$37),"") ->  | T16: =IF(AND(SIG!$I$43="Alta",SIG!$M$43="Menor"),CONCATENATE("R",SIG!$A$43),"") ->  | V16: =IF(AND(SIG!$I$31="Alta",SIG!$M$31="Moderado"),CONCATENATE("R",SIG!$A$31),"") ->  | X16: =IF(AND(SIG!$I$37="Alta",SIG!$M$37="Moderado"),CONCATENATE("R",SIG!$A$37),"") ->  | Z16: =IF(AND(SIG!$I$43="Alta",SIG!$M$43="Moderado"),CONCATENATE("R",SIG!$A$43),"") ->  | AB16: =IF(AND(SIG!$I$31="Alta",SIG!$M$31="Mayor"),CONCATENATE("R",SIG!$A$31),"") ->  | AD16: =IF(AND(SIG!$I$37="Alta",SIG!$M$37="Mayor"),CONCATENATE("R",SIG!$A$37),"") ->  | AF16: =IF(AND(SIG!$I$43="Alta",SIG!$M$43="Mayor"),CONCATENATE("R",SIG!$A$43),"") ->  | AH16: =IF(AND(SIG!$I$31="Alta",SIG!$M$31="Catastrófico"),CONCATENATE("R",SIG!$A$31),"") ->  | AJ16: =IF(AND(SIG!$I$37="Alta",SIG!$M$37="Catastrófico"),CONCATENATE("R",SIG!$A$37),"") ->  | AL16: =IF(AND(SIG!$I$43="Alta",SIG!$M$43="Catastrófico"),CONCATENATE("R",SIG!$A$43),"") -> 
J18: =IF(AND(SIG!$I$49="Alta",SIG!$M$49="Leve"),CONCATENATE("R",SIG!$A$49),"") ->  | L18: =IF(AND(SIG!$I$55="Alta",SIG!$M$55="Leve"),CONCATENATE("R",SIG!$A$55),"") ->  | N18: =IF(AND(SIG!$I$61="Alta",SIG!$M$61="Leve"),CONCATENATE("R",SIG!$A$61),"") ->  | P18: =IF(AND(SIG!$I$49="Alta",SIG!$M$49="Menor"),CONCATENATE("R",SIG!$A$49),"") ->  | R18: =IF(AND(SIG!$I$55="Alta",SIG!$M$55="Menor"),CONCATENATE("R",SIG!$A$55),"") ->  | T18: =IF(AND(SIG!$I$61="Alta",SIG!$M$61="Menor"),CONCATENATE("R",SIG!$A$61),"") ->  | V18: =IF(AND(SIG!$I$49="Alta",SIG!$M$49="Moderado"),CONCATENATE("R",SIG!$A$49),"") ->  | X18: =IF(AND(SIG!$I$55="Alta",SIG!$M$55="Moderado"),CONCATENATE("R",SIG!$A$55),"") ->  | Z18: =IF(AND(SIG!$I$61="Alta",SIG!$M$61="Moderado"),CONCATENATE("R",SIG!$A$61),"") ->  | AB18: =IF(AND(SIG!$I$49="Alta",SIG!$M$49="Mayor"),CONCATENATE("R",SIG!$A$49),"") ->  | AD18: =IF(AND(SIG!$I$55="Alta",SIG!$M$55="Mayor"),CONCATENATE("R",SIG!$A$55),"") ->  | AF18: =IF(AND(SIG!$I$61="Alta",SIG!$M$61="Mayor"),CONCATENATE("R",SIG!$A$61),"") ->  | AH18: =IF(AND(SIG!$I$49="Alta",SIG!$M$49="Catastrófico"),CONCATENATE("R",SIG!$A$49),"") ->  | AJ18: =IF(AND(SIG!$I$55="Alta",SIG!$M$55="Catastrófico"),CONCATENATE("R",SIG!$A$55),"") ->  | AL18: =IF(AND(SIG!$I$61="Alta",SIG!$M$61="Catastrófico"),CONCATENATE("R",SIG!$A$61),"") -> 
J20: =IF(AND(SIG!$I$67="Alta",SIG!$M$67="Leve"),CONCATENATE("R",SIG!$A$67),"") ->  | L20: =IF(AND(SIG!$I$73="Alta",SIG!$M$73="Leve"),CONCATENATE("R",SIG!$A$73),"") ->  | N20: =IF(AND(SIG!$I$79="Alta",SIG!$M$79="Leve"),CONCATENATE("R",SIG!$A$79),"") ->  | P20: =IF(AND(SIG!$I$67="Alta",SIG!$M$67="Menor"),CONCATENATE("R",SIG!$A$67),"") ->  | R20: =IF(AND(SIG!$I$73="Alta",SIG!$M$73="Menor"),CONCATENATE("R",SIG!$A$73),"") ->  | T20: =IF(AND(SIG!$I$79="Alta",SIG!$M$79="Menor"),CONCATENATE("R",SIG!$A$79),"") ->  | V20: =IF(AND(SIG!$I$67="Alta",SIG!$M$67="Moderado"),CONCATENATE("R",SIG!$A$67),"") ->  | X20: =IF(AND(SIG!$I$73="Alta",SIG!$M$73="Moderado"),CONCATENATE("R",SIG!$A$73),"") ->  | Z20: =IF(AND(SIG!$I$79="Alta",SIG!$M$79="Moderado"),CONCATENATE("R",SIG!$A$79),"") ->  | AB20: =IF(AND(SIG!$I$67="Alta",SIG!$M$67="Mayor"),CONCATENATE("R",SIG!$A$67),"") ->  | AD20: =IF(AND(SIG!$I$73="Alta",SIG!$M$73="Mayor"),CONCATENATE("R",SIG!$A$73),"") ->  | AF20: =IF(AND(SIG!$I$79="Alta",SIG!$M$79="Mayor"),CONCATENATE("R",SIG!$A$79),"") ->  | AH20: =IF(AND(SIG!$I$67="Alta",SIG!$M$67="Catastrófico"),CONCATENATE("R",SIG!$A$67),"") ->  | AJ20: =IF(AND(SIG!$I$73="Alta",SIG!$M$73="Catastrófico"),CONCATENATE("R",SIG!$A$73),"") ->  | AL20: =IF(AND(SIG!$I$79="Alta",SIG!$M$79="Catastrófico"),CONCATENATE("R",SIG!$A$79),"") -> 
E22: Media 60% | J22: =IF(AND(SIG!$I$12="Media",SIG!$M$12="Leve"),CONCATENATE("R",SIG!$A$12),"") ->  | L22: =IF(AND(SIG!$I$19="Media",SIG!$M$19="Leve"),CONCATENATE("R",SIG!$A$19),"") ->  | N22: =IF(AND(SIG!$I$25="Media",SIG!$M$25="Leve"),CONCATENATE("R",SIG!$A$25),"") ->  | P22: =IF(AND(SIG!$I$12="Media",SIG!$M$12="Menor"),CONCATENATE("R",SIG!$A$12),"") ->  | R22: =IF(AND(SIG!$I$19="Media",SIG!$M$19="Menor"),CONCATENATE("R",SIG!$A$19),"") ->  | T22: =IF(AND(SIG!$I$25="Media",SIG!$M$25="Menor"),CONCATENATE("R",SIG!$A$25),"") ->  | V22: =IF(AND(SIG!$I$12="Media",SIG!$M$12="Moderado"),CONCATENATE("R",SIG!$A$12),"") ->  | X22: =IF(AND(SIG!$I$19="Media",SIG!$M$19="Moderado"),CONCATENATE("R",SIG!$A$19),"") ->  | Z22: =IF(AND(SIG!$I$25="Media",SIG!$M$25="Moderado"),CONCATENATE("R",SIG!$A$25),"") ->  | AB22: =IF(AND(SIG!$I$12="Media",SIG!$M$12="Mayor"),CONCATENATE("R",SIG!$A$12),"") ->  | AD22: =IF(AND(SIG!$I$19="Media",SIG!$M$19="Mayor"),CONCATENATE("R",SIG!$A$19),"") ->  | AF22: =IF(AND(SIG!$I$25="Media",SIG!$M$25="Mayor"),CONCATENATE("R",SIG!$A$25),"") ->  | AH22: =IF(AND(SIG!$I$12="Media",SIG!$M$12="Catastrófico"),CONCATENATE("R",SIG!$A$12),"") ->  | AJ22: =IF(AND(SIG!$I$19="Media",SIG!$M$19="Catastrófico"),CONCATENATE("R",SIG!$A$19),"") ->  | AL22: =IF(AND(SIG!$I$25="Media",SIG!$M$25="Catastrófico"),CONCATENATE("R",SIG!$A$25),"") ->  | AO22: Moderado
J24: =IF(AND(SIG!$I$31="Media",SIG!$M$31="Leve"),CONCATENATE("R",SIG!$A$31),"") ->  | L24: =IF(AND(SIG!$I$37="Media",SIG!$M$37="Leve"),CONCATENATE("R",SIG!$A$37),"") ->  | N24: =IF(AND(SIG!$I$43="Media",SIG!$M$43="Leve"),CONCATENATE("R",SIG!$A$43),"") ->  | P24: =IF(AND(SIG!$I$31="Media",SIG!$M$31="Menor"),CONCATENATE("R",SIG!$A$31),"") ->  | R24: =IF(AND(SIG!$I$37="Media",SIG!$M$37="Menor"),CONCATENATE("R",SIG!$A$37),"") ->  | T24: =IF(AND(SIG!$I$43="Media",SIG!$M$43="Menor"),CONCATENATE("R",SIG!$A$43),"") ->  | V24: =IF(AND(SIG!$I$31="Media",SIG!$M$31="Moderado"),CONCATENATE("R",SIG!$A$31),"") ->  | X24: =IF(AND(SIG!$I$37="Media",SIG!$M$37="Moderado"),CONCATENATE("R",SIG!$A$37),"") ->  | Z24: =IF(AND(SIG!$I$43="Media",SIG!$M$43="Moderado"),CONCATENATE("R",SIG!$A$43),"") ->  | AB24: =IF(AND(SIG!$I$31="Media",SIG!$M$31="Mayor"),CONCATENATE("R",SIG!$A$31),"") ->  | AD24: =IF(AND(SIG!$I$37="Media",SIG!$M$37="Mayor"),CONCATENATE("R",SIG!$A$37),"") ->  | AF24: =IF(AND(SIG!$I$43="Media",SIG!$M$43="Mayor"),CONCATENATE("R",SIG!$A$43),"") ->  | AH24: =IF(AND(SIG!$I$31="Media",SIG!$M$31="Catastrófico"),CONCATENATE("R",SIG!$A$31),"") ->  | AJ24: =IF(AND(SIG!$I$37="Media",SIG!$M$37="Catastrófico"),CONCATENATE("R",SIG!$A$37),"") ->  | AL24: =IF(AND(SIG!$I$43="Media",SIG!$M$43="Catastrófico"),CONCATENATE("R",SIG!$A$43),"") -> 
J26: =IF(AND(SIG!$I$49="Media",SIG!$M$49="Leve"),CONCATENATE("R",SIG!$A$49),"") ->  | L26: =IF(AND(SIG!$I$55="Media",SIG!$M$55="Leve"),CONCATENATE("R",SIG!$A$55),"") ->  | N26: =IF(AND(SIG!$I$61="Media",SIG!$M$61="Leve"),CONCATENATE("R",SIG!$A$61),"") ->  | P26: =IF(AND(SIG!$I$49="Media",SIG!$M$49="Menor"),CONCATENATE("R",SIG!$A$49),"") ->  | R26: =IF(AND(SIG!$I$55="Media",SIG!$M$55="Menor"),CONCATENATE("R",SIG!$A$55),"") ->  | T26: =IF(AND(SIG!$I$61="Media",SIG!$M$61="Menor"),CONCATENATE("R",SIG!$A$61),"") ->  | V26: =IF(AND(SIG!$I$49="Media",SIG!$M$49="Moderado"),CONCATENATE("R",SIG!$A$49),"") ->  | X26: =IF(AND(SIG!$I$55="Media",SIG!$M$55="Moderado"),CONCATENATE("R",SIG!$A$55),"") ->  | Z26: =IF(AND(SIG!$I$61="Media",SIG!$M$61="Moderado"),CONCATENATE("R",SIG!$A$61),"") ->  | AB26: =IF(AND(SIG!$I$49="Media",SIG!$M$49="Mayor"),CONCATENATE("R",SIG!$A$49),"") ->  | AD26: =IF(AND(SIG!$I$55="Media",SIG!$M$55="Mayor"),CONCATENATE("R",SIG!$A$55),"") ->  | AF26: =IF(AND(SIG!$I$61="Media",SIG!$M$61="Mayor"),CONCATENATE("R",SIG!$A$61),"") ->  | AH26: =IF(AND(SIG!$I$49="Media",SIG!$M$49="Catastrófico"),CONCATENATE("R",SIG!$A$49),"") ->  | AJ26: =IF(AND(SIG!$I$55="Media",SIG!$M$55="Catastrófico"),CONCATENATE("R",SIG!$A$55),"") ->  | AL26: =IF(AND(SIG!$I$61="Media",SIG!$M$61="Catastrófico"),CONCATENATE("R",SIG!$A$61),"") -> 
J28: =IF(AND(SIG!$I$67="Media",SIG!$M$67="Leve"),CONCATENATE("R",SIG!$A$67),"") ->  | L28: =IF(AND(SIG!$I$73="Media",SIG!$M$73="Leve"),CONCATENATE("R",SIG!$A$73),"") ->  | N28: =IF(AND(SIG!$I$79="Media",SIG!$M$79="Leve"),CONCATENATE("R",SIG!$A$79),"") ->  | P28: =IF(AND(SIG!$I$67="Media",SIG!$M$67="Menor"),CONCATENATE("R",SIG!$A$67),"") ->  | R28: =IF(AND(SIG!$I$73="Media",SIG!$M$73="Menor"),CONCATENATE("R",SIG!$A$73),"") ->  | T28: =IF(AND(SIG!$I$79="Media",SIG!$M$79="Menor"),CONCATENATE("R",SIG!$A$79),"") ->  | V28: =IF(AND(SIG!$I$67="Media",SIG!$M$67="Moderado"),CONCATENATE("R",SIG!$A$67),"") ->  | X28: =IF(AND(SIG!$I$73="Media",SIG!$M$73="Moderado"),CONCATENATE("R",SIG!$A$73),"") ->  | Z28: =IF(AND(SIG!$I$79="Media",SIG!$M$79="Moderado"),CONCATENATE("R",SIG!$A$79),"") ->  | AB28: =IF(AND(SIG!$I$67="Media",SIG!$M$67="Mayor"),CONCATENATE("R",SIG!$A$67),"") ->  | AD28: =IF(AND(SIG!$I$73="Media",SIG!$M$73="Mayor"),CONCATENATE("R",SIG!$A$73),"") ->  | AF28: =IF(AND(SIG!$I$79="Media",SIG!$M$79="Mayor"),CONCATENATE("R",SIG!$A$79),"") ->  | AH28: =IF(AND(SIG!$I$67="Media",SIG!$M$67="Catastrófico"),CONCATENATE("R",SIG!$A$67),"") ->  | AJ28: =IF(AND(SIG!$I$73="Media",SIG!$M$73="Catastrófico"),CONCATENATE("R",SIG!$A$73),"") ->  | AL28: =IF(AND(SIG!$I$79="Media",SIG!$M$79="Catastrófico"),CONCATENATE("R",SIG!$A$79),"") -> 
E30: Baja 40% | J30: =IF(AND(SIG!$I$12="Baja",SIG!$M$12="Leve"),CONCATENATE("R",SIG!$A$12),"") ->  | L30: =IF(AND(SIG!$I$19="Baja",SIG!$M$19="Leve"),CONCATENATE("R",SIG!$A$19),"") ->  | N30: =IF(AND(SIG!$I$25="Baja",SIG!$M$25="Leve"),CONCATENATE("R",SIG!$A$25),"") ->  | P30: =IF(AND(SIG!$I$12="Baja",SIG!$M$12="Menor"),CONCATENATE("R",SIG!$A$12),"") ->  | R30: =IF(AND(SIG!$I$19="Baja",SIG!$M$19="Menor"),CONCATENATE("R",SIG!$A$19),"") ->  | T30: =IF(AND(SIG!$I$25="Baja",SIG!$M$25="Menor"),CONCATENATE("R",SIG!$A$25),"") ->  | V30: =IF(AND(SIG!$I$12="Baja",SIG!$M$12="Moderado"),CONCATENATE("R",SIG!$A$12),"") ->  | X30: =IF(AND(SIG!$I$19="Baja",SIG!$M$19="Moderado"),CONCATENATE("R",SIG!$A$19),"") ->  | Z30: =IF(AND(SIG!$I$25="Baja",SIG!$M$25="Moderado"),CONCATENATE("R",SIG!$A$25),"") ->  | AB30: =IF(AND(SIG!$I$12="Baja",SIG!$M$12="Mayor"),CONCATENATE("R",SIG!$A$12),"") ->  | AD30: =IF(AND(SIG!$I$19="Baja",SIG!$M$19="Mayor"),CONCATENATE("R",SIG!$A$19),"") ->  | AF30: =IF(AND(SIG!$I$25="Baja",SIG!$M$25="Mayor"),CONCATENATE("R",SIG!$A$25),"") ->  | AH30: =IF(AND(SIG!$I$12="Baja",SIG!$M$12="Catastrófico"),CONCATENATE("R",SIG!$A$12),"") ->  | AJ30: =IF(AND(SIG!$I$19="Baja",SIG!$M$19="Catastrófico"),CONCATENATE("R",SIG!$A$19),"") ->  | AL30: =IF(AND(SIG!$I$25="Baja",SIG!$M$25="Catastrófico"),CONCATENATE("R",SIG!$A$25),"") ->  | AO30: Bajo
J32: =IF(AND(SIG!$I$31="Baja",SIG!$M$31="Leve"),CONCATENATE("R",SIG!$A$31),"") ->  | L32: =IF(AND(SIG!$I$37="Baja",SIG!$M$37="Leve"),CONCATENATE("R",SIG!$A$37),"") ->  | N32: =IF(AND(SIG!$I$43="Baja",SIG!$M$43="Leve"),CONCATENATE("R",SIG!$A$43),"") ->  | P32: =IF(AND(SIG!$I$31="Baja",SIG!$M$31="Menor"),CONCATENATE("R",SIG!$A$31),"") ->  | R32: =IF(AND(SIG!$I$37="Baja",SIG!$M$37="Menor"),CONCATENATE("R",SIG!$A$37),"") ->  | T32: =IF(AND(SIG!$I$43="Baja",SIG!$M$43="Menor"),CONCATENATE("R",SIG!$A$43),"") ->  | V32: =IF(AND(SIG!$I$31="Baja",SIG!$M$31="Moderado"),CONCATENATE("R",SIG!$A$31),"") ->  | X32: =IF(AND(SIG!$I$37="Baja",SIG!$M$37="Moderado"),CONCATENATE("R",SIG!$A$37),"") ->  | Z32: =IF(AND(SIG!$I$43="Baja",SIG!$M$43="Moderado"),CONCATENATE("R",SIG!$A$43),"") ->  | AB32: =IF(AND(SIG!$I$31="Baja",SIG!$M$31="Mayor"),CONCATENATE("R",SIG!$A$31),"") ->  | AD32: =IF(AND(SIG!$I$37="Baja",SIG!$M$37="Mayor"),CONCATENATE("R",SIG!$A$37),"") ->  | AF32: =IF(AND(SIG!$I$43="Baja",SIG!$M$43="Mayor"),CONCATENATE("R",SIG!$A$43),"") ->  | AH32: =IF(AND(SIG!$I$31="Baja",SIG!$M$31="Catastrófico"),CONCATENATE("R",SIG!$A$31),"") ->  | AJ32: =IF(AND(SIG!$I$37="Baja",SIG!$M$37="Catastrófico"),CONCATENATE("R",SIG!$A$37),"") ->  | AL32: =IF(AND(SIG!$I$43="Baja",SIG!$M$43="Catastrófico"),CONCATENATE("R",SIG!$A$43),"") -> 
J34: =IF(AND(SIG!$I$49="Baja",SIG!$M$49="Leve"),CONCATENATE("R",SIG!$A$49),"") ->  | L34: =IF(AND(SIG!$I$55="Baja",SIG!$M$55="Leve"),CONCATENATE("R",SIG!$A$55),"") ->  | N34: =IF(AND(SIG!$I$61="Baja",SIG!$M$61="Leve"),CONCATENATE("R",SIG!$A$61),"") ->  | P34: =IF(AND(SIG!$I$49="Baja",SIG!$M$49="Menor"),CONCATENATE("R",SIG!$A$49),"") ->  | R34: =IF(AND(SIG!$I$55="Baja",SIG!$M$55="Menor"),CONCATENATE("R",SIG!$A$55),"") ->  | T34: =IF(AND(SIG!$I$61="Baja",SIG!$M$61="Menor"),CONCATENATE("R",SIG!$A$61),"") ->  | V34: =IF(AND(SIG!$I$49="Baja",SIG!$M$49="Moderado"),CONCATENATE("R",SIG!$A$49),"") ->  | X34: =IF(AND(SIG!$I$55="Baja",SIG!$M$55="Moderado"),CONCATENATE("R",SIG!$A$55),"") ->  | Z34: =IF(AND(SIG!$I$61="Baja",SIG!$M$61="Moderado"),CONCATENATE("R",SIG!$A$61),"") ->  | AB34: =IF(AND(SIG!$I$49="Baja",SIG!$M$49="Mayor"),CONCATENATE("R",SIG!$A$49),"") ->  | AD34: =IF(AND(SIG!$I$55="Baja",SIG!$M$55="Mayor"),CONCATENATE("R",SIG!$A$55),"") ->  | AF34: =IF(AND(SIG!$I$61="Baja",SIG!$M$61="Mayor"),CONCATENATE("R",SIG!$A$61),"") ->  | AH34: =IF(AND(SIG!$I$49="Baja",SIG!$M$49="Catastrófico"),CONCATENATE("R",SIG!$A$49),"") ->  | AJ34: =IF(AND(SIG!$I$55="Baja",SIG!$M$55="Catastrófico"),CONCATENATE("R",SIG!$A$55),"") ->  | AL34: =IF(AND(SIG!$I$61="Baja",SIG!$M$61="Catastrófico"),CONCATENATE("R",SIG!$A$61),"") -> 
J36: =IF(AND(SIG!$I$67="Baja",SIG!$M$67="Leve"),CONCATENATE("R",SIG!$A$67),"") ->  | L36: =IF(AND(SIG!$I$73="Baja",SIG!$M$73="Leve"),CONCATENATE("R",SIG!$A$73),"") ->  | N36: =IF(AND(SIG!$I$79="Baja",SIG!$M$79="Leve"),CONCATENATE("R",SIG!$A$79),"") ->  | P36: =IF(AND(SIG!$I$67="Baja",SIG!$M$67="Menor"),CONCATENATE("R",SIG!$A$67),"") ->  | R36: =IF(AND(SIG!$I$73="Baja",SIG!$M$73="Menor"),CONCATENATE("R",SIG!$A$73),"") ->  | T36: =IF(AND(SIG!$I$79="Baja",SIG!$M$79="Menor"),CONCATENATE("R",SIG!$A$79),"") ->  | V36: =IF(AND(SIG!$I$67="Baja",SIG!$M$67="Moderado"),CONCATENATE("R",SIG!$A$67),"") ->  | X36: =IF(AND(SIG!$I$73="Baja",SIG!$M$73="Moderado"),CONCATENATE("R",SIG!$A$73),"") ->  | Z36: =IF(AND(SIG!$I$79="Baja",SIG!$M$79="Moderado"),CONCATENATE("R",SIG!$A$79),"") ->  | AB36: =IF(AND(SIG!$I$67="Baja",SIG!$M$67="Mayor"),CONCATENATE("R",SIG!$A$67),"") ->  | AD36: =IF(AND(SIG!$I$73="Baja",SIG!$M$73="Mayor"),CONCATENATE("R",SIG!$A$73),"") ->  | AF36: =IF(AND(SIG!$I$79="Baja",SIG!$M$79="Mayor"),CONCATENATE("R",SIG!$A$79),"") ->  | AH36: =IF(AND(SIG!$I$67="Baja",SIG!$M$67="Catastrófico"),CONCATENATE("R",SIG!$A$67),"") ->  | AJ36: =IF(AND(SIG!$I$73="Baja",SIG!$M$73="Catastrófico"),CONCATENATE("R",SIG!$A$73),"") ->  | AL36: =IF(AND(SIG!$I$79="Baja",SIG!$M$79="Catastrófico"),CONCATENATE("R",SIG!$A$79),"") -> 
E38: Muy Baja 20% | J38: =IF(AND(SIG!$I$12="Muy Baja",SIG!$M$12="Leve"),CONCATENATE("R",SIG!$A$12),"") ->  | L38: =IF(AND(SIG!$I$19="Muy Baja",SIG!$M$19="Leve"),CONCATENATE("R",SIG!$A$19),"") ->  | N38: =IF(AND(SIG!$I$25="Muy Baja",SIG!$M$25="Leve"),CONCATENATE("R",SIG!$A$25),"") ->  | P38: =IF(AND(SIG!$I$12="Muy Baja",SIG!$M$12="Menor"),CONCATENATE("R",SIG!$A$12),"") -> R1 | R38: =IF(AND(SIG!$I$19="Muy Baja",SIG!$M$19="Menor"),CONCATENATE("R",SIG!$A$19),"") ->  | T38: =IF(AND(SIG!$I$25="Muy Baja",SIG!$M$25="Menor"),CONCATENATE("R",SIG!$A$25),"") ->  | V38: =IF(AND(SIG!$I$12="Muy Baja",SIG!$M$12="Moderado"),CONCATENATE("R",SIG!$A$12),"") ->  | X38: =IF(AND(SIG!$I$19="Muy Baja",SIG!$M$19="Moderado"),CONCATENATE("R",SIG!$A$19),"") ->  | Z38: =IF(AND(SIG!$I$25="Muy Baja",SIG!$M$25="Moderado"),CONCATENATE("R",SIG!$A$25),"") ->  | AB38: =IF(AND(SIG!$I$12="Muy Baja",SIG!$M$12="Mayor"),CONCATENATE("R",SIG!$A$12),"") ->  | AD38: =IF(AND(SIG!$I$19="Muy Baja",SIG!$M$19="Mayor"),CONCATENATE("R",SIG!$A$19),"") ->  | AF38: =IF(AND(SIG!$I$25="Muy Baja",SIG!$M$25="Mayor"),CONCATENATE("R",SIG!$A$25),"") ->  | AH38: =IF(AND(SIG!$I$12="Muy Baja",SIG!$M$12="Catastrófico"),CONCATENATE("R",SIG!$A$12),"") ->  | AJ38: =IF(AND(SIG!$I$19="Muy Baja",SIG!$M$19="Catastrófico"),CONCATENATE("R",SIG!$A$19),"") ->  | AL38: =IF(AND(SIG!$I$25="Muy Baja",SIG!$M$25="Catastrófico"),CONCATENATE("R",SIG!$A$25),"") -> 
J40: =IF(AND(SIG!$I$31="Muy Baja",SIG!$M$31="Leve"),CONCATENATE("R",SIG!$A$31),"") ->  | L40: =IF(AND(SIG!$I$37="Muy Baja",SIG!$M$37="Leve"),CONCATENATE("R",SIG!$A$37),"") ->  | N40: =IF(AND(SIG!$I$43="Muy Baja",SIG!$M$43="Leve"),CONCATENATE("R",SIG!$A$43),"") ->  | P40: =IF(AND(SIG!$I$31="Muy Baja",SIG!$M$31="Menor"),CONCATENATE("R",SIG!$A$31),"") ->  | R40: =IF(AND(SIG!$I$37="Muy Baja",SIG!$M$37="Menor"),CONCATENATE("R",SIG!$A$37),"") ->  | T40: =IF(AND(SIG!$I$43="Muy Baja",SIG!$M$43="Menor"),CONCATENATE("R",SIG!$A$43),"") ->  | V40: =IF(AND(SIG!$I$31="Muy Baja",SIG!$M$31="Moderado"),CONCATENATE("R",SIG!$A$31),"") ->  | X40: =IF(AND(SIG!$I$37="Muy Baja",SIG!$M$37="Moderado"),CONCATENATE("R",SIG!$A$37),"") ->  | Z40: =IF(AND(SIG!$I$43="Muy Baja",SIG!$M$43="Moderado"),CONCATENATE("R",SIG!$A$43),"") ->  | AB40: =IF(AND(SIG!$I$31="Muy Baja",SIG!$M$31="Mayor"),CONCATENATE("R",SIG!$A$31),"") ->  | AD40: =IF(AND(SIG!$I$37="Muy Baja",SIG!$M$37="Mayor"),CONCATENATE("R",SIG!$A$37),"") ->  | AF40: =IF(AND(SIG!$I$43="Muy Baja",SIG!$M$43="Mayor"),CONCATENATE("R",SIG!$A$43),"") ->  | AH40: =IF(AND(SIG!$I$31="Muy Baja",SIG!$M$31="Catastrófico"),CONCATENATE("R",SIG!$A$31),"") ->  | AJ40: =IF(AND(SIG!$I$37="Muy Baja",SIG!$M$37="Catastrófico"),CONCATENATE("R",SIG!$A$37),"") ->  | AL40: =IF(AND(SIG!$I$43="Muy Baja",SIG!$M$43="Catastrófico"),CONCATENATE("R",SIG!$A$43),"") -> 
J42: =IF(AND(SIG!$I$49="Muy Baja",SIG!$M$49="Leve"),CONCATENATE("R",SIG!$A$49),"") ->  | L42: =IF(AND(SIG!$I$55="Muy Baja",SIG!$M$55="Leve"),CONCATENATE("R",SIG!$A$55),"") ->  | N42: =IF(AND(SIG!$I$61="Muy Baja",SIG!$M$61="Leve"),CONCATENATE("R",SIG!$A$61),"") ->  | P42: =IF(AND(SIG!$I$49="Muy Baja",SIG!$M$49="Menor"),CONCATENATE("R",SIG!$A$49),"") ->  | R42: =IF(AND(SIG!$I$55="Muy Baja",SIG!$M$55="Menor"),CONCATENATE("R",SIG!$A$55),"") ->  | T42: =IF(AND(SIG!$I$61="Muy Baja",SIG!$M$61="Menor"),CONCATENATE("R",SIG!$A$61),"") ->  | V42: =IF(AND(SIG!$I$49="Muy Baja",SIG!$M$49="Moderado"),CONCATENATE("R",SIG!$A$49),"") ->  | X42: =IF(AND(SIG!$I$55="Muy Baja",SIG!$M$55="Moderado"),CONCATENATE("R",SIG!$A$55),"") ->  | Z42: =IF(AND(SIG!$I$61="Muy Baja",SIG!$M$61="Moderado"),CONCATENATE("R",SIG!$A$61),"") ->  | AB42: =IF(AND(SIG!$I$49="Muy Baja",SIG!$M$49="Mayor"),CONCATENATE("R",SIG!$A$49),"") ->  | AD42: =IF(AND(SIG!$I$55="Muy Baja",SIG!$M$55="Mayor"),CONCATENATE("R",SIG!$A$55),"") ->  | AF42: =IF(AND(SIG!$I$61="Muy Baja",SIG!$M$61="Mayor"),CONCATENATE("R",SIG!$A$61),"") ->  | AH42: =IF(AND(SIG!$I$49="Muy Baja",SIG!$M$49="Catastrófico"),CONCATENATE("R",SIG!$A$49),"") ->  | AJ42: =IF(AND(SIG!$I$55="Muy Baja",SIG!$M$55="Catastrófico"),CONCATENATE("R",SIG!$A$55),"") ->  | AL42: =IF(AND(SIG!$I$61="Muy Baja",SIG!$M$61="Catastrófico"),CONCATENATE("R",SIG!$A$61),"") -> 
J44: =IF(AND(SIG!$I$67="Muy Baja",SIG!$M$67="Leve"),CONCATENATE("R",SIG!$A$67),"") ->  | L44: =IF(AND(SIG!$I$73="Muy Baja",SIG!$M$73="Leve"),CONCATENATE("R",SIG!$A$73),"") ->  | N44: =IF(AND(SIG!$I$79="Muy Baja",SIG!$M$79="Leve"),CONCATENATE("R",SIG!$A$79),"") ->  | P44: =IF(AND(SIG!$I$67="Muy Baja",SIG!$M$67="Menor"),CONCATENATE("R",SIG!$A$67),"") ->  | R44: =IF(AND(SIG!$I$73="Muy Baja",SIG!$M$73="Menor"),CONCATENATE("R",SIG!$A$73),"") ->  | T44: =IF(AND(SIG!$I$79="Muy Baja",SIG!$M$79="Menor"),CONCATENATE("R",SIG!$A$79),"") ->  | V44: =IF(AND(SIG!$I$67="Muy Baja",SIG!$M$67="Moderado"),CONCATENATE("R",SIG!$A$67),"") ->  | X44: =IF(AND(SIG!$I$73="Muy Baja",SIG!$M$73="Moderado"),CONCATENATE("R",SIG!$A$73),"") ->  | Z44: =IF(AND(SIG!$I$79="Muy Baja",SIG!$M$79="Moderado"),CONCATENATE("R",SIG!$A$79),"") ->  | AB44: =IF(AND(SIG!$I$67="Muy Baja",SIG!$M$67="Mayor"),CONCATENATE("R",SIG!$A$67),"") ->  | AD44: =IF(AND(SIG!$I$73="Muy Baja",SIG!$M$73="Mayor"),CONCATENATE("R",SIG!$A$73),"") ->  | AF44: =IF(AND(SIG!$I$79="Muy Baja",SIG!$M$79="Mayor"),CONCATENATE("R",SIG!$A$79),"") ->  | AH44: =IF(AND(SIG!$I$67="Muy Baja",SIG!$M$67="Catastrófico"),CONCATENATE("R",SIG!$A$67),"") ->  | AJ44: =IF(AND(SIG!$I$73="Muy Baja",SIG!$M$73="Catastrófico"),CONCATENATE("R",SIG!$A$73),"") ->  | AL44: =IF(AND(SIG!$I$79="Muy Baja",SIG!$M$79="Catastrófico"),CONCATENATE("R",SIG!$A$79),"") -> 
J46: Leve 20% | P46: Menor 40% | V46: Moderado 60% | AB46: Mayor 80% | AH46: Catastrófico 100%

Sheet Matriz Calor Residual (hidden)
B2: Matriz de Calor Residual | J2: Impacto
B6: Probabilidad | E6: Muy Alta 100% | J6: =IF(AND(SIG!$Z$12="Muy Alta",SIG!$AB$12="Leve"),CONCATENATE("R1C",SIG!$P$12),"") ->  | K6: =IF(AND(SIG!$Z$13="Muy Alta",SIG!$AB$13="Leve"),CONCATENATE("R1C",SIG!$P$13),"") ->  | L6: =IF(AND(SIG!$Z$14="Muy Alta",SIG!$AB$14="Leve"),CONCATENATE("R1C",SIG!$P$14),"") ->  | M6: =IF(AND(SIG!$Z$15="Muy Alta",SIG!$AB$15="Leve"),CONCATENATE("R1C",SIG!$P$15),"") ->  | N6: =IF(AND(SIG!$Z$16="Muy Alta",SIG!$AB$16="Leve"),CONCATENATE("R1C",SIG!$P$16),"") ->  | O6: =IF(AND(SIG!$Z$18="Muy Alta",SIG!$AB$18="Leve"),CONCATENATE("R1C",SIG!$P$18),"") ->  | P6: =IF(AND(SIG!$Z$12="Muy Alta",SIG!$AB$12="Menor"),CONCATENATE("R1C",SIG!$P$12),"") ->  | Q6: =IF(AND(SIG!$Z$13="Muy Alta",SIG!$AB$13="Menor"),CONCATENATE("R1C",SIG!$P$13),"") ->  | R6: =IF(AND(SIG!$Z$14="Muy Alta",SIG!$AB$14="Menor"),CONCATENATE("R1C",SIG!$P$14),"") ->  | S6: =IF(AND(SIG!$Z$15="Muy Alta",SIG!$AB$15="Menor"),CONCATENATE("R1C",SIG!$P$15),"") ->  | T6: =IF(AND(SIG!$Z$16="Muy Alta",SIG!$AB$16="Menor"),CONCATENATE("R1C",SIG!$P$16),"") ->  | U6: =IF(AND(SIG!$Z$18="Muy Alta",SIG!$AB$18="Menor"),CONCATENATE("R1C",SIG!$P$18),"") ->  | V6: =IF(AND(SIG!$Z$12="Muy Alta",SIG!$AB$12="Moderado"),CONCATENATE("R1C",SIG!$P$12),"") ->  | W6: =IF(AND(SIG!$Z$13="Muy Alta",SIG!$AB$13="Moderado"),CONCATENATE("R1C",SIG!$P$13),"") ->  | X6: =IF(AND(SIG!$Z$14="Muy Alta",SIG!$AB$14="Moderado"),CONCATENATE("R1C",SIG!$P$14),"") ->  | Y6: =IF(AND(SIG!$Z$15="Muy Alta",SIG!$AB$15="Moderado"),CONCATENATE("R1C",SIG!$P$15),"") ->  | Z6: =IF(AND(SIG!$Z$16="Muy Alta",SIG!$AB$16="Moderado"),CONCATENATE("R1C",SIG!$P$16),"") ->  | AA6: =IF(AND(SIG!$Z$18="Muy Alta",SIG!$AB$18="Moderado"),CONCATENATE("R1C",SIG!$P$18),"") ->  | AB6: =IF(AND(SIG!$Z$12="Muy Alta",SIG!$AB$12="Mayor"),CONCATENATE("R1C",SIG!$P$12),"") ->  | AC6: =IF(AND(SIG!$Z$13="Muy Alta",SIG!$AB$13="Mayor"),CONCATENATE("R1C",SIG!$P$13),"") ->  | AD6: =IF(AND(SIG!$Z$14="Muy Alta",SIG!$AB$14="Mayor"),CONCATENATE("R1C",SIG!$P$14),"") ->  | AE6: =IF(AND(SIG!$Z$15="Muy Alta",SIG!$AB$15="Mayor"),CONCATENATE("R1C",SIG!$P$15),"") ->  | AF6: =IF(AND(SIG!$Z$16="Muy Alta",SIG!$AB$16="Mayor"),CONCATENATE("R1C",SIG!$P$16),"") ->  | AG6: =IF(AND(SIG!$Z$18="Muy Alta",SIG!$AB$18="Mayor"),CONCATENATE("R1C",SIG!$P$18),"") ->  | AH6: =IF(AND(SIG!$Z$12="Muy Alta",SIG!$AB$12="Catastrófico"),CONCATENATE("R1C",SIG!$P$12),"") ->  | AI6: =IF(AND(SIG!$Z$13="Muy Alta",SIG!$AB$13="Catastrófico"),CONCATENATE("R1C",SIG!$P$13),"") ->  | AJ6: =IF(AND(SIG!$Z$14="Muy Alta",SIG!$AB$14="Catastrófico"),CONCATENATE("R1C",SIG!$P$14),"") ->  | AK6: =IF(AND(SIG!$Z$15="Muy Alta",SIG!$AB$15="Catastrófico"),CONCATENATE("R1C",SIG!$P$15),"") ->  | AL6: =IF(AND(SIG!$Z$16="Muy Alta",SIG!$AB$16="Catastrófico"),CONCATENATE("R1C",SIG!$P$16),"") ->  | AM6: =IF(AND(SIG!$Z$18="Muy Alta",SIG!$AB$18="Catastrófico"),CONCATENATE("R1C",SIG!$P$18),"") ->  | AO6: Extremo
J7: =IF(AND(SIG!$Z$19="Muy Alta",SIG!$AB$19="Leve"),CONCATENATE("R2C",SIG!$P$19),"") ->  | K7: =IF(AND(SIG!$Z$20="Muy Alta",SIG!$AB$20="Leve"),CONCATENATE("R2C",SIG!$P$20),"") ->  | L7: =IF(AND(SIG!$Z$21="Muy Alta",SIG!$AB$21="Leve"),CONCATENATE("R2C",SIG!$P$21),"") ->  | M7: =IF(AND(SIG!$Z$22="Muy Alta",SIG!$AB$22="Leve"),CONCATENATE("R2C",SIG!$P$22),"") ->  | N7: =IF(AND(SIG!$Z$23="Muy Alta",SIG!$AB$23="Leve"),CONCATENATE("R2C",SIG!$P$23),"") ->  | O7: =IF(AND(SIG!$Z$24="Muy Alta",SIG!$AB$24="Leve"),CONCATENATE("R2C",SIG!$P$24),"") ->  | P7: =IF(AND(SIG!$Z$19="Muy Alta",SIG!$AB$19="Menor"),CONCATENATE("R2C",SIG!$P$19),"") ->  | Q7: =IF(AND(SIG!$Z$20="Muy Alta",SIG!$AB$20="Menor"),CONCATENATE("R2C",SIG!$P$20),"") ->  | R7: =IF(AND(SIG!$Z$21="Muy Alta",SIG!$AB$21="Menor"),CONCATENATE("R2C",SIG!$P$21),"") ->  | S7: =IF(AND(SIG!$Z$22="Muy Alta",SIG!$AB$22="Menor"),CONCATENATE("R2C",SIG!$P$22),"") ->  | T7: =IF(AND(SIG!$Z$23="Muy Alta",SIG!$AB$23="Menor"),CONCATENATE("R2C",SIG!$P$23),"") ->  | U7: =IF(AND(SIG!$Z$24="Muy Alta",SIG!$AB$24="Menor"),CONCATENATE("R2C",SIG!$P$24),"") ->  | V7: =IF(AND(SIG!$Z$19="Muy Alta",SIG!$AB$19="Moderado"),CONCATENATE("R2C",SIG!$P$19),"") ->  | W7: =IF(AND(SIG!$Z$20="Muy Alta",SIG!$AB$20="Moderado"),CONCATENATE("R2C",SIG!$P$20),"") ->  | X7: =IF(AND(SIG!$Z$21="Muy Alta",SIG!$AB$21="Moderado"),CONCATENATE("R2C",SIG!$P$21),"") ->  | Y7: =IF(AND(SIG!$Z$22="Muy Alta",SIG!$AB$22="Moderado"),CONCATENATE("R2C",SIG!$P$22),"") ->  | Z7: =IF(AND(SIG!$Z$23="Muy Alta",SIG!$AB$23="Moderado"),CONCATENATE("R2C",SIG!$P$23),"") ->  | AA7: =IF(AND(SIG!$Z$24="Muy Alta",SIG!$AB$24="Moderado"),CONCATENATE("R2C",SIG!$P$24),"") ->  | AB7: =IF(AND(SIG!$Z$19="Muy Alta",SIG!$AB$19="Mayor"),CONCATENATE("R2C",SIG!$P$19),"") ->  | AC7: =IF(AND(SIG!$Z$20="Muy Alta",SIG!$AB$20="Mayor"),CONCATENATE("R2C",SIG!$P$20),"") ->  | AD7: =IF(AND(SIG!$Z$21="Muy Alta",SIG!$AB$21="Mayor"),CONCATENATE("R2C",SIG!$P$21),"") ->  | AE7: =IF(AND(SIG!$Z$22="Muy Alta",SIG!$AB$22="Mayor"),CONCATENATE("R2C",SIG!$P$22),"") ->  | AF7: =IF(AND(SIG!$Z$23="Muy Alta",SIG!$AB$23="Mayor"),CONCATENATE("R2C",SIG!$P$23),"") ->  | AG7: =IF(AND(SIG!$Z$24="Muy Alta",SIG!$AB$24="Mayor"),CONCATENATE("R2C",SIG!$P$24),"") ->  | AH7: =IF(AND(SIG!$Z$19="Muy Alta",SIG!$AB$19="Catastrófico"),CONCATENATE("R2C",SIG!$P$19),"") ->  | AI7: =IF(AND(SIG!$Z$20="Muy Alta",SIG!$AB$20="Catastrófico"),CONCATENATE("R2C",SIG!$P$20),"") ->  | AJ7: =IF(AND(SIG!$Z$21="Muy Alta",SIG!$AB$21="Catastrófico"),CONCATENATE("R2C",SIG!$P$21),"") ->  | AK7: =IF(AND(SIG!$Z$22="Muy Alta",SIG!$AB$22="Catastrófico"),CONCATENATE("R2C",SIG!$P$22),"") ->  | AL7: =IF(AND(SIG!$Z$23="Muy Alta",SIG!$AB$23="Catastrófico"),CONCATENATE("R2C",SIG!$P$23),"") ->  | AM7: =IF(AND(SIG!$Z$24="Muy Alta",SIG!$AB$24="Catastrófico"),CONCATENATE("R2C",SIG!$P$24),"") -> 
J8: =IF(AND(SIG!$Z$25="Muy Alta",SIG!$AB$25="Leve"),CONCATENATE("R3C",SIG!$P$25),"") ->  | K8: =IF(AND(SIG!$Z$26="Muy Alta",SIG!$AB$26="Leve"),CONCATENATE("R3C",SIG!$P$26),"") ->  | L8: =IF(AND(SIG!$Z$27="Muy Alta",SIG!$AB$27="Leve"),CONCATENATE("R3C",SIG!$P$27),"") ->  | M8: =IF(AND(SIG!$Z$28="Muy Alta",SIG!$AB$28="Leve"),CONCATENATE("R3C",SIG!$P$28),"") ->  | N8: =IF(AND(SIG!$Z$29="Muy Alta",SIG!$AB$29="Leve"),CONCATENATE("R3C",SIG!$P$29),"") ->  | O8: =IF(AND(SIG!$Z$30="Muy Alta",SIG!$AB$30="Leve"),CONCATENATE("R3C",SIG!$P$30),"") ->  | P8: =IF(AND(SIG!$Z$25="Muy Alta",SIG!$AB$25="Menor"),CONCATENATE("R3C",SIG!$P$25),"") ->  | Q8: =IF(AND(SIG!$Z$26="Muy Alta",SIG!$AB$26="Menor"),CONCATENATE("R3C",SIG!$P$26),"") ->  | R8: =IF(AND(SIG!$Z$27="Muy Alta",SIG!$AB$27="Menor"),CONCATENATE("R3C",SIG!$P$27),"") ->  | S8: =IF(AND(SIG!$Z$28="Muy Alta",SIG!$AB$28="Menor"),CONCATENATE("R3C",SIG!$P$28),"") ->  | T8: =IF(AND(SIG!$Z$29="Muy Alta",SIG!$AB$29="Menor"),CONCATENATE("R3C",SIG!$P$29),"") ->  | U8: =IF(AND(SIG!$Z$30="Muy Alta",SIG!$AB$30="Menor"),CONCATENATE("R3C",SIG!$P$30),"") ->  | V8: =IF(AND(SIG!$Z$25="Muy Alta",SIG!$AB$25="Moderado"),CONCATENATE("R3C",SIG!$P$25),"") ->  | W8: =IF(AND(SIG!$Z$26="Muy Alta",SIG!$AB$26="Moderado"),CONCATENATE("R3C",SIG!$P$26),"") ->  | X8: =IF(AND(SIG!$Z$27="Muy Alta",SIG!$AB$27="Moderado"),CONCATENATE("R3C",SIG!$P$27),"") ->  | Y8: =IF(AND(SIG!$Z$28="Muy Alta",SIG!$AB$28="Moderado"),CONCATENATE("R3C",SIG!$P$28),"") ->  | Z8: =IF(AND(SIG!$Z$29="Muy Alta",SIG!$AB$29="Moderado"),CONCATENATE("R3C",SIG!$P$29),"") ->  | AA8: =IF(AND(SIG!$Z$30="Muy Alta",SIG!$AB$30="Moderado"),CONCATENATE("R3C",SIG!$P$30),"") ->  | AB8: =IF(AND(SIG!$Z$25="Muy Alta",SIG!$AB$25="Mayor"),CONCATENATE("R3C",SIG!$P$25),"") ->  | AC8: =IF(AND(SIG!$Z$26="Muy Alta",SIG!$AB$26="Mayor"),CONCATENATE("R3C",SIG!$P$26),"") ->  | AD8: =IF(AND(SIG!$Z$27="Muy Alta",SIG!$AB$27="Mayor"),CONCATENATE("R3C",SIG!$P$27),"") ->  | AE8: =IF(AND(SIG!$Z$28="Muy Alta",SIG!$AB$28="Mayor"),CONCATENATE("R3C",SIG!$P$28),"") ->  | AF8: =IF(AND(SIG!$Z$29="Muy Alta",SIG!$AB$29="Mayor"),CONCATENATE("R3C",SIG!$P$29),"") ->  | AG8: =IF(AND(SIG!$Z$30="Muy Alta",SIG!$AB$30="Mayor"),CONCATENATE("R3C",SIG!$P$30),"") ->  | AH8: =IF(AND(SIG!$Z$25="Muy Alta",SIG!$AB$25="Catastrófico"),CONCATENATE("R3C",SIG!$P$25),"") ->  | AI8: =IF(AND(SIG!$Z$26="Muy Alta",SIG!$AB$26="Catastrófico"),CONCATENATE("R3C",SIG!$P$26),"") ->  | AJ8: =IF(AND(SIG!$Z$27="Muy Alta",SIG!$AB$27="Catastrófico"),CONCATENATE("R3C",SIG!$P$27),"") ->  | AK8: =IF(AND(SIG!$Z$28="Muy Alta",SIG!$AB$28="Catastrófico"),CONCATENATE("R3C",SIG!$P$28),"") ->  | AL8: =IF(AND(SIG!$Z$29="Muy Alta",SIG!$AB$29="Catastrófico"),CONCATENATE("R3C",SIG!$P$29),"") ->  | AM8: =IF(AND(SIG!$Z$30="Muy Alta",SIG!$AB$30="Catastrófico"),CONCATENATE("R3C",SIG!$P$30),"") -> 
J9: =IF(AND(SIG!$Z$31="Muy Alta",SIG!$AB$31="Leve"),CONCATENATE("R4C",SIG!$P$31),"") ->  | K9: =IF(AND(SIG!$Z$32="Muy Alta",SIG!$AB$32="Leve"),CONCATENATE("R4C",SIG!$P$32),"") ->  | L9: =IF(AND(SIG!$Z$33="Muy Alta",SIG!$AB$33="Leve"),CONCATENATE("R4C",SIG!$P$33),"") ->  | M9: =IF(AND(SIG!$Z$34="Muy Alta",SIG!$AB$34="Leve"),CONCATENATE("R4C",SIG!$P$34),"") ->  | N9: =IF(AND(SIG!$Z$35="Muy Alta",SIG!$AB$35="Leve"),CONCATENATE("R4C",SIG!$P$35),"") ->  | O9: =IF(AND(SIG!$Z$36="Muy Alta",SIG!$AB$36="Leve"),CONCATENATE("R4C",SIG!$P$36),"") ->  | P9: =IF(AND(SIG!$Z$31="Muy Alta",SIG!$AB$31="Menor"),CONCATENATE("R4C",SIG!$P$31),"") ->  | Q9: =IF(AND(SIG!$Z$32="Muy Alta",SIG!$AB$32="Menor"),CONCATENATE("R4C",SIG!$P$32),"") ->  | R9: =IF(AND(SIG!$Z$33="Muy Alta",SIG!$AB$33="Menor"),CONCATENATE("R4C",SIG!$P$33),"") ->  | S9: =IF(AND(SIG!$Z$34="Muy Alta",SIG!$AB$34="Menor"),CONCATENATE("R4C",SIG!$P$34),"") ->  | T9: =IF(AND(SIG!$Z$35="Muy Alta",SIG!$AB$35="Menor"),CONCATENATE("R4C",SIG!$P$35),"") ->  | U9: =IF(AND(SIG!$Z$36="Muy Alta",SIG!$AB$36="Menor"),CONCATENATE("R4C",SIG!$P$36),"") ->  | V9: =IF(AND(SIG!$Z$31="Muy Alta",SIG!$AB$31="Moderado"),CONCATENATE("R4C",SIG!$P$31),"") ->  | W9: =IF(AND(SIG!$Z$32="Muy Alta",SIG!$AB$32="Moderado"),CONCATENATE("R4C",SIG!$P$32),"") ->  | X9: =IF(AND(SIG!$Z$33="Muy Alta",SIG!$AB$33="Moderado"),CONCATENATE("R4C",SIG!$P$33),"") ->  | Y9: =IF(AND(SIG!$Z$34="Muy Alta",SIG!$AB$34="Moderado"),CONCATENATE("R4C",SIG!$P$34),"") ->  | Z9: =IF(AND(SIG!$Z$35="Muy Alta",SIG!$AB$35="Moderado"),CONCATENATE("R4C",SIG!$P$35),"") ->  | AA9: =IF(AND(SIG!$Z$36="Muy Alta",SIG!$AB$36="Moderado"),CONCATENATE("R4C",SIG!$P$36),"") ->  | AB9: =IF(AND(SIG!$Z$31="Muy Alta",SIG!$AB$31="Mayor"),CONCATENATE("R4C",SIG!$P$31),"") ->  | AC9: =IF(AND(SIG!$Z$32="Muy Alta",SIG!$AB$32="Mayor"),CONCATENATE("R4C",SIG!$P$32),"") ->  | AD9: =IF(AND(SIG!$Z$33="Muy Alta",SIG!$AB$33="Mayor"),CONCATENATE("R4C",SIG!$P$33),"") ->  | AE9: =IF(AND(SIG!$Z$34="Muy Alta",SIG!$AB$34="Mayor"),CONCATENATE("R4C",SIG!$P$34),"") ->  | AF9: =IF(AND(SIG!$Z$35="Muy Alta",SIG!$AB$35="Mayor"),CONCATENATE("R4C",SIG!$P$35),"") ->  | AG9: =IF(AND(SIG!$Z$36="Muy Alta",SIG!$AB$36="Mayor"),CONCATENATE("R4C",SIG!$P$36),"") ->  | AH9: =IF(AND(SIG!$Z$31="Muy Alta",SIG!$AB$31="Catastrófico"),CONCATENATE("R4C",SIG!$P$31),"") ->  | AI9: =IF(AND(SIG!$Z$32="Muy Alta",SIG!$AB$32="Catastrófico"),CONCATENATE("R4C",SIG!$P$32),"") ->  | AJ9: =IF(AND(SIG!$Z$33="Muy Alta",SIG!$AB$33="Catastrófico"),CONCATENATE("R4C",SIG!$P$33),"") ->  | AK9: =IF(AND(SIG!$Z$34="Muy Alta",SIG!$AB$34="Catastrófico"),CONCATENATE("R4C",SIG!$P$34),"") ->  | AL9: =IF(AND(SIG!$Z$35="Muy Alta",SIG!$AB$35="Catastrófico"),CONCATENATE("R4C",SIG!$P$35),"") ->  | AM9: =IF(AND(SIG!$Z$36="Muy Alta",SIG!$AB$36="Catastrófico"),CONCATENATE("R4C",SIG!$P$36),"") -> 
J10: =IF(AND(SIG!$Z$37="Muy Alta",SIG!$AB$37="Leve"),CONCATENATE("R5C",SIG!$P$37),"") ->  | K10: =IF(AND(SIG!$Z$38="Muy Alta",SIG!$AB$38="Leve"),CONCATENATE("R5C",SIG!$P$38),"") ->  | L10: =IF(AND(SIG!$Z$39="Muy Alta",SIG!$AB$39="Leve"),CONCATENATE("R5C",SIG!$P$39),"") ->  | M10: =IF(AND(SIG!$Z$40="Muy Alta",SIG!$AB$40="Leve"),CONCATENATE("R5C",SIG!$P$40),"") ->  | N10: =IF(AND(SIG!$Z$41="Muy Alta",SIG!$AB$41="Leve"),CONCATENATE("R5C",SIG!$P$41),"") ->  | O10: =IF(AND(SIG!$Z$42="Muy Alta",SIG!$AB$42="Leve"),CONCATENATE("R5C",SIG!$P$42),"") ->  | P10: =IF(AND(SIG!$Z$37="Muy Alta",SIG!$AB$37="Menor"),CONCATENATE("R5C",SIG!$P$37),"") ->  | Q10: =IF(AND(SIG!$Z$38="Muy Alta",SIG!$AB$38="Menor"),CONCATENATE("R5C",SIG!$P$38),"") ->  | R10: =IF(AND(SIG!$Z$39="Muy Alta",SIG!$AB$39="Menor"),CONCATENATE("R5C",SIG!$P$39),"") ->  | S10: =IF(AND(SIG!$Z$40="Muy Alta",SIG!$AB$40="Menor"),CONCATENATE("R5C",SIG!$P$40),"") ->  | T10: =IF(AND(SIG!$Z$41="Muy Alta",SIG!$AB$41="Menor"),CONCATENATE("R5C",SIG!$P$41),"") ->  | U10: =IF(AND(SIG!$Z$42="Muy Alta",SIG!$AB$42="Menor"),CONCATENATE("R5C",SIG!$P$42),"") ->  | V10: =IF(AND(SIG!$Z$37="Muy Alta",SIG!$AB$37="Moderado"),CONCATENATE("R5C",SIG!$P$37),"") ->  | W10: =IF(AND(SIG!$Z$38="Muy Alta",SIG!$AB$38="Moderado"),CONCATENATE("R5C",SIG!$P$38),"") ->  | X10: =IF(AND(SIG!$Z$39="Muy Alta",SIG!$AB$39="Moderado"),CONCATENATE("R5C",SIG!$P$39),"") ->  | Y10: =IF(AND(SIG!$Z$40="Muy Alta",SIG!$AB$40="Moderado"),CONCATENATE("R5C",SIG!$P$40),"") ->  | Z10: =IF(AND(SIG!$Z$41="Muy Alta",SIG!$AB$41="Moderado"),CONCATENATE("R5C",SIG!$P$41),"") ->  | AA10: =IF(AND(SIG!$Z$42="Muy Alta",SIG!$AB$42="Moderado"),CONCATENATE("R5C",SIG!$P$42),"") ->  | AB10: =IF(AND(SIG!$Z$37="Muy Alta",SIG!$AB$37="Mayor"),CONCATENATE("R5C",SIG!$P$37),"") ->  | AC10: =IF(AND(SIG!$Z$38="Muy Alta",SIG!$AB$38="Mayor"),CONCATENATE("R5C",SIG!$P$38),"") ->  | AD10: =IF(AND(SIG!$Z$39="Muy Alta",SIG!$AB$39="Mayor"),CONCATENATE("R5C",SIG!$P$39),"") ->  | AE10: =IF(AND(SIG!$Z$40="Muy Alta",SIG!$AB$40="Mayor"),CONCATENATE("R5C",SIG!$P$40),"") ->  | AF10: =IF(AND(SIG!$Z$41="Muy Alta",SIG!$AB$41="Mayor"),CONCATENATE("R5C",SIG!$P$41),"") ->  | AG10: =IF(AND(SIG!$Z$42="Muy Alta",SIG!$AB$42="Mayor"),CONCATENATE("R5C",SIG!$P$42),"") ->  | AH10: =IF(AND(SIG!$Z$37="Muy Alta",SIG!$AB$37="Catastrófico"),CONCATENATE("R5C",SIG!$P$37),"") ->  | AI10: =IF(AND(SIG!$Z$38="Muy Alta",SIG!$AB$38="Catastrófico"),CONCATENATE("R5C",SIG!$P$38),"") ->  | AJ10: =IF(AND(SIG!$Z$39="Muy Alta",SIG!$AB$39="Catastrófico"),CONCATENATE("R5C",SIG!$P$39),"") ->  | AK10: =IF(AND(SIG!$Z$40="Muy Alta",SIG!$AB$40="Catastrófico"),CONCATENATE("R5C",SIG!$P$40),"") ->  | AL10: =IF(AND(SIG!$Z$41="Muy Alta",SIG!$AB$41="Catastrófico"),CONCATENATE("R5C",SIG!$P$41),"") ->  | AM10: =IF(AND(SIG!$Z$42="Muy Alta",SIG!$AB$42="Catastrófico"),CONCATENATE("R5C",SIG!$P$42),"") -> 
J11: =IF(AND(SIG!$Z$43="Muy Alta",SIG!$AB$43="Leve"),CONCATENATE("R6C",SIG!$P$43),"") ->  | K11: =IF(AND(SIG!$Z$44="Muy Alta",SIG!$AB$44="Leve"),CONCATENATE("R6C",SIG!$P$44),"") ->  | L11: =IF(AND(SIG!$Z$45="Muy Alta",SIG!$AB$45="Leve"),CONCATENATE("R6C",SIG!$P$45),"") ->  | M11: =IF(AND(SIG!$Z$46="Muy Alta",SIG!$AB$46="Leve"),CONCATENATE("R6C",SIG!$P$46),"") ->  | N11: =IF(AND(SIG!$Z$47="Muy Alta",SIG!$AB$47="Leve"),CONCATENATE("R6C",SIG!$P$47),"") ->  | O11: =IF(AND(SIG!$Z$48="Muy Alta",SIG!$AB$48="Leve"),CONCATENATE("R6C",SIG!$P$48),"") ->  | P11: =IF(AND(SIG!$Z$43="Muy Alta",SIG!$AB$43="Menor"),CONCATENATE("R6C",SIG!$P$43),"") ->  | Q11: =IF(AND(SIG!$Z$44="Muy Alta",SIG!$AB$44="Menor"),CONCATENATE("R6C",SIG!$P$44),"") ->  | R11: =IF(AND(SIG!$Z$45="Muy Alta",SIG!$AB$45="Menor"),CONCATENATE("R6C",SIG!$P$45),"") ->  | S11: =IF(AND(SIG!$Z$46="Muy Alta",SIG!$AB$46="Menor"),CONCATENATE("R6C",SIG!$P$46),"") ->  | T11: =IF(AND(SIG!$Z$47="Muy Alta",SIG!$AB$47="Menor"),CONCATENATE("R6C",SIG!$P$47),"") ->  | U11: =IF(AND(SIG!$Z$48="Muy Alta",SIG!$AB$48="Menor"),CONCATENATE("R6C",SIG!$P$48),"") ->  | V11: =IF(AND(SIG!$Z$43="Muy Alta",SIG!$AB$43="Moderado"),CONCATENATE("R6C",SIG!$P$43),"") ->  | W11: =IF(AND(SIG!$Z$44="Muy Alta",SIG!$AB$44="Moderado"),CONCATENATE("R6C",SIG!$P$44),"") ->  | X11: =IF(AND(SIG!$Z$45="Muy Alta",SIG!$AB$45="Moderado"),CONCATENATE("R6C",SIG!$P$45),"") ->  | Y11: =IF(AND(SIG!$Z$46="Muy Alta",SIG!$AB$46="Moderado"),CONCATENATE("R6C",SIG!$P$46),"") ->  | Z11: =IF(AND(SIG!$Z$47="Muy Alta",SIG!$AB$47="Moderado"),CONCATENATE("R6C",SIG!$P$47),"") ->  | AA11: =IF(AND(SIG!$Z$48="Muy Alta",SIG!$AB$48="Moderado"),CONCATENATE("R6C",SIG!$P$48),"") ->  | AB11: =IF(AND(SIG!$Z$43="Muy Alta",SIG!$AB$43="Mayor"),CONCATENATE("R6C",SIG!$P$43),"") ->  | AC11: =IF(AND(SIG!$Z$44="Muy Alta",SIG!$AB$44="Mayor"),CONCATENATE("R6C",SIG!$P$44),"") ->  | AD11: =IF(AND(SIG!$Z$45="Muy Alta",SIG!$AB$45="Mayor"),CONCATENATE("R6C",SIG!$P$45),"") ->  | AE11: =IF(AND(SIG!$Z$46="Muy Alta",SIG!$AB$46="Mayor"),CONCATENATE("R6C",SIG!$P$46),"") ->  | AF11: =IF(AND(SIG!$Z$47="Muy Alta",SIG!$AB$47="Mayor"),CONCATENATE("R6C",SIG!$P$47),"") ->  | AG11: =IF(AND(SIG!$Z$48="Muy Alta",SIG!$AB$48="Mayor"),CONCATENATE("R6C",SIG!$P$48),"") ->  | AH11: =IF(AND(SIG!$Z$43="Muy Alta",SIG!$AB$43="Catastrófico"),CONCATENATE("R6C",SIG!$P$43),"") ->  | AI11: =IF(AND(SIG!$Z$44="Muy Alta",SIG!$AB$44="Catastrófico"),CONCATENATE("R6C",SIG!$P$44),"") ->  | AJ11: =IF(AND(SIG!$Z$45="Muy Alta",SIG!$AB$45="Catastrófico"),CONCATENATE("R6C",SIG!$P$45),"") ->  | AK11: =IF(AND(SIG!$Z$46="Muy Alta",SIG!$AB$46="Catastrófico"),CONCATENATE("R6C",SIG!$P$46),"") ->  | AL11: =IF(AND(SIG!$Z$47="Muy Alta",SIG!$AB$47="Catastrófico"),CONCATENATE("R6C",SIG!$P$47),"") ->  | AM11: =IF(AND(SIG!$Z$48="Muy Alta",SIG!$AB$48="Catastrófico"),CONCATENATE("R6C",SIG!$P$48),"") -> 
J12: =IF(AND(SIG!$Z$49="Muy Alta",SIG!$AB$49="Leve"),CONCATENATE("R7C",SIG!$P$49),"") ->  | K12: =IF(AND(SIG!$Z$50="Muy Alta",SIG!$AB$50="Leve"),CONCATENATE("R7C",SIG!$P$50),"") ->  | L12: =IF(AND(SIG!$Z$51="Muy Alta",SIG!$AB$51="Leve"),CONCATENATE("R7C",SIG!$P$51),"") ->  | M12: =IF(AND(SIG!$Z$52="Muy Alta",SIG!$AB$52="Leve"),CONCATENATE("R7C",SIG!$P$52),"") ->  | N12: =IF(AND(SIG!$Z$53="Muy Alta",SIG!$AB$53="Leve"),CONCATENATE("R7C",SIG!$P$53),"") ->  | O12: =IF(AND(SIG!$Z$54="Muy Alta",SIG!$AB$54="Leve"),CONCATENATE("R7C",SIG!$P$54),"") ->  | P12: =IF(AND(SIG!$Z$49="Muy Alta",SIG!$AB$49="Menor"),CONCATENATE("R7C",SIG!$P$49),"") ->  | Q12: =IF(AND(SIG!$Z$50="Muy Alta",SIG!$AB$50="Menor"),CONCATENATE("R7C",SIG!$P$50),"") ->  | R12: =IF(AND(SIG!$Z$51="Muy Alta",SIG!$AB$51="Menor"),CONCATENATE("R7C",SIG!$P$51),"") ->  | S12: =IF(AND(SIG!$Z$52="Muy Alta",SIG!$AB$52="Menor"),CONCATENATE("R7C",SIG!$P$52),"") ->  | T12: =IF(AND(SIG!$Z$53="Muy Alta",SIG!$AB$53="Menor"),CONCATENATE("R7C",SIG!$P$53),"") ->  | U12: =IF(AND(SIG!$Z$54="Muy Alta",SIG!$AB$54="Menor"),CONCATENATE("R7C",SIG!$P$54),"") ->  | V12: =IF(AND(SIG!$Z$49="Muy Alta",SIG!$AB$49="Moderado"),CONCATENATE("R7C",SIG!$P$49),"") ->  | W12: =IF(AND(SIG!$Z$50="Muy Alta",SIG!$AB$50="Moderado"),CONCATENATE("R7C",SIG!$P$50),"") ->  | X12: =IF(AND(SIG!$Z$51="Muy Alta",SIG!$AB$51="Moderado"),CONCATENATE("R7C",SIG!$P$51),"") ->  | Y12: =IF(AND(SIG!$Z$52="Muy Alta",SIG!$AB$52="Moderado"),CONCATENATE("R7C",SIG!$P$52),"") ->  | Z12: =IF(AND(SIG!$Z$53="Muy Alta",SIG!$AB$53="Moderado"),CONCATENATE("R7C",SIG!$P$53),"") ->  | AA12: =IF(AND(SIG!$Z$54="Muy Alta",SIG!$AB$54="Moderado"),CONCATENATE("R7C",SIG!$P$54),"") ->  | AB12: =IF(AND(SIG!$Z$49="Muy Alta",SIG!$AB$49="Mayor"),CONCATENATE("R7C",SIG!$P$49),"") ->  | AC12: =IF(AND(SIG!$Z$50="Muy Alta",SIG!$AB$50="Mayor"),CONCATENATE("R7C",SIG!$P$50),"") ->  | AD12: =IF(AND(SIG!$Z$51="Muy Alta",SIG!$AB$51="Mayor"),CONCATENATE("R7C",SIG!$P$51),"") ->  | AE12: =IF(AND(SIG!$Z$52="Muy Alta",SIG!$AB$52="Mayor"),CONCATENATE("R7C",SIG!$P$52),"") ->  | AF12: =IF(AND(SIG!$Z$53="Muy Alta",SIG!$AB$53="Mayor"),CONCATENATE("R7C",SIG!$P$53),"") ->  | AG12: =IF(AND(SIG!$Z$54="Muy Alta",SIG!$AB$54="Mayor"),CONCATENATE("R7C",SIG!$P$54),"") ->  | AH12: =IF(AND(SIG!$Z$49="Muy Alta",SIG!$AB$49="Catastrófico"),CONCATENATE("R7C",SIG!$P$49),"") ->  | AI12: =IF(AND(SIG!$Z$50="Muy Alta",SIG!$AB$50="Catastrófico"),CONCATENATE("R7C",SIG!$P$50),"") ->  | AJ12: =IF(AND(SIG!$Z$51="Muy Alta",SIG!$AB$51="Catastrófico"),CONCATENATE("R7C",SIG!$P$51),"") ->  | AK12: =IF(AND(SIG!$Z$52="Muy Alta",SIG!$AB$52="Catastrófico"),CONCATENATE("R7C",SIG!$P$52),"") ->  | AL12: =IF(AND(SIG!$Z$53="Muy Alta",SIG!$AB$53="Catastrófico"),CONCATENATE("R7C",SIG!$P$53),"") ->  | AM12: =IF(AND(SIG!$Z$54="Muy Alta",SIG!$AB$54="Catastrófico"),CONCATENATE("R7C",SIG!$P$54),"") -> 
J13: =IF(AND(SIG!$Z$55="Muy Alta",SIG!$AB$55="Leve"),CONCATENATE("R8C",SIG!$P$55),"") ->  | K13: =IF(AND(SIG!$Z$56="Muy Alta",SIG!$AB$56="Leve"),CONCATENATE("R8C",SIG!$P$56),"") ->  | L13: =IF(AND(SIG!$Z$57="Muy Alta",SIG!$AB$57="Leve"),CONCATENATE("R8C",SIG!$P$57),"") ->  | M13: =IF(AND(SIG!$Z$58="Muy Alta",SIG!$AB$58="Leve"),CONCATENATE("R8C",SIG!$P$58),"") ->  | N13: =IF(AND(SIG!$Z$59="Muy Alta",SIG!$AB$59="Leve"),CONCATENATE("R8C",SIG!$P$59),"") ->  | O13: =IF(AND(SIG!$Z$60="Muy Alta",SIG!$AB$60="Leve"),CONCATENATE("R8C",SIG!$P$60),"") ->  | P13: =IF(AND(SIG!$Z$55="Muy Alta",SIG!$AB$55="Menor"),CONCATENATE("R8C",SIG!$P$55),"") ->  | Q13: =IF(AND(SIG!$Z$56="Muy Alta",SIG!$AB$56="Menor"),CONCATENATE("R8C",SIG!$P$56),"") ->  | R13: =IF(AND(SIG!$Z$57="Muy Alta",SIG!$AB$57="Menor"),CONCATENATE("R8C",SIG!$P$57),"") ->  | S13: =IF(AND(SIG!$Z$58="Muy Alta",SIG!$AB$58="Menor"),CONCATENATE("R8C",SIG!$P$58),"") ->  | T13: =IF(AND(SIG!$Z$59="Muy Alta",SIG!$AB$59="Menor"),CONCATENATE("R8C",SIG!$P$59),"") ->  | U13: =IF(AND(SIG!$Z$60="Muy Alta",SIG!$AB$60="Menor"),CONCATENATE("R8C",SIG!$P$60),"") ->  | V13: =IF(AND(SIG!$Z$55="Muy Alta",SIG!$AB$55="Moderado"),CONCATENATE("R8C",SIG!$P$55),"") ->  | W13: =IF(AND(SIG!$Z$56="Muy Alta",SIG!$AB$56="Moderado"),CONCATENATE("R8C",SIG!$P$56),"") ->  | X13: =IF(AND(SIG!$Z$57="Muy Alta",SIG!$AB$57="Moderado"),CONCATENATE("R8C",SIG!$P$57),"") ->  | Y13: =IF(AND(SIG!$Z$58="Muy Alta",SIG!$AB$58="Moderado"),CONCATENATE("R8C",SIG!$P$58),"") ->  | Z13: =IF(AND(SIG!$Z$59="Muy Alta",SIG!$AB$59="Moderado"),CONCATENATE("R8C",SIG!$P$59),"") ->  | AA13: =IF(AND(SIG!$Z$60="Muy Alta",SIG!$AB$60="Moderado"),CONCATENATE("R8C",SIG!$P$60),"") ->  | AB13: =IF(AND(SIG!$Z$55="Muy Alta",SIG!$AB$55="Mayor"),CONCATENATE("R8C",SIG!$P$55),"") ->  | AC13: =IF(AND(SIG!$Z$56="Muy Alta",SIG!$AB$56="Mayor"),CONCATENATE("R8C",SIG!$P$56),"") ->  | AD13: =IF(AND(SIG!$Z$57="Muy Alta",SIG!$AB$57="Mayor"),CONCATENATE("R8C",SIG!$P$57),"") ->  | AE13: =IF(AND(SIG!$Z$58="Muy Alta",SIG!$AB$58="Mayor"),CONCATENATE("R8C",SIG!$P$58),"") ->  | AF13: =IF(AND(SIG!$Z$59="Muy Alta",SIG!$AB$59="Mayor"),CONCATENATE("R8C",SIG!$P$59),"") ->  | AG13: =IF(AND(SIG!$Z$60="Muy Alta",SIG!$AB$60="Mayor"),CONCATENATE("R8C",SIG!$P$60),"") ->  | AH13: =IF(AND(SIG!$Z$55="Muy Alta",SIG!$AB$55="Catastrófico"),CONCATENATE("R8C",SIG!$P$55),"") ->  | AI13: =IF(AND(SIG!$Z$56="Muy Alta",SIG!$AB$56="Catastrófico"),CONCATENATE("R8C",SIG!$P$56),"") ->  | AJ13: =IF(AND(SIG!$Z$57="Muy Alta",SIG!$AB$57="Catastrófico"),CONCATENATE("R8C",SIG!$P$57),"") ->  | AK13: =IF(AND(SIG!$Z$58="Muy Alta",SIG!$AB$58="Catastrófico"),CONCATENATE("R8C",SIG!$P$58),"") ->  | AL13: =IF(AND(SIG!$Z$59="Muy Alta",SIG!$AB$59="Catastrófico"),CONCATENATE("R8C",SIG!$P$59),"") ->  | AM13: =IF(AND(SIG!$Z$60="Muy Alta",SIG!$AB$60="Catastrófico"),CONCATENATE("R8C",SIG!$P$60),"") -> 
J14: =IF(AND(SIG!$Z$61="Muy Alta",SIG!$AB$61="Leve"),CONCATENATE("R9C",SIG!$P$61),"") ->  | K14: =IF(AND(SIG!$Z$62="Muy Alta",SIG!$AB$62="Leve"),CONCATENATE("R9C",SIG!$P$62),"") ->  | L14: =IF(AND(SIG!$Z$63="Muy Alta",SIG!$AB$63="Leve"),CONCATENATE("R9C",SIG!$P$63),"") ->  | M14: =IF(AND(SIG!$Z$64="Muy Alta",SIG!$AB$64="Leve"),CONCATENATE("R9C",SIG!$P$64),"") ->  | N14: =IF(AND(SIG!$Z$65="Muy Alta",SIG!$AB$65="Leve"),CONCATENATE("R9C",SIG!$P$65),"") ->  | O14: =IF(AND(SIG!$Z$66="Muy Alta",SIG!$AB$66="Leve"),CONCATENATE("R9C",SIG!$P$66),"") ->  | P14: =IF(AND(SIG!$Z$61="Muy Alta",SIG!$AB$61="Menor"),CONCATENATE("R9C",SIG!$P$61),"") ->  | Q14: =IF(AND(SIG!$Z$62="Muy Alta",SIG!$AB$62="Menor"),CONCATENATE("R9C",SIG!$P$62),"") ->  | R14: =IF(AND(SIG!$Z$63="Muy Alta",SIG!$AB$63="Menor"),CONCATENATE("R9C",SIG!$P$63),"") ->  | S14: =IF(AND(SIG!$Z$64="Muy Alta",SIG!$AB$64="Menor"),CONCATENATE("R9C",SIG!$P$64),"") ->  | T14: =IF(AND(SIG!$Z$65="Muy Alta",SIG!$AB$65="Menor"),CONCATENATE("R9C",SIG!$P$65),"") ->  | U14: =IF(AND(SIG!$Z$66="Muy Alta",SIG!$AB$66="Menor"),CONCATENATE("R9C",SIG!$P$66),"") ->  | V14: =IF(AND(SIG!$Z$61="Muy Alta",SIG!$AB$61="Moderado"),CONCATENATE("R9C",SIG!$P$61),"") ->  | W14: =IF(AND(SIG!$Z$62="Muy Alta",SIG!$AB$62="Moderado"),CONCATENATE("R9C",SIG!$P$62),"") ->  | X14: =IF(AND(SIG!$Z$63="Muy Alta",SIG!$AB$63="Moderado"),CONCATENATE("R9C",SIG!$P$63),"") ->  | Y14: =IF(AND(SIG!$Z$64="Muy Alta",SIG!$AB$64="Moderado"),CONCATENATE("R9C",SIG!$P$64),"") ->  | Z14: =IF(AND(SIG!$Z$65="Muy Alta",SIG!$AB$65="Moderado"),CONCATENATE("R9C",SIG!$P$65),"") ->  | AA14: =IF(AND(SIG!$Z$66="Muy Alta",SIG!$AB$66="Moderado"),CONCATENATE("R9C",SIG!$P$66),"") ->  | AB14: =IF(AND(SIG!$Z$61="Muy Alta",SIG!$AB$61="Mayor"),CONCATENATE("R9C",SIG!$P$61),"") ->  | AC14: =IF(AND(SIG!$Z$62="Muy Alta",SIG!$AB$62="Mayor"),CONCATENATE("R9C",SIG!$P$62),"") ->  | AD14: =IF(AND(SIG!$Z$63="Muy Alta",SIG!$AB$63="Mayor"),CONCATENATE("R9C",SIG!$P$63),"") ->  | AE14: =IF(AND(SIG!$Z$64="Muy Alta",SIG!$AB$64="Mayor"),CONCATENATE("R9C",SIG!$P$64),"") ->  | AF14: =IF(AND(SIG!$Z$65="Muy Alta",SIG!$AB$65="Mayor"),CONCATENATE("R9C",SIG!$P$65),"") ->  | AG14: =IF(AND(SIG!$Z$66="Muy Alta",SIG!$AB$66="Mayor"),CONCATENATE("R9C",SIG!$P$66),"") ->  | AH14: =IF(AND(SIG!$Z$61="Muy Alta",SIG!$AB$61="Catastrófico"),CONCATENATE("R9C",SIG!$P$61),"") ->  | AI14: =IF(AND(SIG!$Z$62="Muy Alta",SIG!$AB$62="Catastrófico"),CONCATENATE("R9C",SIG!$P$62),"") ->  | AJ14: =IF(AND(SIG!$Z$63="Muy Alta",SIG!$AB$63="Catastrófico"),CONCATENATE("R9C",SIG!$P$63),"") ->  | AK14: =IF(AND(SIG!$Z$64="Muy Alta",SIG!$AB$64="Catastrófico"),CONCATENATE("R9C",SIG!$P$64),"") ->  | AL14: =IF(AND(SIG!$Z$65="Muy Alta",SIG!$AB$65="Catastrófico"),CONCATENATE("R9C",SIG!$P$65),"") ->  | AM14: =IF(AND(SIG!$Z$66="Muy Alta",SIG!$AB$66="Catastrófico"),CONCATENATE("R9C",SIG!$P$66),"") -> 
J15: =IF(AND(SIG!$Z$67="Muy Alta",SIG!$AB$67="Leve"),CONCATENATE("R10C",SIG!$P$67),"") ->  | K15: =IF(AND(SIG!$Z$68="Muy Alta",SIG!$AB$68="Leve"),CONCATENATE("R10C",SIG!$P$68),"") ->  | L15: =IF(AND(SIG!$Z$69="Muy Alta",SIG!$AB$69="Leve"),CONCATENATE("R10C",SIG!$P$69),"") ->  | M15: =IF(AND(SIG!$Z$70="Muy Alta",SIG!$AB$70="Leve"),CONCATENATE("R10C",SIG!$P$70),"") ->  | N15: =IF(AND(SIG!$Z$71="Muy Alta",SIG!$AB$71="Leve"),CONCATENATE("R10C",SIG!$P$71),"") ->  | O15: =IF(AND(SIG!$Z$72="Muy Alta",SIG!$AB$72="Leve"),CONCATENATE("R10C",SIG!$P$72),"") ->  | P15: =IF(AND(SIG!$Z$67="Muy Alta",SIG!$AB$67="Menor"),CONCATENATE("R10C",SIG!$P$67),"") ->  | Q15: =IF(AND(SIG!$Z$68="Muy Alta",SIG!$AB$68="Menor"),CONCATENATE("R10C",SIG!$P$68),"") ->  | R15: =IF(AND(SIG!$Z$69="Muy Alta",SIG!$AB$69="Menor"),CONCATENATE("R10C",SIG!$P$69),"") ->  | S15: =IF(AND(SIG!$Z$70="Muy Alta",SIG!$AB$70="Menor"),CONCATENATE("R10C",SIG!$P$70),"") ->  | T15: =IF(AND(SIG!$Z$71="Muy Alta",SIG!$AB$71="Menor"),CONCATENATE("R10C",SIG!$P$71),"") ->  | U15: =IF(AND(SIG!$Z$72="Muy Alta",SIG!$AB$72="Menor"),CONCATENATE("R10C",SIG!$P$72),"") ->  | V15: =IF(AND(SIG!$Z$67="Muy Alta",SIG!$AB$67="Moderado"),CONCATENATE("R10C",SIG!$P$67),"") ->  | W15: =IF(AND(SIG!$Z$68="Muy Alta",SIG!$AB$68="Moderado"),CONCATENATE("R10C",SIG!$P$68),"") ->  | X15: =IF(AND(SIG!$Z$69="Muy Alta",SIG!$AB$69="Moderado"),CONCATENATE("R10C",SIG!$P$69),"") ->  | Y15: =IF(AND(SIG!$Z$70="Muy Alta",SIG!$AB$70="Moderado"),CONCATENATE("R10C",SIG!$P$70),"") ->  | Z15: =IF(AND(SIG!$Z$71="Muy Alta",SIG!$AB$71="Moderado"),CONCATENATE("R10C",SIG!$P$71),"") ->  | AA15: =IF(AND(SIG!$Z$72="Muy Alta",SIG!$AB$72="Moderado"),CONCATENATE("R10C",SIG!$P$72),"") ->  | AB15: =IF(AND(SIG!$Z$67="Muy Alta",SIG!$AB$67="Mayor"),CONCATENATE("R10C",SIG!$P$67),"") ->  | AC15: =IF(AND(SIG!$Z$68="Muy Alta",SIG!$AB$68="Mayor"),CONCATENATE("R10C",SIG!$P$68),"") ->  | AD15: =IF(AND(SIG!$Z$69="Muy Alta",SIG!$AB$69="Mayor"),CONCATENATE("R10C",SIG!$P$69),"") ->  | AE15: =IF(AND(SIG!$Z$70="Muy Alta",SIG!$AB$70="Mayor"),CONCATENATE("R10C",SIG!$P$70),"") ->  | AF15: =IF(AND(SIG!$Z$71="Muy Alta",SIG!$AB$71="Mayor"),CONCATENATE("R10C",SIG!$P$71),"") ->  | AG15: =IF(AND(SIG!$Z$72="Muy Alta",SIG!$AB$72="Mayor"),CONCATENATE("R10C",SIG!$P$72),"") ->  | AH15: =IF(AND(SIG!$Z$67="Muy Alta",SIG!$AB$67="Catastrófico"),CONCATENATE("R10C",SIG!$P$67),"") ->  | AI15: =IF(AND(SIG!$Z$68="Muy Alta",SIG!$AB$68="Catastrófico"),CONCATENATE("R10C",SIG!$P$68),"") ->  | AJ15: =IF(AND(SIG!$Z$69="Muy Alta",SIG!$AB$69="Catastrófico"),CONCATENATE("R10C",SIG!$P$69),"") ->  | AK15: =IF(AND(SIG!$Z$70="Muy Alta",SIG!$AB$70="Catastrófico"),CONCATENATE("R10C",SIG!$P$70),"") ->  | AL15: =IF(AND(SIG!$Z$71="Muy Alta",SIG!$AB$71="Catastrófico"),CONCATENATE("R10C",SIG!$P$71),"") ->  | AM15: =IF(AND(SIG!$Z$72="Muy Alta",SIG!$AB$72="Catastrófico"),CONCATENATE("R10C",SIG!$P$72),"") -> 
E16: Alta 80% | J16: =IF(AND(SIG!$Z$12="Alta",SIG!$AB$12="Leve"),CONCATENATE("R1C",SIG!$P$12),"") ->  | K16: =IF(AND(SIG!$Z$13="Alta",SIG!$AB$13="Leve"),CONCATENATE("R1C",SIG!$P$13),"") ->  | L16: =IF(AND(SIG!$Z$14="Alta",SIG!$AB$14="Leve"),CONCATENATE("R1C",SIG!$P$14),"") ->  | M16: =IF(AND(SIG!$Z$15="Alta",SIG!$AB$15="Leve"),CONCATENATE("R1C",SIG!$P$15),"") ->  | N16: =IF(AND(SIG!$Z$16="Alta",SIG!$AB$16="Leve"),CONCATENATE("R1C",SIG!$P$16),"") ->  | O16: =IF(AND(SIG!$Z$18="Alta",SIG!$AB$18="Leve"),CONCATENATE("R1C",SIG!$P$18),"") ->  | P16: =IF(AND(SIG!$Z$12="Alta",SIG!$AB$12="Menor"),CONCATENATE("R1C",SIG!$P$12),"") ->  | Q16: =IF(AND(SIG!$Z$13="Alta",SIG!$AB$13="Menor"),CONCATENATE("R1C",SIG!$P$13),"") ->  | R16: =IF(AND(SIG!$Z$14="Alta",SIG!$AB$14="Menor"),CONCATENATE("R1C",SIG!$P$14),"") ->  | S16: =IF(AND(SIG!$Z$15="Alta",SIG!$AB$15="Menor"),CONCATENATE("R1C",SIG!$P$15),"") ->  | T16: =IF(AND(SIG!$Z$16="Alta",SIG!$AB$16="Menor"),CONCATENATE("R1C",SIG!$P$16),"") ->  | U16: =IF(AND(SIG!$Z$18="Alta",SIG!$AB$18="Menor"),CONCATENATE("R1C",SIG!$P$18),"") ->  | V16: =IF(AND(SIG!$Z$12="Alta",SIG!$AB$12="Moderado"),CONCATENATE("R1C",SIG!$P$12),"") ->  | W16: =IF(AND(SIG!$Z$13="Alta",SIG!$AB$13="Moderado"),CONCATENATE("R1C",SIG!$P$13),"") ->  | X16: =IF(AND(SIG!$Z$14="Alta",SIG!$AB$14="Moderado"),CONCATENATE("R1C",SIG!$P$14),"") ->  | Y16: =IF(AND(SIG!$Z$15="Alta",SIG!$AB$15="Moderado"),CONCATENATE("R1C",SIG!$P$15),"") ->  | Z16: =IF(AND(SIG!$Z$16="Alta",SIG!$AB$16="Moderado"),CONCATENATE("R1C",SIG!$P$16),"") ->  | AA16: =IF(AND(SIG!$Z$18="Alta",SIG!$AB$18="Moderado"),CONCATENATE("R1C",SIG!$P$18),"") ->  | AB16: =IF(AND(SIG!$Z$12="Alta",SIG!$AB$12="Mayor"),CONCATENATE("R1C",SIG!$P$12),"") ->  | AC16: =IF(AND(SIG!$Z$13="Alta",SIG!$AB$13="Mayor"),CONCATENATE("R1C",SIG!$P$13),"") ->  | AD16: =IF(AND(SIG!$Z$14="Alta",SIG!$AB$14="Mayor"),CONCATENATE("R1C",SIG!$P$14),"") ->  | AE16: =IF(AND(SIG!$Z$15="Alta",SIG!$AB$15="Mayor"),CONCATENATE("R1C",SIG!$P$15),"") ->  | AF16: =IF(AND(SIG!$Z$16="Alta",SIG!$AB$16="Mayor"),CONCATENATE("R1C",SIG!$P$16),"") ->  | AG16: =IF(AND(SIG!$Z$18="Alta",SIG!$AB$18="Mayor"),CONCATENATE("R1C",SIG!$P$18),"") ->  | AH16: =IF(AND(SIG!$Z$12="Alta",SIG!$AB$12="Catastrófico"),CONCATENATE("R1C",SIG!$P$12),"") ->  | AI16: =IF(AND(SIG!$Z$13="Alta",SIG!$AB$13="Catastrófico"),CONCATENATE("R1C",SIG!$P$13),"") ->  | AJ16: =IF(AND(SIG!$Z$14="Alta",SIG!$AB$14="Catastrófico"),CONCATENATE("R1C",SIG!$P$14),"") ->  | AK16: =IF(AND(SIG!$Z$15="Alta",SIG!$AB$15="Catastrófico"),CONCATENATE("R1C",SIG!$P$15),"") ->  | AL16: =IF(AND(SIG!$Z$16="Alta",SIG!$AB$16="Catastrófico"),CONCATENATE("R1C",SIG!$P$16),"") ->  | AM16: =IF(AND(SIG!$Z$18="Alta",SIG!$AB$18="Catastrófico"),CONCATENATE("R1C",SIG!$P$18),"") ->  | AO16: Alto
J17: =IF(AND(SIG!$Z$19="Alta",SIG!$AB$19="Leve"),CONCATENATE("R2C",SIG!$P$19),"") ->  | K17: =IF(AND(SIG!$Z$20="Alta",SIG!$AB$20="Leve"),CONCATENATE("R2C",SIG!$P$20),"") ->  | L17: =IF(AND(SIG!$Z$21="Alta",SIG!$AB$21="Leve"),CONCATENATE("R2C",SIG!$P$21),"") ->  | M17: =IF(AND(SIG!$Z$22="Alta",SIG!$AB$22="Leve"),CONCATENATE("R2C",SIG!$P$22),"") ->  | N17: =IF(AND(SIG!$Z$23="Alta",SIG!$AB$23="Leve"),CONCATENATE("R2C",SIG!$P$23),"") ->  | O17: =IF(AND(SIG!$Z$24="Alta",SIG!$AB$24="Leve"),CONCATENATE("R2C",SIG!$P$24),"") ->  | P17: =IF(AND(SIG!$Z$19="Alta",SIG!$AB$19="Menor"),CONCATENATE("R2C",SIG!$P$19),"") ->  | Q17: =IF(AND(SIG!$Z$20="Alta",SIG!$AB$20="Menor"),CONCATENATE("R2C",SIG!$P$20),"") ->  | R17: =IF(AND(SIG!$Z$21="Alta",SIG!$AB$21="Menor"),CONCATENATE("R2C",SIG!$P$21),"") ->  | S17: =IF(AND(SIG!$Z$22="Alta",SIG!$AB$22="Menor"),CONCATENATE("R2C",SIG!$P$22),"") ->  | T17: =IF(AND(SIG!$Z$23="Alta",SIG!$AB$23="Menor"),CONCATENATE("R2C",SIG!$P$23),"") ->  | U17: =IF(AND(SIG!$Z$24="Alta",SIG!$AB$24="Menor"),CONCATENATE("R2C",SIG!$P$24),"") ->  | V17: =IF(AND(SIG!$Z$19="Alta",SIG!$AB$19="Moderado"),CONCATENATE("R2C",SIG!$P$19),"") ->  | W17: =IF(AND(SIG!$Z$20="Alta",SIG!$AB$20="Moderado"),CONCATENATE("R2C",SIG!$P$20),"") ->  | X17: =IF(AND(SIG!$Z$21="Alta",SIG!$AB$21="Moderado"),CONCATENATE("R2C",SIG!$P$21),"") ->  | Y17: =IF(AND(SIG!$Z$22="Alta",SIG!$AB$22="Moderado"),CONCATENATE("R2C",SIG!$P$22),"") ->  | Z17: =IF(AND(SIG!$Z$23="Alta",SIG!$AB$23="Moderado"),CONCATENATE("R2C",SIG!$P$23),"") ->  | AA17: =IF(AND(SIG!$Z$24="Alta",SIG!$AB$24="Moderado"),CONCATENATE("R2C",SIG!$P$24),"") ->  | AB17: =IF(AND(SIG!$Z$19="Alta",SIG!$AB$19="Mayor"),CONCATENATE("R2C",SIG!$P$19),"") ->  | AC17: =IF(AND(SIG!$Z$20="Alta",SIG!$AB$20="Mayor"),CONCATENATE("R2C",SIG!$P$20),"") ->  | AD17: =IF(AND(SIG!$Z$21="Alta",SIG!$AB$21="Mayor"),CONCATENATE("R2C",SIG!$P$21),"") ->  | AE17: =IF(AND(SIG!$Z$22="Alta",SIG!$AB$22="Mayor"),CONCATENATE("R2C",SIG!$P$22),"") ->  | AF17: =IF(AND(SIG!$Z$23="Alta",SIG!$AB$23="Mayor"),CONCATENATE("R2C",SIG!$P$23),"") ->  | AG17: =IF(AND(SIG!$Z$24="Alta",SIG!$AB$24="Mayor"),CONCATENATE("R2C",SIG!$P$24),"") ->  | AH17: =IF(AND(SIG!$Z$19="Alta",SIG!$AB$19="Catastrófico"),CONCATENATE("R2C",SIG!$P$19),"") ->  | AI17: =IF(AND(SIG!$Z$20="Alta",SIG!$AB$20="Catastrófico"),CONCATENATE("R2C",SIG!$P$20),"") ->  | AJ17: =IF(AND(SIG!$Z$21="Alta",SIG!$AB$21="Catastrófico"),CONCATENATE("R2C",SIG!$P$21),"") ->  | AK17: =IF(AND(SIG!$Z$22="Alta",SIG!$AB$22="Catastrófico"),CONCATENATE("R2C",SIG!$P$22),"") ->  | AL17: =IF(AND(SIG!$Z$23="Alta",SIG!$AB$23="Catastrófico"),CONCATENATE("R2C",SIG!$P$23),"") ->  | AM17: =IF(AND(SIG!$Z$24="Alta",SIG!$AB$24="Catastrófico"),CONCATENATE("R2C",SIG!$P$24),"") -> 
J18: =IF(AND(SIG!$Z$25="Alta",SIG!$AB$25="Leve"),CONCATENATE("R3C",SIG!$P$25),"") ->  | K18: =IF(AND(SIG!$Z$26="Alta",SIG!$AB$26="Leve"),CONCATENATE("R3C",SIG!$P$26),"") ->  | L18: =IF(AND(SIG!$Z$27="Alta",SIG!$AB$27="Leve"),CONCATENATE("R3C",SIG!$P$27),"") ->  | M18: =IF(AND(SIG!$Z$28="Alta",SIG!$AB$28="Leve"),CONCATENATE("R3C",SIG!$P$28),"") ->  | N18: =IF(AND(SIG!$Z$29="Alta",SIG!$AB$29="Leve"),CONCATENATE("R3C",SIG!$P$29),"") ->  | O18: =IF(AND(SIG!$Z$30="Alta",SIG!$AB$30="Leve"),CONCATENATE("R3C",SIG!$P$30),"") ->  | P18: =IF(AND(SIG!$Z$25="Alta",SIG!$AB$25="Menor"),CONCATENATE("R3C",SIG!$P$25),"") ->  | Q18: =IF(AND(SIG!$Z$26="Alta",SIG!$AB$26="Menor"),CONCATENATE("R3C",SIG!$P$26),"") ->  | R18: =IF(AND(SIG!$Z$27="Alta",SIG!$AB$27="Menor"),CONCATENATE("R3C",SIG!$P$27),"") ->  | S18: =IF(AND(SIG!$Z$28="Alta",SIG!$AB$28="Menor"),CONCATENATE("R3C",SIG!$P$28),"") ->  | T18: =IF(AND(SIG!$Z$29="Alta",SIG!$AB$29="Menor"),CONCATENATE("R3C",SIG!$P$29),"") ->  | U18: =IF(AND(SIG!$Z$30="Alta",SIG!$AB$30="Menor"),CONCATENATE("R3C",SIG!$P$30),"") ->  | V18: =IF(AND(SIG!$Z$25="Alta",SIG!$AB$25="Moderado"),CONCATENATE("R3C",SIG!$P$25),"") ->  | W18: =IF(AND(SIG!$Z$26="Alta",SIG!$AB$26="Moderado"),CONCATENATE("R3C",SIG!$P$26),"") ->  | X18: =IF(AND(SIG!$Z$27="Alta",SIG!$AB$27="Moderado"),CONCATENATE("R3C",SIG!$P$27),"") ->  | Y18: =IF(AND(SIG!$Z$28="Alta",SIG!$AB$28="Moderado"),CONCATENATE("R3C",SIG!$P$28),"") ->  | Z18: =IF(AND(SIG!$Z$29="Alta",SIG!$AB$29="Moderado"),CONCATENATE("R3C",SIG!$P$29),"") ->  | AA18: =IF(AND(SIG!$Z$30="Alta",SIG!$AB$30="Moderado"),CONCATENATE("R3C",SIG!$P$30),"") ->  | AB18: =IF(AND(SIG!$Z$25="Alta",SIG!$AB$25="Mayor"),CONCATENATE("R3C",SIG!$P$25),"") ->  | AC18: =IF(AND(SIG!$Z$26="Alta",SIG!$AB$26="Mayor"),CONCATENATE("R3C",SIG!$P$26),"") ->  | AD18: =IF(AND(SIG!$Z$27="Alta",SIG!$AB$27="Mayor"),CONCATENATE("R3C",SIG!$P$27),"") ->  | AE18: =IF(AND(SIG!$Z$28="Alta",SIG!$AB$28="Mayor"),CONCATENATE("R3C",SIG!$P$28),"") ->  | AF18: =IF(AND(SIG!$Z$29="Alta",SIG!$AB$29="Mayor"),CONCATENATE("R3C",SIG!$P$29),"") ->  | AG18: =IF(AND(SIG!$Z$30="Alta",SIG!$AB$30="Mayor"),CONCATENATE("R3C",SIG!$P$30),"") ->  | AH18: =IF(AND(SIG!$Z$25="Alta",SIG!$AB$25="Catastrófico"),CONCATENATE("R3C",SIG!$P$25),"") ->  | AI18: =IF(AND(SIG!$Z$26="Alta",SIG!$AB$26="Catastrófico"),CONCATENATE("R3C",SIG!$P$26),"") ->  | AJ18: =IF(AND(SIG!$Z$27="Alta",SIG!$AB$27="Catastrófico"),CONCATENATE("R3C",SIG!$P$27),"") ->  | AK18: =IF(AND(SIG!$Z$28="Alta",SIG!$AB$28="Catastrófico"),CONCATENATE("R3C",SIG!$P$28),"") ->  | AL18: =IF(AND(SIG!$Z$29="Alta",SIG!$AB$29="Catastrófico"),CONCATENATE("R3C",SIG!$P$29),"") ->  | AM18: =IF(AND(SIG!$Z$30="Alta",SIG!$AB$30="Catastrófico"),CONCATENATE("R3C",SIG!$P$30),"") -> 
J19: =IF(AND(SIG!$Z$31="Alta",SIG!$AB$31="Leve"),CONCATENATE("R4C",SIG!$P$31),"") ->  | K19: =IF(AND(SIG!$Z$32="Alta",SIG!$AB$32="Leve"),CONCATENATE("R4C",SIG!$P$32),"") ->  | L19: =IF(AND(SIG!$Z$33="Alta",SIG!$AB$33="Leve"),CONCATENATE("R4C",SIG!$P$33),"") ->  | M19: =IF(AND(SIG!$Z$34="Alta",SIG!$AB$34="Leve"),CONCATENATE("R4C",SIG!$P$34),"") ->  | N19: =IF(AND(SIG!$Z$35="Alta",SIG!$AB$35="Leve"),CONCATENATE("R4C",SIG!$P$35),"") ->  | O19: =IF(AND(SIG!$Z$36="Alta",SIG!$AB$36="Leve"),CONCATENATE("R4C",SIG!$P$36),"") ->  | P19: =IF(AND(SIG!$Z$31="Alta",SIG!$AB$31="Menor"),CONCATENATE("R4C",SIG!$P$31),"") ->  | Q19: =IF(AND(SIG!$Z$32="Alta",SIG!$AB$32="Menor"),CONCATENATE("R4C",SIG!$P$32),"") ->  | R19: =IF(AND(SIG!$Z$33="Alta",SIG!$AB$33="Menor"),CONCATENATE("R4C",SIG!$P$33),"") ->  | S19: =IF(AND(SIG!$Z$34="Alta",SIG!$AB$34="Menor"),CONCATENATE("R4C",SIG!$P$34),"") ->  | T19: =IF(AND(SIG!$Z$35="Alta",SIG!$AB$35="Menor"),CONCATENATE("R4C",SIG!$P$35),"") ->  | U19: =IF(AND(SIG!$Z$36="Alta",SIG!$AB$36="Menor"),CONCATENATE("R4C",SIG!$P$36),"") ->  | V19: =IF(AND(SIG!$Z$31="Alta",SIG!$AB$31="Moderado"),CONCATENATE("R4C",SIG!$P$31),"") ->  | W19: =IF(AND(SIG!$Z$32="Alta",SIG!$AB$32="Moderado"),CONCATENATE("R4C",SIG!$P$32),"") ->  | X19: =IF(AND(SIG!$Z$33="Alta",SIG!$AB$33="Moderado"),CONCATENATE("R4C",SIG!$P$33),"") ->  | Y19: =IF(AND(SIG!$Z$34="Alta",SIG!$AB$34="Moderado"),CONCATENATE("R4C",SIG!$P$34),"") ->  | Z19: =IF(AND(SIG!$Z$35="Alta",SIG!$AB$35="Moderado"),CONCATENATE("R4C",SIG!$P$35),"") ->  | AA19: =IF(AND(SIG!$Z$36="Alta",SIG!$AB$36="Moderado"),CONCATENATE("R4C",SIG!$P$36),"") ->  | AB19: =IF(AND(SIG!$Z$31="Alta",SIG!$AB$31="Mayor"),CONCATENATE("R4C",SIG!$P$31),"") ->  | AC19: =IF(AND(SIG!$Z$32="Alta",SIG!$AB$32="Mayor"),CONCATENATE("R4C",SIG!$P$32),"") ->  | AD19: =IF(AND(SIG!$Z$33="Alta",SIG!$AB$33="Mayor"),CONCATENATE("R4C",SIG!$P$33),"") ->  | AE19: =IF(AND(SIG!$Z$34="Alta",SIG!$AB$34="Mayor"),CONCATENATE("R4C",SIG!$P$34),"") ->  | AF19: =IF(AND(SIG!$Z$35="Alta",SIG!$AB$35="Mayor"),CONCATENATE("R4C",SIG!$P$35),"") ->  | AG19: =IF(AND(SIG!$Z$36="Alta",SIG!$AB$36="Mayor"),CONCATENATE("R4C",SIG!$P$36),"") ->  | AH19: =IF(AND(SIG!$Z$31="Alta",SIG!$AB$31="Catastrófico"),CONCATENATE("R4C",SIG!$P$31),"") ->  | AI19: =IF(AND(SIG!$Z$32="Alta",SIG!$AB$32="Catastrófico"),CONCATENATE("R4C",SIG!$P$32),"") ->  | AJ19: =IF(AND(SIG!$Z$33="Alta",SIG!$AB$33="Catastrófico"),CONCATENATE("R4C",SIG!$P$33),"") ->  | AK19: =IF(AND(SIG!$Z$34="Alta",SIG!$AB$34="Catastrófico"),CONCATENATE("R4C",SIG!$P$34),"") ->  | AL19: =IF(AND(SIG!$Z$35="Alta",SIG!$AB$35="Catastrófico"),CONCATENATE("R4C",SIG!$P$35),"") ->  | AM19: =IF(AND(SIG!$Z$36="Alta",SIG!$AB$36="Catastrófico"),CONCATENATE("R4C",SIG!$P$36),"") -> 
J20: =IF(AND(SIG!$Z$37="Alta",SIG!$AB$37="Leve"),CONCATENATE("R5C",SIG!$P$37),"") ->  | K20: =IF(AND(SIG!$Z$38="Alta",SIG!$AB$38="Leve"),CONCATENATE("R5C",SIG!$P$38),"") ->  | L20: =IF(AND(SIG!$Z$39="Alta",SIG!$AB$39="Leve"),CONCATENATE("R5C",SIG!$P$39),"") ->  | M20: =IF(AND(SIG!$Z$40="Alta",SIG!$AB$40="Leve"),CONCATENATE("R5C",SIG!$P$40),"") ->  | N20: =IF(AND(SIG!$Z$41="Alta",SIG!$AB$41="Leve"),CONCATENATE("R5C",SIG!$P$41),"") ->  | O20: =IF(AND(SIG!$Z$42="Alta",SIG!$AB$42="Leve"),CONCATENATE("R5C",SIG!$P$42),"") ->  | P20: =IF(AND(SIG!$Z$37="Alta",SIG!$AB$37="Menor"),CONCATENATE("R5C",SIG!$P$37),"") ->  | Q20: =IF(AND(SIG!$Z$38="Alta",SIG!$AB$38="Menor"),CONCATENATE("R5C",SIG!$P$38),"") ->  | R20: =IF(AND(SIG!$Z$39="Alta",SIG!$AB$39="Menor"),CONCATENATE("R5C",SIG!$P$39),"") ->  | S20: =IF(AND(SIG!$Z$40="Alta",SIG!$AB$40="Menor"),CONCATENATE("R5C",SIG!$P$40),"") ->  | T20: =IF(AND(SIG!$Z$41="Alta",SIG!$AB$41="Menor"),CONCATENATE("R5C",SIG!$P$41),"") ->  | U20: =IF(AND(SIG!$Z$42="Alta",SIG!$AB$42="Menor"),CONCATENATE("R5C",SIG!$P$42),"") ->  | V20: =IF(AND(SIG!$Z$37="Alta",SIG!$AB$37="Moderado"),CONCATENATE("R5C",SIG!$P$37),"") ->  | W20: =IF(AND(SIG!$Z$38="Alta",SIG!$AB$38="Moderado"),CONCATENATE("R5C",SIG!$P$38),"") ->  | X20: =IF(AND(SIG!$Z$39="Alta",SIG!$AB$39="Moderado"),CONCATENATE("R5C",SIG!$P$39),"") ->  | Y20: =IF(AND(SIG!$Z$40="Alta",SIG!$AB$40="Moderado"),CONCATENATE("R5C",SIG!$P$40),"") ->  | Z20: =IF(AND(SIG!$Z$41="Alta",SIG!$AB$41="Moderado"),CONCATENATE("R5C",SIG!$P$41),"") ->  | AA20: =IF(AND(SIG!$Z$42="Alta",SIG!$AB$42="Moderado"),CONCATENATE("R5C",SIG!$P$42),"") ->  | AB20: =IF(AND(SIG!$Z$37="Alta",SIG!$AB$37="Mayor"),CONCATENATE("R5C",SIG!$P$37),"") ->  | AC20: =IF(AND(SIG!$Z$38="Alta",SIG!$AB$38="Mayor"),CONCATENATE("R5C",SIG!$P$38),"") ->  | AD20: =IF(AND(SIG!$Z$39="Alta",SIG!$AB$39="Mayor"),CONCATENATE("R5C",SIG!$P$39),"") ->  | AE20: =IF(AND(SIG!$Z$40="Alta",SIG!$AB$40="Mayor"),CONCATENATE("R5C",SIG!$P$40),"") ->  | AF20: =IF(AND(SIG!$Z$41="Alta",SIG!$AB$41="Mayor"),CONCATENATE("R5C",SIG!$P$41),"") ->  | AG20: =IF(AND(SIG!$Z$42="Alta",SIG!$AB$42="Mayor"),CONCATENATE("R5C",SIG!$P$42),"") ->  | AH20: =IF(AND(SIG!$Z$37="Alta",SIG!$AB$37="Catastrófico"),CONCATENATE("R5C",SIG!$P$37),"") ->  | AI20: =IF(AND(SIG!$Z$38="Alta",SIG!$AB$38="Catastrófico"),CONCATENATE("R5C",SIG!$P$38),"") ->  | AJ20: =IF(AND(SIG!$Z$39="Alta",SIG!$AB$39="Catastrófico"),CONCATENATE("R5C",SIG!$P$39),"") ->  | AK20: =IF(AND(SIG!$Z$40="Alta",SIG!$AB$40="Catastrófico"),CONCATENATE("R5C",SIG!$P$40),"") ->  | AL20: =IF(AND(SIG!$Z$41="Alta",SIG!$AB$41="Catastrófico"),CONCATENATE("R5C",SIG!$P$41),"") ->  | AM20: =IF(AND(SIG!$Z$42="Alta",SIG!$AB$42="Catastrófico"),CONCATENATE("R5C",SIG!$P$42),"") -> 
J21: =IF(AND(SIG!$Z$43="Alta",SIG!$AB$43="Leve"),CONCATENATE("R6C",SIG!$P$43),"") ->  | K21: =IF(AND(SIG!$Z$44="Alta",SIG!$AB$44="Leve"),CONCATENATE("R6C",SIG!$P$44),"") ->  | L21: =IF(AND(SIG!$Z$45="Alta",SIG!$AB$45="Leve"),CONCATENATE("R6C",SIG!$P$45),"") ->  | M21: =IF(AND(SIG!$Z$46="Alta",SIG!$AB$46="Leve"),CONCATENATE("R6C",SIG!$P$46),"") ->  | N21: =IF(AND(SIG!$Z$47="Alta",SIG!$AB$47="Leve"),CONCATENATE("R6C",SIG!$P$47),"") ->  | O21: =IF(AND(SIG!$Z$48="Alta",SIG!$AB$48="Leve"),CONCATENATE("R6C",SIG!$P$48),"") ->  | P21: =IF(AND(SIG!$Z$43="Alta",SIG!$AB$43="Menor"),CONCATENATE("R6C",SIG!$P$43),"") ->  | Q21: =IF(AND(SIG!$Z$44="Alta",SIG!$AB$44="Menor"),CONCATENATE("R6C",SIG!$P$44),"") ->  | R21: =IF(AND(SIG!$Z$45="Alta",SIG!$AB$45="Menor"),CONCATENATE("R6C",SIG!$P$45),"") ->  | S21: =IF(AND(SIG!$Z$46="Alta",SIG!$AB$46="Menor"),CONCATENATE("R6C",SIG!$P$46),"") ->  | T21: =IF(AND(SIG!$Z$47="Alta",SIG!$AB$47="Menor"),CONCATENATE("R6C",SIG!$P$47),"") ->  | U21: =IF(AND(SIG!$Z$48="Alta",SIG!$AB$48="Menor"),CONCATENATE("R6C",SIG!$P$48),"") ->  | V21: =IF(AND(SIG!$Z$43="Alta",SIG!$AB$43="Moderado"),CONCATENATE("R6C",SIG!$P$43),"") ->  | W21: =IF(AND(SIG!$Z$44="Alta",SIG!$AB$44="Moderado"),CONCATENATE("R6C",SIG!$P$44),"") ->  | X21: =IF(AND(SIG!$Z$45="Alta",SIG!$AB$45="Moderado"),CONCATENATE("R6C",SIG!$P$45),"") ->  | Y21: =IF(AND(SIG!$Z$46="Alta",SIG!$AB$46="Moderado"),CONCATENATE("R6C",SIG!$P$46),"") ->  | Z21: =IF(AND(SIG!$Z$47="Alta",SIG!$AB$47="Moderado"),CONCATENATE("R6C",SIG!$P$47),"") ->  | AA21: =IF(AND(SIG!$Z$48="Alta",SIG!$AB$48="Moderado"),CONCATENATE("R6C",SIG!$P$48),"") ->  | AB21: =IF(AND(SIG!$Z$43="Alta",SIG!$AB$43="Mayor"),CONCATENATE("R6C",SIG!$P$43),"") ->  | AC21: =IF(AND(SIG!$Z$44="Alta",SIG!$AB$44="Mayor"),CONCATENATE("R6C",SIG!$P$44),"") ->  | AD21: =IF(AND(SIG!$Z$45="Alta",SIG!$AB$45="Mayor"),CONCATENATE("R6C",SIG!$P$45),"") ->  | AE21: =IF(AND(SIG!$Z$46="Alta",SIG!$AB$46="Mayor"),CONCATENATE("R6C",SIG!$P$46),"") ->  | AF21: =IF(AND(SIG!$Z$47="Alta",SIG!$AB$47="Mayor"),CONCATENATE("R6C",SIG!$P$47),"") ->  | AG21: =IF(AND(SIG!$Z$48="Alta",SIG!$AB$48="Mayor"),CONCATENATE("R6C",SIG!$P$48),"") ->  | AH21: =IF(AND(SIG!$Z$43="Alta",SIG!$AB$43="Catastrófico"),CONCATENATE("R6C",SIG!$P$43),"") ->  | AI21: =IF(AND(SIG!$Z$44="Alta",SIG!$AB$44="Catastrófico"),CONCATENATE("R6C",SIG!$P$44),"") ->  | AJ21: =IF(AND(SIG!$Z$45="Alta",SIG!$AB$45="Catastrófico"),CONCATENATE("R6C",SIG!$P$45),"") ->  | AK21: =IF(AND(SIG!$Z$46="Alta",SIG!$AB$46="Catastrófico"),CONCATENATE("R6C",SIG!$P$46),"") ->  | AL21: =IF(AND(SIG!$Z$47="Alta",SIG!$AB$47="Catastrófico"),CONCATENATE("R6C",SIG!$P$47),"") ->  | AM21: =IF(AND(SIG!$Z$48="Alta",SIG!$AB$48="Catastrófico"),CONCATENATE("R6C",SIG!$P$48),"") -> 
J22: =IF(AND(SIG!$Z$49="Alta",SIG!$AB$49="Leve"),CONCATENATE("R7C",SIG!$P$49),"") ->  | K22: =IF(AND(SIG!$Z$50="Alta",SIG!$AB$50="Leve"),CONCATENATE("R7C",SIG!$P$50),"") ->  | L22: =IF(AND(SIG!$Z$51="Alta",SIG!$AB$51="Leve"),CONCATENATE("R7C",SIG!$P$51),"") ->  | M22: =IF(AND(SIG!$Z$52="Alta",SIG!$AB$52="Leve"),CONCATENATE("R7C",SIG!$P$52),"") ->  | N22: =IF(AND(SIG!$Z$53="Alta",SIG!$AB$53="Leve"),CONCATENATE("R7C",SIG!$P$53),"") ->  | O22: =IF(AND(SIG!$Z$54="Alta",SIG!$AB$54="Leve"),CONCATENATE("R7C",SIG!$P$54),"") ->  | P22: =IF(AND(SIG!$Z$49="Alta",SIG!$AB$49="Menor"),CONCATENATE("R7C",SIG!$P$49),"") ->  | Q22: =IF(AND(SIG!$Z$50="Alta",SIG!$AB$50="Menor"),CONCATENATE("R7C",SIG!$P$50),"") ->  | R22: =IF(AND(SIG!$Z$51="Alta",SIG!$AB$51="Menor"),CONCATENATE("R7C",SIG!$P$51),"") ->  | S22: =IF(AND(SIG!$Z$52="Alta",SIG!$AB$52="Menor"),CONCATENATE("R7C",SIG!$P$52),"") ->  | T22: =IF(AND(SIG!$Z$53="Alta",SIG!$AB$53="Menor"),CONCATENATE("R7C",SIG!$P$53),"") ->  | U22: =IF(AND(SIG!$Z$54="Alta",SIG!$AB$54="Menor"),CONCATENATE("R7C",SIG!$P$54),"") ->  | V22: =IF(AND(SIG!$Z$49="Alta",SIG!$AB$49="Moderado"),CONCATENATE("R7C",SIG!$P$49),"") ->  | W22: =IF(AND(SIG!$Z$50="Alta",SIG!$AB$50="Moderado"),CONCATENATE("R7C",SIG!$P$50),"") ->  | X22: =IF(AND(SIG!$Z$51="Alta",SIG!$AB$51="Moderado"),CONCATENATE("R7C",SIG!$P$51),"") ->  | Y22: =IF(AND(SIG!$Z$52="Alta",SIG!$AB$52="Moderado"),CONCATENATE("R7C",SIG!$P$52),"") ->  | Z22: =IF(AND(SIG!$Z$53="Alta",SIG!$AB$53="Moderado"),CONCATENATE("R7C",SIG!$P$53),"") ->  | AA22: =IF(AND(SIG!$Z$54="Alta",SIG!$AB$54="Moderado"),CONCATENATE("R7C",SIG!$P$54),"") ->  | AB22: =IF(AND(SIG!$Z$49="Alta",SIG!$AB$49="Mayor"),CONCATENATE("R7C",SIG!$P$49),"") ->  | AC22: =IF(AND(SIG!$Z$50="Alta",SIG!$AB$50="Mayor"),CONCATENATE("R7C",SIG!$P$50),"") ->  | AD22: =IF(AND(SIG!$Z$51="Alta",SIG!$AB$51="Mayor"),CONCATENATE("R7C",SIG!$P$51),"") ->  | AE22: =IF(AND(SIG!$Z$52="Alta",SIG!$AB$52="Mayor"),CONCATENATE("R7C",SIG!$P$52),"") ->  | AF22: =IF(AND(SIG!$Z$53="Alta",SIG!$AB$53="Mayor"),CONCATENATE("R7C",SIG!$P$53),"") ->  | AG22: =IF(AND(SIG!$Z$54="Alta",SIG!$AB$54="Mayor"),CONCATENATE("R7C",SIG!$P$54),"") ->  | AH22: =IF(AND(SIG!$Z$49="Alta",SIG!$AB$49="Catastrófico"),CONCATENATE("R7C",SIG!$P$49),"") ->  | AI22: =IF(AND(SIG!$Z$50="Alta",SIG!$AB$50="Catastrófico"),CONCATENATE("R7C",SIG!$P$50),"") ->  | AJ22: =IF(AND(SIG!$Z$51="Alta",SIG!$AB$51="Catastrófico"),CONCATENATE("R7C",SIG!$P$51),"") ->  | AK22: =IF(AND(SIG!$Z$52="Alta",SIG!$AB$52="Catastrófico"),CONCATENATE("R7C",SIG!$P$52),"") ->  | AL22: =IF(AND(SIG!$Z$53="Alta",SIG!$AB$53="Catastrófico"),CONCATENATE("R7C",SIG!$P$53),"") ->  | AM22: =IF(AND(SIG!$Z$54="Alta",SIG!$AB$54="Catastrófico"),CONCATENATE("R7C",SIG!$P$54),"") -> 
J23: =IF(AND(SIG!$Z$55="Alta",SIG!$AB$55="Leve"),CONCATENATE("R8C",SIG!$P$55),"") ->  | K23: =IF(AND(SIG!$Z$56="Alta",SIG!$AB$56="Leve"),CONCATENATE("R8C",SIG!$P$56),"") ->  | L23: =IF(AND(SIG!$Z$57="Alta",SIG!$AB$57="Leve"),CONCATENATE("R8C",SIG!$P$57),"") ->  | M23: =IF(AND(SIG!$Z$58="Alta",SIG!$AB$58="Leve"),CONCATENATE("R8C",SIG!$P$58),"") ->  | N23: =IF(AND(SIG!$Z$59="Alta",SIG!$AB$59="Leve"),CONCATENATE("R8C",SIG!$P$59),"") ->  | O23: =IF(AND(SIG!$Z$60="Alta",SIG!$AB$60="Leve"),CONCATENATE("R8C",SIG!$P$60),"") ->  | P23: =IF(AND(SIG!$Z$55="Alta",SIG!$AB$55="Menor"),CONCATENATE("R8C",SIG!$P$55),"") ->  | Q23: =IF(AND(SIG!$Z$56="Alta",SIG!$AB$56="Menor"),CONCATENATE("R8C",SIG!$P$56),"") ->  | R23: =IF(AND(SIG!$Z$57="Alta",SIG!$AB$57="Menor"),CONCATENATE("R8C",SIG!$P$57),"") ->  | S23: =IF(AND(SIG!$Z$58="Alta",SIG!$AB$58="Menor"),CONCATENATE("R8C",SIG!$P$58),"") ->  | T23: =IF(AND(SIG!$Z$59="Alta",SIG!$AB$59="Menor"),CONCATENATE("R8C",SIG!$P$59),"") ->  | U23: =IF(AND(SIG!$Z$60="Alta",SIG!$AB$60="Menor"),CONCATENATE("R8C",SIG!$P$60),"") ->  | V23: =IF(AND(SIG!$Z$55="Alta",SIG!$AB$55="Moderado"),CONCATENATE("R8C",SIG!$P$55),"") ->  | W23: =IF(AND(SIG!$Z$56="Alta",SIG!$AB$56="Moderado"),CONCATENATE("R8C",SIG!$P$56),"") ->  | X23: =IF(AND(SIG!$Z$57="Alta",SIG!$AB$57="Moderado"),CONCATENATE("R8C",SIG!$P$57),"") ->  | Y23: =IF(AND(SIG!$Z$58="Alta",SIG!$AB$58="Moderado"),CONCATENATE("R8C",SIG!$P$58),"") ->  | Z23: =IF(AND(SIG!$Z$59="Alta",SIG!$AB$59="Moderado"),CONCATENATE("R8C",SIG!$P$59),"") ->  | AA23: =IF(AND(SIG!$Z$60="Alta",SIG!$AB$60="Moderado"),CONCATENATE("R8C",SIG!$P$60),"") ->  | AB23: =IF(AND(SIG!$Z$55="Alta",SIG!$AB$55="Mayor"),CONCATENATE("R8C",SIG!$P$55),"") ->  | AC23: =IF(AND(SIG!$Z$56="Alta",SIG!$AB$56="Mayor"),CONCATENATE("R8C",SIG!$P$56),"") ->  | AD23: =IF(AND(SIG!$Z$57="Alta",SIG!$AB$57="Mayor"),CONCATENATE("R8C",SIG!$P$57),"") ->  | AE23: =IF(AND(SIG!$Z$58="Alta",SIG!$AB$58="Mayor"),CONCATENATE("R8C",SIG!$P$58),"") ->  | AF23: =IF(AND(SIG!$Z$59="Alta",SIG!$AB$59="Mayor"),CONCATENATE("R8C",SIG!$P$59),"") ->  | AG23: =IF(AND(SIG!$Z$60="Alta",SIG!$AB$60="Mayor"),CONCATENATE("R8C",SIG!$P$60),"") ->  | AH23: =IF(AND(SIG!$Z$55="Alta",SIG!$AB$55="Catastrófico"),CONCATENATE("R8C",SIG!$P$55),"") ->  | AI23: =IF(AND(SIG!$Z$56="Alta",SIG!$AB$56="Catastrófico"),CONCATENATE("R8C",SIG!$P$56),"") ->  | AJ23: =IF(AND(SIG!$Z$57="Alta",SIG!$AB$57="Catastrófico"),CONCATENATE("R8C",SIG!$P$57),"") ->  | AK23: =IF(AND(SIG!$Z$58="Alta",SIG!$AB$58="Catastrófico"),CONCATENATE("R8C",SIG!$P$58),"") ->  | AL23: =IF(AND(SIG!$Z$59="Alta",SIG!$AB$59="Catastrófico"),CONCATENATE("R8C",SIG!$P$59),"") ->  | AM23: =IF(AND(SIG!$Z$60="Alta",SIG!$AB$60="Catastrófico"),CONCATENATE("R8C",SIG!$P$60),"") -> 
J24: =IF(AND(SIG!$Z$61="Alta",SIG!$AB$61="Leve"),CONCATENATE("R9C",SIG!$P$61),"") ->  | K24: =IF(AND(SIG!$Z$62="Alta",SIG!$AB$62="Leve"),CONCATENATE("R9C",SIG!$P$62),"") ->  | L24: =IF(AND(SIG!$Z$63="Alta",SIG!$AB$63="Leve"),CONCATENATE("R9C",SIG!$P$63),"") ->  | M24: =IF(AND(SIG!$Z$64="Alta",SIG!$AB$64="Leve"),CONCATENATE("R9C",SIG!$P$64),"") ->  | N24: =IF(AND(SIG!$Z$65="Alta",SIG!$AB$65="Leve"),CONCATENATE("R9C",SIG!$P$65),"") ->  | O24: =IF(AND(SIG!$Z$66="Alta",SIG!$AB$66="Leve"),CONCATENATE("R9C",SIG!$P$66),"") ->  | P24: =IF(AND(SIG!$Z$61="Alta",SIG!$AB$61="Menor"),CONCATENATE("R9C",SIG!$P$61),"") ->  | Q24: =IF(AND(SIG!$Z$62="Alta",SIG!$AB$62="Menor"),CONCATENATE("R9C",SIG!$P$62),"") ->  | R24: =IF(AND(SIG!$Z$63="Alta",SIG!$AB$63="Menor"),CONCATENATE("R9C",SIG!$P$63),"") ->  | S24: =IF(AND(SIG!$Z$64="Alta",SIG!$AB$64="Menor"),CONCATENATE("R9C",SIG!$P$64),"") ->  | T24: =IF(AND(SIG!$Z$65="Alta",SIG!$AB$65="Menor"),CONCATENATE("R9C",SIG!$P$65),"") ->  | U24: =IF(AND(SIG!$Z$66="Alta",SIG!$AB$66="Menor"),CONCATENATE("R9C",SIG!$P$66),"") ->  | V24: =IF(AND(SIG!$Z$61="Alta",SIG!$AB$61="Moderado"),CONCATENATE("R9C",SIG!$P$61),"") ->  | W24: =IF(AND(SIG!$Z$62="Alta",SIG!$AB$62="Moderado"),CONCATENATE("R9C",SIG!$P$62),"") ->  | X24: =IF(AND(SIG!$Z$63="Alta",SIG!$AB$63="Moderado"),CONCATENATE("R9C",SIG!$P$63),"") ->  | Y24: =IF(AND(SIG!$Z$64="Alta",SIG!$AB$64="Moderado"),CONCATENATE("R9C",SIG!$P$64),"") ->  | Z24: =IF(AND(SIG!$Z$65="Alta",SIG!$AB$65="Moderado"),CONCATENATE("R9C",SIG!$P$65),"") ->  | AA24: =IF(AND(SIG!$Z$66="Alta",SIG!$AB$66="Moderado"),CONCATENATE("R9C",SIG!$P$66),"") ->  | AB24: =IF(AND(SIG!$Z$61="Alta",SIG!$AB$61="Mayor"),CONCATENATE("R9C",SIG!$P$61),"") ->  | AC24: =IF(AND(SIG!$Z$62="Alta",SIG!$AB$62="Mayor"),CONCATENATE("R9C",SIG!$P$62),"") ->  | AD24: =IF(AND(SIG!$Z$63="Alta",SIG!$AB$63="Mayor"),CONCATENATE("R9C",SIG!$P$63),"") ->  | AE24: =IF(AND(SIG!$Z$64="Alta",SIG!$AB$64="Mayor"),CONCATENATE("R9C",SIG!$P$64),"") ->  | AF24: =IF(AND(SIG!$Z$65="Alta",SIG!$AB$65="Mayor"),CONCATENATE("R9C",SIG!$P$65),"") ->  | AG24: =IF(AND(SIG!$Z$66="Alta",SIG!$AB$66="Mayor"),CONCATENATE("R9C",SIG!$P$66),"") ->  | AH24: =IF(AND(SIG!$Z$61="Alta",SIG!$AB$61="Catastrófico"),CONCATENATE("R9C",SIG!$P$61),"") ->  | AI24: =IF(AND(SIG!$Z$62="Alta",SIG!$AB$62="Catastrófico"),CONCATENATE("R9C",SIG!$P$62),"") ->  | AJ24: =IF(AND(SIG!$Z$63="Alta",SIG!$AB$63="Catastrófico"),CONCATENATE("R9C",SIG!$P$63),"") ->  | AK24: =IF(AND(SIG!$Z$64="Alta",SIG!$AB$64="Catastrófico"),CONCATENATE("R9C",SIG!$P$64),"") ->  | AL24: =IF(AND(SIG!$Z$65="Alta",SIG!$AB$65="Catastrófico"),CONCATENATE("R9C",SIG!$P$65),"") ->  | AM24: =IF(AND(SIG!$Z$66="Alta",SIG!$AB$66="Catastrófico"),CONCATENATE("R9C",SIG!$P$66),"") -> 
J25: =IF(AND(SIG!$Z$67="Alta",SIG!$AB$67="Leve"),CONCATENATE("R10C",SIG!$P$67),"") ->  | K25: =IF(AND(SIG!$Z$68="Alta",SIG!$AB$68="Leve"),CONCATENATE("R10C",SIG!$P$68),"") ->  | L25: =IF(AND(SIG!$Z$69="Alta",SIG!$AB$69="Leve"),CONCATENATE("R10C",SIG!$P$69),"") ->  | M25: =IF(AND(SIG!$Z$70="Alta",SIG!$AB$70="Leve"),CONCATENATE("R10C",SIG!$P$70),"") ->  | N25: =IF(AND(SIG!$Z$71="Alta",SIG!$AB$71="Leve"),CONCATENATE("R10C",SIG!$P$71),"") ->  | O25: =IF(AND(SIG!$Z$72="Alta",SIG!$AB$72="Leve"),CONCATENATE("R10C",SIG!$P$72),"") ->  | P25: =IF(AND(SIG!$Z$67="Alta",SIG!$AB$67="Menor"),CONCATENATE("R10C",SIG!$P$67),"") ->  | Q25: =IF(AND(SIG!$Z$68="Alta",SIG!$AB$68="Menor"),CONCATENATE("R10C",SIG!$P$68),"") ->  | R25: =IF(AND(SIG!$Z$69="Alta",SIG!$AB$69="Menor"),CONCATENATE("R10C",SIG!$P$69),"") ->  | S25: =IF(AND(SIG!$Z$70="Alta",SIG!$AB$70="Menor"),CONCATENATE("R10C",SIG!$P$70),"") ->  | T25: =IF(AND(SIG!$Z$71="Alta",SIG!$AB$71="Menor"),CONCATENATE("R10C",SIG!$P$71),"") ->  | U25: =IF(AND(SIG!$Z$72="Alta",SIG!$AB$72="Menor"),CONCATENATE("R10C",SIG!$P$72),"") ->  | V25: =IF(AND(SIG!$Z$67="Alta",SIG!$AB$67="Moderado"),CONCATENATE("R10C",SIG!$P$67),"") ->  | W25: =IF(AND(SIG!$Z$68="Alta",SIG!$AB$68="Moderado"),CONCATENATE("R10C",SIG!$P$68),"") ->  | X25: =IF(AND(SIG!$Z$69="Alta",SIG!$AB$69="Moderado"),CONCATENATE("R10C",SIG!$P$69),"") ->  | Y25: =IF(AND(SIG!$Z$70="Alta",SIG!$AB$70="Moderado"),CONCATENATE("R10C",SIG!$P$70),"") ->  | Z25: =IF(AND(SIG!$Z$71="Alta",SIG!$AB$71="Moderado"),CONCATENATE("R10C",SIG!$P$71),"") ->  | AA25: =IF(AND(SIG!$Z$72="Alta",SIG!$AB$72="Moderado"),CONCATENATE("R10C",SIG!$P$72),"") ->  | AB25: =IF(AND(SIG!$Z$67="Alta",SIG!$AB$67="Mayor"),CONCATENATE("R10C",SIG!$P$67),"") ->  | AC25: =IF(AND(SIG!$Z$68="Alta",SIG!$AB$68="Mayor"),CONCATENATE("R10C",SIG!$P$68),"") ->  | AD25: =IF(AND(SIG!$Z$69="Alta",SIG!$AB$69="Mayor"),CONCATENATE("R10C",SIG!$P$69),"") ->  | AE25: =IF(AND(SIG!$Z$70="Alta",SIG!$AB$70="Mayor"),CONCATENATE("R10C",SIG!$P$70),"") ->  | AF25: =IF(AND(SIG!$Z$71="Alta",SIG!$AB$71="Mayor"),CONCATENATE("R10C",SIG!$P$71),"") ->  | AG25: =IF(AND(SIG!$Z$72="Alta",SIG!$AB$72="Mayor"),CONCATENATE("R10C",SIG!$P$72),"") ->  | AH25: =IF(AND(SIG!$Z$67="Alta",SIG!$AB$67="Catastrófico"),CONCATENATE("R10C",SIG!$P$67),"") ->  | AI25: =IF(AND(SIG!$Z$68="Alta",SIG!$AB$68="Catastrófico"),CONCATENATE("R10C",SIG!$P$68),"") ->  | AJ25: =IF(AND(SIG!$Z$69="Alta",SIG!$AB$69="Catastrófico"),CONCATENATE("R10C",SIG!$P$69),"") ->  | AK25: =IF(AND(SIG!$Z$70="Alta",SIG!$AB$70="Catastrófico"),CONCATENATE("R10C",SIG!$P$70),"") ->  | AL25: =IF(AND(SIG!$Z$71="Alta",SIG!$AB$71="Catastrófico"),CONCATENATE("R10C",SIG!$P$71),"") ->  | AM25: =IF(AND(SIG!$Z$72="Alta",SIG!$AB$72="Catastrófico"),CONCATENATE("R10C",SIG!$P$72),"") -> 
E26: Media 60% | J26: =IF(AND(SIG!$Z$12="Media",SIG!$AB$12="Leve"),CONCATENATE("R1C",SIG!$P$12),"") ->  | K26: =IF(AND(SIG!$Z$13="Media",SIG!$AB$13="Leve"),CONCATENATE("R1C",SIG!$P$13),"") ->  | L26: =IF(AND(SIG!$Z$14="Media",SIG!$AB$14="Leve"),CONCATENATE("R1C",SIG!$P$14),"") ->  | M26: =IF(AND(SIG!$Z$15="Media",SIG!$AB$15="Leve"),CONCATENATE("R1C",SIG!$P$15),"") ->  | N26: =IF(AND(SIG!$Z$16="Media",SIG!$AB$16="Leve"),CONCATENATE("R1C",SIG!$P$16),"") ->  | O26: =IF(AND(SIG!$Z$18="Media",SIG!$AB$18="Leve"),CONCATENATE("R1C",SIG!$P$18),"") ->  | P26: =IF(AND(SIG!$Z$12="Media",SIG!$AB$12="Menor"),CONCATENATE("R1C",SIG!$P$12),"") ->  | Q26: =IF(AND(SIG!$Z$13="Media",SIG!$AB$13="Menor"),CONCATENATE("R1C",SIG!$P$13),"") ->  | R26: =IF(AND(SIG!$Z$14="Media",SIG!$AB$14="Menor"),CONCATENATE("R1C",SIG!$P$14),"") ->  | S26: =IF(AND(SIG!$Z$15="Media",SIG!$AB$15="Menor"),CONCATENATE("R1C",SIG!$P$15),"") ->  | T26: =IF(AND(SIG!$Z$16="Media",SIG!$AB$16="Menor"),CONCATENATE("R1C",SIG!$P$16),"") ->  | U26: =IF(AND(SIG!$Z$18="Media",SIG!$AB$18="Menor"),CONCATENATE("R1C",SIG!$P$18),"") ->  | V26: =IF(AND(SIG!$Z$12="Media",SIG!$AB$12="Moderado"),CONCATENATE("R1C",SIG!$P$12),"") ->  | W26: =IF(AND(SIG!$Z$13="Media",SIG!$AB$13="Moderado"),CONCATENATE("R1C",SIG!$P$13),"") ->  | X26: =IF(AND(SIG!$Z$14="Media",SIG!$AB$14="Moderado"),CONCATENATE("R1C",SIG!$P$14),"") ->  | Y26: =IF(AND(SIG!$Z$15="Media",SIG!$AB$15="Moderado"),CONCATENATE("R1C",SIG!$P$15),"") ->  | Z26: =IF(AND(SIG!$Z$16="Media",SIG!$AB$16="Moderado"),CONCATENATE("R1C",SIG!$P$16),"") ->  | AA26: =IF(AND(SIG!$Z$18="Media",SIG!$AB$18="Moderado"),CONCATENATE("R1C",SIG!$P$18),"") ->  | AB26: =IF(AND(SIG!$Z$12="Media",SIG!$AB$12="Mayor"),CONCATENATE("R1C",SIG!$P$12),"") ->  | AC26: =IF(AND(SIG!$Z$13="Media",SIG!$AB$13="Mayor"),CONCATENATE("R1C",SIG!$P$13),"") ->  | AD26: =IF(AND(SIG!$Z$14="Media",SIG!$AB$14="Mayor"),CONCATENATE("R1C",SIG!$P$14),"") ->  | AE26: =IF(AND(SIG!$Z$15="Media",SIG!$AB$15="Mayor"),CONCATENATE("R1C",SIG!$P$15),"") ->  | AF26: =IF(AND(SIG!$Z$16="Media",SIG!$AB$16="Mayor"),CONCATENATE("R1C",SIG!$P$16),"") ->  | AG26: =IF(AND(SIG!$Z$18="Media",SIG!$AB$18="Mayor"),CONCATENATE("R1C",SIG!$P$18),"") ->  | AH26: =IF(AND(SIG!$Z$12="Media",SIG!$AB$12="Catastrófico"),CONCATENATE("R1C",SIG!$P$12),"") ->  | AI26: =IF(AND(SIG!$Z$13="Media",SIG!$AB$13="Catastrófico"),CONCATENATE("R1C",SIG!$P$13),"") ->  | AJ26: =IF(AND(SIG!$Z$14="Media",SIG!$AB$14="Catastrófico"),CONCATENATE("R1C",SIG!$P$14),"") ->  | AK26: =IF(AND(SIG!$Z$15="Media",SIG!$AB$15="Catastrófico"),CONCATENATE("R1C",SIG!$P$15),"") ->  | AL26: =IF(AND(SIG!$Z$16="Media",SIG!$AB$16="Catastrófico"),CONCATENATE("R1C",SIG!$P$16),"") ->  | AM26: =IF(AND(SIG!$Z$18="Media",SIG!$AB$18="Catastrófico"),CONCATENATE("R1C",SIG!$P$18),"") ->  | AO26: Moderado
J27: =IF(AND(SIG!$Z$19="Media",SIG!$AB$19="Leve"),CONCATENATE("R2C",SIG!$P$19),"") ->  | K27: =IF(AND(SIG!$Z$20="Media",SIG!$AB$20="Leve"),CONCATENATE("R2C",SIG!$P$20),"") ->  | L27: =IF(AND(SIG!$Z$21="Media",SIG!$AB$21="Leve"),CONCATENATE("R2C",SIG!$P$21),"") ->  | M27: =IF(AND(SIG!$Z$22="Media",SIG!$AB$22="Leve"),CONCATENATE("R2C",SIG!$P$22),"") ->  | N27: =IF(AND(SIG!$Z$23="Media",SIG!$AB$23="Leve"),CONCATENATE("R2C",SIG!$P$23),"") ->  | O27: =IF(AND(SIG!$Z$24="Media",SIG!$AB$24="Leve"),CONCATENATE("R2C",SIG!$P$24),"") ->  | P27: =IF(AND(SIG!$Z$19="Media",SIG!$AB$19="Menor"),CONCATENATE("R2C",SIG!$P$19),"") ->  | Q27: =IF(AND(SIG!$Z$20="Media",SIG!$AB$20="Menor"),CONCATENATE("R2C",SIG!$P$20),"") ->  | R27: =IF(AND(SIG!$Z$21="Media",SIG!$AB$21="Menor"),CONCATENATE("R2C",SIG!$P$21),"") ->  | S27: =IF(AND(SIG!$Z$22="Media",SIG!$AB$22="Menor"),CONCATENATE("R2C",SIG!$P$22),"") ->  | T27: =IF(AND(SIG!$Z$23="Media",SIG!$AB$23="Menor"),CONCATENATE("R2C",SIG!$P$23),"") ->  | U27: =IF(AND(SIG!$Z$24="Media",SIG!$AB$24="Menor"),CONCATENATE("R2C",SIG!$P$24),"") ->  | V27: =IF(AND(SIG!$Z$19="Media",SIG!$AB$19="Moderado"),CONCATENATE("R2C",SIG!$P$19),"") ->  | W27: =IF(AND(SIG!$Z$20="Media",SIG!$AB$20="Moderado"),CONCATENATE("R2C",SIG!$P$20),"") ->  | X27: =IF(AND(SIG!$Z$21="Media",SIG!$AB$21="Moderado"),CONCATENATE("R2C",SIG!$P$21),"") ->  | Y27: =IF(AND(SIG!$Z$22="Media",SIG!$AB$22="Moderado"),CONCATENATE("R2C",SIG!$P$22),"") ->  | Z27: =IF(AND(SIG!$Z$23="Media",SIG!$AB$23="Moderado"),CONCATENATE("R2C",SIG!$P$23),"") ->  | AA27: =IF(AND(SIG!$Z$24="Media",SIG!$AB$24="Moderado"),CONCATENATE("R2C",SIG!$P$24),"") ->  | AB27: =IF(AND(SIG!$Z$19="Media",SIG!$AB$19="Mayor"),CONCATENATE("R2C",SIG!$P$19),"") ->  | AC27: =IF(AND(SIG!$Z$20="Media",SIG!$AB$20="Mayor"),CONCATENATE("R2C",SIG!$P$20),"") ->  | AD27: =IF(AND(SIG!$Z$21="Media",SIG!$AB$21="Mayor"),CONCATENATE("R2C",SIG!$P$21),"") ->  | AE27: =IF(AND(SIG!$Z$22="Media",SIG!$AB$22="Mayor"),CONCATENATE("R2C",SIG!$P$22),"") ->  | AF27: =IF(AND(SIG!$Z$23="Media",SIG!$AB$23="Mayor"),CONCATENATE("R2C",SIG!$P$23),"") ->  | AG27: =IF(AND(SIG!$Z$24="Media",SIG!$AB$24="Mayor"),CONCATENATE("R2C",SIG!$P$24),"") ->  | AH27: =IF(AND(SIG!$Z$19="Media",SIG!$AB$19="Catastrófico"),CONCATENATE("R2C",SIG!$P$19),"") ->  | AI27: =IF(AND(SIG!$Z$20="Media",SIG!$AB$20="Catastrófico"),CONCATENATE("R2C",SIG!$P$20),"") ->  | AJ27: =IF(AND(SIG!$Z$21="Media",SIG!$AB$21="Catastrófico"),CONCATENATE("R2C",SIG!$P$21),"") ->  | AK27: =IF(AND(SIG!$Z$22="Media",SIG!$AB$22="Catastrófico"),CONCATENATE("R2C",SIG!$P$22),"") ->  | AL27: =IF(AND(SIG!$Z$23="Media",SIG!$AB$23="Catastrófico"),CONCATENATE("R2C",SIG!$P$23),"") ->  | AM27: =IF(AND(SIG!$Z$24="Media",SIG!$AB$24="Catastrófico"),CONCATENATE("R2C",SIG!$P$24),"") -> 
J28: =IF(AND(SIG!$Z$25="Media",SIG!$AB$25="Leve"),CONCATENATE("R3C",SIG!$P$25),"") ->  | K28: =IF(AND(SIG!$Z$26="Media",SIG!$AB$26="Leve"),CONCATENATE("R3C",SIG!$P$26),"") ->  | L28: =IF(AND(SIG!$Z$27="Media",SIG!$AB$27="Leve"),CONCATENATE("R3C",SIG!$P$27),"") ->  | M28: =IF(AND(SIG!$Z$28="Media",SIG!$AB$28="Leve"),CONCATENATE("R3C",SIG!$P$28),"") ->  | N28: =IF(AND(SIG!$Z$29="Media",SIG!$AB$29="Leve"),CONCATENATE("R3C",SIG!$P$29),"") ->  | O28: =IF(AND(SIG!$Z$30="Media",SIG!$AB$30="Leve"),CONCATENATE("R3C",SIG!$P$30),"") ->  | P28: =IF(AND(SIG!$Z$25="Media",SIG!$AB$25="Menor"),CONCATENATE("R3C",SIG!$P$25),"") ->  | Q28: =IF(AND(SIG!$Z$26="Media",SIG!$AB$26="Menor"),CONCATENATE("R3C",SIG!$P$26),"") ->  | R28: =IF(AND(SIG!$Z$27="Media",SIG!$AB$27="Menor"),CONCATENATE("R3C",SIG!$P$27),"") ->  | S28: =IF(AND(SIG!$Z$28="Media",SIG!$AB$28="Menor"),CONCATENATE("R3C",SIG!$P$28),"") ->  | T28: =IF(AND(SIG!$Z$29="Media",SIG!$AB$29="Menor"),CONCATENATE("R3C",SIG!$P$29),"") ->  | U28: =IF(AND(SIG!$Z$30="Media",SIG!$AB$30="Menor"),CONCATENATE("R3C",SIG!$P$30),"") ->  | V28: =IF(AND(SIG!$Z$25="Media",SIG!$AB$25="Moderado"),CONCATENATE("R3C",SIG!$P$25),"") ->  | W28: =IF(AND(SIG!$Z$26="Media",SIG!$AB$26="Moderado"),CONCATENATE("R3C",SIG!$P$26),"") ->  | X28: =IF(AND(SIG!$Z$27="Media",SIG!$AB$27="Moderado"),CONCATENATE("R3C",SIG!$P$27),"") ->  | Y28: =IF(AND(SIG!$Z$28="Media",SIG!$AB$28="Moderado"),CONCATENATE("R3C",SIG!$P$28),"") ->  | Z28: =IF(AND(SIG!$Z$29="Media",SIG!$AB$29="Moderado"),CONCATENATE("R3C",SIG!$P$29),"") ->  | AA28: =IF(AND(SIG!$Z$30="Media",SIG!$AB$30="Moderado"),CONCATENATE("R3C",SIG!$P$30),"") ->  | AB28: =IF(AND(SIG!$Z$25="Media",SIG!$AB$25="Mayor"),CONCATENATE("R3C",SIG!$P$25),"") ->  | AC28: =IF(AND(SIG!$Z$26="Media",SIG!$AB$26="Mayor"),CONCATENATE("R3C",SIG!$P$26),"") ->  | AD28: =IF(AND(SIG!$Z$27="Media",SIG!$AB$27="Mayor"),CONCATENATE("R3C",SIG!$P$27),"") ->  | AE28: =IF(AND(SIG!$Z$28="Media",SIG!$AB$28="Mayor"),CONCATENATE("R3C",SIG!$P$28),"") ->  | AF28: =IF(AND(SIG!$Z$29="Media",SIG!$AB$29="Mayor"),CONCATENATE("R3C",SIG!$P$29),"") ->  | AG28: =IF(AND(SIG!$Z$30="Media",SIG!$AB$30="Mayor"),CONCATENATE("R3C",SIG!$P$30),"") ->  | AH28: =IF(AND(SIG!$Z$25="Media",SIG!$AB$25="Catastrófico"),CONCATENATE("R3C",SIG!$P$25),"") ->  | AI28: =IF(AND(SIG!$Z$26="Media",SIG!$AB$26="Catastrófico"),CONCATENATE("R3C",SIG!$P$26),"") ->  | AJ28: =IF(AND(SIG!$Z$27="Media",SIG!$AB$27="Catastrófico"),CONCATENATE("R3C",SIG!$P$27),"") ->  | AK28: =IF(AND(SIG!$Z$28="Media",SIG!$AB$28="Catastrófico"),CONCATENATE("R3C",SIG!$P$28),"") ->  | AL28: =IF(AND(SIG!$Z$29="Media",SIG!$AB$29="Catastrófico"),CONCATENATE("R3C",SIG!$P$29),"") ->  | AM28: =IF(AND(SIG!$Z$30="Media",SIG!$AB$30="Catastrófico"),CONCATENATE("R3C",SIG!$P$30),"") -> 
J29: =IF(AND(SIG!$Z$31="Media",SIG!$AB$31="Leve"),CONCATENATE("R4C",SIG!$P$31),"") ->  | K29: =IF(AND(SIG!$Z$32="Media",SIG!$AB$32="Leve"),CONCATENATE("R4C",SIG!$P$32),"") ->  | L29: =IF(AND(SIG!$Z$33="Media",SIG!$AB$33="Leve"),CONCATENATE("R4C",SIG!$P$33),"") ->  | M29: =IF(AND(SIG!$Z$34="Media",SIG!$AB$34="Leve"),CONCATENATE("R4C",SIG!$P$34),"") ->  | N29: =IF(AND(SIG!$Z$35="Media",SIG!$AB$35="Leve"),CONCATENATE("R4C",SIG!$P$35),"") ->  | O29: =IF(AND(SIG!$Z$36="Media",SIG!$AB$36="Leve"),CONCATENATE("R4C",SIG!$P$36),"") ->  | P29: =IF(AND(SIG!$Z$31="Media",SIG!$AB$31="Menor"),CONCATENATE("R4C",SIG!$P$31),"") ->  | Q29: =IF(AND(SIG!$Z$32="Media",SIG!$AB$32="Menor"),CONCATENATE("R4C",SIG!$P$32),"") ->  | R29: =IF(AND(SIG!$Z$33="Media",SIG!$AB$33="Menor"),CONCATENATE("R4C",SIG!$P$33),"") ->  | S29: =IF(AND(SIG!$Z$34="Media",SIG!$AB$34="Menor"),CONCATENATE("R4C",SIG!$P$34),"") ->  | T29: =IF(AND(SIG!$Z$35="Media",SIG!$AB$35="Menor"),CONCATENATE("R4C",SIG!$P$35),"") ->  | U29: =IF(AND(SIG!$Z$36="Media",SIG!$AB$36="Menor"),CONCATENATE("R4C",SIG!$P$36),"") ->  | V29: =IF(AND(SIG!$Z$31="Media",SIG!$AB$31="Moderado"),CONCATENATE("R4C",SIG!$P$31),"") ->  | W29: =IF(AND(SIG!$Z$32="Media",SIG!$AB$32="Moderado"),CONCATENATE("R4C",SIG!$P$32),"") ->  | X29: =IF(AND(SIG!$Z$33="Media",SIG!$AB$33="Moderado"),CONCATENATE("R4C",SIG!$P$33),"") ->  | Y29: =IF(AND(SIG!$Z$34="Media",SIG!$AB$34="Moderado"),CONCATENATE("R4C",SIG!$P$34),"") ->  | Z29: =IF(AND(SIG!$Z$35="Media",SIG!$AB$35="Moderado"),CONCATENATE("R4C",SIG!$P$35),"") ->  | AA29: =IF(AND(SIG!$Z$36="Media",SIG!$AB$36="Moderado"),CONCATENATE("R4C",SIG!$P$36),"") ->  | AB29: =IF(AND(SIG!$Z$31="Media",SIG!$AB$31="Mayor"),CONCATENATE("R4C",SIG!$P$31),"") ->  | AC29: =IF(AND(SIG!$Z$32="Media",SIG!$AB$32="Mayor"),CONCATENATE("R4C",SIG!$P$32),"") ->  | AD29: =IF(AND(SIG!$Z$33="Media",SIG!$AB$33="Mayor"),CONCATENATE("R4C",SIG!$P$33),"") ->  | AE29: =IF(AND(SIG!$Z$34="Media",SIG!$AB$34="Mayor"),CONCATENATE("R4C",SIG!$P$34),"") ->  | AF29: =IF(AND(SIG!$Z$35="Media",SIG!$AB$35="Mayor"),CONCATENATE("R4C",SIG!$P$35),"") ->  | AG29: =IF(AND(SIG!$Z$36="Media",SIG!$AB$36="Mayor"),CONCATENATE("R4C",SIG!$P$36),"") ->  | AH29: =IF(AND(SIG!$Z$31="Media",SIG!$AB$31="Catastrófico"),CONCATENATE("R4C",SIG!$P$31),"") ->  | AI29: =IF(AND(SIG!$Z$32="Media",SIG!$AB$32="Catastrófico"),CONCATENATE("R4C",SIG!$P$32),"") ->  | AJ29: =IF(AND(SIG!$Z$33="Media",SIG!$AB$33="Catastrófico"),CONCATENATE("R4C",SIG!$P$33),"") ->  | AK29: =IF(AND(SIG!$Z$34="Media",SIG!$AB$34="Catastrófico"),CONCATENATE("R4C",SIG!$P$34),"") ->  | AL29: =IF(AND(SIG!$Z$35="Media",SIG!$AB$35="Catastrófico"),CONCATENATE("R4C",SIG!$P$35),"") ->  | AM29: =IF(AND(SIG!$Z$36="Media",SIG!$AB$36="Catastrófico"),CONCATENATE("R4C",SIG!$P$36),"") -> 
J30: =IF(AND(SIG!$Z$37="Media",SIG!$AB$37="Leve"),CONCATENATE("R5C",SIG!$P$37),"") ->  | K30: =IF(AND(SIG!$Z$38="Media",SIG!$AB$38="Leve"),CONCATENATE("R5C",SIG!$P$38),"") ->  | L30: =IF(AND(SIG!$Z$39="Media",SIG!$AB$39="Leve"),CONCATENATE("R5C",SIG!$P$39),"") ->  | M30: =IF(AND(SIG!$Z$40="Media",SIG!$AB$40="Leve"),CONCATENATE("R5C",SIG!$P$40),"") ->  | N30: =IF(AND(SIG!$Z$41="Media",SIG!$AB$41="Leve"),CONCATENATE("R5C",SIG!$P$41),"") ->  | O30: =IF(AND(SIG!$Z$42="Media",SIG!$AB$42="Leve"),CONCATENATE("R5C",SIG!$P$42),"") ->  | P30: =IF(AND(SIG!$Z$37="Media",SIG!$AB$37="Menor"),CONCATENATE("R5C",SIG!$P$37),"") ->  | Q30: =IF(AND(SIG!$Z$38="Media",SIG!$AB$38="Menor"),CONCATENATE("R5C",SIG!$P$38),"") ->  | R30: =IF(AND(SIG!$Z$39="Media",SIG!$AB$39="Menor"),CONCATENATE("R5C",SIG!$P$39),"") ->  | S30: =IF(AND(SIG!$Z$40="Media",SIG!$AB$40="Menor"),CONCATENATE("R5C",SIG!$P$40),"") ->  | T30: =IF(AND(SIG!$Z$41="Media",SIG!$AB$41="Menor"),CONCATENATE("R5C",SIG!$P$41),"") ->  | U30: =IF(AND(SIG!$Z$42="Media",SIG!$AB$42="Menor"),CONCATENATE("R5C",SIG!$P$42),"") ->  | V30: =IF(AND(SIG!$Z$37="Media",SIG!$AB$37="Moderado"),CONCATENATE("R5C",SIG!$P$37),"") ->  | W30: =IF(AND(SIG!$Z$38="Media",SIG!$AB$38="Moderado"),CONCATENATE("R5C",SIG!$P$38),"") ->  | X30: =IF(AND(SIG!$Z$39="Media",SIG!$AB$39="Moderado"),CONCATENATE("R5C",SIG!$P$39),"") ->  | Y30: =IF(AND(SIG!$Z$40="Media",SIG!$AB$40="Moderado"),CONCATENATE("R5C",SIG!$P$40),"") ->  | Z30: =IF(AND(SIG!$Z$41="Media",SIG!$AB$41="Moderado"),CONCATENATE("R5C",SIG!$P$41),"") ->  | AA30: =IF(AND(SIG!$Z$42="Media",SIG!$AB$42="Moderado"),CONCATENATE("R5C",SIG!$P$42),"") ->  | AB30: =IF(AND(SIG!$Z$37="Media",SIG!$AB$37="Mayor"),CONCATENATE("R5C",SIG!$P$37),"") ->  | AC30: =IF(AND(SIG!$Z$38="Media",SIG!$AB$38="Mayor"),CONCATENATE("R5C",SIG!$P$38),"") ->  | AD30: =IF(AND(SIG!$Z$39="Media",SIG!$AB$39="Mayor"),CONCATENATE("R5C",SIG!$P$39),"") ->  | AE30: =IF(AND(SIG!$Z$40="Media",SIG!$AB$40="Mayor"),CONCATENATE("R5C",SIG!$P$40),"") ->  | AF30: =IF(AND(SIG!$Z$41="Media",SIG!$AB$41="Mayor"),CONCATENATE("R5C",SIG!$P$41),"") ->  | AG30: =IF(AND(SIG!$Z$42="Media",SIG!$AB$42="Mayor"),CONCATENATE("R5C",SIG!$P$42),"") ->  | AH30: =IF(AND(SIG!$Z$37="Media",SIG!$AB$37="Catastrófico"),CONCATENATE("R5C",SIG!$P$37),"") ->  | AI30: =IF(AND(SIG!$Z$38="Media",SIG!$AB$38="Catastrófico"),CONCATENATE("R5C",SIG!$P$38),"") ->  | AJ30: =IF(AND(SIG!$Z$39="Media",SIG!$AB$39="Catastrófico"),CONCATENATE("R5C",SIG!$P$39),"") ->  | AK30: =IF(AND(SIG!$Z$40="Media",SIG!$AB$40="Catastrófico"),CONCATENATE("R5C",SIG!$P$40),"") ->  | AL30: =IF(AND(SIG!$Z$41="Media",SIG!$AB$41="Catastrófico"),CONCATENATE("R5C",SIG!$P$41),"") ->  | AM30: =IF(AND(SIG!$Z$42="Media",SIG!$AB$42="Catastrófico"),CONCATENATE("R5C",SIG!$P$42),"") -> 
J31: =IF(AND(SIG!$Z$43="Media",SIG!$AB$43="Leve"),CONCATENATE("R6C",SIG!$P$43),"") ->  | K31: =IF(AND(SIG!$Z$44="Media",SIG!$AB$44="Leve"),CONCATENATE("R6C",SIG!$P$44),"") ->  | L31: =IF(AND(SIG!$Z$45="Media",SIG!$AB$45="Leve"),CONCATENATE("R6C",SIG!$P$45),"") ->  | M31: =IF(AND(SIG!$Z$46="Media",SIG!$AB$46="Leve"),CONCATENATE("R6C",SIG!$P$46),"") ->  | N31: =IF(AND(SIG!$Z$47="Media",SIG!$AB$47="Leve"),CONCATENATE("R6C",SIG!$P$47),"") ->  | O31: =IF(AND(SIG!$Z$48="Media",SIG!$AB$48="Leve"),CONCATENATE("R6C",SIG!$P$48),"") ->  | P31: =IF(AND(SIG!$Z$43="Media",SIG!$AB$43="Menor"),CONCATENATE("R6C",SIG!$P$43),"") ->  | Q31: =IF(AND(SIG!$Z$44="Media",SIG!$AB$44="Menor"),CONCATENATE("R6C",SIG!$P$44),"") ->  | R31: =IF(AND(SIG!$Z$45="Media",SIG!$AB$45="Menor"),CONCATENATE("R6C",SIG!$P$45),"") ->  | S31: =IF(AND(SIG!$Z$46="Media",SIG!$AB$46="Menor"),CONCATENATE("R6C",SIG!$P$46),"") ->  | T31: =IF(AND(SIG!$Z$47="Media",SIG!$AB$47="Menor"),CONCATENATE("R6C",SIG!$P$47),"") ->  | U31: =IF(AND(SIG!$Z$48="Media",SIG!$AB$48="Menor"),CONCATENATE("R6C",SIG!$P$48),"") ->  | V31: =IF(AND(SIG!$Z$43="Media",SIG!$AB$43="Moderado"),CONCATENATE("R6C",SIG!$P$43),"") ->  | W31: =IF(AND(SIG!$Z$44="Media",SIG!$AB$44="Moderado"),CONCATENATE("R6C",SIG!$P$44),"") ->  | X31: =IF(AND(SIG!$Z$45="Media",SIG!$AB$45="Moderado"),CONCATENATE("R6C",SIG!$P$45),"") ->  | Y31: =IF(AND(SIG!$Z$46="Media",SIG!$AB$46="Moderado"),CONCATENATE("R6C",SIG!$P$46),"") ->  | Z31: =IF(AND(SIG!$Z$47="Media",SIG!$AB$47="Moderado"),CONCATENATE("R6C",SIG!$P$47),"") ->  | AA31: =IF(AND(SIG!$Z$48="Media",SIG!$AB$48="Moderado"),CONCATENATE("R6C",SIG!$P$48),"") ->  | AB31: =IF(AND(SIG!$Z$43="Media",SIG!$AB$43="Mayor"),CONCATENATE("R6C",SIG!$P$43),"") ->  | AC31: =IF(AND(SIG!$Z$44="Media",SIG!$AB$44="Mayor"),CONCATENATE("R6C",SIG!$P$44),"") ->  | AD31: =IF(AND(SIG!$Z$45="Media",SIG!$AB$45="Mayor"),CONCATENATE("R6C",SIG!$P$45),"") ->  | AE31: =IF(AND(SIG!$Z$46="Media",SIG!$AB$46="Mayor"),CONCATENATE("R6C",SIG!$P$46),"") ->  | AF31: =IF(AND(SIG!$Z$47="Media",SIG!$AB$47="Mayor"),CONCATENATE("R6C",SIG!$P$47),"") ->  | AG31: =IF(AND(SIG!$Z$48="Media",SIG!$AB$48="Mayor"),CONCATENATE("R6C",SIG!$P$48),"") ->  | AH31: =IF(AND(SIG!$Z$43="Media",SIG!$AB$43="Catastrófico"),CONCATENATE("R6C",SIG!$P$43),"") ->  | AI31: =IF(AND(SIG!$Z$44="Media",SIG!$AB$44="Catastrófico"),CONCATENATE("R6C",SIG!$P$44),"") ->  | AJ31: =IF(AND(SIG!$Z$45="Media",SIG!$AB$45="Catastrófico"),CONCATENATE("R6C",SIG!$P$45),"") ->  | AK31: =IF(AND(SIG!$Z$46="Media",SIG!$AB$46="Catastrófico"),CONCATENATE("R6C",SIG!$P$46),"") ->  | AL31: =IF(AND(SIG!$Z$47="Media",SIG!$AB$47="Catastrófico"),CONCATENATE("R6C",SIG!$P$47),"") ->  | AM31: =IF(AND(SIG!$Z$48="Media",SIG!$AB$48="Catastrófico"),CONCATENATE("R6C",SIG!$P$48),"") -> 
J32: =IF(AND(SIG!$Z$49="Media",SIG!$AB$49="Leve"),CONCATENATE("R7C",SIG!$P$49),"") ->  | K32: =IF(AND(SIG!$Z$50="Media",SIG!$AB$50="Leve"),CONCATENATE("R7C",SIG!$P$50),"") ->  | L32: =IF(AND(SIG!$Z$51="Media",SIG!$AB$51="Leve"),CONCATENATE("R7C",SIG!$P$51),"") ->  | M32: =IF(AND(SIG!$Z$52="Media",SIG!$AB$52="Leve"),CONCATENATE("R7C",SIG!$P$52),"") ->  | N32: =IF(AND(SIG!$Z$53="Media",SIG!$AB$53="Leve"),CONCATENATE("R7C",SIG!$P$53),"") ->  | O32: =IF(AND(SIG!$Z$54="Media",SIG!$AB$54="Leve"),CONCATENATE("R7C",SIG!$P$54),"") ->  | P32: =IF(AND(SIG!$Z$49="Media",SIG!$AB$49="Menor"),CONCATENATE("R7C",SIG!$P$49),"") ->  | Q32: =IF(AND(SIG!$Z$50="Media",SIG!$AB$50="Menor"),CONCATENATE("R7C",SIG!$P$50),"") ->  | R32: =IF(AND(SIG!$Z$51="Media",SIG!$AB$51="Menor"),CONCATENATE("R7C",SIG!$P$51),"") ->  | S32: =IF(AND(SIG!$Z$52="Media",SIG!$AB$52="Menor"),CONCATENATE("R7C",SIG!$P$52),"") ->  | T32: =IF(AND(SIG!$Z$53="Media",SIG!$AB$53="Menor"),CONCATENATE("R7C",SIG!$P$53),"") ->  | U32: =IF(AND(SIG!$Z$54="Media",SIG!$AB$54="Menor"),CONCATENATE("R7C",SIG!$P$54),"") ->  | V32: =IF(AND(SIG!$Z$49="Media",SIG!$AB$49="Moderado"),CONCATENATE("R7C",SIG!$P$49),"") ->  | W32: =IF(AND(SIG!$Z$50="Media",SIG!$AB$50="Moderado"),CONCATENATE("R7C",SIG!$P$50),"") ->  | X32: =IF(AND(SIG!$Z$51="Media",SIG!$AB$51="Moderado"),CONCATENATE("R7C",SIG!$P$51),"") ->  | Y32: =IF(AND(SIG!$Z$52="Media",SIG!$AB$52="Moderado"),CONCATENATE("R7C",SIG!$P$52),"") ->  | Z32: =IF(AND(SIG!$Z$53="Media",SIG!$AB$53="Moderado"),CONCATENATE("R7C",SIG!$P$53),"") ->  | AA32: =IF(AND(SIG!$Z$54="Media",SIG!$AB$54="Moderado"),CONCATENATE("R7C",SIG!$P$54),"") ->  | AB32: =IF(AND(SIG!$Z$49="Media",SIG!$AB$49="Mayor"),CONCATENATE("R7C",SIG!$P$49),"") ->  | AC32: =IF(AND(SIG!$Z$50="Media",SIG!$AB$50="Mayor"),CONCATENATE("R7C",SIG!$P$50),"") ->  | AD32: =IF(AND(SIG!$Z$51="Media",SIG!$AB$51="Mayor"),CONCATENATE("R7C",SIG!$P$51),"") ->  | AE32: =IF(AND(SIG!$Z$52="Media",SIG!$AB$52="Mayor"),CONCATENATE("R7C",SIG!$P$52),"") ->  | AF32: =IF(AND(SIG!$Z$53="Media",SIG!$AB$53="Mayor"),CONCATENATE("R7C",SIG!$P$53),"") ->  | AG32: =IF(AND(SIG!$Z$54="Media",SIG!$AB$54="Mayor"),CONCATENATE("R7C",SIG!$P$54),"") ->  | AH32: =IF(AND(SIG!$Z$49="Media",SIG!$AB$49="Catastrófico"),CONCATENATE("R7C",SIG!$P$49),"") ->  | AI32: =IF(AND(SIG!$Z$50="Media",SIG!$AB$50="Catastrófico"),CONCATENATE("R7C",SIG!$P$50),"") ->  | AJ32: =IF(AND(SIG!$Z$51="Media",SIG!$AB$51="Catastrófico"),CONCATENATE("R7C",SIG!$P$51),"") ->  | AK32: =IF(AND(SIG!$Z$52="Media",SIG!$AB$52="Catastrófico"),CONCATENATE("R7C",SIG!$P$52),"") ->  | AL32: =IF(AND(SIG!$Z$53="Media",SIG!$AB$53="Catastrófico"),CONCATENATE("R7C",SIG!$P$53),"") ->  | AM32: =IF(AND(SIG!$Z$54="Media",SIG!$AB$54="Catastrófico"),CONCATENATE("R7C",SIG!$P$54),"") -> 
J33: =IF(AND(SIG!$Z$55="Media",SIG!$AB$55="Leve"),CONCATENATE("R8C",SIG!$P$55),"") ->  | K33: =IF(AND(SIG!$Z$56="Media",SIG!$AB$56="Leve"),CONCATENATE("R8C",SIG!$P$56),"") ->  | L33: =IF(AND(SIG!$Z$57="Media",SIG!$AB$57="Leve"),CONCATENATE("R8C",SIG!$P$57),"") ->  | M33: =IF(AND(SIG!$Z$58="Media",SIG!$AB$58="Leve"),CONCATENATE("R8C",SIG!$P$58),"") ->  | N33: =IF(AND(SIG!$Z$59="Media",SIG!$AB$59="Leve"),CONCATENATE("R8C",SIG!$P$59),"") ->  | O33: =IF(AND(SIG!$Z$60="Media",SIG!$AB$60="Leve"),CONCATENATE("R8C",SIG!$P$60),"") ->  | P33: =IF(AND(SIG!$Z$55="Media",SIG!$AB$55="Menor"),CONCATENATE("R8C",SIG!$P$55),"") ->  | Q33: =IF(AND(SIG!$Z$56="Media",SIG!$AB$56="Menor"),CONCATENATE("R8C",SIG!$P$56),"") ->  | R33: =IF(AND(SIG!$Z$57="Media",SIG!$AB$57="Menor"),CONCATENATE("R8C",SIG!$P$57),"") ->  | S33: =IF(AND(SIG!$Z$58="Media",SIG!$AB$58="Menor"),CONCATENATE("R8C",SIG!$P$58),"") ->  | T33: =IF(AND(SIG!$Z$59="Media",SIG!$AB$59="Menor"),CONCATENATE("R8C",SIG!$P$59),"") ->  | U33: =IF(AND(SIG!$Z$60="Media",SIG!$AB$60="Menor"),CONCATENATE("R8C",SIG!$P$60),"") ->  | V33: =IF(AND(SIG!$Z$55="Media",SIG!$AB$55="Moderado"),CONCATENATE("R8C",SIG!$P$55),"") ->  | W33: =IF(AND(SIG!$Z$56="Media",SIG!$AB$56="Moderado"),CONCATENATE("R8C",SIG!$P$56),"") ->  | X33: =IF(AND(SIG!$Z$57="Media",SIG!$AB$57="Moderado"),CONCATENATE("R8C",SIG!$P$57),"") ->  | Y33: =IF(AND(SIG!$Z$58="Media",SIG!$AB$58="Moderado"),CONCATENATE("R8C",SIG!$P$58),"") ->  | Z33: =IF(AND(SIG!$Z$59="Media",SIG!$AB$59="Moderado"),CONCATENATE("R8C",SIG!$P$59),"") ->  | AA33: =IF(AND(SIG!$Z$60="Media",SIG!$AB$60="Moderado"),CONCATENATE("R8C",SIG!$P$60),"") ->  | AB33: =IF(AND(SIG!$Z$55="Media",SIG!$AB$55="Mayor"),CONCATENATE("R8C",SIG!$P$55),"") ->  | AC33: =IF(AND(SIG!$Z$56="Media",SIG!$AB$56="Mayor"),CONCATENATE("R8C",SIG!$P$56),"") ->  | AD33: =IF(AND(SIG!$Z$57="Media",SIG!$AB$57="Mayor"),CONCATENATE("R8C",SIG!$P$57),"") ->  | AE33: =IF(AND(SIG!$Z$58="Media",SIG!$AB$58="Mayor"),CONCATENATE("R8C",SIG!$P$58),"") ->  | AF33: =IF(AND(SIG!$Z$59="Media",SIG!$AB$59="Mayor"),CONCATENATE("R8C",SIG!$P$59),"") ->  | AG33: =IF(AND(SIG!$Z$60="Media",SIG!$AB$60="Mayor"),CONCATENATE("R8C",SIG!$P$60),"") ->  | AH33: =IF(AND(SIG!$Z$55="Media",SIG!$AB$55="Catastrófico"),CONCATENATE("R8C",SIG!$P$55),"") ->  | AI33: =IF(AND(SIG!$Z$56="Media",SIG!$AB$56="Catastrófico"),CONCATENATE("R8C",SIG!$P$56),"") ->  | AJ33: =IF(AND(SIG!$Z$57="Media",SIG!$AB$57="Catastrófico"),CONCATENATE("R8C",SIG!$P$57),"") ->  | AK33: =IF(AND(SIG!$Z$58="Media",SIG!$AB$58="Catastrófico"),CONCATENATE("R8C",SIG!$P$58),"") ->  | AL33: =IF(AND(SIG!$Z$59="Media",SIG!$AB$59="Catastrófico"),CONCATENATE("R8C",SIG!$P$59),"") ->  | AM33: =IF(AND(SIG!$Z$60="Media",SIG!$AB$60="Catastrófico"),CONCATENATE("R8C",SIG!$P$60),"") -> 
J34: =IF(AND(SIG!$Z$61="Media",SIG!$AB$61="Leve"),CONCATENATE("R9C",SIG!$P$61),"") ->  | K34: =IF(AND(SIG!$Z$62="Media",SIG!$AB$62="Leve"),CONCATENATE("R9C",SIG!$P$62),"") ->  | L34: =IF(AND(SIG!$Z$63="Media",SIG!$AB$63="Leve"),CONCATENATE("R9C",SIG!$P$63),"") ->  | M34: =IF(AND(SIG!$Z$64="Media",SIG!$AB$64="Leve"),CONCATENATE("R9C",SIG!$P$64),"") ->  | N34: =IF(AND(SIG!$Z$65="Media",SIG!$AB$65="Leve"),CONCATENATE("R9C",SIG!$P$65),"") ->  | O34: =IF(AND(SIG!$Z$66="Media",SIG!$AB$66="Leve"),CONCATENATE("R9C",SIG!$P$66),"") ->  | P34: =IF(AND(SIG!$Z$61="Media",SIG!$AB$61="Menor"),CONCATENATE("R9C",SIG!$P$61),"") ->  | Q34: =IF(AND(SIG!$Z$62="Media",SIG!$AB$62="Menor"),CONCATENATE("R9C",SIG!$P$62),"") ->  | R34: =IF(AND(SIG!$Z$63="Media",SIG!$AB$63="Menor"),CONCATENATE("R9C",SIG!$P$63),"") ->  | S34: =IF(AND(SIG!$Z$64="Media",SIG!$AB$64="Menor"),CONCATENATE("R9C",SIG!$P$64),"") ->  | T34: =IF(AND(SIG!$Z$65="Media",SIG!$AB$65="Menor"),CONCATENATE("R9C",SIG!$P$65),"") ->  | U34: =IF(AND(SIG!$Z$66="Media",SIG!$AB$66="Menor"),CONCATENATE("R9C",SIG!$P$66),"") ->  | V34: =IF(AND(SIG!$Z$61="Media",SIG!$AB$61="Moderado"),CONCATENATE("R9C",SIG!$P$61),"") ->  | W34: =IF(AND(SIG!$Z$62="Media",SIG!$AB$62="Moderado"),CONCATENATE("R9C",SIG!$P$62),"") ->  | X34: =IF(AND(SIG!$Z$63="Media",SIG!$AB$63="Moderado"),CONCATENATE("R9C",SIG!$P$63),"") ->  | Y34: =IF(AND(SIG!$Z$64="Media",SIG!$AB$64="Moderado"),CONCATENATE("R9C",SIG!$P$64),"") ->  | Z34: =IF(AND(SIG!$Z$65="Media",SIG!$AB$65="Moderado"),CONCATENATE("R9C",SIG!$P$65),"") ->  | AA34: =IF(AND(SIG!$Z$66="Media",SIG!$AB$66="Moderado"),CONCATENATE("R9C",SIG!$P$66),"") ->  | AB34: =IF(AND(SIG!$Z$61="Media",SIG!$AB$61="Mayor"),CONCATENATE("R9C",SIG!$P$61),"") ->  | AC34: =IF(AND(SIG!$Z$62="Media",SIG!$AB$62="Mayor"),CONCATENATE("R9C",SIG!$P$62),"") ->  | AD34: =IF(AND(SIG!$Z$63="Media",SIG!$AB$63="Mayor"),CONCATENATE("R9C",SIG!$P$63),"") ->  | AE34: =IF(AND(SIG!$Z$64="Media",SIG!$AB$64="Mayor"),CONCATENATE("R9C",SIG!$P$64),"") ->  | AF34: =IF(AND(SIG!$Z$65="Media",SIG!$AB$65="Mayor"),CONCATENATE("R9C",SIG!$P$65),"") ->  | AG34: =IF(AND(SIG!$Z$66="Media",SIG!$AB$66="Mayor"),CONCATENATE("R9C",SIG!$P$66),"") ->  | AH34: =IF(AND(SIG!$Z$61="Media",SIG!$AB$61="Catastrófico"),CONCATENATE("R9C",SIG!$P$61),"") ->  | AI34: =IF(AND(SIG!$Z$62="Media",SIG!$AB$62="Catastrófico"),CONCATENATE("R9C",SIG!$P$62),"") ->  | AJ34: =IF(AND(SIG!$Z$63="Media",SIG!$AB$63="Catastrófico"),CONCATENATE("R9C",SIG!$P$63),"") ->  | AK34: =IF(AND(SIG!$Z$64="Media",SIG!$AB$64="Catastrófico"),CONCATENATE("R9C",SIG!$P$64),"") ->  | AL34: =IF(AND(SIG!$Z$65="Media",SIG!$AB$65="Catastrófico"),CONCATENATE("R9C",SIG!$P$65),"") ->  | AM34: =IF(AND(SIG!$Z$66="Media",SIG!$AB$66="Catastrófico"),CONCATENATE("R9C",SIG!$P$66),"") -> 
J35: =IF(AND(SIG!$Z$67="Media",SIG!$AB$67="Leve"),CONCATENATE("R10C",SIG!$P$67),"") ->  | K35: =IF(AND(SIG!$Z$68="Media",SIG!$AB$68="Leve"),CONCATENATE("R10C",SIG!$P$68),"") ->  | L35: =IF(AND(SIG!$Z$69="Media",SIG!$AB$69="Leve"),CONCATENATE("R10C",SIG!$P$69),"") ->  | M35: =IF(AND(SIG!$Z$70="Media",SIG!$AB$70="Leve"),CONCATENATE("R10C",SIG!$P$70),"") ->  | N35: =IF(AND(SIG!$Z$71="Media",SIG!$AB$71="Leve"),CONCATENATE("R10C",SIG!$P$71),"") ->  | O35: =IF(AND(SIG!$Z$72="Media",SIG!$AB$72="Leve"),CONCATENATE("R10C",SIG!$P$72),"") ->  | P35: =IF(AND(SIG!$Z$67="Media",SIG!$AB$67="Menor"),CONCATENATE("R10C",SIG!$P$67),"") ->  | Q35: =IF(AND(SIG!$Z$68="Media",SIG!$AB$68="Menor"),CONCATENATE("R10C",SIG!$P$68),"") ->  | R35: =IF(AND(SIG!$Z$69="Media",SIG!$AB$69="Menor"),CONCATENATE("R10C",SIG!$P$69),"") ->  | S35: =IF(AND(SIG!$Z$70="Media",SIG!$AB$70="Menor"),CONCATENATE("R10C",SIG!$P$70),"") ->  | T35: =IF(AND(SIG!$Z$71="Media",SIG!$AB$71="Menor"),CONCATENATE("R10C",SIG!$P$71),"") ->  | U35: =IF(AND(SIG!$Z$72="Media",SIG!$AB$72="Menor"),CONCATENATE("R10C",SIG!$P$72),"") ->  | V35: =IF(AND(SIG!$Z$67="Media",SIG!$AB$67="Moderado"),CONCATENATE("R10C",SIG!$P$67),"") ->  | W35: =IF(AND(SIG!$Z$68="Media",SIG!$AB$68="Moderado"),CONCATENATE("R10C",SIG!$P$68),"") ->  | X35: =IF(AND(SIG!$Z$69="Media",SIG!$AB$69="Moderado"),CONCATENATE("R10C",SIG!$P$69),"") ->  | Y35: =IF(AND(SIG!$Z$70="Media",SIG!$AB$70="Moderado"),CONCATENATE("R10C",SIG!$P$70),"") ->  | Z35: =IF(AND(SIG!$Z$71="Media",SIG!$AB$71="Moderado"),CONCATENATE("R10C",SIG!$P$71),"") ->  | AA35: =IF(AND(SIG!$Z$72="Media",SIG!$AB$72="Moderado"),CONCATENATE("R10C",SIG!$P$72),"") ->  | AB35: =IF(AND(SIG!$Z$67="Media",SIG!$AB$67="Mayor"),CONCATENATE("R10C",SIG!$P$67),"") ->  | AC35: =IF(AND(SIG!$Z$68="Media",SIG!$AB$68="Mayor"),CONCATENATE("R10C",SIG!$P$68),"") ->  | AD35: =IF(AND(SIG!$Z$69="Media",SIG!$AB$69="Mayor"),CONCATENATE("R10C",SIG!$P$69),"") ->  | AE35: =IF(AND(SIG!$Z$70="Media",SIG!$AB$70="Mayor"),CONCATENATE("R10C",SIG!$P$70),"") ->  | AF35: =IF(AND(SIG!$Z$71="Media",SIG!$AB$71="Mayor"),CONCATENATE("R10C",SIG!$P$71),"") ->  | AG35: =IF(AND(SIG!$Z$72="Media",SIG!$AB$72="Mayor"),CONCATENATE("R10C",SIG!$P$72),"") ->  | AH35: =IF(AND(SIG!$Z$67="Media",SIG!$AB$67="Catastrófico"),CONCATENATE("R10C",SIG!$P$67),"") ->  | AI35: =IF(AND(SIG!$Z$68="Media",SIG!$AB$68="Catastrófico"),CONCATENATE("R10C",SIG!$P$68),"") ->  | AJ35: =IF(AND(SIG!$Z$69="Media",SIG!$AB$69="Catastrófico"),CONCATENATE("R10C",SIG!$P$69),"") ->  | AK35: =IF(AND(SIG!$Z$70="Media",SIG!$AB$70="Catastrófico"),CONCATENATE("R10C",SIG!$P$70),"") ->  | AL35: =IF(AND(SIG!$Z$71="Media",SIG!$AB$71="Catastrófico"),CONCATENATE("R10C",SIG!$P$71),"") ->  | AM35: =IF(AND(SIG!$Z$72="Media",SIG!$AB$72="Catastrófico"),CONCATENATE("R10C",SIG!$P$72),"") -> 
E36: Baja 40% | J36: =IF(AND(SIG!$Z$12="Baja",SIG!$AB$12="Leve"),CONCATENATE("R1C",SIG!$P$12),"") ->  | K36: =IF(AND(SIG!$Z$13="Baja",SIG!$AB$13="Leve"),CONCATENATE("R1C",SIG!$P$13),"") ->  | L36: =IF(AND(SIG!$Z$14="Baja",SIG!$AB$14="Leve"),CONCATENATE("R1C",SIG!$P$14),"") ->  | M36: =IF(AND(SIG!$Z$15="Baja",SIG!$AB$15="Leve"),CONCATENATE("R1C",SIG!$P$15),"") ->  | N36: =IF(AND(SIG!$Z$16="Baja",SIG!$AB$16="Leve"),CONCATENATE("R1C",SIG!$P$16),"") ->  | O36: =IF(AND(SIG!$Z$18="Baja",SIG!$AB$18="Leve"),CONCATENATE("R1C",SIG!$P$18),"") ->  | P36: =IF(AND(SIG!$Z$12="Baja",SIG!$AB$12="Menor"),CONCATENATE("R1C",SIG!$P$12),"") ->  | Q36: =IF(AND(SIG!$Z$13="Baja",SIG!$AB$13="Menor"),CONCATENATE("R1C",SIG!$P$13),"") ->  | R36: =IF(AND(SIG!$Z$14="Baja",SIG!$AB$14="Menor"),CONCATENATE("R1C",SIG!$P$14),"") ->  | S36: =IF(AND(SIG!$Z$15="Baja",SIG!$AB$15="Menor"),CONCATENATE("R1C",SIG!$P$15),"") ->  | T36: =IF(AND(SIG!$Z$16="Baja",SIG!$AB$16="Menor"),CONCATENATE("R1C",SIG!$P$16),"") ->  | U36: =IF(AND(SIG!$Z$18="Baja",SIG!$AB$18="Menor"),CONCATENATE("R1C",SIG!$P$18),"") ->  | V36: =IF(AND(SIG!$Z$12="Baja",SIG!$AB$12="Moderado"),CONCATENATE("R1C",SIG!$P$12),"") ->  | W36: =IF(AND(SIG!$Z$13="Baja",SIG!$AB$13="Moderado"),CONCATENATE("R1C",SIG!$P$13),"") ->  | X36: =IF(AND(SIG!$Z$14="Baja",SIG!$AB$14="Moderado"),CONCATENATE("R1C",SIG!$P$14),"") ->  | Y36: =IF(AND(SIG!$Z$15="Baja",SIG!$AB$15="Moderado"),CONCATENATE("R1C",SIG!$P$15),"") ->  | Z36: =IF(AND(SIG!$Z$16="Baja",SIG!$AB$16="Moderado"),CONCATENATE("R1C",SIG!$P$16),"") ->  | AA36: =IF(AND(SIG!$Z$18="Baja",SIG!$AB$18="Moderado"),CONCATENATE("R1C",SIG!$P$18),"") ->  | AB36: =IF(AND(SIG!$Z$12="Baja",SIG!$AB$12="Mayor"),CONCATENATE("R1C",SIG!$P$12),"") ->  | AC36: =IF(AND(SIG!$Z$13="Baja",SIG!$AB$13="Mayor"),CONCATENATE("R1C",SIG!$P$13),"") ->  | AD36: =IF(AND(SIG!$Z$14="Baja",SIG!$AB$14="Mayor"),CONCATENATE("R1C",SIG!$P$14),"") ->  | AE36: =IF(AND(SIG!$Z$15="Baja",SIG!$AB$15="Mayor"),CONCATENATE("R1C",SIG!$P$15),"") ->  | AF36: =IF(AND(SIG!$Z$16="Baja",SIG!$AB$16="Mayor"),CONCATENATE("R1C",SIG!$P$16),"") ->  | AG36: =IF(AND(SIG!$Z$18="Baja",SIG!$AB$18="Mayor"),CONCATENATE("R1C",SIG!$P$18),"") ->  | AH36: =IF(AND(SIG!$Z$12="Baja",SIG!$AB$12="Catastrófico"),CONCATENATE("R1C",SIG!$P$12),"") ->  | AI36: =IF(AND(SIG!$Z$13="Baja",SIG!$AB$13="Catastrófico"),CONCATENATE("R1C",SIG!$P$13),"") ->  | AJ36: =IF(AND(SIG!$Z$14="Baja",SIG!$AB$14="Catastrófico"),CONCATENATE("R1C",SIG!$P$14),"") ->  | AK36: =IF(AND(SIG!$Z$15="Baja",SIG!$AB$15="Catastrófico"),CONCATENATE("R1C",SIG!$P$15),"") ->  | AL36: =IF(AND(SIG!$Z$16="Baja",SIG!$AB$16="Catastrófico"),CONCATENATE("R1C",SIG!$P$16),"") ->  | AM36: =IF(AND(SIG!$Z$18="Baja",SIG!$AB$18="Catastrófico"),CONCATENATE("R1C",SIG!$P$18),"") ->  | AO36: Bajo
J37: =IF(AND(SIG!$Z$19="Baja",SIG!$AB$19="Leve"),CONCATENATE("R2C",SIG!$P$19),"") ->  | K37: =IF(AND(SIG!$Z$20="Baja",SIG!$AB$20="Leve"),CONCATENATE("R2C",SIG!$P$20),"") ->  | L37: =IF(AND(SIG!$Z$21="Baja",SIG!$AB$21="Leve"),CONCATENATE("R2C",SIG!$P$21),"") ->  | M37: =IF(AND(SIG!$Z$22="Baja",SIG!$AB$22="Leve"),CONCATENATE("R2C",SIG!$P$22),"") ->  | N37: =IF(AND(SIG!$Z$23="Baja",SIG!$AB$23="Leve"),CONCATENATE("R2C",SIG!$P$23),"") ->  | O37: =IF(AND(SIG!$Z$24="Baja",SIG!$AB$24="Leve"),CONCATENATE("R2C",SIG!$P$24),"") ->  | P37: =IF(AND(SIG!$Z$19="Baja",SIG!$AB$19="Menor"),CONCATENATE("R2C",SIG!$P$19),"") ->  | Q37: =IF(AND(SIG!$Z$20="Baja",SIG!$AB$20="Menor"),CONCATENATE("R2C",SIG!$P$20),"") ->  | R37: =IF(AND(SIG!$Z$21="Baja",SIG!$AB$21="Menor"),CONCATENATE("R2C",SIG!$P$21),"") ->  | S37: =IF(AND(SIG!$Z$22="Baja",SIG!$AB$22="Menor"),CONCATENATE("R2C",SIG!$P$22),"") ->  | T37: =IF(AND(SIG!$Z$23="Baja",SIG!$AB$23="Menor"),CONCATENATE("R2C",SIG!$P$23),"") ->  | U37: =IF(AND(SIG!$Z$24="Baja",SIG!$AB$24="Menor"),CONCATENATE("R2C",SIG!$P$24),"") ->  | V37: =IF(AND(SIG!$Z$19="Baja",SIG!$AB$19="Moderado"),CONCATENATE("R2C",SIG!$P$19),"") ->  | W37: =IF(AND(SIG!$Z$20="Baja",SIG!$AB$20="Moderado"),CONCATENATE("R2C",SIG!$P$20),"") ->  | X37: =IF(AND(SIG!$Z$21="Baja",SIG!$AB$21="Moderado"),CONCATENATE("R2C",SIG!$P$21),"") ->  | Y37: =IF(AND(SIG!$Z$22="Baja",SIG!$AB$22="Moderado"),CONCATENATE("R2C",SIG!$P$22),"") ->  | Z37: =IF(AND(SIG!$Z$23="Baja",SIG!$AB$23="Moderado"),CONCATENATE("R2C",SIG!$P$23),"") ->  | AA37: =IF(AND(SIG!$Z$24="Baja",SIG!$AB$24="Moderado"),CONCATENATE("R2C",SIG!$P$24),"") ->  | AB37: =IF(AND(SIG!$Z$19="Baja",SIG!$AB$19="Mayor"),CONCATENATE("R2C",SIG!$P$19),"") ->  | AC37: =IF(AND(SIG!$Z$20="Baja",SIG!$AB$20="Mayor"),CONCATENATE("R2C",SIG!$P$20),"") ->  | AD37: =IF(AND(SIG!$Z$21="Baja",SIG!$AB$21="Mayor"),CONCATENATE("R2C",SIG!$P$21),"") ->  | AE37: =IF(AND(SIG!$Z$22="Baja",SIG!$AB$22="Mayor"),CONCATENATE("R2C",SIG!$P$22),"") ->  | AF37: =IF(AND(SIG!$Z$23="Baja",SIG!$AB$23="Mayor"),CONCATENATE("R2C",SIG!$P$23),"") ->  | AG37: =IF(AND(SIG!$Z$24="Baja",SIG!$AB$24="Mayor"),CONCATENATE("R2C",SIG!$P$24),"") ->  | AH37: =IF(AND(SIG!$Z$19="Baja",SIG!$AB$19="Catastrófico"),CONCATENATE("R2C",SIG!$P$19),"") ->  | AI37: =IF(AND(SIG!$Z$20="Baja",SIG!$AB$20="Catastrófico"),CONCATENATE("R2C",SIG!$P$20),"") ->  | AJ37: =IF(AND(SIG!$Z$21="Baja",SIG!$AB$21="Catastrófico"),CONCATENATE("R2C",SIG!$P$21),"") ->  | AK37: =IF(AND(SIG!$Z$22="Baja",SIG!$AB$22="Catastrófico"),CONCATENATE("R2C",SIG!$P$22),"") ->  | AL37: =IF(AND(SIG!$Z$23="Baja",SIG!$AB$23="Catastrófico"),CONCATENATE("R2C",SIG!$P$23),"") ->  | AM37: =IF(AND(SIG!$Z$24="Baja",SIG!$AB$24="Catastrófico"),CONCATENATE("R2C",SIG!$P$24),"") -> 
J38: =IF(AND(SIG!$Z$25="Baja",SIG!$AB$25="Leve"),CONCATENATE("R3C",SIG!$P$25),"") ->  | K38: =IF(AND(SIG!$Z$26="Baja",SIG!$AB$26="Leve"),CONCATENATE("R3C",SIG!$P$26),"") ->  | L38: =IF(AND(SIG!$Z$27="Baja",SIG!$AB$27="Leve"),CONCATENATE("R3C",SIG!$P$27),"") ->  | M38: =IF(AND(SIG!$Z$28="Baja",SIG!$AB$28="Leve"),CONCATENATE("R3C",SIG!$P$28),"") ->  | N38: =IF(AND(SIG!$Z$29="Baja",SIG!$AB$29="Leve"),CONCATENATE("R3C",SIG!$P$29),"") ->  | O38: =IF(AND(SIG!$Z$30="Baja",SIG!$AB$30="Leve"),CONCATENATE("R3C",SIG!$P$30),"") ->  | P38: =IF(AND(SIG!$Z$25="Baja",SIG!$AB$25="Menor"),CONCATENATE("R3C",SIG!$P$25),"") ->  | Q38: =IF(AND(SIG!$Z$26="Baja",SIG!$AB$26="Menor"),CONCATENATE("R3C",SIG!$P$26),"") ->  | R38: =IF(AND(SIG!$Z$27="Baja",SIG!$AB$27="Menor"),CONCATENATE("R3C",SIG!$P$27),"") ->  | S38: =IF(AND(SIG!$Z$28="Baja",SIG!$AB$28="Menor"),CONCATENATE("R3C",SIG!$P$28),"") ->  | T38: =IF(AND(SIG!$Z$29="Baja",SIG!$AB$29="Menor"),CONCATENATE("R3C",SIG!$P$29),"") ->  | U38: =IF(AND(SIG!$Z$30="Baja",SIG!$AB$30="Menor"),CONCATENATE("R3C",SIG!$P$30),"") ->  | V38: =IF(AND(SIG!$Z$25="Baja",SIG!$AB$25="Moderado"),CONCATENATE("R3C",SIG!$P$25),"") ->  | W38: =IF(AND(SIG!$Z$26="Baja",SIG!$AB$26="Moderado"),CONCATENATE("R3C",SIG!$P$26),"") ->  | X38: =IF(AND(SIG!$Z$27="Baja",SIG!$AB$27="Moderado"),CONCATENATE("R3C",SIG!$P$27),"") ->  | Y38: =IF(AND(SIG!$Z$28="Baja",SIG!$AB$28="Moderado"),CONCATENATE("R3C",SIG!$P$28),"") ->  | Z38: =IF(AND(SIG!$Z$29="Baja",SIG!$AB$29="Moderado"),CONCATENATE("R3C",SIG!$P$29),"") ->  | AA38: =IF(AND(SIG!$Z$30="Baja",SIG!$AB$30="Moderado"),CONCATENATE("R3C",SIG!$P$30),"") ->  | AB38: =IF(AND(SIG!$Z$25="Baja",SIG!$AB$25="Mayor"),CONCATENATE("R3C",SIG!$P$25),"") ->  | AC38: =IF(AND(SIG!$Z$26="Baja",SIG!$AB$26="Mayor"),CONCATENATE("R3C",SIG!$P$26),"") ->  | AD38: =IF(AND(SIG!$Z$27="Baja",SIG!$AB$27="Mayor"),CONCATENATE("R3C",SIG!$P$27),"") ->  | AE38: =IF(AND(SIG!$Z$28="Baja",SIG!$AB$28="Mayor"),CONCATENATE("R3C",SIG!$P$28),"") ->  | AF38: =IF(AND(SIG!$Z$29="Baja",SIG!$AB$29="Mayor"),CONCATENATE("R3C",SIG!$P$29),"") ->  | AG38: =IF(AND(SIG!$Z$30="Baja",SIG!$AB$30="Mayor"),CONCATENATE("R3C",SIG!$P$30),"") ->  | AH38: =IF(AND(SIG!$Z$25="Baja",SIG!$AB$25="Catastrófico"),CONCATENATE("R3C",SIG!$P$25),"") ->  | AI38: =IF(AND(SIG!$Z$26="Baja",SIG!$AB$26="Catastrófico"),CONCATENATE("R3C",SIG!$P$26),"") ->  | AJ38: =IF(AND(SIG!$Z$27="Baja",SIG!$AB$27="Catastrófico"),CONCATENATE("R3C",SIG!$P$27),"") ->  | AK38: =IF(AND(SIG!$Z$28="Baja",SIG!$AB$28="Catastrófico"),CONCATENATE("R3C",SIG!$P$28),"") ->  | AL38: =IF(AND(SIG!$Z$29="Baja",SIG!$AB$29="Catastrófico"),CONCATENATE("R3C",SIG!$P$29),"") ->  | AM38: =IF(AND(SIG!$Z$30="Baja",SIG!$AB$30="Catastrófico"),CONCATENATE("R3C",SIG!$P$30),"") -> 
J39: =IF(AND(SIG!$Z$31="Baja",SIG!$AB$31="Leve"),CONCATENATE("R4C",SIG!$P$31),"") ->  | K39: =IF(AND(SIG!$Z$32="Baja",SIG!$AB$32="Leve"),CONCATENATE("R4C",SIG!$P$32),"") ->  | L39: =IF(AND(SIG!$Z$33="Baja",SIG!$AB$33="Leve"),CONCATENATE("R4C",SIG!$P$33),"") ->  | M39: =IF(AND(SIG!$Z$34="Baja",SIG!$AB$34="Leve"),CONCATENATE("R4C",SIG!$P$34),"") ->  | N39: =IF(AND(SIG!$Z$35="Baja",SIG!$AB$35="Leve"),CONCATENATE("R4C",SIG!$P$35),"") ->  | O39: =IF(AND(SIG!$Z$36="Baja",SIG!$AB$36="Leve"),CONCATENATE("R4C",SIG!$P$36),"") ->  | P39: =IF(AND(SIG!$Z$31="Baja",SIG!$AB$31="Menor"),CONCATENATE("R4C",SIG!$P$31),"") ->  | Q39: =IF(AND(SIG!$Z$32="Baja",SIG!$AB$32="Menor"),CONCATENATE("R4C",SIG!$P$32),"") ->  | R39: =IF(AND(SIG!$Z$33="Baja",SIG!$AB$33="Menor"),CONCATENATE("R4C",SIG!$P$33),"") ->  | S39: =IF(AND(SIG!$Z$34="Baja",SIG!$AB$34="Menor"),CONCATENATE("R4C",SIG!$P$34),"") ->  | T39: =IF(AND(SIG!$Z$35="Baja",SIG!$AB$35="Menor"),CONCATENATE("R4C",SIG!$P$35),"") ->  | U39: =IF(AND(SIG!$Z$36="Baja",SIG!$AB$36="Menor"),CONCATENATE("R4C",SIG!$P$36),"") ->  | V39: =IF(AND(SIG!$Z$31="Baja",SIG!$AB$31="Moderado"),CONCATENATE("R4C",SIG!$P$31),"") ->  | W39: =IF(AND(SIG!$Z$32="Baja",SIG!$AB$32="Moderado"),CONCATENATE("R4C",SIG!$P$32),"") ->  | X39: =IF(AND(SIG!$Z$33="Baja",SIG!$AB$33="Moderado"),CONCATENATE("R4C",SIG!$P$33),"") ->  | Y39: =IF(AND(SIG!$Z$34="Baja",SIG!$AB$34="Moderado"),CONCATENATE("R4C",SIG!$P$34),"") ->  | Z39: =IF(AND(SIG!$Z$35="Baja",SIG!$AB$35="Moderado"),CONCATENATE("R4C",SIG!$P$35),"") ->  | AA39: =IF(AND(SIG!$Z$36="Baja",SIG!$AB$36="Moderado"),CONCATENATE("R4C",SIG!$P$36),"") ->  | AB39: =IF(AND(SIG!$Z$31="Baja",SIG!$AB$31="Mayor"),CONCATENATE("R4C",SIG!$P$31),"") ->  | AC39: =IF(AND(SIG!$Z$32="Baja",SIG!$AB$32="Mayor"),CONCATENATE("R4C",SIG!$P$32),"") ->  | AD39: =IF(AND(SIG!$Z$33="Baja",SIG!$AB$33="Mayor"),CONCATENATE("R4C",SIG!$P$33),"") ->  | AE39: =IF(AND(SIG!$Z$34="Baja",SIG!$AB$34="Mayor"),CONCATENATE("R4C",SIG!$P$34),"") ->  | AF39: =IF(AND(SIG!$Z$35="Baja",SIG!$AB$35="Mayor"),CONCATENATE("R4C",SIG!$P$35),"") ->  | AG39: =IF(AND(SIG!$Z$36="Baja",SIG!$AB$36="Mayor"),CONCATENATE("R4C",SIG!$P$36),"") ->  | AH39: =IF(AND(SIG!$Z$31="Baja",SIG!$AB$31="Catastrófico"),CONCATENATE("R4C",SIG!$P$31),"") ->  | AI39: =IF(AND(SIG!$Z$32="Baja",SIG!$AB$32="Catastrófico"),CONCATENATE("R4C",SIG!$P$32),"") ->  | AJ39: =IF(AND(SIG!$Z$33="Baja",SIG!$AB$33="Catastrófico"),CONCATENATE("R4C",SIG!$P$33),"") ->  | AK39: =IF(AND(SIG!$Z$34="Baja",SIG!$AB$34="Catastrófico"),CONCATENATE("R4C",SIG!$P$34),"") ->  | AL39: =IF(AND(SIG!$Z$35="Baja",SIG!$AB$35="Catastrófico"),CONCATENATE("R4C",SIG!$P$35),"") ->  | AM39: =IF(AND(SIG!$Z$36="Baja",SIG!$AB$36="Catastrófico"),CONCATENATE("R4C",SIG!$P$36),"") -> 
J40: =IF(AND(SIG!$Z$37="Baja",SIG!$AB$37="Leve"),CONCATENATE("R5C",SIG!$P$37),"") ->  | K40: =IF(AND(SIG!$Z$38="Baja",SIG!$AB$38="Leve"),CONCATENATE("R5C",SIG!$P$38),"") ->  | L40: =IF(AND(SIG!$Z$39="Baja",SIG!$AB$39="Leve"),CONCATENATE("R5C",SIG!$P$39),"") ->  | M40: =IF(AND(SIG!$Z$40="Baja",SIG!$AB$40="Leve"),CONCATENATE("R5C",SIG!$P$40),"") ->  | N40: =IF(AND(SIG!$Z$41="Baja",SIG!$AB$41="Leve"),CONCATENATE("R5C",SIG!$P$41),"") ->  | O40: =IF(AND(SIG!$Z$42="Baja",SIG!$AB$42="Leve"),CONCATENATE("R5C",SIG!$P$42),"") ->  | P40: =IF(AND(SIG!$Z$37="Baja",SIG!$AB$37="Menor"),CONCATENATE("R5C",SIG!$P$37),"") ->  | Q40: =IF(AND(SIG!$Z$38="Baja",SIG!$AB$38="Menor"),CONCATENATE("R5C",SIG!$P$38),"") ->  | R40: =IF(AND(SIG!$Z$39="Baja",SIG!$AB$39="Menor"),CONCATENATE("R5C",SIG!$P$39),"") ->  | S40: =IF(AND(SIG!$Z$40="Baja",SIG!$AB$40="Menor"),CONCATENATE("R5C",SIG!$P$40),"") ->  | T40: =IF(AND(SIG!$Z$41="Baja",SIG!$AB$41="Menor"),CONCATENATE("R5C",SIG!$P$41),"") ->  | U40: =IF(AND(SIG!$Z$42="Baja",SIG!$AB$42="Menor"),CONCATENATE("R5C",SIG!$P$42),"") ->  | V40: =IF(AND(SIG!$Z$37="Baja",SIG!$AB$37="Moderado"),CONCATENATE("R5C",SIG!$P$37),"") ->  | W40: =IF(AND(SIG!$Z$38="Baja",SIG!$AB$38="Moderado"),CONCATENATE("R5C",SIG!$P$38),"") ->  | X40: =IF(AND(SIG!$Z$39="Baja",SIG!$AB$39="Moderado"),CONCATENATE("R5C",SIG!$P$39),"") ->  | Y40: =IF(AND(SIG!$Z$40="Baja",SIG!$AB$40="Moderado"),CONCATENATE("R5C",SIG!$P$40),"") ->  | Z40: =IF(AND(SIG!$Z$41="Baja",SIG!$AB$41="Moderado"),CONCATENATE("R5C",SIG!$P$41),"") ->  | AA40: =IF(AND(SIG!$Z$42="Baja",SIG!$AB$42="Moderado"),CONCATENATE("R5C",SIG!$P$42),"") ->  | AB40: =IF(AND(SIG!$Z$37="Baja",SIG!$AB$37="Mayor"),CONCATENATE("R5C",SIG!$P$37),"") ->  | AC40: =IF(AND(SIG!$Z$38="Baja",SIG!$AB$38="Mayor"),CONCATENATE("R5C",SIG!$P$38),"") ->  | AD40: =IF(AND(SIG!$Z$39="Baja",SIG!$AB$39="Mayor"),CONCATENATE("R5C",SIG!$P$39),"") ->  | AE40: =IF(AND(SIG!$Z$40="Baja",SIG!$AB$40="Mayor"),CONCATENATE("R5C",SIG!$P$40),"") ->  | AF40: =IF(AND(SIG!$Z$41="Baja",SIG!$AB$41="Mayor"),CONCATENATE("R5C",SIG!$P$41),"") ->  | AG40: =IF(AND(SIG!$Z$42="Baja",SIG!$AB$42="Mayor"),CONCATENATE("R5C",SIG!$P$42),"") ->  | AH40: =IF(AND(SIG!$Z$37="Baja",SIG!$AB$37="Catastrófico"),CONCATENATE("R5C",SIG!$P$37),"") ->  | AI40: =IF(AND(SIG!$Z$38="Baja",SIG!$AB$38="Catastrófico"),CONCATENATE("R5C",SIG!$P$38),"") ->  | AJ40: =IF(AND(SIG!$Z$39="Baja",SIG!$AB$39="Catastrófico"),CONCATENATE("R5C",SIG!$P$39),"") ->  | AK40: =IF(AND(SIG!$Z$40="Baja",SIG!$AB$40="Catastrófico"),CONCATENATE("R5C",SIG!$P$40),"") ->  | AL40: =IF(AND(SIG!$Z$41="Baja",SIG!$AB$41="Catastrófico"),CONCATENATE("R5C",SIG!$P$41),"") ->  | AM40: =IF(AND(SIG!$Z$42="Baja",SIG!$AB$42="Catastrófico"),CONCATENATE("R5C",SIG!$P$42),"") -> 
J41: =IF(AND(SIG!$Z$43="Baja",SIG!$AB$43="Leve"),CONCATENATE("R6C",SIG!$P$43),"") ->  | K41: =IF(AND(SIG!$Z$44="Baja",SIG!$AB$44="Leve"),CONCATENATE("R6C",SIG!$P$44),"") ->  | L41: =IF(AND(SIG!$Z$45="Baja",SIG!$AB$45="Leve"),CONCATENATE("R6C",SIG!$P$45),"") ->  | M41: =IF(AND(SIG!$Z$46="Baja",SIG!$AB$46="Leve"),CONCATENATE("R6C",SIG!$P$46),"") ->  | N41: =IF(AND(SIG!$Z$47="Baja",SIG!$AB$47="Leve"),CONCATENATE("R6C",SIG!$P$47),"") ->  | O41: =IF(AND(SIG!$Z$48="Baja",SIG!$AB$48="Leve"),CONCATENATE("R6C",SIG!$P$48),"") ->  | P41: =IF(AND(SIG!$Z$43="Baja",SIG!$AB$43="Menor"),CONCATENATE("R6C",SIG!$P$43),"") ->  | Q41: =IF(AND(SIG!$Z$44="Baja",SIG!$AB$44="Menor"),CONCATENATE("R6C",SIG!$P$44),"") ->  | R41: =IF(AND(SIG!$Z$45="Baja",SIG!$AB$45="Menor"),CONCATENATE("R6C",SIG!$P$45),"") ->  | S41: =IF(AND(SIG!$Z$46="Baja",SIG!$AB$46="Menor"),CONCATENATE("R6C",SIG!$P$46),"") ->  | T41: =IF(AND(SIG!$Z$47="Baja",SIG!$AB$47="Menor"),CONCATENATE("R6C",SIG!$P$47),"") ->  | U41: =IF(AND(SIG!$Z$48="Baja",SIG!$AB$48="Menor"),CONCATENATE("R6C",SIG!$P$48),"") ->  | V41: =IF(AND(SIG!$Z$43="Baja",SIG!$AB$43="Moderado"),CONCATENATE("R6C",SIG!$P$43),"") ->  | W41: =IF(AND(SIG!$Z$44="Baja",SIG!$AB$44="Moderado"),CONCATENATE("R6C",SIG!$P$44),"") ->  | X41: =IF(AND(SIG!$Z$45="Baja",SIG!$AB$45="Moderado"),CONCATENATE("R6C",SIG!$P$45),"") ->  | Y41: =IF(AND(SIG!$Z$46="Baja",SIG!$AB$46="Moderado"),CONCATENATE("R6C",SIG!$P$46),"") ->  | Z41: =IF(AND(SIG!$Z$47="Baja",SIG!$AB$47="Moderado"),CONCATENATE("R6C",SIG!$P$47),"") ->  | AA41: =IF(AND(SIG!$Z$48="Baja",SIG!$AB$48="Moderado"),CONCATENATE("R6C",SIG!$P$48),"") ->  | AB41: =IF(AND(SIG!$Z$43="Baja",SIG!$AB$43="Mayor"),CONCATENATE("R6C",SIG!$P$43),"") ->  | AC41: =IF(AND(SIG!$Z$44="Baja",SIG!$AB$44="Mayor"),CONCATENATE("R6C",SIG!$P$44),"") ->  | AD41: =IF(AND(SIG!$Z$45="Baja",SIG!$AB$45="Mayor"),CONCATENATE("R6C",SIG!$P$45),"") ->  | AE41: =IF(AND(SIG!$Z$46="Baja",SIG!$AB$46="Mayor"),CONCATENATE("R6C",SIG!$P$46),"") ->  | AF41: =IF(AND(SIG!$Z$47="Baja",SIG!$AB$47="Mayor"),CONCATENATE("R6C",SIG!$P$47),"") ->  | AG41: =IF(AND(SIG!$Z$48="Baja",SIG!$AB$48="Mayor"),CONCATENATE("R6C",SIG!$P$48),"") ->  | AH41: =IF(AND(SIG!$Z$43="Baja",SIG!$AB$43="Catastrófico"),CONCATENATE("R6C",SIG!$P$43),"") ->  | AI41: =IF(AND(SIG!$Z$44="Baja",SIG!$AB$44="Catastrófico"),CONCATENATE("R6C",SIG!$P$44),"") ->  | AJ41: =IF(AND(SIG!$Z$45="Baja",SIG!$AB$45="Catastrófico"),CONCATENATE("R6C",SIG!$P$45),"") ->  | AK41: =IF(AND(SIG!$Z$46="Baja",SIG!$AB$46="Catastrófico"),CONCATENATE("R6C",SIG!$P$46),"") ->  | AL41: =IF(AND(SIG!$Z$47="Baja",SIG!$AB$47="Catastrófico"),CONCATENATE("R6C",SIG!$P$47),"") ->  | AM41: =IF(AND(SIG!$Z$48="Baja",SIG!$AB$48="Catastrófico"),CONCATENATE("R6C",SIG!$P$48),"") -> 
J42: =IF(AND(SIG!$Z$49="Baja",SIG!$AB$49="Leve"),CONCATENATE("R7C",SIG!$P$49),"") ->  | K42: =IF(AND(SIG!$Z$50="Baja",SIG!$AB$50="Leve"),CONCATENATE("R7C",SIG!$P$50),"") ->  | L42: =IF(AND(SIG!$Z$51="Baja",SIG!$AB$51="Leve"),CONCATENATE("R7C",SIG!$P$51),"") ->  | M42: =IF(AND(SIG!$Z$52="Baja",SIG!$AB$52="Leve"),CONCATENATE("R7C",SIG!$P$52),"") ->  | N42: =IF(AND(SIG!$Z$53="Baja",SIG!$AB$53="Leve"),CONCATENATE("R7C",SIG!$P$53),"") ->  | O42: =IF(AND(SIG!$Z$54="Baja",SIG!$AB$54="Leve"),CONCATENATE("R7C",SIG!$P$54),"") ->  | P42: =IF(AND(SIG!$Z$49="Baja",SIG!$AB$49="Menor"),CONCATENATE("R7C",SIG!$P$49),"") ->  | Q42: =IF(AND(SIG!$Z$50="Baja",SIG!$AB$50="Menor"),CONCATENATE("R7C",SIG!$P$50),"") ->  | R42: =IF(AND(SIG!$Z$51="Baja",SIG!$AB$51="Menor"),CONCATENATE("R7C",SIG!$P$51),"") ->  | S42: =IF(AND(SIG!$Z$52="Baja",SIG!$AB$52="Menor"),CONCATENATE("R7C",SIG!$P$52),"") ->  | T42: =IF(AND(SIG!$Z$53="Baja",SIG!$AB$53="Menor"),CONCATENATE("R7C",SIG!$P$53),"") ->  | U42: =IF(AND(SIG!$Z$54="Baja",SIG!$AB$54="Menor"),CONCATENATE("R7C",SIG!$P$54),"") ->  | V42: =IF(AND(SIG!$Z$49="Baja",SIG!$AB$49="Moderado"),CONCATENATE("R7C",SIG!$P$49),"") ->  | W42: =IF(AND(SIG!$Z$50="Baja",SIG!$AB$50="Moderado"),CONCATENATE("R7C",SIG!$P$50),"") ->  | X42: =IF(AND(SIG!$Z$51="Baja",SIG!$AB$51="Moderado"),CONCATENATE("R7C",SIG!$P$51),"") ->  | Y42: =IF(AND(SIG!$Z$52="Baja",SIG!$AB$52="Moderado"),CONCATENATE("R7C",SIG!$P$52),"") ->  | Z42: =IF(AND(SIG!$Z$53="Baja",SIG!$AB$53="Moderado"),CONCATENATE("R7C",SIG!$P$53),"") ->  | AA42: =IF(AND(SIG!$Z$54="Baja",SIG!$AB$54="Moderado"),CONCATENATE("R7C",SIG!$P$54),"") ->  | AB42: =IF(AND(SIG!$Z$49="Baja",SIG!$AB$49="Mayor"),CONCATENATE("R7C",SIG!$P$49),"") ->  | AC42: =IF(AND(SIG!$Z$50="Baja",SIG!$AB$50="Mayor"),CONCATENATE("R7C",SIG!$P$50),"") ->  | AD42: =IF(AND(SIG!$Z$51="Baja",SIG!$AB$51="Mayor"),CONCATENATE("R7C",SIG!$P$51),"") ->  | AE42: =IF(AND(SIG!$Z$52="Baja",SIG!$AB$52="Mayor"),CONCATENATE("R7C",SIG!$P$52),"") ->  | AF42: =IF(AND(SIG!$Z$53="Baja",SIG!$AB$53="Mayor"),CONCATENATE("R7C",SIG!$P$53),"") ->  | AG42: =IF(AND(SIG!$Z$54="Baja",SIG!$AB$54="Mayor"),CONCATENATE("R7C",SIG!$P$54),"") ->  | AH42: =IF(AND(SIG!$Z$49="Baja",SIG!$AB$49="Catastrófico"),CONCATENATE("R7C",SIG!$P$49),"") ->  | AI42: =IF(AND(SIG!$Z$50="Baja",SIG!$AB$50="Catastrófico"),CONCATENATE("R7C",SIG!$P$50),"") ->  | AJ42: =IF(AND(SIG!$Z$51="Baja",SIG!$AB$51="Catastrófico"),CONCATENATE("R7C",SIG!$P$51),"") ->  | AK42: =IF(AND(SIG!$Z$52="Baja",SIG!$AB$52="Catastrófico"),CONCATENATE("R7C",SIG!$P$52),"") ->  | AL42: =IF(AND(SIG!$Z$53="Baja",SIG!$AB$53="Catastrófico"),CONCATENATE("R7C",SIG!$P$53),"") ->  | AM42: =IF(AND(SIG!$Z$54="Baja",SIG!$AB$54="Catastrófico"),CONCATENATE("R7C",SIG!$P$54),"") -> 
J43: =IF(AND(SIG!$Z$55="Baja",SIG!$AB$55="Leve"),CONCATENATE("R8C",SIG!$P$55),"") ->  | K43: =IF(AND(SIG!$Z$56="Baja",SIG!$AB$56="Leve"),CONCATENATE("R8C",SIG!$P$56),"") ->  | L43: =IF(AND(SIG!$Z$57="Baja",SIG!$AB$57="Leve"),CONCATENATE("R8C",SIG!$P$57),"") ->  | M43: =IF(AND(SIG!$Z$58="Baja",SIG!$AB$58="Leve"),CONCATENATE("R8C",SIG!$P$58),"") ->  | N43: =IF(AND(SIG!$Z$59="Baja",SIG!$AB$59="Leve"),CONCATENATE("R8C",SIG!$P$59),"") ->  | O43: =IF(AND(SIG!$Z$60="Baja",SIG!$AB$60="Leve"),CONCATENATE("R8C",SIG!$P$60),"") ->  | P43: =IF(AND(SIG!$Z$55="Baja",SIG!$AB$55="Menor"),CONCATENATE("R8C",SIG!$P$55),"") ->  | Q43: =IF(AND(SIG!$Z$56="Baja",SIG!$AB$56="Menor"),CONCATENATE("R8C",SIG!$P$56),"") ->  | R43: =IF(AND(SIG!$Z$57="Baja",SIG!$AB$57="Menor"),CONCATENATE("R8C",SIG!$P$57),"") ->  | S43: =IF(AND(SIG!$Z$58="Baja",SIG!$AB$58="Menor"),CONCATENATE("R8C",SIG!$P$58),"") ->  | T43: =IF(AND(SIG!$Z$59="Baja",SIG!$AB$59="Menor"),CONCATENATE("R8C",SIG!$P$59),"") ->  | U43: =IF(AND(SIG!$Z$60="Baja",SIG!$AB$60="Menor"),CONCATENATE("R8C",SIG!$P$60),"") ->  | V43: =IF(AND(SIG!$Z$55="Baja",SIG!$AB$55="Moderado"),CONCATENATE("R8C",SIG!$P$55),"") ->  | W43: =IF(AND(SIG!$Z$56="Baja",SIG!$AB$56="Moderado"),CONCATENATE("R8C",SIG!$P$56),"") ->  | X43: =IF(AND(SIG!$Z$57="Baja",SIG!$AB$57="Moderado"),CONCATENATE("R8C",SIG!$P$57),"") ->  | Y43: =IF(AND(SIG!$Z$58="Baja",SIG!$AB$58="Moderado"),CONCATENATE("R8C",SIG!$P$58),"") ->  | Z43: =IF(AND(SIG!$Z$59="Baja",SIG!$AB$59="Moderado"),CONCATENATE("R8C",SIG!$P$59),"") ->  | AA43: =IF(AND(SIG!$Z$60="Baja",SIG!$AB$60="Moderado"),CONCATENATE("R8C",SIG!$P$60),"") ->  | AB43: =IF(AND(SIG!$Z$55="Baja",SIG!$AB$55="Mayor"),CONCATENATE("R8C",SIG!$P$55),"") ->  | AC43: =IF(AND(SIG!$Z$56="Baja",SIG!$AB$56="Mayor"),CONCATENATE("R8C",SIG!$P$56),"") ->  | AD43: =IF(AND(SIG!$Z$57="Baja",SIG!$AB$57="Mayor"),CONCATENATE("R8C",SIG!$P$57),"") ->  | AE43: =IF(AND(SIG!$Z$58="Baja",SIG!$AB$58="Mayor"),CONCATENATE("R8C",SIG!$P$58),"") ->  | AF43: =IF(AND(SIG!$Z$59="Baja",SIG!$AB$59="Mayor"),CONCATENATE("R8C",SIG!$P$59),"") ->  | AG43: =IF(AND(SIG!$Z$60="Baja",SIG!$AB$60="Mayor"),CONCATENATE("R8C",SIG!$P$60),"") ->  | AH43: =IF(AND(SIG!$Z$55="Baja",SIG!$AB$55="Catastrófico"),CONCATENATE("R8C",SIG!$P$55),"") ->  | AI43: =IF(AND(SIG!$Z$56="Baja",SIG!$AB$56="Catastrófico"),CONCATENATE("R8C",SIG!$P$56),"") ->  | AJ43: =IF(AND(SIG!$Z$57="Baja",SIG!$AB$57="Catastrófico"),CONCATENATE("R8C",SIG!$P$57),"") ->  | AK43: =IF(AND(SIG!$Z$58="Baja",SIG!$AB$58="Catastrófico"),CONCATENATE("R8C",SIG!$P$58),"") ->  | AL43: =IF(AND(SIG!$Z$59="Baja",SIG!$AB$59="Catastrófico"),CONCATENATE("R8C",SIG!$P$59),"") ->  | AM43: =IF(AND(SIG!$Z$60="Baja",SIG!$AB$60="Catastrófico"),CONCATENATE("R8C",SIG!$P$60),"") -> 
J44: =IF(AND(SIG!$Z$61="Baja",SIG!$AB$61="Leve"),CONCATENATE("R9C",SIG!$P$61),"") ->  | K44: =IF(AND(SIG!$Z$62="Baja",SIG!$AB$62="Leve"),CONCATENATE("R9C",SIG!$P$62),"") ->  | L44: =IF(AND(SIG!$Z$63="Baja",SIG!$AB$63="Leve"),CONCATENATE("R9C",SIG!$P$63),"") ->  | M44: =IF(AND(SIG!$Z$64="Baja",SIG!$AB$64="Leve"),CONCATENATE("R9C",SIG!$P$64),"") ->  | N44: =IF(AND(SIG!$Z$65="Baja",SIG!$AB$65="Leve"),CONCATENATE("R9C",SIG!$P$65),"") ->  | O44: =IF(AND(SIG!$Z$66="Baja",SIG!$AB$66="Leve"),CONCATENATE("R9C",SIG!$P$66),"") ->  | P44: =IF(AND(SIG!$Z$61="Baja",SIG!$AB$61="Menor"),CONCATENATE("R9C",SIG!$P$61),"") ->  | Q44: =IF(AND(SIG!$Z$62="Baja",SIG!$AB$62="Menor"),CONCATENATE("R9C",SIG!$P$62),"") ->  | R44: =IF(AND(SIG!$Z$63="Baja",SIG!$AB$63="Menor"),CONCATENATE("R9C",SIG!$P$63),"") ->  | S44: =IF(AND(SIG!$Z$64="Baja",SIG!$AB$64="Menor"),CONCATENATE("R9C",SIG!$P$64),"") ->  | T44: =IF(AND(SIG!$Z$65="Baja",SIG!$AB$65="Menor"),CONCATENATE("R9C",SIG!$P$65),"") ->  | U44: =IF(AND(SIG!$Z$66="Baja",SIG!$AB$66="Menor"),CONCATENATE("R9C",SIG!$P$66),"") ->  | V44: =IF(AND(SIG!$Z$61="Baja",SIG!$AB$61="Moderado"),CONCATENATE("R9C",SIG!$P$61),"") ->  | W44: =IF(AND(SIG!$Z$62="Baja",SIG!$AB$62="Moderado"),CONCATENATE("R9C",SIG!$P$62),"") ->  | X44: =IF(AND(SIG!$Z$63="Baja",SIG!$AB$63="Moderado"),CONCATENATE("R9C",SIG!$P$63),"") ->  | Y44: =IF(AND(SIG!$Z$64="Baja",SIG!$AB$64="Moderado"),CONCATENATE("R9C",SIG!$P$64),"") ->  | Z44: =IF(AND(SIG!$Z$65="Baja",SIG!$AB$65="Moderado"),CONCATENATE("R9C",SIG!$P$65),"") ->  | AA44: =IF(AND(SIG!$Z$66="Baja",SIG!$AB$66="Moderado"),CONCATENATE("R9C",SIG!$P$66),"") ->  | AB44: =IF(AND(SIG!$Z$61="Baja",SIG!$AB$61="Mayor"),CONCATENATE("R9C",SIG!$P$61),"") ->  | AC44: =IF(AND(SIG!$Z$62="Baja",SIG!$AB$62="Mayor"),CONCATENATE("R9C",SIG!$P$62),"") ->  | AD44: =IF(AND(SIG!$Z$63="Baja",SIG!$AB$63="Mayor"),CONCATENATE("R9C",SIG!$P$63),"") ->  | AE44: =IF(AND(SIG!$Z$64="Baja",SIG!$AB$64="Mayor"),CONCATENATE("R9C",SIG!$P$64),"") ->  | AF44: =IF(AND(SIG!$Z$65="Baja",SIG!$AB$65="Mayor"),CONCATENATE("R9C",SIG!$P$65),"") ->  | AG44: =IF(AND(SIG!$Z$66="Baja",SIG!$AB$66="Mayor"),CONCATENATE("R9C",SIG!$P$66),"") ->  | AH44: =IF(AND(SIG!$Z$61="Baja",SIG!$AB$61="Catastrófico"),CONCATENATE("R9C",SIG!$P$61),"") ->  | AI44: =IF(AND(SIG!$Z$62="Baja",SIG!$AB$62="Catastrófico"),CONCATENATE("R9C",SIG!$P$62),"") ->  | AJ44: =IF(AND(SIG!$Z$63="Baja",SIG!$AB$63="Catastrófico"),CONCATENATE("R9C",SIG!$P$63),"") ->  | AK44: =IF(AND(SIG!$Z$64="Baja",SIG!$AB$64="Catastrófico"),CONCATENATE("R9C",SIG!$P$64),"") ->  | AL44: =IF(AND(SIG!$Z$65="Baja",SIG!$AB$65="Catastrófico"),CONCATENATE("R9C",SIG!$P$65),"") ->  | AM44: =IF(AND(SIG!$Z$66="Baja",SIG!$AB$66="Catastrófico"),CONCATENATE("R9C",SIG!$P$66),"") -> 
J45: =IF(AND(SIG!$Z$67="Baja",SIG!$AB$67="Leve"),CONCATENATE("R10C",SIG!$P$67),"") ->  | K45: =IF(AND(SIG!$Z$68="Baja",SIG!$AB$68="Leve"),CONCATENATE("R10C",SIG!$P$68),"") ->  | L45: =IF(AND(SIG!$Z$69="Baja",SIG!$AB$69="Leve"),CONCATENATE("R10C",SIG!$P$69),"") ->  | M45: =IF(AND(SIG!$Z$70="Baja",SIG!$AB$70="Leve"),CONCATENATE("R10C",SIG!$P$70),"") ->  | N45: =IF(AND(SIG!$Z$71="Baja",SIG!$AB$71="Leve"),CONCATENATE("R10C",SIG!$P$71),"") ->  | O45: =IF(AND(SIG!$Z$72="Baja",SIG!$AB$72="Leve"),CONCATENATE("R10C",SIG!$P$72),"") ->  | P45: =IF(AND(SIG!$Z$67="Baja",SIG!$AB$67="Menor"),CONCATENATE("R10C",SIG!$P$67),"") ->  | Q45: =IF(AND(SIG!$Z$68="Baja",SIG!$AB$68="Menor"),CONCATENATE("R10C",SIG!$P$68),"") ->  | R45: =IF(AND(SIG!$Z$69="Baja",SIG!$AB$69="Menor"),CONCATENATE("R10C",SIG!$P$69),"") ->  | S45: =IF(AND(SIG!$Z$70="Baja",SIG!$AB$70="Menor"),CONCATENATE("R10C",SIG!$P$70),"") ->  | T45: =IF(AND(SIG!$Z$71="Baja",SIG!$AB$71="Menor"),CONCATENATE("R10C",SIG!$P$71),"") ->  | U45: =IF(AND(SIG!$Z$72="Baja",SIG!$AB$72="Menor"),CONCATENATE("R10C",SIG!$P$72),"") ->  | V45: =IF(AND(SIG!$Z$67="Baja",SIG!$AB$67="Moderado"),CONCATENATE("R10C",SIG!$P$67),"") ->  | W45: =IF(AND(SIG!$Z$68="Baja",SIG!$AB$68="Moderado"),CONCATENATE("R10C",SIG!$P$68),"") ->  | X45: =IF(AND(SIG!$Z$69="Baja",SIG!$AB$69="Moderado"),CONCATENATE("R10C",SIG!$P$69),"") ->  | Y45: =IF(AND(SIG!$Z$70="Baja",SIG!$AB$70="Moderado"),CONCATENATE("R10C",SIG!$P$70),"") ->  | Z45: =IF(AND(SIG!$Z$71="Baja",SIG!$AB$71="Moderado"),CONCATENATE("R10C",SIG!$P$71),"") ->  | AA45: =IF(AND(SIG!$Z$72="Baja",SIG!$AB$72="Moderado"),CONCATENATE("R10C",SIG!$P$72),"") ->  | AB45: =IF(AND(SIG!$Z$67="Baja",SIG!$AB$67="Mayor"),CONCATENATE("R10C",SIG!$P$67),"") ->  | AC45: =IF(AND(SIG!$Z$68="Baja",SIG!$AB$68="Mayor"),CONCATENATE("R10C",SIG!$P$68),"") ->  | AD45: =IF(AND(SIG!$Z$69="Baja",SIG!$AB$69="Mayor"),CONCATENATE("R10C",SIG!$P$69),"") ->  | AE45: =IF(AND(SIG!$Z$70="Baja",SIG!$AB$70="Mayor"),CONCATENATE("R10C",SIG!$P$70),"") ->  | AF45: =IF(AND(SIG!$Z$71="Baja",SIG!$AB$71="Mayor"),CONCATENATE("R10C",SIG!$P$71),"") ->  | AG45: =IF(AND(SIG!$Z$72="Baja",SIG!$AB$72="Mayor"),CONCATENATE("R10C",SIG!$P$72),"") ->  | AH45: =IF(AND(SIG!$Z$67="Baja",SIG!$AB$67="Catastrófico"),CONCATENATE("R10C",SIG!$P$67),"") ->  | AI45: =IF(AND(SIG!$Z$68="Baja",SIG!$AB$68="Catastrófico"),CONCATENATE("R10C",SIG!$P$68),"") ->  | AJ45: =IF(AND(SIG!$Z$69="Baja",SIG!$AB$69="Catastrófico"),CONCATENATE("R10C",SIG!$P$69),"") ->  | AK45: =IF(AND(SIG!$Z$70="Baja",SIG!$AB$70="Catastrófico"),CONCATENATE("R10C",SIG!$P$70),"") ->  | AL45: =IF(AND(SIG!$Z$71="Baja",SIG!$AB$71="Catastrófico"),CONCATENATE("R10C",SIG!$P$71),"") ->  | AM45: =IF(AND(SIG!$Z$72="Baja",SIG!$AB$72="Catastrófico"),CONCATENATE("R10C",SIG!$P$72),"") -> 
E46: Muy Baja 20% | J46: =IF(AND(SIG!$Z$12="Muy Baja",SIG!$AB$12="Leve"),CONCATENATE("R1C",SIG!$P$12),"") ->  | K46: =IF(AND(SIG!$Z$13="Muy Baja",SIG!$AB$13="Leve"),CONCATENATE("R1C",SIG!$P$13),"") ->  | L46: =IF(AND(SIG!$Z$14="Muy Baja",SIG!$AB$14="Leve"),CONCATENATE("R1C",SIG!$P$14),"") ->  | M46: =IF(AND(SIG!$Z$15="Muy Baja",SIG!$AB$15="Leve"),CONCATENATE("R1C",SIG!$P$15),"") ->  | N46: =IF(AND(SIG!$Z$16="Muy Baja",SIG!$AB$16="Leve"),CONCATENATE("R1C",SIG!$P$16),"") ->  | O46: =IF(AND(SIG!$Z$18="Muy Baja",SIG!$AB$18="Leve"),CONCATENATE("R1C",SIG!$P$18),"") ->  | P46: =IF(AND(SIG!$Z$12="Muy Baja",SIG!$AB$12="Menor"),CONCATENATE("R1C",SIG!$P$12),"") -> R1C1 | Q46: =IF(AND(SIG!$Z$13="Muy Baja",SIG!$AB$13="Menor"),CONCATENATE("R1C",SIG!$P$13),"") -> R1C2 | R46: =IF(AND(SIG!$Z$14="Muy Baja",SIG!$AB$14="Menor"),CONCATENATE("R1C",SIG!$P$14),"") ->  | S46: =IF(AND(SIG!$Z$15="Muy Baja",SIG!$AB$15="Menor"),CONCATENATE("R1C",SIG!$P$15),"") ->  | T46: =IF(AND(SIG!$Z$16="Muy Baja",SIG!$AB$16="Menor"),CONCATENATE("R1C",SIG!$P$16),"") ->  | U46: =IF(AND(SIG!$Z$18="Muy Baja",SIG!$AB$18="Menor"),CONCATENATE("R1C",SIG!$P$18),"") ->  | V46: =IF(AND(SIG!$Z$12="Muy Baja",SIG!$AB$12="Moderado"),CONCATENATE("R1C",SIG!$P$12),"") ->  | W46: =IF(AND(SIG!$Z$13="Muy Baja",SIG!$AB$13="Moderado"),CONCATENATE("R1C",SIG!$P$13),"") ->  | X46: =IF(AND(SIG!$Z$14="Muy Baja",SIG!$AB$14="Moderado"),CONCATENATE("R1C",SIG!$P$14),"") ->  | Y46: =IF(AND(SIG!$Z$15="Muy Baja",SIG!$AB$15="Moderado"),CONCATENATE("R1C",SIG!$P$15),"") ->  | Z46: =IF(AND(SIG!$Z$16="Muy Baja",SIG!$AB$16="Moderado"),CONCATENATE("R1C",SIG!$P$16),"") ->  | AA46: =IF(AND(SIG!$Z$18="Muy Baja",SIG!$AB$18="Moderado"),CONCATENATE("R1C",SIG!$P$18),"") ->  | AB46: =IF(AND(SIG!$Z$12="Muy Baja",SIG!$AB$12="Mayor"),CONCATENATE("R1C",SIG!$P$12),"") ->  | AC46: =IF(AND(SIG!$Z$13="Muy Baja",SIG!$AB$13="Mayor"),CONCATENATE("R1C",SIG!$P$13),"") ->  | AD46: =IF(AND(SIG!$Z$14="Muy Baja",SIG!$AB$14="Mayor"),CONCATENATE("R1C",SIG!$P$14),"") ->  | AE46: =IF(AND(SIG!$Z$15="Muy Baja",SIG!$AB$15="Mayor"),CONCATENATE("R1C",SIG!$P$15),"") ->  | AF46: =IF(AND(SIG!$Z$16="Muy Baja",SIG!$AB$16="Mayor"),CONCATENATE("R1C",SIG!$P$16),"") ->  | AG46: =IF(AND(SIG!$Z$18="Muy Baja",SIG!$AB$18="Mayor"),CONCATENATE("R1C",SIG!$P$18),"") ->  | AH46: =IF(AND(SIG!$Z$12="Muy Baja",SIG!$AB$12="Catastrófico"),CONCATENATE("R1C",SIG!$P$12),"") ->  | AI46: =IF(AND(SIG!$Z$13="Muy Baja",SIG!$AB$13="Catastrófico"),CONCATENATE("R1C",SIG!$P$13),"") ->  | AJ46: =IF(AND(SIG!$Z$14="Muy Baja",SIG!$AB$14="Catastrófico"),CONCATENATE("R1C",SIG!$P$14),"") ->  | AK46: =IF(AND(SIG!$Z$15="Muy Baja",SIG!$AB$15="Catastrófico"),CONCATENATE("R1C",SIG!$P$15),"") ->  | AL46: =IF(AND(SIG!$Z$16="Muy Baja",SIG!$AB$16="Catastrófico"),CONCATENATE("R1C",SIG!$P$16),"") ->  | AM46: =IF(AND(SIG!$Z$18="Muy Baja",SIG!$AB$18="Catastrófico"),CONCATENATE("R1C",SIG!$P$18),"") -> 
J47: =IF(AND(SIG!$Z$19="Muy Baja",SIG!$AB$19="Leve"),CONCATENATE("R2C",SIG!$P$19),"") ->  | K47: =IF(AND(SIG!$Z$20="Muy Baja",SIG!$AB$20="Leve"),CONCATENATE("R2C",SIG!$P$20),"") ->  | L47: =IF(AND(SIG!$Z$21="Muy Baja",SIG!$AB$21="Leve"),CONCATENATE("R2C",SIG!$P$21),"") ->  | M47: =IF(AND(SIG!$Z$22="Muy Baja",SIG!$AB$22="Leve"),CONCATENATE("R2C",SIG!$P$22),"") ->  | N47: =IF(AND(SIG!$Z$23="Muy Baja",SIG!$AB$23="Leve"),CONCATENATE("R2C",SIG!$P$23),"") ->  | O47: =IF(AND(SIG!$Z$24="Muy Baja",SIG!$AB$24="Leve"),CONCATENATE("R2C",SIG!$P$24),"") ->  | P47: =IF(AND(SIG!$Z$19="Muy Baja",SIG!$AB$19="Menor"),CONCATENATE("R2C",SIG!$P$19),"") ->  | Q47: =IF(AND(SIG!$Z$20="Muy Baja",SIG!$AB$20="Menor"),CONCATENATE("R2C",SIG!$P$20),"") ->  | R47: =IF(AND(SIG!$Z$21="Muy Baja",SIG!$AB$21="Menor"),CONCATENATE("R2C",SIG!$P$21),"") ->  | S47: =IF(AND(SIG!$Z$22="Muy Baja",SIG!$AB$22="Menor"),CONCATENATE("R2C",SIG!$P$22),"") ->  | T47: =IF(AND(SIG!$Z$23="Muy Baja",SIG!$AB$23="Menor"),CONCATENATE("R2C",SIG!$P$23),"") ->  | U47: =IF(AND(SIG!$Z$24="Muy Baja",SIG!$AB$24="Menor"),CONCATENATE("R2C",SIG!$P$24),"") ->  | V47: =IF(AND(SIG!$Z$19="Muy Baja",SIG!$AB$19="Moderado"),CONCATENATE("R2C",SIG!$P$19),"") ->  | W47: =IF(AND(SIG!$Z$20="Muy Baja",SIG!$AB$20="Moderado"),CONCATENATE("R2C",SIG!$P$20),"") ->  | X47: =IF(AND(SIG!$Z$21="Muy Baja",SIG!$AB$21="Moderado"),CONCATENATE("R2C",SIG!$P$21),"") ->  | Y47: =IF(AND(SIG!$Z$22="Muy Baja",SIG!$AB$22="Moderado"),CONCATENATE("R2C",SIG!$P$22),"") ->  | Z47: =IF(AND(SIG!$Z$23="Muy Baja",SIG!$AB$23="Moderado"),CONCATENATE("R2C",SIG!$P$23),"") ->  | AA47: =IF(AND(SIG!$Z$24="Muy Baja",SIG!$AB$24="Moderado"),CONCATENATE("R2C",SIG!$P$24),"") ->  | AB47: =IF(AND(SIG!$Z$19="Muy Baja",SIG!$AB$19="Mayor"),CONCATENATE("R2C",SIG!$P$19),"") ->  | AC47: =IF(AND(SIG!$Z$20="Muy Baja",SIG!$AB$20="Mayor"),CONCATENATE("R2C",SIG!$P$20),"") ->  | AD47: =IF(AND(SIG!$Z$21="Muy Baja",SIG!$AB$21="Mayor"),CONCATENATE("R2C",SIG!$P$21),"") ->  | AE47: =IF(AND(SIG!$Z$22="Muy Baja",SIG!$AB$22="Mayor"),CONCATENATE("R2C",SIG!$P$22),"") ->  | AF47: =IF(AND(SIG!$Z$23="Muy Baja",SIG!$AB$23="Mayor"),CONCATENATE("R2C",SIG!$P$23),"") ->  | AG47: =IF(AND(SIG!$Z$24="Muy Baja",SIG!$AB$24="Mayor"),CONCATENATE("R2C",SIG!$P$24),"") ->  | AH47: =IF(AND(SIG!$Z$19="Muy Baja",SIG!$AB$19="Catastrófico"),CONCATENATE("R2C",SIG!$P$19),"") ->  | AI47: =IF(AND(SIG!$Z$20="Muy Baja",SIG!$AB$20="Catastrófico"),CONCATENATE("R2C",SIG!$P$20),"") ->  | AJ47: =IF(AND(SIG!$Z$21="Muy Baja",SIG!$AB$21="Catastrófico"),CONCATENATE("R2C",SIG!$P$21),"") ->  | AK47: =IF(AND(SIG!$Z$22="Muy Baja",SIG!$AB$22="Catastrófico"),CONCATENATE("R2C",SIG!$P$22),"") ->  | AL47: =IF(AND(SIG!$Z$23="Muy Baja",SIG!$AB$23="Catastrófico"),CONCATENATE("R2C",SIG!$P$23),"") ->  | AM47: =IF(AND(SIG!$Z$24="Muy Baja",SIG!$AB$24="Catastrófico"),CONCATENATE("R2C",SIG!$P$24),"") -> 
J48: =IF(AND(SIG!$Z$25="Muy Baja",SIG!$AB$25="Leve"),CONCATENATE("R3C",SIG!$P$25),"") ->  | K48: =IF(AND(SIG!$Z$26="Muy Baja",SIG!$AB$26="Leve"),CONCATENATE("R3C",SIG!$P$26),"") ->  | L48: =IF(AND(SIG!$Z$27="Muy Baja",SIG!$AB$27="Leve"),CONCATENATE("R3C",SIG!$P$27),"") ->  | M48: =IF(AND(SIG!$Z$28="Muy Baja",SIG!$AB$28="Leve"),CONCATENATE("R3C",SIG!$P$28),"") ->  | N48: =IF(AND(SIG!$Z$29="Muy Baja",SIG!$AB$29="Leve"),CONCATENATE("R3C",SIG!$P$29),"") ->  | O48: =IF(AND(SIG!$Z$30="Muy Baja",SIG!$AB$30="Leve"),CONCATENATE("R3C",SIG!$P$30),"") ->  | P48: =IF(AND(SIG!$Z$25="Muy Baja",SIG!$AB$25="Menor"),CONCATENATE("R3C",SIG!$P$25),"") ->  | Q48: =IF(AND(SIG!$Z$26="Muy Baja",SIG!$AB$26="Menor"),CONCATENATE("R3C",SIG!$P$26),"") ->  | R48: =IF(AND(SIG!$Z$27="Muy Baja",SIG!$AB$27="Menor"),CONCATENATE("R3C",SIG!$P$27),"") ->  | S48: =IF(AND(SIG!$Z$28="Muy Baja",SIG!$AB$28="Menor"),CONCATENATE("R3C",SIG!$P$28),"") ->  | T48: =IF(AND(SIG!$Z$29="Muy Baja",SIG!$AB$29="Menor"),CONCATENATE("R3C",SIG!$P$29),"") ->  | U48: =IF(AND(SIG!$Z$30="Muy Baja",SIG!$AB$30="Menor"),CONCATENATE("R3C",SIG!$P$30),"") ->  | V48: =IF(AND(SIG!$Z$25="Muy Baja",SIG!$AB$25="Moderado"),CONCATENATE("R3C",SIG!$P$25),"") ->  | W48: =IF(AND(SIG!$Z$26="Muy Baja",SIG!$AB$26="Moderado"),CONCATENATE("R3C",SIG!$P$26),"") ->  | X48: =IF(AND(SIG!$Z$27="Muy Baja",SIG!$AB$27="Moderado"),CONCATENATE("R3C",SIG!$P$27),"") ->  | Y48: =IF(AND(SIG!$Z$28="Muy Baja",SIG!$AB$28="Moderado"),CONCATENATE("R3C",SIG!$P$28),"") ->  | Z48: =IF(AND(SIG!$Z$29="Muy Baja",SIG!$AB$29="Moderado"),CONCATENATE("R3C",SIG!$P$29),"") ->  | AA48: =IF(AND(SIG!$Z$30="Muy Baja",SIG!$AB$30="Moderado"),CONCATENATE("R3C",SIG!$P$30),"") ->  | AB48: =IF(AND(SIG!$Z$25="Muy Baja",SIG!$AB$25="Mayor"),CONCATENATE("R3C",SIG!$P$25),"") ->  | AC48: =IF(AND(SIG!$Z$26="Muy Baja",SIG!$AB$26="Mayor"),CONCATENATE("R3C",SIG!$P$26),"") ->  | AD48: =IF(AND(SIG!$Z$27="Muy Baja",SIG!$AB$27="Mayor"),CONCATENATE("R3C",SIG!$P$27),"") ->  | AE48: =IF(AND(SIG!$Z$28="Muy Baja",SIG!$AB$28="Mayor"),CONCATENATE("R3C",SIG!$P$28),"") ->  | AF48: =IF(AND(SIG!$Z$29="Muy Baja",SIG!$AB$29="Mayor"),CONCATENATE("R3C",SIG!$P$29),"") ->  | AG48: =IF(AND(SIG!$Z$30="Muy Baja",SIG!$AB$30="Mayor"),CONCATENATE("R3C",SIG!$P$30),"") ->  | AH48: =IF(AND(SIG!$Z$25="Muy Baja",SIG!$AB$25="Catastrófico"),CONCATENATE("R3C",SIG!$P$25),"") ->  | AI48: =IF(AND(SIG!$Z$26="Muy Baja",SIG!$AB$26="Catastrófico"),CONCATENATE("R3C",SIG!$P$26),"") ->  | AJ48: =IF(AND(SIG!$Z$27="Muy Baja",SIG!$AB$27="Catastrófico"),CONCATENATE("R3C",SIG!$P$27),"") ->  | AK48: =IF(AND(SIG!$Z$28="Muy Baja",SIG!$AB$28="Catastrófico"),CONCATENATE("R3C",SIG!$P$28),"") ->  | AL48: =IF(AND(SIG!$Z$29="Muy Baja",SIG!$AB$29="Catastrófico"),CONCATENATE("R3C",SIG!$P$29),"") ->  | AM48: =IF(AND(SIG!$Z$30="Muy Baja",SIG!$AB$30="Catastrófico"),CONCATENATE("R3C",SIG!$P$30),"") -> 
J49: =IF(AND(SIG!$Z$31="Muy Baja",SIG!$AB$31="Leve"),CONCATENATE("R4C",SIG!$P$31),"") ->  | K49: =IF(AND(SIG!$Z$32="Muy Baja",SIG!$AB$32="Leve"),CONCATENATE("R4C",SIG!$P$32),"") ->  | L49: =IF(AND(SIG!$Z$33="Muy Baja",SIG!$AB$33="Leve"),CONCATENATE("R4C",SIG!$P$33),"") ->  | M49: =IF(AND(SIG!$Z$34="Muy Baja",SIG!$AB$34="Leve"),CONCATENATE("R4C",SIG!$P$34),"") ->  | N49: =IF(AND(SIG!$Z$35="Muy Baja",SIG!$AB$35="Leve"),CONCATENATE("R4C",SIG!$P$35),"") ->  | O49: =IF(AND(SIG!$Z$36="Muy Baja",SIG!$AB$36="Leve"),CONCATENATE("R4C",SIG!$P$36),"") ->  | P49: =IF(AND(SIG!$Z$31="Muy Baja",SIG!$AB$31="Menor"),CONCATENATE("R4C",SIG!$P$31),"") ->  | Q49: =IF(AND(SIG!$Z$32="Muy Baja",SIG!$AB$32="Menor"),CONCATENATE("R4C",SIG!$P$32),"") ->  | R49: =IF(AND(SIG!$Z$33="Muy Baja",SIG!$AB$33="Menor"),CONCATENATE("R4C",SIG!$P$33),"") ->  | S49: =IF(AND(SIG!$Z$34="Muy Baja",SIG!$AB$34="Menor"),CONCATENATE("R4C",SIG!$P$34),"") ->  | T49: =IF(AND(SIG!$Z$35="Muy Baja",SIG!$AB$35="Menor"),CONCATENATE("R4C",SIG!$P$35),"") ->  | U49: =IF(AND(SIG!$Z$36="Muy Baja",SIG!$AB$36="Menor"),CONCATENATE("R4C",SIG!$P$36),"") ->  | V49: =IF(AND(SIG!$Z$31="Muy Baja",SIG!$AB$31="Moderado"),CONCATENATE("R4C",SIG!$P$31),"") ->  | W49: =IF(AND(SIG!$Z$32="Muy Baja",SIG!$AB$32="Moderado"),CONCATENATE("R4C",SIG!$P$32),"") ->  | X49: =IF(AND(SIG!$Z$33="Muy Baja",SIG!$AB$33="Moderado"),CONCATENATE("R4C",SIG!$P$33),"") ->  | Y49: =IF(AND(SIG!$Z$34="Muy Baja",SIG!$AB$34="Moderado"),CONCATENATE("R4C",SIG!$P$34),"") ->  | Z49: =IF(AND(SIG!$Z$35="Muy Baja",SIG!$AB$35="Moderado"),CONCATENATE("R4C",SIG!$P$35),"") ->  | AA49: =IF(AND(SIG!$Z$36="Muy Baja",SIG!$AB$36="Moderado"),CONCATENATE("R4C",SIG!$P$36),"") ->  | AB49: =IF(AND(SIG!$Z$31="Muy Baja",SIG!$AB$31="Mayor"),CONCATENATE("R4C",SIG!$P$31),"") ->  | AC49: =IF(AND(SIG!$Z$32="Muy Baja",SIG!$AB$32="Mayor"),CONCATENATE("R4C",SIG!$P$32),"") ->  | AD49: =IF(AND(SIG!$Z$33="Muy Baja",SIG!$AB$33="Mayor"),CONCATENATE("R4C",SIG!$P$33),"") ->  | AE49: =IF(AND(SIG!$Z$34="Muy Baja",SIG!$AB$34="Mayor"),CONCATENATE("R4C",SIG!$P$34),"") ->  | AF49: =IF(AND(SIG!$Z$35="Muy Baja",SIG!$AB$35="Mayor"),CONCATENATE("R4C",SIG!$P$35),"") ->  | AG49: =IF(AND(SIG!$Z$36="Muy Baja",SIG!$AB$36="Mayor"),CONCATENATE("R4C",SIG!$P$36),"") ->  | AH49: =IF(AND(SIG!$Z$31="Muy Baja",SIG!$AB$31="Catastrófico"),CONCATENATE("R4C",SIG!$P$31),"") ->  | AI49: =IF(AND(SIG!$Z$32="Muy Baja",SIG!$AB$32="Catastrófico"),CONCATENATE("R4C",SIG!$P$32),"") ->  | AJ49: =IF(AND(SIG!$Z$33="Muy Baja",SIG!$AB$33="Catastrófico"),CONCATENATE("R4C",SIG!$P$33),"") ->  | AK49: =IF(AND(SIG!$Z$34="Muy Baja",SIG!$AB$34="Catastrófico"),CONCATENATE("R4C",SIG!$P$34),"") ->  | AL49: =IF(AND(SIG!$Z$35="Muy Baja",SIG!$AB$35="Catastrófico"),CONCATENATE("R4C",SIG!$P$35),"") ->  | AM49: =IF(AND(SIG!$Z$36="Muy Baja",SIG!$AB$36="Catastrófico"),CONCATENATE("R4C",SIG!$P$36),"") -> 
J50: =IF(AND(SIG!$Z$37="Muy Baja",SIG!$AB$37="Leve"),CONCATENATE("R5C",SIG!$P$37),"") ->  | K50: =IF(AND(SIG!$Z$38="Muy Baja",SIG!$AB$38="Leve"),CONCATENATE("R5C",SIG!$P$38),"") ->  | L50: =IF(AND(SIG!$Z$39="Muy Baja",SIG!$AB$39="Leve"),CONCATENATE("R5C",SIG!$P$39),"") ->  | M50: =IF(AND(SIG!$Z$40="Muy Baja",SIG!$AB$40="Leve"),CONCATENATE("R5C",SIG!$P$40),"") ->  | N50: =IF(AND(SIG!$Z$41="Muy Baja",SIG!$AB$41="Leve"),CONCATENATE("R5C",SIG!$P$41),"") ->  | O50: =IF(AND(SIG!$Z$42="Muy Baja",SIG!$AB$42="Leve"),CONCATENATE("R5C",SIG!$P$42),"") ->  | P50: =IF(AND(SIG!$Z$37="Muy Baja",SIG!$AB$37="Menor"),CONCATENATE("R5C",SIG!$P$37),"") ->  | Q50: =IF(AND(SIG!$Z$38="Muy Baja",SIG!$AB$38="Menor"),CONCATENATE("R5C",SIG!$P$38),"") ->  | R50: =IF(AND(SIG!$Z$39="Muy Baja",SIG!$AB$39="Menor"),CONCATENATE("R5C",SIG!$P$39),"") ->  | S50: =IF(AND(SIG!$Z$40="Muy Baja",SIG!$AB$40="Menor"),CONCATENATE("R5C",SIG!$P$40),"") ->  | T50: =IF(AND(SIG!$Z$41="Muy Baja",SIG!$AB$41="Menor"),CONCATENATE("R5C",SIG!$P$41),"") ->  | U50: =IF(AND(SIG!$Z$42="Muy Baja",SIG!$AB$42="Menor"),CONCATENATE("R5C",SIG!$P$42),"") ->  | V50: =IF(AND(SIG!$Z$37="Muy Baja",SIG!$AB$37="Moderado"),CONCATENATE("R5C",SIG!$P$37),"") ->  | W50: =IF(AND(SIG!$Z$38="Muy Baja",SIG!$AB$38="Moderado"),CONCATENATE("R5C",SIG!$P$38),"") ->  | X50: =IF(AND(SIG!$Z$39="Muy Baja",SIG!$AB$39="Moderado"),CONCATENATE("R5C",SIG!$P$39),"") ->  | Y50: =IF(AND(SIG!$Z$40="Muy Baja",SIG!$AB$40="Moderado"),CONCATENATE("R5C",SIG!$P$40),"") ->  | Z50: =IF(AND(SIG!$Z$41="Muy Baja",SIG!$AB$41="Moderado"),CONCATENATE("R5C",SIG!$P$41),"") ->  | AA50: =IF(AND(SIG!$Z$42="Muy Baja",SIG!$AB$42="Moderado"),CONCATENATE("R5C",SIG!$P$42),"") ->  | AB50: =IF(AND(SIG!$Z$37="Muy Baja",SIG!$AB$37="Mayor"),CONCATENATE("R5C",SIG!$P$37),"") ->  | AC50: =IF(AND(SIG!$Z$38="Muy Baja",SIG!$AB$38="Mayor"),CONCATENATE("R5C",SIG!$P$38),"") ->  | AD50: =IF(AND(SIG!$Z$39="Muy Baja",SIG!$AB$39="Mayor"),CONCATENATE("R5C",SIG!$P$39),"") ->  | AE50: =IF(AND(SIG!$Z$40="Muy Baja",SIG!$AB$40="Mayor"),CONCATENATE("R5C",SIG!$P$40),"") ->  | AF50: =IF(AND(SIG!$Z$41="Muy Baja",SIG!$AB$41="Mayor"),CONCATENATE("R5C",SIG!$P$41),"") ->  | AG50: =IF(AND(SIG!$Z$42="Muy Baja",SIG!$AB$42="Mayor"),CONCATENATE("R5C",SIG!$P$42),"") ->  | AH50: =IF(AND(SIG!$Z$37="Muy Baja",SIG!$AB$37="Catastrófico"),CONCATENATE("R5C",SIG!$P$37),"") ->  | AI50: =IF(AND(SIG!$Z$38="Muy Baja",SIG!$AB$38="Catastrófico"),CONCATENATE("R5C",SIG!$P$38),"") ->  | AJ50: =IF(AND(SIG!$Z$39="Muy Baja",SIG!$AB$39="Catastrófico"),CONCATENATE("R5C",SIG!$P$39),"") ->  | AK50: =IF(AND(SIG!$Z$40="Muy Baja",SIG!$AB$40="Catastrófico"),CONCATENATE("R5C",SIG!$P$40),"") ->  | AL50: =IF(AND(SIG!$Z$41="Muy Baja",SIG!$AB$41="Catastrófico"),CONCATENATE("R5C",SIG!$P$41),"") ->  | AM50: =IF(AND(SIG!$Z$42="Muy Baja",SIG!$AB$42="Catastrófico"),CONCATENATE("R5C",SIG!$P$42),"") -> 
J51: =IF(AND(SIG!$Z$43="Muy Baja",SIG!$AB$43="Leve"),CONCATENATE("R6C",SIG!$P$43),"") ->  | K51: =IF(AND(SIG!$Z$44="Muy Baja",SIG!$AB$44="Leve"),CONCATENATE("R6C",SIG!$P$44),"") ->  | L51: =IF(AND(SIG!$Z$45="Muy Baja",SIG!$AB$45="Leve"),CONCATENATE("R6C",SIG!$P$45),"") ->  | M51: =IF(AND(SIG!$Z$46="Muy Baja",SIG!$AB$46="Leve"),CONCATENATE("R6C",SIG!$P$46),"") ->  | N51: =IF(AND(SIG!$Z$47="Muy Baja",SIG!$AB$47="Leve"),CONCATENATE("R6C",SIG!$P$47),"") ->  | O51: =IF(AND(SIG!$Z$48="Muy Baja",SIG!$AB$48="Leve"),CONCATENATE("R6C",SIG!$P$48),"") ->  | P51: =IF(AND(SIG!$Z$43="Muy Baja",SIG!$AB$43="Menor"),CONCATENATE("R6C",SIG!$P$43),"") ->  | Q51: =IF(AND(SIG!$Z$44="Muy Baja",SIG!$AB$44="Menor"),CONCATENATE("R6C",SIG!$P$44),"") ->  | R51: =IF(AND(SIG!$Z$45="Muy Baja",SIG!$AB$45="Menor"),CONCATENATE("R6C",SIG!$P$45),"") ->  | S51: =IF(AND(SIG!$Z$46="Muy Baja",SIG!$AB$46="Menor"),CONCATENATE("R6C",SIG!$P$46),"") ->  | T51: =IF(AND(SIG!$Z$47="Muy Baja",SIG!$AB$47="Menor"),CONCATENATE("R6C",SIG!$P$47),"") ->  | U51: =IF(AND(SIG!$Z$48="Muy Baja",SIG!$AB$48="Menor"),CONCATENATE("R6C",SIG!$P$48),"") ->  | V51: =IF(AND(SIG!$Z$43="Muy Baja",SIG!$AB$43="Moderado"),CONCATENATE("R6C",SIG!$P$43),"") ->  | W51: =IF(AND(SIG!$Z$44="Muy Baja",SIG!$AB$44="Moderado"),CONCATENATE("R6C",SIG!$P$44),"") ->  | X51: =IF(AND(SIG!$Z$45="Muy Baja",SIG!$AB$45="Moderado"),CONCATENATE("R6C",SIG!$P$45),"") ->  | Y51: =IF(AND(SIG!$Z$46="Muy Baja",SIG!$AB$46="Moderado"),CONCATENATE("R6C",SIG!$P$46),"") ->  | Z51: =IF(AND(SIG!$Z$47="Muy Baja",SIG!$AB$47="Moderado"),CONCATENATE("R6C",SIG!$P$47),"") ->  | AA51: =IF(AND(SIG!$Z$48="Muy Baja",SIG!$AB$48="Moderado"),CONCATENATE("R6C",SIG!$P$48),"") ->  | AB51: =IF(AND(SIG!$Z$43="Muy Baja",SIG!$AB$43="Mayor"),CONCATENATE("R6C",SIG!$P$43),"") ->  | AC51: =IF(AND(SIG!$Z$44="Muy Baja",SIG!$AB$44="Mayor"),CONCATENATE("R6C",SIG!$P$44),"") ->  | AD51: =IF(AND(SIG!$Z$45="Muy Baja",SIG!$AB$45="Mayor"),CONCATENATE("R6C",SIG!$P$45),"") ->  | AE51: =IF(AND(SIG!$Z$46="Muy Baja",SIG!$AB$46="Mayor"),CONCATENATE("R6C",SIG!$P$46),"") ->  | AF51: =IF(AND(SIG!$Z$47="Muy Baja",SIG!$AB$47="Mayor"),CONCATENATE("R6C",SIG!$P$47),"") ->  | AG51: =IF(AND(SIG!$Z$48="Muy Baja",SIG!$AB$48="Mayor"),CONCATENATE("R6C",SIG!$P$48),"") ->  | AH51: =IF(AND(SIG!$Z$43="Muy Baja",SIG!$AB$43="Catastrófico"),CONCATENATE("R6C",SIG!$P$43),"") ->  | AI51: =IF(AND(SIG!$Z$44="Muy Baja",SIG!$AB$44="Catastrófico"),CONCATENATE("R6C",SIG!$P$44),"") ->  | AJ51: =IF(AND(SIG!$Z$45="Muy Baja",SIG!$AB$45="Catastrófico"),CONCATENATE("R6C",SIG!$P$45),"") ->  | AK51: =IF(AND(SIG!$Z$46="Muy Baja",SIG!$AB$46="Catastrófico"),CONCATENATE("R6C",SIG!$P$46),"") ->  | AL51: =IF(AND(SIG!$Z$47="Muy Baja",SIG!$AB$47="Catastrófico"),CONCATENATE("R6C",SIG!$P$47),"") ->  | AM51: =IF(AND(SIG!$Z$48="Muy Baja",SIG!$AB$48="Catastrófico"),CONCATENATE("R6C",SIG!$P$48),"") -> 
J52: =IF(AND(SIG!$Z$49="Muy Baja",SIG!$AB$49="Leve"),CONCATENATE("R7C",SIG!$P$49),"") ->  | K52: =IF(AND(SIG!$Z$50="Muy Baja",SIG!$AB$50="Leve"),CONCATENATE("R7C",SIG!$P$50),"") ->  | L52: =IF(AND(SIG!$Z$51="Muy Baja",SIG!$AB$51="Leve"),CONCATENATE("R7C",SIG!$P$51),"") ->  | M52: =IF(AND(SIG!$Z$52="Muy Baja",SIG!$AB$52="Leve"),CONCATENATE("R7C",SIG!$P$52),"") ->  | N52: =IF(AND(SIG!$Z$53="Muy Baja",SIG!$AB$53="Leve"),CONCATENATE("R7C",SIG!$P$53),"") ->  | O52: =IF(AND(SIG!$Z$54="Muy Baja",SIG!$AB$54="Leve"),CONCATENATE("R7C",SIG!$P$54),"") ->  | P52: =IF(AND(SIG!$Z$49="Muy Baja",SIG!$AB$49="Menor"),CONCATENATE("R7C",SIG!$P$49),"") ->  | Q52: =IF(AND(SIG!$Z$50="Muy Baja",SIG!$AB$50="Menor"),CONCATENATE("R7C",SIG!$P$50),"") ->  | R52: =IF(AND(SIG!$Z$51="Muy Baja",SIG!$AB$51="Menor"),CONCATENATE("R7C",SIG!$P$51),"") ->  | S52: =IF(AND(SIG!$Z$52="Muy Baja",SIG!$AB$52="Menor"),CONCATENATE("R7C",SIG!$P$52),"") ->  | T52: =IF(AND(SIG!$Z$53="Muy Baja",SIG!$AB$53="Menor"),CONCATENATE("R7C",SIG!$P$53),"") ->  | U52: =IF(AND(SIG!$Z$54="Muy Baja",SIG!$AB$54="Menor"),CONCATENATE("R7C",SIG!$P$54),"") ->  | V52: =IF(AND(SIG!$Z$49="Muy Baja",SIG!$AB$49="Moderado"),CONCATENATE("R7C",SIG!$P$49),"") ->  | W52: =IF(AND(SIG!$Z$50="Muy Baja",SIG!$AB$50="Moderado"),CONCATENATE("R7C",SIG!$P$50),"") ->  | X52: =IF(AND(SIG!$Z$51="Muy Baja",SIG!$AB$51="Moderado"),CONCATENATE("R7C",SIG!$P$51),"") ->  | Y52: =IF(AND(SIG!$Z$52="Muy Baja",SIG!$AB$52="Moderado"),CONCATENATE("R7C",SIG!$P$52),"") ->  | Z52: =IF(AND(SIG!$Z$53="Muy Baja",SIG!$AB$53="Moderado"),CONCATENATE("R7C",SIG!$P$53),"") ->  | AA52: =IF(AND(SIG!$Z$54="Muy Baja",SIG!$AB$54="Moderado"),CONCATENATE("R7C",SIG!$P$54),"") ->  | AB52: =IF(AND(SIG!$Z$49="Muy Baja",SIG!$AB$49="Mayor"),CONCATENATE("R7C",SIG!$P$49),"") ->  | AC52: =IF(AND(SIG!$Z$50="Muy Baja",SIG!$AB$50="Mayor"),CONCATENATE("R7C",SIG!$P$50),"") ->  | AD52: =IF(AND(SIG!$Z$51="Muy Baja",SIG!$AB$51="Mayor"),CONCATENATE("R7C",SIG!$P$51),"") ->  | AE52: =IF(AND(SIG!$Z$52="Muy Baja",SIG!$AB$52="Mayor"),CONCATENATE("R7C",SIG!$P$52),"") ->  | AF52: =IF(AND(SIG!$Z$53="Muy Baja",SIG!$AB$53="Mayor"),CONCATENATE("R7C",SIG!$P$53),"") ->  | AG52: =IF(AND(SIG!$Z$54="Muy Baja",SIG!$AB$54="Mayor"),CONCATENATE("R7C",SIG!$P$54),"") ->  | AH52: =IF(AND(SIG!$Z$49="Muy Baja",SIG!$AB$49="Catastrófico"),CONCATENATE("R7C",SIG!$P$49),"") ->  | AI52: =IF(AND(SIG!$Z$50="Muy Baja",SIG!$AB$50="Catastrófico"),CONCATENATE("R7C",SIG!$P$50),"") ->  | AJ52: =IF(AND(SIG!$Z$51="Muy Baja",SIG!$AB$51="Catastrófico"),CONCATENATE("R7C",SIG!$P$51),"") ->  | AK52: =IF(AND(SIG!$Z$52="Muy Baja",SIG!$AB$52="Catastrófico"),CONCATENATE("R7C",SIG!$P$52),"") ->  | AL52: =IF(AND(SIG!$Z$53="Muy Baja",SIG!$AB$53="Catastrófico"),CONCATENATE("R7C",SIG!$P$53),"") ->  | AM52: =IF(AND(SIG!$Z$54="Muy Baja",SIG!$AB$54="Catastrófico"),CONCATENATE("R7C",SIG!$P$54),"") -> 
J53: =IF(AND(SIG!$Z$55="Muy Baja",SIG!$AB$55="Leve"),CONCATENATE("R8C",SIG!$P$55),"") ->  | K53: =IF(AND(SIG!$Z$56="Muy Baja",SIG!$AB$56="Leve"),CONCATENATE("R8C",SIG!$P$56),"") ->  | L53: =IF(AND(SIG!$Z$57="Muy Baja",SIG!$AB$57="Leve"),CONCATENATE("R8C",SIG!$P$57),"") ->  | M53: =IF(AND(SIG!$Z$58="Muy Baja",SIG!$AB$58="Leve"),CONCATENATE("R8C",SIG!$P$58),"") ->  | N53: =IF(AND(SIG!$Z$59="Muy Baja",SIG!$AB$59="Leve"),CONCATENATE("R8C",SIG!$P$59),"") ->  | O53: =IF(AND(SIG!$Z$60="Muy Baja",SIG!$AB$60="Leve"),CONCATENATE("R8C",SIG!$P$60),"") ->  | P53: =IF(AND(SIG!$Z$55="Muy Baja",SIG!$AB$55="Menor"),CONCATENATE("R8C",SIG!$P$55),"") ->  | Q53: =IF(AND(SIG!$Z$56="Muy Baja",SIG!$AB$56="Menor"),CONCATENATE("R8C",SIG!$P$56),"") ->  | R53: =IF(AND(SIG!$Z$57="Muy Baja",SIG!$AB$57="Menor"),CONCATENATE("R8C",SIG!$P$57),"") ->  | S53: =IF(AND(SIG!$Z$58="Muy Baja",SIG!$AB$58="Menor"),CONCATENATE("R8C",SIG!$P$58),"") ->  | T53: =IF(AND(SIG!$Z$59="Muy Baja",SIG!$AB$59="Menor"),CONCATENATE("R8C",SIG!$P$59),"") ->  | U53: =IF(AND(SIG!$Z$60="Muy Baja",SIG!$AB$60="Menor"),CONCATENATE("R8C",SIG!$P$60),"") ->  | V53: =IF(AND(SIG!$Z$55="Muy Baja",SIG!$AB$55="Moderado"),CONCATENATE("R8C",SIG!$P$55),"") ->  | W53: =IF(AND(SIG!$Z$56="Muy Baja",SIG!$AB$56="Moderado"),CONCATENATE("R8C",SIG!$P$56),"") ->  | X53: =IF(AND(SIG!$Z$57="Muy Baja",SIG!$AB$57="Moderado"),CONCATENATE("R8C",SIG!$P$57),"") ->  | Y53: =IF(AND(SIG!$Z$58="Muy Baja",SIG!$AB$58="Moderado"),CONCATENATE("R8C",SIG!$P$58),"") ->  | Z53: =IF(AND(SIG!$Z$59="Muy Baja",SIG!$AB$59="Moderado"),CONCATENATE("R8C",SIG!$P$59),"") ->  | AA53: =IF(AND(SIG!$Z$60="Muy Baja",SIG!$AB$60="Moderado"),CONCATENATE("R8C",SIG!$P$60),"") ->  | AB53: =IF(AND(SIG!$Z$55="Muy Baja",SIG!$AB$55="Mayor"),CONCATENATE("R8C",SIG!$P$55),"") ->  | AC53: =IF(AND(SIG!$Z$56="Muy Baja",SIG!$AB$56="Mayor"),CONCATENATE("R8C",SIG!$P$56),"") ->  | AD53: =IF(AND(SIG!$Z$57="Muy Baja",SIG!$AB$57="Mayor"),CONCATENATE("R8C",SIG!$P$57),"") ->  | AE53: =IF(AND(SIG!$Z$58="Muy Baja",SIG!$AB$58="Mayor"),CONCATENATE("R8C",SIG!$P$58),"") ->  | AF53: =IF(AND(SIG!$Z$59="Muy Baja",SIG!$AB$59="Mayor"),CONCATENATE("R8C",SIG!$P$59),"") ->  | AG53: =IF(AND(SIG!$Z$60="Muy Baja",SIG!$AB$60="Mayor"),CONCATENATE("R8C",SIG!$P$60),"") ->  | AH53: =IF(AND(SIG!$Z$55="Muy Baja",SIG!$AB$55="Catastrófico"),CONCATENATE("R8C",SIG!$P$55),"") ->  | AI53: =IF(AND(SIG!$Z$56="Muy Baja",SIG!$AB$56="Catastrófico"),CONCATENATE("R8C",SIG!$P$56),"") ->  | AJ53: =IF(AND(SIG!$Z$57="Muy Baja",SIG!$AB$57="Catastrófico"),CONCATENATE("R8C",SIG!$P$57),"") ->  | AK53: =IF(AND(SIG!$Z$58="Muy Baja",SIG!$AB$58="Catastrófico"),CONCATENATE("R8C",SIG!$P$58),"") ->  | AL53: =IF(AND(SIG!$Z$59="Muy Baja",SIG!$AB$59="Catastrófico"),CONCATENATE("R8C",SIG!$P$59),"") ->  | AM53: =IF(AND(SIG!$Z$60="Muy Baja",SIG!$AB$60="Catastrófico"),CONCATENATE("R8C",SIG!$P$60),"") -> 
J54: =IF(AND(SIG!$Z$61="Muy Baja",SIG!$AB$61="Leve"),CONCATENATE("R9C",SIG!$P$61),"") ->  | K54: =IF(AND(SIG!$Z$62="Muy Baja",SIG!$AB$62="Leve"),CONCATENATE("R9C",SIG!$P$62),"") ->  | L54: =IF(AND(SIG!$Z$63="Muy Baja",SIG!$AB$63="Leve"),CONCATENATE("R9C",SIG!$P$63),"") ->  | M54: =IF(AND(SIG!$Z$64="Muy Baja",SIG!$AB$64="Leve"),CONCATENATE("R9C",SIG!$P$64),"") ->  | N54: =IF(AND(SIG!$Z$65="Muy Baja",SIG!$AB$65="Leve"),CONCATENATE("R9C",SIG!$P$65),"") ->  | O54: =IF(AND(SIG!$Z$66="Muy Baja",SIG!$AB$66="Leve"),CONCATENATE("R9C",SIG!$P$66),"") ->  | P54: =IF(AND(SIG!$Z$61="Muy Baja",SIG!$AB$61="Menor"),CONCATENATE("R9C",SIG!$P$61),"") ->  | Q54: =IF(AND(SIG!$Z$62="Muy Baja",SIG!$AB$62="Menor"),CONCATENATE("R9C",SIG!$P$62),"") ->  | R54: =IF(AND(SIG!$Z$63="Muy Baja",SIG!$AB$63="Menor"),CONCATENATE("R9C",SIG!$P$63),"") ->  | S54: =IF(AND(SIG!$Z$64="Muy Baja",SIG!$AB$64="Menor"),CONCATENATE("R9C",SIG!$P$64),"") ->  | T54: =IF(AND(SIG!$Z$65="Muy Baja",SIG!$AB$65="Menor"),CONCATENATE("R9C",SIG!$P$65),"") ->  | U54: =IF(AND(SIG!$Z$66="Muy Baja",SIG!$AB$66="Menor"),CONCATENATE("R9C",SIG!$P$66),"") ->  | V54: =IF(AND(SIG!$Z$61="Muy Baja",SIG!$AB$61="Moderado"),CONCATENATE("R9C",SIG!$P$61),"") ->  | W54: =IF(AND(SIG!$Z$62="Muy Baja",SIG!$AB$62="Moderado"),CONCATENATE("R9C",SIG!$P$62),"") ->  | X54: =IF(AND(SIG!$Z$63="Muy Baja",SIG!$AB$63="Moderado"),CONCATENATE("R9C",SIG!$P$63),"") ->  | Y54: =IF(AND(SIG!$Z$64="Muy Baja",SIG!$AB$64="Moderado"),CONCATENATE("R9C",SIG!$P$64),"") ->  | Z54: =IF(AND(SIG!$Z$65="Muy Baja",SIG!$AB$65="Moderado"),CONCATENATE("R9C",SIG!$P$65),"") ->  | AA54: =IF(AND(SIG!$Z$66="Muy Baja",SIG!$AB$66="Moderado"),CONCATENATE("R9C",SIG!$P$66),"") ->  | AB54: =IF(AND(SIG!$Z$61="Muy Baja",SIG!$AB$61="Mayor"),CONCATENATE("R9C",SIG!$P$61),"") ->  | AC54: =IF(AND(SIG!$Z$62="Muy Baja",SIG!$AB$62="Mayor"),CONCATENATE("R9C",SIG!$P$62),"") ->  | AD54: =IF(AND(SIG!$Z$63="Muy Baja",SIG!$AB$63="Mayor"),CONCATENATE("R9C",SIG!$P$63),"") ->  | AE54: =IF(AND(SIG!$Z$64="Muy Baja",SIG!$AB$64="Mayor"),CONCATENATE("R9C",SIG!$P$64),"") ->  | AF54: =IF(AND(SIG!$Z$65="Muy Baja",SIG!$AB$65="Mayor"),CONCATENATE("R9C",SIG!$P$65),"") ->  | AG54: =IF(AND(SIG!$Z$66="Muy Baja",SIG!$AB$66="Mayor"),CONCATENATE("R9C",SIG!$P$66),"") ->  | AH54: =IF(AND(SIG!$Z$61="Muy Baja",SIG!$AB$61="Catastrófico"),CONCATENATE("R9C",SIG!$P$61),"") ->  | AI54: =IF(AND(SIG!$Z$62="Muy Baja",SIG!$AB$62="Catastrófico"),CONCATENATE("R9C",SIG!$P$62),"") ->  | AJ54: =IF(AND(SIG!$Z$63="Muy Baja",SIG!$AB$63="Catastrófico"),CONCATENATE("R9C",SIG!$P$63),"") ->  | AK54: =IF(AND(SIG!$Z$64="Muy Baja",SIG!$AB$64="Catastrófico"),CONCATENATE("R9C",SIG!$P$64),"") ->  | AL54: =IF(AND(SIG!$Z$65="Muy Baja",SIG!$AB$65="Catastrófico"),CONCATENATE("R9C",SIG!$P$65),"") ->  | AM54: =IF(AND(SIG!$Z$66="Muy Baja",SIG!$AB$66="Catastrófico"),CONCATENATE("R9C",SIG!$P$66),"") -> 
J55: =IF(AND(SIG!$Z$67="Muy Baja",SIG!$AB$67="Leve"),CONCATENATE("R10C",SIG!$P$67),"") ->  | K55: =IF(AND(SIG!$Z$68="Muy Baja",SIG!$AB$68="Leve"),CONCATENATE("R10C",SIG!$P$68),"") ->  | L55: =IF(AND(SIG!$Z$69="Muy Baja",SIG!$AB$69="Leve"),CONCATENATE("R10C",SIG!$P$69),"") ->  | M55: =IF(AND(SIG!$Z$70="Muy Baja",SIG!$AB$70="Leve"),CONCATENATE("R10C",SIG!$P$70),"") ->  | N55: =IF(AND(SIG!$Z$71="Muy Baja",SIG!$AB$71="Leve"),CONCATENATE("R10C",SIG!$P$71),"") ->  | O55: =IF(AND(SIG!$Z$72="Muy Baja",SIG!$AB$72="Leve"),CONCATENATE("R10C",SIG!$P$72),"") ->  | P55: =IF(AND(SIG!$Z$67="Muy Baja",SIG!$AB$67="Menor"),CONCATENATE("R10C",SIG!$P$67),"") ->  | Q55: =IF(AND(SIG!$Z$68="Muy Baja",SIG!$AB$68="Menor"),CONCATENATE("R10C",SIG!$P$68),"") ->  | R55: =IF(AND(SIG!$Z$69="Muy Baja",SIG!$AB$69="Menor"),CONCATENATE("R10C",SIG!$P$69),"") ->  | S55: =IF(AND(SIG!$Z$70="Muy Baja",SIG!$AB$70="Menor"),CONCATENATE("R10C",SIG!$P$70),"") ->  | T55: =IF(AND(SIG!$Z$71="Muy Baja",SIG!$AB$71="Menor"),CONCATENATE("R10C",SIG!$P$71),"") ->  | U55: =IF(AND(SIG!$Z$72="Muy Baja",SIG!$AB$72="Menor"),CONCATENATE("R10C",SIG!$P$72),"") ->  | V55: =IF(AND(SIG!$Z$67="Muy Baja",SIG!$AB$67="Moderado"),CONCATENATE("R10C",SIG!$P$67),"") ->  | W55: =IF(AND(SIG!$Z$68="Muy Baja",SIG!$AB$68="Moderado"),CONCATENATE("R10C",SIG!$P$68),"") ->  | X55: =IF(AND(SIG!$Z$69="Muy Baja",SIG!$AB$69="Moderado"),CONCATENATE("R10C",SIG!$P$69),"") ->  | Y55: =IF(AND(SIG!$Z$70="Muy Baja",SIG!$AB$70="Moderado"),CONCATENATE("R10C",SIG!$P$70),"") ->  | Z55: =IF(AND(SIG!$Z$71="Muy Baja",SIG!$AB$71="Moderado"),CONCATENATE("R10C",SIG!$P$71),"") ->  | AA55: =IF(AND(SIG!$Z$72="Muy Baja",SIG!$AB$72="Moderado"),CONCATENATE("R10C",SIG!$P$72),"") ->  | AB55: =IF(AND(SIG!$Z$67="Muy Baja",SIG!$AB$67="Mayor"),CONCATENATE("R10C",SIG!$P$67),"") ->  | AC55: =IF(AND(SIG!$Z$68="Muy Baja",SIG!$AB$68="Mayor"),CONCATENATE("R10C",SIG!$P$68),"") ->  | AD55: =IF(AND(SIG!$Z$69="Muy Baja",SIG!$AB$69="Mayor"),CONCATENATE("R10C",SIG!$P$69),"") ->  | AE55: =IF(AND(SIG!$Z$70="Muy Baja",SIG!$AB$70="Mayor"),CONCATENATE("R10C",SIG!$P$70),"") ->  | AF55: =IF(AND(SIG!$Z$71="Muy Baja",SIG!$AB$71="Mayor"),CONCATENATE("R10C",SIG!$P$71),"") ->  | AG55: =IF(AND(SIG!$Z$72="Muy Baja",SIG!$AB$72="Mayor"),CONCATENATE("R10C",SIG!$P$72),"") ->  | AH55: =IF(AND(SIG!$Z$67="Muy Baja",SIG!$AB$67="Catastrófico"),CONCATENATE("R10C",SIG!$P$67),"") ->  | AI55: =IF(AND(SIG!$Z$68="Muy Baja",SIG!$AB$68="Catastrófico"),CONCATENATE("R10C",SIG!$P$68),"") ->  | AJ55: =IF(AND(SIG!$Z$69="Muy Baja",SIG!$AB$69="Catastrófico"),CONCATENATE("R10C",SIG!$P$69),"") ->  | AK55: =IF(AND(SIG!$Z$70="Muy Baja",SIG!$AB$70="Catastrófico"),CONCATENATE("R10C",SIG!$P$70),"") ->  | AL55: =IF(AND(SIG!$Z$71="Muy Baja",SIG!$AB$71="Catastrófico"),CONCATENATE("R10C",SIG!$P$71),"") ->  | AM55: =IF(AND(SIG!$Z$72="Muy Baja",SIG!$AB$72="Catastrófico"),CONCATENATE("R10C",SIG!$P$72),"") -> 
J56: Leve 20% | P56: Menor 40% | V56: Moderado 60% | AB56: Mayor 80% | AH56: Catastrófico 100%

Sheet Tabla probabilidad (hidden)
B1: Tabla Criterios para definir el nivel de probabilidad
C3: Frecuencia de la Actividad | D3: Probabilidad
B4: Muy Baja | C4: La actividad que conlleva el riesgo se ejecuta como máximos 2 veces por año | D4: 0.2
B5: Baja | C5: La actividad que conlleva el riesgo se ejecuta de 3 a 24 veces por año | D5: 0.4
B6: Media | C6: La actividad que conlleva el riesgo se ejecuta de 24 a 500 veces por año | D6: 0.6
B7: Alta | C7: La actividad que conlleva el riesgo se ejecuta mínimo 500 veces al año y máximo 5000 veces por año | D7: 0.8
B8: Muy Alta | C8: La actividad que conlleva el riesgo se ejecuta más de 5000 veces por año | D8: 1

Sheet MANTENIMIENTO (hidden)
G1: EMPRESA DE LICORES DE CUNDINAMARCA | AF1: Código: PC010100.F12-3
AF2: Versión: 3
G3: FORMATO MAPA DE RIESGOS | AF3: Fecha de emisión: 19/04/2022 | AJ3: Pagina: 2 de 2
A6: Proceso: | D6: Gestión de Mantenimiento
A7: Objetivo: | D7: Mantener la maquinaria industrial, equipos de computo, instrumentos y equipos de medición, infraestructura física y parque automotor de la empresa en condiciones optimas para su correcto funcionamiento y así lograr la conformidad y el cumplimiento de los requerimientos de los productos.
A8: Alcance: | D8: Inicia con la elaboración del programa de mantenimiento para la maquinaria industrial, equipos de computo, instrumentos y equipos de medición, infraestructura física y parque automotor hasta su ejecución y cumplimiento.
A9: Identificación del riesgo | I9: Análisis del riesgo inherente | P9: Evaluación del riesgo - Valoración de los controles | Y9: Evaluación del riesgo - Nivel del riesgo residual | AF9: Plan de Acción | AM9: Autoevaluación | AO9: Autoevaluación | AQ9: Evaluación
A10: Referencia | C10: Impacto | D10: Causa Secundarias | E10: Causa Principal | F10: Descripción del Riesgo | G10: Clasificación del Riesgo | H10: Frecuencia con la cual se realiza la actividad | I10: Probabilidad Inherente | J10: % | K10: Criterios de impacto | L10: Observación de criterio | M10: Impacto Inherente | N10: % | O10: Zona de Riesgo Inherente | P10: No. Control | Q10: Descripción del Control | R10: Afectación | S10: Atributos | Y10: Probabilidad Residual | Z10: Probabilidad Residual Final | AA10: % | AB10: Impacto Residual Final | AC10: % | AD10: Zona de Riesgo Final | AE10: Tratamiento | AF10: Plan de Acción | AG10: Indicadores | AH10: Responsable | AI10: Fecha Implementación | AJ10: Fecha Seguimiento | AK10: Seguimiento | AL10: Estado | AM10: 1 primer trimestre | AN10: Calculo del indicador | AO10: 2 segundo trimestre | AP10: Calculo del indicador | AQ10: Evaluación independiente de Control Interno | AR10: Toma de desiciones
B11: Proceso | S11: Tipo | T11: Implementación | U11: Calificación | V11: Documentación | W11: Frecuencia | X11: Evidencia
A12: 1 | B12: Mantenimiento Industrial | C12: Económico y Reputacional | D12: Retrasos en las requisiciones de los materiales para realizar las actividades de mantenimiento. Falta de representantes en Colombia de repuestos El personal operativo y de mantenimiento no cuenta con la capacitación y experiencia adecuada. Ausencia de personal con competencias laborales educación, formación, habilidades y experiencia. Alta rotación de personal. Deficiencia en las inspecciones funcionales. Sobre voltaje en la red eléctrica. Manejo y/o operación inadecuado de la maquinaria. Ciclo de vida útil de la máquina. | E12: Incumplimiento del programa de mantenimiento preventivo y disminución en la eficiencia mecánica. | F12: Paros no programados en la maquinaria. | G12: Daños Activos Fisicos | H12: 365 | I12: =IF(H12<=0,"",IF(H12<=2,"Muy Baja",IF(H12<=24,"Baja",IF(H12<=500,"Media",IF(H12<=5000,"Alta","Muy Alta"))))) -> Media | J12: =IF(I12="","",IF(I12="Muy Baja",0.2,IF(I12="Baja",0.4,IF(I12="Media",0.6,IF(I12="Alta",0.8,IF(I12="Muy Alta",1,)))))) -> 0.6 | K12: Mayor a 500 SMLMV | L12: =IF(NOT(ISERROR(MATCH(K12,'[1]Tabla Impacto'!$B$221:$B$223,0))),'[1]Tabla Impacto'!$F$223&"Por favor no seleccionar los criterios de impacto(Afectación Económica o presupuestal y Pérdida Reputacional)",K12) -> Mayor a 500 SMLMV | M12: =IF(OR(L12='[1]Tabla Impacto'!$C$11,L12='[1]Tabla Impacto'!$D$11),"Leve",IF(OR(L12='[1]Tabla Impacto'!$C$12,L12='[1]Tabla Impacto'!$D$12),"Menor",IF(OR(L12='[1]Tabla Impacto'!$C$13,L12='[1]Tabla Impacto'!$D$13),"Moderado",IF(OR(L12='[1]Tabla Impacto'!$C$14,L12='[1]Tabla Impacto'!$D$14),"Mayor",IF(OR(L12='[1]Tabla Impacto'!$C$15,L12='[1]Tabla Impacto'!$D$15),"Catastrófico",""))))) -> Catastrófico | N12: =IF(M12="","",IF(M12="Leve",0.2,IF(M12="Menor",0.4,IF(M12="Moderado",0.6,IF(M12="Mayor",0.8,IF(M12="Catastrófico",1,)))))) -> 1 | O12: =IF(OR(AND(I12="Muy Baja",M12="Leve"),AND(I12="Muy Baja",M12="Menor"),AND(I12="Baja",M12="Leve")),"Bajo",IF(OR(AND(I12="Muy baja",M12="Moderado"),AND(I12="Baja",M12="Menor"),AND(I12="Baja",M12="Moderado"),AND(I12="Media",M12="Leve"),AND(I12="Media",M12="Menor"),AND(I12="Media",M12="Moderado"),AND(I12="Alta",M12="Leve"),AND(I12="Alta",M12="Menor")),"Moderado",IF(OR(AND(I12="Muy Baja",M12="Mayor"),AND(I12="Baja",M12="Mayor"),AND(I12="Media",M12="Mayor"),AND(I12="Alta",M12="Moderado"),AND(I12="Alta",M12="Mayor"),AND(I12="Muy Alta",M12="Leve"),AND(I12="Muy Alta",M12="Menor"),AND(I12="Muy Alta",M12="Moderado"),AND(I12="Muy Alta",M12="Mayor")),"Alto",IF(OR(AND(I12="Muy Baja",M12="Catastrófico"),AND(I12="Baja",M12="Catastrófico"),AND(I12="Media",M12="Catastrófico"),AND(I12="Alta",M12="Catastrófico"),AND(I12="Muy Alta",M12="Catastrófico")),"Extremo","")))) -> Extremo | P12: 1 | Q12: Realizar, ejecutar y evaluar el plan de mantenimiento Preventivo para los diferentes activos físicos. | R12: =IF(OR(S12="Preventivo",S12="Detectivo"),"Probabilidad",IF(S12="Correctivo","Impacto","")) -> Probabilidad | S12: Preventivo | T12: Manual | U12: =IF(AND(S12="Preventivo",T12="Automático"),"50%",IF(AND(S12="Preventivo",T12="Manual"),"40%",IF(AND(S12="Detectivo",T12="Automático"),"40%",IF(AND(S12="Detectivo",T12="Manual"),"30%",IF(AND(S12="Correctivo",T12="Automático"),"35%",IF(AND(S12="Correctivo",T12="Manual"),"25%","")))))) -> 40% | V12: Documentado | W12: Continua | X12: Con Registro | Y12: =IFERROR(IF(R12="Probabilidad",(J12-(+J12*U12)),IF(R12="Impacto",J12,"")),"") -> 0.36 | Z12: =IFERROR(IF(Y12="","",IF(Y12<=0.2,"Muy Baja",IF(Y12<=0.4,"Baja",IF(Y12<=0.6,"Media",IF(Y12<=0.8,"Alta","Muy Alta"))))),"") -> Baja | AA12: =+Y12 -> 0.36 | AB12: =IFERROR(IF(AC12="","",IF(AC12<=0.2,"Leve",IF(AC12<=0.4,"Menor",IF(AC12<=0.6,"Moderado",IF(AC12<=0.8,"Mayor","Catastrófico"))))),"") -> Catastrófico | AC12: =IFERROR(IF(R12="Impacto",(N12-(+N12*U12)),IF(R12="Probabilidad",N12,"")),"") -> 1 | AD12: =IFERROR(IF(OR(AND(Z12="Muy Baja",AB12="Leve"),AND(Z12="Muy Baja",AB12="Menor"),AND(Z12="Baja",AB12="Leve")),"Bajo",IF(OR(AND(Z12="Muy baja",AB12="Moderado"),AND(Z12="Baja",AB12="Menor"),AND(Z12="Baja",AB12="Moderado"),AND(Z12="Media",AB12="Leve"),AND(Z12="Media",AB12="Menor"),AND(Z12="Media",AB12="Moderado"),AND(Z12="Alta",AB12="Leve"),AND(Z12="Alta",AB12="Menor")),"Moderado",IF(OR(AND(Z12="Muy Baja",AB12="Mayor"),AND(Z12="Baja",AB12="Mayor"),AND(Z12="Media",AB12="Mayor"),AND(Z12="Alta",AB12="Moderado"),AND(Z12="Alta",AB12="Mayor"),AND(Z12="Muy Alta",AB12="Leve"),AND(Z12="Muy Alta",AB12="Menor"),AND(Z12="Muy Alta",AB12="Moderado"),AND(Z12="Muy Alta",AB12="Mayor")),"Alto",IF(OR(AND(Z12="Muy Baja",AB12="Catastrófico"),AND(Z12="Baja",AB12="Catastrófico"),AND(Z12="Media",AB12="Catastrófico"),AND(Z12="Alta",AB12="Catastrófico"),AND(Z12="Muy Alta",AB12="Catastrófico")),"Extremo","")))),"") -> Extremo | AE12: Reducir (mitigar) | AF12: Ejecutar las actividades del plan de mantenimiento en el tiempo proyectado. Seguimiento y control a los KPIs de mantenimiento MTTR Y MTBF. | AG12: (MTBF / (MTBF + MTTR))*100% = Disponibilidad % | AH12: Subgerencia Técnica | AI12: 2022-12-31 | AJ12: 30/06/2022 31/12/2022 | AK12: 31/12/202 | AL12: En curso | AM12: Elaborar el cronograma de actividades mantenimiento preventivo 2022. Elaborar sondeos de mercado y solicitudes de pedido de los contratos necesarios para la ejecución del mantenimiento. | AN12: MTTR = 32 min | AO12: seguimiento al cronograma de actividades mantenimiento preventivo 2022. Elaborar sondeos de mercado y solicitudes de pedido de los contratos necesarios para la ejecución del mantenimiento. | AP12: MTTR = 34,2 min
AG13: MTBF=Tiempo medio entre fallas | AN13: MTBF = 1609 min | AP13: MTBF = 1196 min
AG14: MTTR=Tiempo medio para reparar | AN14: Disponibilidad: 97,84% | AP14: Disponibilidad: 97,22%
L15: =IF(NOT(ISERROR(MATCH(K15,_xlfn.ANCHORARRAY(F26),0))),J28&"Por favor no seleccionar los criterios de impacto",K15) -> 0 | P15: 2 | Q15: Capacitación y evaluación continua al personal operativo y técnico en la operación de los activos físicos. | R15: =IF(OR(S15="Preventivo",S15="Detectivo"),"Probabilidad",IF(S15="Correctivo","Impacto","")) -> Probabilidad | S15: Preventivo | T15: Manual | U15: =IF(AND(S15="Preventivo",T15="Automático"),"50%",IF(AND(S15="Preventivo",T15="Manual"),"40%",IF(AND(S15="Detectivo",T15="Automático"),"40%",IF(AND(S15="Detectivo",T15="Manual"),"30%",IF(AND(S15="Correctivo",T15="Automático"),"35%",IF(AND(S15="Correctivo",T15="Manual"),"25%","")))))) -> 40% | V15: Documentado | W15: Continua | X15: Con Registro | Y15: =IFERROR(IF(AND(R12="Probabilidad",R15="Probabilidad"),(AA12-(+AA12*U15)),IF(R15="Probabilidad",(J12-(+J12*U15)),IF(R15="Impacto",AA12,""))),"") -> 0.216 | Z15: =IFERROR(IF(Y15="","",IF(Y15<=0.2,"Muy Baja",IF(Y15<=0.4,"Baja",IF(Y15<=0.6,"Media",IF(Y15<=0.8,"Alta","Muy Alta"))))),"") -> Baja | AA15: =+Y15 -> 0.216 | AB15: =IFERROR(IF(AC15="","",IF(AC15<=0.2,"Leve",IF(AC15<=0.4,"Menor",IF(AC15<=0.6,"Moderado",IF(AC15<=0.8,"Mayor","Catastrófico"))))),"") -> Catastrófico | AC15: =IFERROR(IF(AND(R12="Impacto",R15="Impacto"),(AC12-(+AC12*U15)),IF(R15="Impacto",(N12-(+N12*U15)),IF(R15="Probabilidad",AC12,""))),"") -> 1 | AD15: =IFERROR(IF(OR(AND(Z15="Muy Baja",AB15="Leve"),AND(Z15="Muy Baja",AB15="Menor"),AND(Z15="Baja",AB15="Leve")),"Bajo",IF(OR(AND(Z15="Muy baja",AB15="Moderado"),AND(Z15="Baja",AB15="Menor"),AND(Z15="Baja",AB15="Moderado"),AND(Z15="Media",AB15="Leve"),AND(Z15="Media",AB15="Menor"),AND(Z15="Media",AB15="Moderado"),AND(Z15="Alta",AB15="Leve"),AND(Z15="Alta",AB15="Menor")),"Moderado",IF(OR(AND(Z15="Muy Baja",AB15="Mayor"),AND(Z15="Baja",AB15="Mayor"),AND(Z15="Media",AB15="Mayor"),AND(Z15="Alta",AB15="Moderado"),AND(Z15="Alta",AB15="Mayor"),AND(Z15="Muy Alta",AB15="Leve"),AND(Z15="Muy Alta",AB15="Menor"),AND(Z15="Muy Alta",AB15="Moderado"),AND(Z15="Muy Alta",AB15="Mayor")),"Alto",IF(OR(AND(Z15="Muy Baja",AB15="Catastrófico"),AND(Z15="Baja",AB15="Catastrófico"),AND(Z15="Media",AB15="Catastrófico"),AND(Z15="Alta",AB15="Catastrófico"),AND(Z15="Muy Alta",AB15="Catastrófico")),"Extremo","")))),"") -> Extremo | AE15: Reducir (mitigar) | AF15: Capacitación permanente del personal activo de las áreas de mantenimiento y producción, en temas específicos relacionados. Realizar capacitación de operación y mantenimiento a los operadores de los activos físicos. | AG15: # capacitaciones tomadas / #capacitaciones programadas | AH15: Subgerencia Técnica | AI15: 2022-12-31 | AJ15: 30/06/2022 31/12/2022 | AK15: 31/12/203 | AL15: En curso | AM15: Se requiere capacitación en manufactura de clase mundial para los integrantes del área de mantenimiento. Se requiere capacitación en programación de PLCs (studio 5000 -rockwell y TIA PORTER Siemens ) | AN15: 0 | AO15: Se requiere capacitación en manufactura de clase mundial para los integrantes del área de mantenimiento. Se requiere capacitación en programación de PLCs (studio 5000 -rockwell y TIA PORTER Siemens) | AP15: 0
L16: =IF(NOT(ISERROR(MATCH(K16,_xlfn.ANCHORARRAY(F27),0))),J29&"Por favor no seleccionar los criterios de impacto",K16) -> 0 | P16: 3 | Q16: Planeación de repuestos mediante análisis de criticidad. | R16: Probabilidad | S16: Preventivo | T16: Manual | U16: 40% | V16: Documentado | W16: Continua | X16: Sin Registro | Y16: =IFERROR(IF(AND(R15="Probabilidad",R16="Probabilidad"),(AA15-(+AA15*U16)),IF(AND(R15="Impacto",R16="Probabilidad"),(AA12-(+AA12*U16)),IF(R16="Impacto",AA15,""))),"") -> 0.1296 | Z16: Muy Baja | AA16: 0.1296 | AB16: Catastrófico | AC16: =IFERROR(IF(AND(R15="Impacto",R16="Impacto"),(AC15-(+AC15*U16)),IF(AND(R15="Probabilidad",R16="Impacto"),(AC12-(+AC12*U16)),IF(R16="Probabilidad",AC15,""))),"") -> 1 | AD16: Extremo | AE16: Reducir (mitigar) | AF16: Análisis de criticidad de repuestos. Identificar los criterios de evaluación de criticidad de repuestos, frecuencia de falla, impacto operacional, nivel de producción, costo de reparación , impacto de seguridad, impacto ambiental. | AG16: # repuestos en inventario periodo/# Demanda estimada total periodo | AH16: Subgerencia Técnica | AI16: 2022-12-31 | AJ16: 30/06/2022 31/12/2022 | AK16: 31/12/204 | AL16: En curso | AM16: Se realizó el análisis de repuestos críticos que se deben tener en stock por su tiempo de importación, tiempo de fabricación y valor, mediante diferentes contratos con empresas especializadas. En el primer trimestre han llegado el equivalente al 44%. | AN16: =103/236 -> 0.436440678 | AO16: Se realizó el análisis de repuestos críticos que se deben tener en stock por su tiempo de importación, tiempo de fabricación y valor, mediante diferentes contratos con empresas especializadas. En el primer trimestre han llegado el equivalente al 99%. | AP16: 0.9872881356
L17: =IF(NOT(ISERROR(MATCH(K17,_xlfn.ANCHORARRAY(F28),0))),J30&"Por favor no seleccionar los criterios de impacto",K17) -> 0 | P17: 4 | Q17: Determinar el numero de personas necesarias para la gestión del mantenimiento industrial. | R17: =IF(OR(S17="Preventivo",S17="Detectivo"),"Probabilidad",IF(S17="Correctivo","Impacto","")) -> Probabilidad | S17: Detectivo | T17: Manual | U17: 30% | V17: Sin Documentar | W17: Continua | X17: Sin Registro | Y17: =IFERROR(IF(AND(R16="Probabilidad",R17="Probabilidad"),(AA16-(+AA16*U17)),IF(AND(R16="Impacto",R17="Probabilidad"),(AA15-(+AA15*U17)),IF(R17="Impacto",AA16,""))),"") -> 0.09072 | Z17: Muy Baja | AA17: 0.09072 | AB17: Catastrófico | AC17: =IFERROR(IF(AND(R16="Impacto",R17="Impacto"),(AC16-(+AC16*U17)),IF(AND(R16="Probabilidad",R17="Impacto"),(AC15-(+AC15*U17)),IF(R17="Probabilidad",AC16,""))),"") -> 1 | AD17: =IFERROR(IF(OR(AND(Z17="Muy Baja",AB17="Leve"),AND(Z17="Muy Baja",AB17="Menor"),AND(Z17="Baja",AB17="Leve")),"Bajo",IF(OR(AND(Z17="Muy baja",AB17="Moderado"),AND(Z17="Baja",AB17="Menor"),AND(Z17="Baja",AB17="Moderado"),AND(Z17="Media",AB17="Leve"),AND(Z17="Media",AB17="Menor"),AND(Z17="Media",AB17="Moderado"),AND(Z17="Alta",AB17="Leve"),AND(Z17="Alta",AB17="Menor")),"Moderado",IF(OR(AND(Z17="Muy Baja",AB17="Mayor"),AND(Z17="Baja",AB17="Mayor"),AND(Z17="Media",AB17="Mayor"),AND(Z17="Alta",AB17="Moderado"),AND(Z17="Alta",AB17="Mayor"),AND(Z17="Muy Alta",AB17="Leve"),AND(Z17="Muy Alta",AB17="Menor"),AND(Z17="Muy Alta",AB17="Moderado"),AND(Z17="Muy Alta",AB17="Mayor")),"Alto",IF(OR(AND(Z17="Muy Baja",AB17="Catastrófico"),AND(Z17="Baja",AB17="Catastrófico"),AND(Z17="Media",AB17="Catastrófico"),AND(Z17="Alta",AB17="Catastrófico"),AND(Z17="Muy Alta",AB17="Catastrófico")),"Extremo","")))),"") -> Extremo | AE17: Reducir (mitigar) | AF17: Mantener el mínimo de personal dedicado a la gestión y ejecución del mantenimiento de equipos de 10 personas. | AG17: # personas activas mantenimiento / # personas planificadas mantenimiento | AH17: Subgerencia Técnica | AI17: 2022-12-31 | AJ17: 30/06/2022 31/12/2022 | AK17: 31/12/205 | AL17: En curso | AM17: Se realizó la contratación de dos personas OPS que apoyen el área de mantenimiento desde la ejecución y la evaluación técnica de los proyectos de inversión. Adicionalmente, se solicitó una persona técnica en mantenimiento industrial para hacer parte del equipo en las actividades de ejecución del mantenimiento industrial. | AN17: =+(1) -> 1 | AO17: se mantiene el personal para la planeación y ejecución del plan de mantenimiento industrial. | AP17: =+(1) -> 1
L18: =IF(NOT(ISERROR(MATCH(K18,_xlfn.ANCHORARRAY(F29),0))),J31&"Por favor no seleccionar los criterios de impacto",K18) -> 0 | P18: 5
L19: =IF(NOT(ISERROR(MATCH(K19,_xlfn.ANCHORARRAY(F30),0))),J32&"Por favor no seleccionar los criterios de impacto",K19) -> 0 | P19: 6
A20: 2 | B20: Mantenimiento de infraestructura fisica | C20: Económico y Reputacional | D20: Falta de red contra incendios (puesta en funcionamiento de la red) | E20: La falta de presupuesto para la ejecución del proyecto | F20: Incendio en las instalaciones | G20: Daños Activos Fisicos | H20: 365 | I20: =IF(H20<=0,"",IF(H20<=2,"Muy Baja",IF(H20<=24,"Baja",IF(H20<=500,"Media",IF(H20<=5000,"Alta","Muy Alta"))))) -> Media | J20: =IF(I20="","",IF(I20="Muy Baja",0.2,IF(I20="Baja",0.4,IF(I20="Media",0.6,IF(I20="Alta",0.8,IF(I20="Muy Alta",1,)))))) -> 0.6 | K20: Mayor a 500 SMLMV | L20: =IF(NOT(ISERROR(MATCH(K20,'[2]Tabla Impacto'!$B$221:$B$223,0))),'[2]Tabla Impacto'!$F$223&"Por favor no seleccionar los criterios de impacto(Afectación Económica o presupuestal y Pérdida Reputacional)",K20) -> Mayor a 500 SMLMV | M20: =IF(OR(L20='[2]Tabla Impacto'!$C$11,L20='[2]Tabla Impacto'!$D$11),"Leve",IF(OR(L20='[2]Tabla Impacto'!$C$12,L20='[2]Tabla Impacto'!$D$12),"Menor",IF(OR(L20='[2]Tabla Impacto'!$C$13,L20='[2]Tabla Impacto'!$D$13),"Moderado",IF(OR(L20='[2]Tabla Impacto'!$C$14,L20='[2]Tabla Impacto'!$D$14),"Mayor",IF(OR(L20='[2]Tabla Impacto'!$C$15,L20='[2]Tabla Impacto'!$D$15),"Catastrófico",""))))) -> Catastrófico | N20: =IF(M20="","",IF(M20="Leve",0.2,IF(M20="Menor",0.4,IF(M20="Moderado",0.6,IF(M20="Mayor",0.8,IF(M20="Catastrófico",1,)))))) -> 1 | O20: =IF(OR(AND(I20="Muy Baja",M20="Leve"),AND(I20="Muy Baja",M20="Menor"),AND(I20="Baja",M20="Leve")),"Bajo",IF(OR(AND(I20="Muy baja",M20="Moderado"),AND(I20="Baja",M20="Menor"),AND(I20="Baja",M20="Moderado"),AND(I20="Media",M20="Leve"),AND(I20="Media",M20="Menor"),AND(I20="Media",M20="Moderado"),AND(I20="Alta",M20="Leve"),AND(I20="Alta",M20="Menor")),"Moderado",IF(OR(AND(I20="Muy Baja",M20="Mayor"),AND(I20="Baja",M20="Mayor"),AND(I20="Media",M20="Mayor"),AND(I20="Alta",M20="Moderado"),AND(I20="Alta",M20="Mayor"),AND(I20="Muy Alta",M20="Leve"),AND(I20="Muy Alta",M20="Menor"),AND(I20="Muy Alta",M20="Moderado"),AND(I20="Muy Alta",M20="Mayor")),"Alto",IF(OR(AND(I20="Muy Baja",M20="Catastrófico"),AND(I20="Baja",M20="Catastrófico"),AND(I20="Media",M20="Catastrófico"),AND(I20="Alta",M20="Catastrófico"),AND(I20="Muy Alta",M20="Catastrófico")),"Extremo","")))) -> Extremo | P20: 1 | Q20: Se cuenta con la presencia del Grupo de Bomberos de Cundinamarca, con un camión en caso de emergencia. | R20: =IF(OR(S20="Preventivo",S20="Detectivo"),"Probabilidad",IF(S20="Correctivo","Impacto","")) -> Probabilidad | S20: Preventivo | T20: Manual | U20: =IF(AND(S20="Preventivo",T20="Automático"),"50%",IF(AND(S20="Preventivo",T20="Manual"),"40%",IF(AND(S20="Detectivo",T20="Automático"),"40%",IF(AND(S20="Detectivo",T20="Manual"),"30%",IF(AND(S20="Correctivo",T20="Automático"),"35%",IF(AND(S20="Correctivo",T20="Manual"),"25%","")))))) -> 40% | V20: Documentado | W20: Continua | X20: Con Registro | Y20: =IFERROR(IF(R20="Probabilidad",(J20-(+J20*U20)),IF(R20="Impacto",J20,"")),"") -> 0.36 | Z20: =IFERROR(IF(Y20="","",IF(Y20<=0.2,"Muy Baja",IF(Y20<=0.4,"Baja",IF(Y20<=0.6,"Media",IF(Y20<=0.8,"Alta","Muy Alta"))))),"") -> Baja | AA20: =+Y20 -> 0.36 | AB20: =IFERROR(IF(AC20="","",IF(AC20<=0.2,"Leve",IF(AC20<=0.4,"Menor",IF(AC20<=0.6,"Moderado",IF(AC20<=0.8,"Mayor","Catastrófico"))))),"") -> Catastrófico | AC20: =IFERROR(IF(R20="Impacto",(N20-(+N20*U20)),IF(R20="Probabilidad",N20,"")),"") -> 1 | AD20: =IFERROR(IF(OR(AND(Z20="Muy Baja",AB20="Leve"),AND(Z20="Muy Baja",AB20="Menor"),AND(Z20="Baja",AB20="Leve")),"Bajo",IF(OR(AND(Z20="Muy baja",AB20="Moderado"),AND(Z20="Baja",AB20="Menor"),AND(Z20="Baja",AB20="Moderado"),AND(Z20="Media",AB20="Leve"),AND(Z20="Media",AB20="Menor"),AND(Z20="Media",AB20="Moderado"),AND(Z20="Alta",AB20="Leve"),AND(Z20="Alta",AB20="Menor")),"Moderado",IF(OR(AND(Z20="Muy Baja",AB20="Mayor"),AND(Z20="Baja",AB20="Mayor"),AND(Z20="Media",AB20="Mayor"),AND(Z20="Alta",AB20="Moderado"),AND(Z20="Alta",AB20="Mayor"),AND(Z20="Muy Alta",AB20="Leve"),AND(Z20="Muy Alta",AB20="Menor"),AND(Z20="Muy Alta",AB20="Moderado"),AND(Z20="Muy Alta",AB20="Mayor")),"Alto",IF(OR(AND(Z20="Muy Baja",AB20="Catastrófico"),AND(Z20="Baja",AB20="Catastrófico"),AND(Z20="Media",AB20="Catastrófico"),AND(Z20="Alta",AB20="Catastrófico"),AND(Z20="Muy Alta",AB20="Catastrófico")),"Extremo","")))),"") -> Extremo | AE20: Reducir (mitigar) | AF20: Contrato con bomberos | AG20: informe mensual/12 | AH20: Subgerencia Administrativa | AI20: 2022-01-01 | AJ20: Diario | AL20: En curso | AM20: Se renueva el contrato el 3 de marzo, pero la cobertura es continua | AN20: 0.25 | AO20: Se tiene cobertura hasta el 2 de marzo de 2023 | AP20: 0.5
L21: =IF(NOT(ISERROR(MATCH(K21,_xlfn.ANCHORARRAY(F32),0))),J34&"Por favor no seleccionar los criterios de impacto",K21) -> 0 | P21: 2 | Q21: Pólizas de seguro contra incendios. | R21: =IF(OR(S21="Preventivo",S21="Detectivo"),"Probabilidad",IF(S21="Correctivo","Impacto","")) -> Probabilidad | S21: Preventivo | T21: Manual | U21: =IF(AND(S21="Preventivo",T21="Automático"),"50%",IF(AND(S21="Preventivo",T21="Manual"),"40%",IF(AND(S21="Detectivo",T21="Automático"),"40%",IF(AND(S21="Detectivo",T21="Manual"),"30%",IF(AND(S21="Correctivo",T21="Automático"),"35%",IF(AND(S21="Correctivo",T21="Manual"),"25%","")))))) -> 40% | V21: Documentado | W21: Continua | X21: Con Registro | Y21: =IFERROR(IF(AND(R20="Probabilidad",R21="Probabilidad"),(AA20-(+AA20*U21)),IF(R21="Probabilidad",(J20-(+J20*U21)),IF(R21="Impacto",AA20,""))),"") -> 0.216 | Z21: =IFERROR(IF(Y21="","",IF(Y21<=0.2,"Muy Baja",IF(Y21<=0.4,"Baja",IF(Y21<=0.6,"Media",IF(Y21<=0.8,"Alta","Muy Alta"))))),"") -> Baja | AA21: =+Y21 -> 0.216 | AB21: =IFERROR(IF(AC21="","",IF(AC21<=0.2,"Leve",IF(AC21<=0.4,"Menor",IF(AC21<=0.6,"Moderado",IF(AC21<=0.8,"Mayor","Catastrófico"))))),"") -> Catastrófico | AC21: =IFERROR(IF(AND(R20="Impacto",R21="Impacto"),(AC20-(+AC20*U21)),IF(R21="Impacto",(N20-(+N20*U21)),IF(R21="Probabilidad",AC20,""))),"") -> 1 | AD21: =IFERROR(IF(OR(AND(Z21="Muy Baja",AB21="Leve"),AND(Z21="Muy Baja",AB21="Menor"),AND(Z21="Baja",AB21="Leve")),"Bajo",IF(OR(AND(Z21="Muy baja",AB21="Moderado"),AND(Z21="Baja",AB21="Menor"),AND(Z21="Baja",AB21="Moderado"),AND(Z21="Media",AB21="Leve"),AND(Z21="Media",AB21="Menor"),AND(Z21="Media",AB21="Moderado"),AND(Z21="Alta",AB21="Leve"),AND(Z21="Alta",AB21="Menor")),"Moderado",IF(OR(AND(Z21="Muy Baja",AB21="Mayor"),AND(Z21="Baja",AB21="Mayor"),AND(Z21="Media",AB21="Mayor"),AND(Z21="Alta",AB21="Moderado"),AND(Z21="Alta",AB21="Mayor"),AND(Z21="Muy Alta",AB21="Leve"),AND(Z21="Muy Alta",AB21="Menor"),AND(Z21="Muy Alta",AB21="Moderado"),AND(Z21="Muy Alta",AB21="Mayor")),"Alto",IF(OR(AND(Z21="Muy Baja",AB21="Catastrófico"),AND(Z21="Baja",AB21="Catastrófico"),AND(Z21="Media",AB21="Catastrófico"),AND(Z21="Alta",AB21="Catastrófico"),AND(Z21="Muy Alta",AB21="Catastrófico")),"Extremo","")))),"") -> Extremo | AE21: Reducir (mitigar) | AF21: Póliza contraincendios | AG21: Aprobación de la póliza | AH21: Subgerencia Administrativa | AJ21: Diario | AL21: En curso | AM21: la póliza esta en cobertura hasta marzo de 2023 | AN21: Póliza aprobada | AO21: la póliza esta en cobertura hasta marzo de 2023 | AP21: Póliza aprobada
L22: =IF(NOT(ISERROR(MATCH(K22,_xlfn.ANCHORARRAY(F33),0))),J35&"Por favor no seleccionar los criterios de impacto",K22) -> 0 | P22: 3 | Q22: Se hizo una contratación con la empresa Indesca Ingeniería y desarrollo encargada del diseño de la red contra incendios. | R22: =IF(OR(S22="Preventivo",S22="Detectivo"),"Probabilidad",IF(S22="Correctivo","Impacto","")) -> Impacto | S22: Correctivo | T22: Manual | U22: 25% | V22: Documentado | W22: Continua | X22: Con Registro | Y22: =IFERROR(IF(AND(R21="Probabilidad",R22="Probabilidad"),(AA21-(+AA21*U22)),IF(AND(R21="Impacto",R22="Probabilidad"),(AA20-(+AA20*U22)),IF(R22="Impacto",AA21,""))),"") -> 0.216 | Z22: Baja | AA22: 0.216 | AB22: Mayor | AC22: =IFERROR(IF(AND(R21="Impacto",R22="Impacto"),(AC21-(+AC21*U22)),IF(AND(R21="Probabilidad",R22="Impacto"),(AC20-(+AC20*U22)),IF(R22="Probabilidad",AC21,""))),"") -> 0.75 | AD22: Alto | AE22: Evitar | AF22: Informes de ejecución del contrato | AG22: Informes presentados/# informes solicitados | AH22: Subgerencia Administrativa | AI22: 2022-06-01 | AJ22: Periodicamente | AL22: En curso | AM22: Se cuenta con el diseño de la red, pero se tiene previsto la ejecucion de esta para el año 2023 | AN22: 1 | AO22: Se cuenta con el diseño de la red, pero se tiene previsto la ejecucion de esta para el año 2023 | AP22: 1
L23: =IF(NOT(ISERROR(MATCH(K23,_xlfn.ANCHORARRAY(F34),0))),J36&"Por favor no seleccionar los criterios de impacto",K23) -> 0 | P23: 4 | R23: =IF(OR(S23="Preventivo",S23="Detectivo"),"Probabilidad",IF(S23="Correctivo","Impacto","")) ->  | Y23: =IFERROR(IF(AND(R22="Probabilidad",R23="Probabilidad"),(AA22-(+AA22*U23)),IF(AND(R22="Impacto",R23="Probabilidad"),(AA21-(+AA21*U23)),IF(R23="Impacto",AA22,""))),"") ->  | AC23: =IFERROR(IF(AND(R22="Impacto",R23="Impacto"),(AC22-(+AC22*U23)),IF(AND(R22="Probabilidad",R23="Impacto"),(AC21-(+AC21*U23)),IF(R23="Probabilidad",AC22,""))),"") ->  | AD23: =IFERROR(IF(OR(AND(Z23="Muy Baja",AB23="Leve"),AND(Z23="Muy Baja",AB23="Menor"),AND(Z23="Baja",AB23="Leve")),"Bajo",IF(OR(AND(Z23="Muy baja",AB23="Moderado"),AND(Z23="Baja",AB23="Menor"),AND(Z23="Baja",AB23="Moderado"),AND(Z23="Media",AB23="Leve"),AND(Z23="Media",AB23="Menor"),AND(Z23="Media",AB23="Moderado"),AND(Z23="Alta",AB23="Leve"),AND(Z23="Alta",AB23="Menor")),"Moderado",IF(OR(AND(Z23="Muy Baja",AB23="Mayor"),AND(Z23="Baja",AB23="Mayor"),AND(Z23="Media",AB23="Mayor"),AND(Z23="Alta",AB23="Moderado"),AND(Z23="Alta",AB23="Mayor"),AND(Z23="Muy Alta",AB23="Leve"),AND(Z23="Muy Alta",AB23="Menor"),AND(Z23="Muy Alta",AB23="Moderado"),AND(Z23="Muy Alta",AB23="Mayor")),"Alto",IF(OR(AND(Z23="Muy Baja",AB23="Catastrófico"),AND(Z23="Baja",AB23="Catastrófico"),AND(Z23="Media",AB23="Catastrófico"),AND(Z23="Alta",AB23="Catastrófico"),AND(Z23="Muy Alta",AB23="Catastrófico")),"Extremo","")))),"") -> 
L24: =IF(NOT(ISERROR(MATCH(K24,_xlfn.ANCHORARRAY(F35),0))),J37&"Por favor no seleccionar los criterios de impacto",K24) -> 0 | P24: 5
L25: =IF(NOT(ISERROR(MATCH(K25,_xlfn.ANCHORARRAY(F36),0))),J38&"Por favor no seleccionar los criterios de impacto",K25) -> 0 | P25: 6
A26: 3 | C26: Económico y Reputacional | D26: Falta de sistema eficiente de evacuación de aguas lluvias | E26: * Canales inadecuadas * Red hidráulica inadecuada | F26: inundación de las instalaciones | G26: Daños Activos Fisicos | H26: 365 | I26: =IF(H26<=0,"",IF(H26<=2,"Muy Baja",IF(H26<=24,"Baja",IF(H26<=500,"Media",IF(H26<=5000,"Alta","Muy Alta"))))) -> Media | J26: =IF(I26="","",IF(I26="Muy Baja",0.2,IF(I26="Baja",0.4,IF(I26="Media",0.6,IF(I26="Alta",0.8,IF(I26="Muy Alta",1,)))))) -> 0.6 | K26: Mayor a 500 SMLMV | L26: =IF(NOT(ISERROR(MATCH(K26,'[2]Tabla Impacto'!$B$221:$B$223,0))),'[2]Tabla Impacto'!$F$223&"Por favor no seleccionar los criterios de impacto(Afectación Económica o presupuestal y Pérdida Reputacional)",K26) -> Mayor a 500 SMLMV | M26: =IF(OR(L26='[2]Tabla Impacto'!$C$11,L26='[2]Tabla Impacto'!$D$11),"Leve",IF(OR(L26='[2]Tabla Impacto'!$C$12,L26='[2]Tabla Impacto'!$D$12),"Menor",IF(OR(L26='[2]Tabla Impacto'!$C$13,L26='[2]Tabla Impacto'!$D$13),"Moderado",IF(OR(L26='[2]Tabla Impacto'!$C$14,L26='[2]Tabla Impacto'!$D$14),"Mayor",IF(OR(L26='[2]Tabla Impacto'!$C$15,L26='[2]Tabla Impacto'!$D$15),"Catastrófico",""))))) -> Catastrófico | N26: =IF(M26="","",IF(M26="Leve",0.2,IF(M26="Menor",0.4,IF(M26="Moderado",0.6,IF(M26="Mayor",0.8,IF(M26="Catastrófico",1,)))))) -> 1 | O26: =IF(OR(AND(I26="Muy Baja",M26="Leve"),AND(I26="Muy Baja",M26="Menor"),AND(I26="Baja",M26="Leve")),"Bajo",IF(OR(AND(I26="Muy baja",M26="Moderado"),AND(I26="Baja",M26="Menor"),AND(I26="Baja",M26="Moderado"),AND(I26="Media",M26="Leve"),AND(I26="Media",M26="Menor"),AND(I26="Media",M26="Moderado"),AND(I26="Alta",M26="Leve"),AND(I26="Alta",M26="Menor")),"Moderado",IF(OR(AND(I26="Muy Baja",M26="Mayor"),AND(I26="Baja",M26="Mayor"),AND(I26="Media",M26="Mayor"),AND(I26="Alta",M26="Moderado"),AND(I26="Alta",M26="Mayor"),AND(I26="Muy Alta",M26="Leve"),AND(I26="Muy Alta",M26="Menor"),AND(I26="Muy Alta",M26="Moderado"),AND(I26="Muy Alta",M26="Mayor")),"Alto",IF(OR(AND(I26="Muy Baja",M26="Catastrófico"),AND(I26="Baja",M26="Catastrófico"),AND(I26="Media",M26="Catastrófico"),AND(I26="Alta",M26="Catastrófico"),AND(I26="Muy Alta",M26="Catastrófico")),"Extremo","")))) -> Extremo | P26: 1 | Q26: Se cuenta con un sistema de eyección automático en los reservorios para evitar la acumulación de agua lluvia. Adicionalmente se ejecuta un plan de mantenimiento para asegurar que estos mecanismos funciones. | R26: =IF(OR(S26="Preventivo",S26="Detectivo"),"Probabilidad",IF(S26="Correctivo","Impacto","")) -> Probabilidad | S26: Preventivo | T26: Automático | U26: =IF(AND(S26="Preventivo",T26="Automático"),"50%",IF(AND(S26="Preventivo",T26="Manual"),"40%",IF(AND(S26="Detectivo",T26="Automático"),"40%",IF(AND(S26="Detectivo",T26="Manual"),"30%",IF(AND(S26="Correctivo",T26="Automático"),"35%",IF(AND(S26="Correctivo",T26="Manual"),"25%","")))))) -> 50% | V26: Sin Documentar | W26: Continua | X26: Con Registro | Y26: =IFERROR(IF(R26="Probabilidad",(J26-(+J26*U26)),IF(R26="Impacto",J26,"")),"") -> 0.3 | Z26: =IFERROR(IF(Y26="","",IF(Y26<=0.2,"Muy Baja",IF(Y26<=0.4,"Baja",IF(Y26<=0.6,"Media",IF(Y26<=0.8,"Alta","Muy Alta"))))),"") -> Baja | AA26: =+Y26 -> 0.3 | AB26: =IFERROR(IF(AC26="","",IF(AC26<=0.2,"Leve",IF(AC26<=0.4,"Menor",IF(AC26<=0.6,"Moderado",IF(AC26<=0.8,"Mayor","Catastrófico"))))),"") -> Catastrófico | AC26: =IFERROR(IF(R26="Impacto",(N26-(+N26*U26)),IF(R26="Probabilidad",N26,"")),"") -> 1 | AD26: =IFERROR(IF(OR(AND(Z26="Muy Baja",AB26="Leve"),AND(Z26="Muy Baja",AB26="Menor"),AND(Z26="Baja",AB26="Leve")),"Bajo",IF(OR(AND(Z26="Muy baja",AB26="Moderado"),AND(Z26="Baja",AB26="Menor"),AND(Z26="Baja",AB26="Moderado"),AND(Z26="Media",AB26="Leve"),AND(Z26="Media",AB26="Menor"),AND(Z26="Media",AB26="Moderado"),AND(Z26="Alta",AB26="Leve"),AND(Z26="Alta",AB26="Menor")),"Moderado",IF(OR(AND(Z26="Muy Baja",AB26="Mayor"),AND(Z26="Baja",AB26="Mayor"),AND(Z26="Media",AB26="Mayor"),AND(Z26="Alta",AB26="Moderado"),AND(Z26="Alta",AB26="Mayor"),AND(Z26="Muy Alta",AB26="Leve"),AND(Z26="Muy Alta",AB26="Menor"),AND(Z26="Muy Alta",AB26="Moderado"),AND(Z26="Muy Alta",AB26="Mayor")),"Alto",IF(OR(AND(Z26="Muy Baja",AB26="Catastrófico"),AND(Z26="Baja",AB26="Catastrófico"),AND(Z26="Media",AB26="Catastrófico"),AND(Z26="Alta",AB26="Catastrófico"),AND(Z26="Muy Alta",AB26="Catastrófico")),"Extremo","")))),"") -> Extremo | AE26: Reducir (mitigar) | AF26: * Cambio de tuberías y desagües * Revisar instalaciones hidráulicas | AG26: Ordenes ejecutadas/ ordenes planificadas en sistema SAP | AH26: Subgerencia Administrativa | AI26: 2022-01-01 | AJ26: Diario | AL26: En curso | AM26: Las tuberías se cambiaron y se encuentran en optimas condiciones, se ha venido realizando mantenimiento e inspección semanalmente | AN26: =13/13 -> 1 | AO26: Se ha venido realizando mantenimiento e inspección semanalmente | AP26: =26/26 -> 1
L27: =IF(NOT(ISERROR(MATCH(K27,_xlfn.ANCHORARRAY(F38),0))),J40&"Por favor no seleccionar los criterios de impacto",K27) -> 0 | P27: 2 | R27: =IF(OR(S27="Preventivo",S27="Detectivo"),"Probabilidad",IF(S27="Correctivo","Impacto","")) ->  | U27: =IF(AND(S27="Preventivo",T27="Automático"),"50%",IF(AND(S27="Preventivo",T27="Manual"),"40%",IF(AND(S27="Detectivo",T27="Automático"),"40%",IF(AND(S27="Detectivo",T27="Manual"),"30%",IF(AND(S27="Correctivo",T27="Automático"),"35%",IF(AND(S27="Correctivo",T27="Manual"),"25%","")))))) ->  | Y27: =IFERROR(IF(AND(R26="Probabilidad",R27="Probabilidad"),(AA26-(+AA26*U27)),IF(R27="Probabilidad",(J26-(+J26*U27)),IF(R27="Impacto",AA26,""))),"") ->  | Z27: =IFERROR(IF(Y27="","",IF(Y27<=0.2,"Muy Baja",IF(Y27<=0.4,"Baja",IF(Y27<=0.6,"Media",IF(Y27<=0.8,"Alta","Muy Alta"))))),"") ->  | AA27: =+Y27 ->  | AB27: =IFERROR(IF(AC27="","",IF(AC27<=0.2,"Leve",IF(AC27<=0.4,"Menor",IF(AC27<=0.6,"Moderado",IF(AC27<=0.8,"Mayor","Catastrófico"))))),"") ->  | AC27: =IFERROR(IF(AND(R26="Impacto",R27="Impacto"),(AC26-(+AC26*U27)),IF(R27="Impacto",(N26-(+N26*U27)),IF(R27="Probabilidad",AC26,""))),"") ->  | AD27: =IFERROR(IF(OR(AND(Z27="Muy Baja",AB27="Leve"),AND(Z27="Muy Baja",AB27="Menor"),AND(Z27="Baja",AB27="Leve")),"Bajo",IF(OR(AND(Z27="Muy baja",AB27="Moderado"),AND(Z27="Baja",AB27="Menor"),AND(Z27="Baja",AB27="Moderado"),AND(Z27="Media",AB27="Leve"),AND(Z27="Media",AB27="Menor"),AND(Z27="Media",AB27="Moderado"),AND(Z27="Alta",AB27="Leve"),AND(Z27="Alta",AB27="Menor")),"Moderado",IF(OR(AND(Z27="Muy Baja",AB27="Mayor"),AND(Z27="Baja",AB27="Mayor"),AND(Z27="Media",AB27="Mayor"),AND(Z27="Alta",AB27="Moderado"),AND(Z27="Alta",AB27="Mayor"),AND(Z27="Muy Alta",AB27="Leve"),AND(Z27="Muy Alta",AB27="Menor"),AND(Z27="Muy Alta",AB27="Moderado"),AND(Z27="Muy Alta",AB27="Mayor")),"Alto",IF(OR(AND(Z27="Muy Baja",AB27="Catastrófico"),AND(Z27="Baja",AB27="Catastrófico"),AND(Z27="Media",AB27="Catastrófico"),AND(Z27="Alta",AB27="Catastrófico"),AND(Z27="Muy Alta",AB27="Catastrófico")),"Extremo","")))),"") -> 
L28: =IF(NOT(ISERROR(MATCH(K28,_xlfn.ANCHORARRAY(F39),0))),J41&"Por favor no seleccionar los criterios de impacto",K28) -> 0 | P28: 3 | R28: =IF(OR(S28="Preventivo",S28="Detectivo"),"Probabilidad",IF(S28="Correctivo","Impacto","")) ->  | Y28: =IFERROR(IF(AND(R27="Probabilidad",R28="Probabilidad"),(AA27-(+AA27*U28)),IF(AND(R27="Impacto",R28="Probabilidad"),(AA26-(+AA26*U28)),IF(R28="Impacto",AA27,""))),"") ->  | AC28: =IFERROR(IF(AND(R27="Impacto",R28="Impacto"),(AC27-(+AC27*U28)),IF(AND(R27="Probabilidad",R28="Impacto"),(AC26-(+AC26*U28)),IF(R28="Probabilidad",AC27,""))),"") -> 
L29: =IF(NOT(ISERROR(MATCH(K29,_xlfn.ANCHORARRAY(F40),0))),J42&"Por favor no seleccionar los criterios de impacto",K29) -> 0 | P29: 4 | R29: =IF(OR(S29="Preventivo",S29="Detectivo"),"Probabilidad",IF(S29="Correctivo","Impacto","")) ->  | Y29: =IFERROR(IF(AND(R28="Probabilidad",R29="Probabilidad"),(AA28-(+AA28*U29)),IF(AND(R28="Impacto",R29="Probabilidad"),(AA27-(+AA27*U29)),IF(R29="Impacto",AA28,""))),"") ->  | AC29: =IFERROR(IF(AND(R28="Impacto",R29="Impacto"),(AC28-(+AC28*U29)),IF(AND(R28="Probabilidad",R29="Impacto"),(AC27-(+AC27*U29)),IF(R29="Probabilidad",AC28,""))),"") ->  | AD29: =IFERROR(IF(OR(AND(Z29="Muy Baja",AB29="Leve"),AND(Z29="Muy Baja",AB29="Menor"),AND(Z29="Baja",AB29="Leve")),"Bajo",IF(OR(AND(Z29="Muy baja",AB29="Moderado"),AND(Z29="Baja",AB29="Menor"),AND(Z29="Baja",AB29="Moderado"),AND(Z29="Media",AB29="Leve"),AND(Z29="Media",AB29="Menor"),AND(Z29="Media",AB29="Moderado"),AND(Z29="Alta",AB29="Leve"),AND(Z29="Alta",AB29="Menor")),"Moderado",IF(OR(AND(Z29="Muy Baja",AB29="Mayor"),AND(Z29="Baja",AB29="Mayor"),AND(Z29="Media",AB29="Mayor"),AND(Z29="Alta",AB29="Moderado"),AND(Z29="Alta",AB29="Mayor"),AND(Z29="Muy Alta",AB29="Leve"),AND(Z29="Muy Alta",AB29="Menor"),AND(Z29="Muy Alta",AB29="Moderado"),AND(Z29="Muy Alta",AB29="Mayor")),"Alto",IF(OR(AND(Z29="Muy Baja",AB29="Catastrófico"),AND(Z29="Baja",AB29="Catastrófico"),AND(Z29="Media",AB29="Catastrófico"),AND(Z29="Alta",AB29="Catastrófico"),AND(Z29="Muy Alta",AB29="Catastrófico")),"Extremo","")))),"") -> 
L30: =IF(NOT(ISERROR(MATCH(K30,_xlfn.ANCHORARRAY(F41),0))),J43&"Por favor no seleccionar los criterios de impacto",K30) -> 0 | P30: 5 | AD30: =IFERROR(IF(OR(AND(Z30="Muy Baja",AB30="Leve"),AND(Z30="Muy Baja",AB30="Menor"),AND(Z30="Baja",AB30="Leve")),"Bajo",IF(OR(AND(Z30="Muy baja",AB30="Moderado"),AND(Z30="Baja",AB30="Menor"),AND(Z30="Baja",AB30="Moderado"),AND(Z30="Media",AB30="Leve"),AND(Z30="Media",AB30="Menor"),AND(Z30="Media",AB30="Moderado"),AND(Z30="Alta",AB30="Leve"),AND(Z30="Alta",AB30="Menor")),"Moderado",IF(OR(AND(Z30="Muy Baja",AB30="Mayor"),AND(Z30="Baja",AB30="Mayor"),AND(Z30="Media",AB30="Mayor"),AND(Z30="Alta",AB30="Moderado"),AND(Z30="Alta",AB30="Mayor"),AND(Z30="Muy Alta",AB30="Leve"),AND(Z30="Muy Alta",AB30="Menor"),AND(Z30="Muy Alta",AB30="Moderado"),AND(Z30="Muy Alta",AB30="Mayor")),"Alto",IF(OR(AND(Z30="Muy Baja",AB30="Catastrófico"),AND(Z30="Baja",AB30="Catastrófico"),AND(Z30="Media",AB30="Catastrófico"),AND(Z30="Alta",AB30="Catastrófico"),AND(Z30="Muy Alta",AB30="Catastrófico")),"Extremo","")))),"") -> 
L31: =IF(NOT(ISERROR(MATCH(K31,_xlfn.ANCHORARRAY(F42),0))),J44&"Por favor no seleccionar los criterios de impacto",K31) -> 0 | P31: 6
A32: 4 | C32: Económico | D32: Picos elevados de voltaje | E32: *Falta de mantenimiento a las subestaciones eléctricas * Suministros altos de voltaje por parte de la empresa encargada de la red | F32: Afectación a maquinaria y equipos | G32: Daños Activos Fisicos | H32: 365 | I32: =IF(H32<=0,"",IF(H32<=2,"Muy Baja",IF(H32<=24,"Baja",IF(H32<=500,"Media",IF(H32<=5000,"Alta","Muy Alta"))))) -> Media | J32: =IF(I32="","",IF(I32="Muy Baja",0.2,IF(I32="Baja",0.4,IF(I32="Media",0.6,IF(I32="Alta",0.8,IF(I32="Muy Alta",1,)))))) -> 0.6 | K32: Mayor a 500 SMLMV | L32: =IF(NOT(ISERROR(MATCH(K32,'[2]Tabla Impacto'!$B$221:$B$223,0))),'[2]Tabla Impacto'!$F$223&"Por favor no seleccionar los criterios de impacto(Afectación Económica o presupuestal y Pérdida Reputacional)",K32) -> Mayor a 500 SMLMV | M32: =IF(OR(L32='[2]Tabla Impacto'!$C$11,L32='[2]Tabla Impacto'!$D$11),"Leve",IF(OR(L32='[2]Tabla Impacto'!$C$12,L32='[2]Tabla Impacto'!$D$12),"Menor",IF(OR(L32='[2]Tabla Impacto'!$C$13,L32='[2]Tabla Impacto'!$D$13),"Moderado",IF(OR(L32='[2]Tabla Impacto'!$C$14,L32='[2]Tabla Impacto'!$D$14),"Mayor",IF(OR(L32='[2]Tabla Impacto'!$C$15,L32='[2]Tabla Impacto'!$D$15),"Catastrófico",""))))) -> Catastrófico | N32: =IF(M32="","",IF(M32="Leve",0.2,IF(M32="Menor",0.4,IF(M32="Moderado",0.6,IF(M32="Mayor",0.8,IF(M32="Catastrófico",1,)))))) -> 1 | O32: =IF(OR(AND(I32="Muy Baja",M32="Leve"),AND(I32="Muy Baja",M32="Menor"),AND(I32="Baja",M32="Leve")),"Bajo",IF(OR(AND(I32="Muy baja",M32="Moderado"),AND(I32="Baja",M32="Menor"),AND(I32="Baja",M32="Moderado"),AND(I32="Media",M32="Leve"),AND(I32="Media",M32="Menor"),AND(I32="Media",M32="Moderado"),AND(I32="Alta",M32="Leve"),AND(I32="Alta",M32="Menor")),"Moderado",IF(OR(AND(I32="Muy Baja",M32="Mayor"),AND(I32="Baja",M32="Mayor"),AND(I32="Media",M32="Mayor"),AND(I32="Alta",M32="Moderado"),AND(I32="Alta",M32="Mayor"),AND(I32="Muy Alta",M32="Leve"),AND(I32="Muy Alta",M32="Menor"),AND(I32="Muy Alta",M32="Moderado"),AND(I32="Muy Alta",M32="Mayor")),"Alto",IF(OR(AND(I32="Muy Baja",M32="Catastrófico"),AND(I32="Baja",M32="Catastrófico"),AND(I32="Media",M32="Catastrófico"),AND(I32="Alta",M32="Catastrófico"),AND(I32="Muy Alta",M32="Catastrófico")),"Extremo","")))) -> Extremo | P32: 1 | Q32: Se inspecciona a diario los tableros de voltaje para cerciorar que el voltaje sea el adecuado | R32: =IF(OR(S32="Preventivo",S32="Detectivo"),"Probabilidad",IF(S32="Correctivo","Impacto","")) -> Probabilidad | S32: Preventivo | T32: Manual | U32: =IF(AND(S32="Preventivo",T32="Automático"),"50%",IF(AND(S32="Preventivo",T32="Manual"),"40%",IF(AND(S32="Detectivo",T32="Automático"),"40%",IF(AND(S32="Detectivo",T32="Manual"),"30%",IF(AND(S32="Correctivo",T32="Automático"),"35%",IF(AND(S32="Correctivo",T32="Manual"),"25%","")))))) -> 40% | V32: Sin Documentar | W32: Continua | X32: Sin Registro | Y32: =IFERROR(IF(R32="Probabilidad",(J32-(+J32*U32)),IF(R32="Impacto",J32,"")),"") -> 0.36 | Z32: =IFERROR(IF(Y32="","",IF(Y32<=0.2,"Muy Baja",IF(Y32<=0.4,"Baja",IF(Y32<=0.6,"Media",IF(Y32<=0.8,"Alta","Muy Alta"))))),"") -> Baja | AA32: =+Y32 -> 0.36 | AB32: =IFERROR(IF(AC32="","",IF(AC32<=0.2,"Leve",IF(AC32<=0.4,"Menor",IF(AC32<=0.6,"Moderado",IF(AC32<=0.8,"Mayor","Catastrófico"))))),"") -> Catastrófico | AC32: =IFERROR(IF(R32="Impacto",(N32-(+N32*U32)),IF(R32="Probabilidad",N32,"")),"") -> 1 | AD32: =IFERROR(IF(OR(AND(Z32="Muy Baja",AB32="Leve"),AND(Z32="Muy Baja",AB32="Menor"),AND(Z32="Baja",AB32="Leve")),"Bajo",IF(OR(AND(Z32="Muy baja",AB32="Moderado"),AND(Z32="Baja",AB32="Menor"),AND(Z32="Baja",AB32="Moderado"),AND(Z32="Media",AB32="Leve"),AND(Z32="Media",AB32="Menor"),AND(Z32="Media",AB32="Moderado"),AND(Z32="Alta",AB32="Leve"),AND(Z32="Alta",AB32="Menor")),"Moderado",IF(OR(AND(Z32="Muy Baja",AB32="Mayor"),AND(Z32="Baja",AB32="Mayor"),AND(Z32="Media",AB32="Mayor"),AND(Z32="Alta",AB32="Moderado"),AND(Z32="Alta",AB32="Mayor"),AND(Z32="Muy Alta",AB32="Leve"),AND(Z32="Muy Alta",AB32="Menor"),AND(Z32="Muy Alta",AB32="Moderado"),AND(Z32="Muy Alta",AB32="Mayor")),"Alto",IF(OR(AND(Z32="Muy Baja",AB32="Catastrófico"),AND(Z32="Baja",AB32="Catastrófico"),AND(Z32="Media",AB32="Catastrófico"),AND(Z32="Alta",AB32="Catastrófico"),AND(Z32="Muy Alta",AB32="Catastrófico")),"Extremo","")))),"") -> Extremo | AE32: Reducir (mitigar) | AF32: * revisión de funcionamiento de las subestaciones eléctricas * Mantenimiento delas subestaciones eléctricas * Solicitud de visitas técnicas por parte de la empresa que suministrar la energía | AG32: Alertas solucionadas / Alertas presentadas | AH32: Subgerencia Administrativa | AI32: 2022-01-01 | AJ32: Diario | AL32: En curso | AM32: Se solicitaron visitas técnicas para la regulación del voltaje | AN32: 1 | AO32: Se solicitaron visitas técnicas para la regulación del voltaje, se empezó el proceso de contratación para el mantenimiento de las subestaciones | AP32: 1
L33: =IF(NOT(ISERROR(MATCH(K33,_xlfn.ANCHORARRAY(F44),0))),J46&"Por favor no seleccionar los criterios de impacto",K33) -> 0 | P33: 2 | R33: =IF(OR(S33="Preventivo",S33="Detectivo"),"Probabilidad",IF(S33="Correctivo","Impacto","")) ->  | U33: =IF(AND(S33="Preventivo",T33="Automático"),"50%",IF(AND(S33="Preventivo",T33="Manual"),"40%",IF(AND(S33="Detectivo",T33="Automático"),"40%",IF(AND(S33="Detectivo",T33="Manual"),"30%",IF(AND(S33="Correctivo",T33="Automático"),"35%",IF(AND(S33="Correctivo",T33="Manual"),"25%","")))))) ->  | Y33: =IFERROR(IF(AND(R32="Probabilidad",R33="Probabilidad"),(AA32-(+AA32*U33)),IF(R33="Probabilidad",(J32-(+J32*U33)),IF(R33="Impacto",AA32,""))),"") ->  | Z33: =IFERROR(IF(Y33="","",IF(Y33<=0.2,"Muy Baja",IF(Y33<=0.4,"Baja",IF(Y33<=0.6,"Media",IF(Y33<=0.8,"Alta","Muy Alta"))))),"") ->  | AA33: =+Y33 ->  | AB33: =IFERROR(IF(AC33="","",IF(AC33<=0.2,"Leve",IF(AC33<=0.4,"Menor",IF(AC33<=0.6,"Moderado",IF(AC33<=0.8,"Mayor","Catastrófico"))))),"") ->  | AC33: =IFERROR(IF(AND(R32="Impacto",R33="Impacto"),(AC32-(+AC32*U33)),IF(R33="Impacto",(N32-(+N32*U33)),IF(R33="Probabilidad",AC32,""))),"") ->  | AD33: =IFERROR(IF(OR(AND(Z33="Muy Baja",AB33="Leve"),AND(Z33="Muy Baja",AB33="Menor"),AND(Z33="Baja",AB33="Leve")),"Bajo",IF(OR(AND(Z33="Muy baja",AB33="Moderado"),AND(Z33="Baja",AB33="Menor"),AND(Z33="Baja",AB33="Moderado"),AND(Z33="Media",AB33="Leve"),AND(Z33="Media",AB33="Menor"),AND(Z33="Media",AB33="Moderado"),AND(Z33="Alta",AB33="Leve"),AND(Z33="Alta",AB33="Menor")),"Moderado",IF(OR(AND(Z33="Muy Baja",AB33="Mayor"),AND(Z33="Baja",AB33="Mayor"),AND(Z33="Media",AB33="Mayor"),AND(Z33="Alta",AB33="Moderado"),AND(Z33="Alta",AB33="Mayor"),AND(Z33="Muy Alta",AB33="Leve"),AND(Z33="Muy Alta",AB33="Menor"),AND(Z33="Muy Alta",AB33="Moderado"),AND(Z33="Muy Alta",AB33="Mayor")),"Alto",IF(OR(AND(Z33="Muy Baja",AB33="Catastrófico"),AND(Z33="Baja",AB33="Catastrófico"),AND(Z33="Media",AB33="Catastrófico"),AND(Z33="Alta",AB33="Catastrófico"),AND(Z33="Muy Alta",AB33="Catastrófico")),"Extremo","")))),"") -> 
L34: 0 | P34: 3 | R34: =IF(OR(S34="Preventivo",S34="Detectivo"),"Probabilidad",IF(S34="Correctivo","Impacto","")) ->  | Y34: =IFERROR(IF(AND(R33="Probabilidad",R34="Probabilidad"),(AA33-(+AA33*U34)),IF(AND(R33="Impacto",R34="Probabilidad"),(AA32-(+AA32*U34)),IF(R34="Impacto",AA33,""))),"") ->  | AC34: =IFERROR(IF(AND(R33="Impacto",R34="Impacto"),(AC33-(+AC33*U34)),IF(AND(R33="Probabilidad",R34="Impacto"),(AC32-(+AC32*U34)),IF(R34="Probabilidad",AC33,""))),"") -> 
L35: 0 | P35: 4 | R35: =IF(OR(S35="Preventivo",S35="Detectivo"),"Probabilidad",IF(S35="Correctivo","Impacto","")) ->  | Y35: =IFERROR(IF(AND(R34="Probabilidad",R35="Probabilidad"),(AA34-(+AA34*U35)),IF(AND(R34="Impacto",R35="Probabilidad"),(AA33-(+AA33*U35)),IF(R35="Impacto",AA34,""))),"") ->  | AC35: =IFERROR(IF(AND(R34="Impacto",R35="Impacto"),(AC34-(+AC34*U35)),IF(AND(R34="Probabilidad",R35="Impacto"),(AC33-(+AC33*U35)),IF(R35="Probabilidad",AC34,""))),"") ->  | AD35: =IFERROR(IF(OR(AND(Z35="Muy Baja",AB35="Leve"),AND(Z35="Muy Baja",AB35="Menor"),AND(Z35="Baja",AB35="Leve")),"Bajo",IF(OR(AND(Z35="Muy baja",AB35="Moderado"),AND(Z35="Baja",AB35="Menor"),AND(Z35="Baja",AB35="Moderado"),AND(Z35="Media",AB35="Leve"),AND(Z35="Media",AB35="Menor"),AND(Z35="Media",AB35="Moderado"),AND(Z35="Alta",AB35="Leve"),AND(Z35="Alta",AB35="Menor")),"Moderado",IF(OR(AND(Z35="Muy Baja",AB35="Mayor"),AND(Z35="Baja",AB35="Mayor"),AND(Z35="Media",AB35="Mayor"),AND(Z35="Alta",AB35="Moderado"),AND(Z35="Alta",AB35="Mayor"),AND(Z35="Muy Alta",AB35="Leve"),AND(Z35="Muy Alta",AB35="Menor"),AND(Z35="Muy Alta",AB35="Moderado"),AND(Z35="Muy Alta",AB35="Mayor")),"Alto",IF(OR(AND(Z35="Muy Baja",AB35="Catastrófico"),AND(Z35="Baja",AB35="Catastrófico"),AND(Z35="Media",AB35="Catastrófico"),AND(Z35="Alta",AB35="Catastrófico"),AND(Z35="Muy Alta",AB35="Catastrófico")),"Extremo","")))),"") -> 
L36: 0 | P36: 5 | AD36: =IFERROR(IF(OR(AND(Z36="Muy Baja",AB36="Leve"),AND(Z36="Muy Baja",AB36="Menor"),AND(Z36="Baja",AB36="Leve")),"Bajo",IF(OR(AND(Z36="Muy baja",AB36="Moderado"),AND(Z36="Baja",AB36="Menor"),AND(Z36="Baja",AB36="Moderado"),AND(Z36="Media",AB36="Leve"),AND(Z36="Media",AB36="Menor"),AND(Z36="Media",AB36="Moderado"),AND(Z36="Alta",AB36="Leve"),AND(Z36="Alta",AB36="Menor")),"Moderado",IF(OR(AND(Z36="Muy Baja",AB36="Mayor"),AND(Z36="Baja",AB36="Mayor"),AND(Z36="Media",AB36="Mayor"),AND(Z36="Alta",AB36="Moderado"),AND(Z36="Alta",AB36="Mayor"),AND(Z36="Muy Alta",AB36="Leve"),AND(Z36="Muy Alta",AB36="Menor"),AND(Z36="Muy Alta",AB36="Moderado"),AND(Z36="Muy Alta",AB36="Mayor")),"Alto",IF(OR(AND(Z36="Muy Baja",AB36="Catastrófico"),AND(Z36="Baja",AB36="Catastrófico"),AND(Z36="Media",AB36="Catastrófico"),AND(Z36="Alta",AB36="Catastrófico"),AND(Z36="Muy Alta",AB36="Catastrófico")),"Extremo","")))),"") -> 
L37: 0 | P37: 6
A38: 5 | C38: Económico y Reputacional | D38: Deterioro y daño de la infraestructura física de la ELC | E38: No seguimiento del plan de mantenimiento locativo | F38: Afectación a la infraestructura física de la ELC | G38: Daños Activos Fisicos | H38: 52 | I38: =IF(H38<=0,"",IF(H38<=2,"Muy Baja",IF(H38<=24,"Baja",IF(H38<=500,"Media",IF(H38<=5000,"Alta","Muy Alta"))))) -> Media | J38: =IF(I38="","",IF(I38="Muy Baja",0.2,IF(I38="Baja",0.4,IF(I38="Media",0.6,IF(I38="Alta",0.8,IF(I38="Muy Alta",1,)))))) -> 0.6 | K38: Mayor a 500 SMLMV | L38: =IF(NOT(ISERROR(MATCH(K38,'[2]Tabla Impacto'!$B$221:$B$223,0))),'[2]Tabla Impacto'!$F$223&"Por favor no seleccionar los criterios de impacto(Afectación Económica o presupuestal y Pérdida Reputacional)",K38) -> Mayor a 500 SMLMV | M38: =IF(OR(L38='[2]Tabla Impacto'!$C$11,L38='[2]Tabla Impacto'!$D$11),"Leve",IF(OR(L38='[2]Tabla Impacto'!$C$12,L38='[2]Tabla Impacto'!$D$12),"Menor",IF(OR(L38='[2]Tabla Impacto'!$C$13,L38='[2]Tabla Impacto'!$D$13),"Moderado",IF(OR(L38='[2]Tabla Impacto'!$C$14,L38='[2]Tabla Impacto'!$D$14),"Mayor",IF(OR(L38='[2]Tabla Impacto'!$C$15,L38='[2]Tabla Impacto'!$D$15),"Catastrófico",""))))) -> Catastrófico | N38: =IF(M38="","",IF(M38="Leve",0.2,IF(M38="Menor",0.4,IF(M38="Moderado",0.6,IF(M38="Mayor",0.8,IF(M38="Catastrófico",1,)))))) -> 1 | O38: =IF(OR(AND(I38="Muy Baja",M38="Leve"),AND(I38="Muy Baja",M38="Menor"),AND(I38="Baja",M38="Leve")),"Bajo",IF(OR(AND(I38="Muy baja",M38="Moderado"),AND(I38="Baja",M38="Menor"),AND(I38="Baja",M38="Moderado"),AND(I38="Media",M38="Leve"),AND(I38="Media",M38="Menor"),AND(I38="Media",M38="Moderado"),AND(I38="Alta",M38="Leve"),AND(I38="Alta",M38="Menor")),"Moderado",IF(OR(AND(I38="Muy Baja",M38="Mayor"),AND(I38="Baja",M38="Mayor"),AND(I38="Media",M38="Mayor"),AND(I38="Alta",M38="Moderado"),AND(I38="Alta",M38="Mayor"),AND(I38="Muy Alta",M38="Leve"),AND(I38="Muy Alta",M38="Menor"),AND(I38="Muy Alta",M38="Moderado"),AND(I38="Muy Alta",M38="Mayor")),"Alto",IF(OR(AND(I38="Muy Baja",M38="Catastrófico"),AND(I38="Baja",M38="Catastrófico"),AND(I38="Media",M38="Catastrófico"),AND(I38="Alta",M38="Catastrófico"),AND(I38="Muy Alta",M38="Catastrófico")),"Extremo","")))) -> Extremo | P38: 1 | Q38: semanalmente se realizan las ordenes de mantenimiento y se cerciora el cumplimiento de las mismas | R38: =IF(OR(S38="Preventivo",S38="Detectivo"),"Probabilidad",IF(S38="Correctivo","Impacto","")) -> Probabilidad | S38: Preventivo | T38: Manual | U38: =IF(AND(S38="Preventivo",T38="Automático"),"50%",IF(AND(S38="Preventivo",T38="Manual"),"40%",IF(AND(S38="Detectivo",T38="Automático"),"40%",IF(AND(S38="Detectivo",T38="Manual"),"30%",IF(AND(S38="Correctivo",T38="Automático"),"35%",IF(AND(S38="Correctivo",T38="Manual"),"25%","")))))) -> 40% | V38: Documentado | W38: Continua | X38: Con Registro | Y38: =IFERROR(IF(R38="Probabilidad",(J38-(+J38*U38)),IF(R38="Impacto",J38,"")),"") -> 0.36 | Z38: =IFERROR(IF(Y38="","",IF(Y38<=0.2,"Muy Baja",IF(Y38<=0.4,"Baja",IF(Y38<=0.6,"Media",IF(Y38<=0.8,"Alta","Muy Alta"))))),"") -> Baja | AA38: =+Y38 -> 0.36 | AB38: =IFERROR(IF(AC38="","",IF(AC38<=0.2,"Leve",IF(AC38<=0.4,"Menor",IF(AC38<=0.6,"Moderado",IF(AC38<=0.8,"Mayor","Catastrófico"))))),"") -> Catastrófico | AC38: =IFERROR(IF(R38="Impacto",(N38-(+N38*U38)),IF(R38="Probabilidad",N38,"")),"") -> 1 | AD38: =IFERROR(IF(OR(AND(Z38="Muy Baja",AB38="Leve"),AND(Z38="Muy Baja",AB38="Menor"),AND(Z38="Baja",AB38="Leve")),"Bajo",IF(OR(AND(Z38="Muy baja",AB38="Moderado"),AND(Z38="Baja",AB38="Menor"),AND(Z38="Baja",AB38="Moderado"),AND(Z38="Media",AB38="Leve"),AND(Z38="Media",AB38="Menor"),AND(Z38="Media",AB38="Moderado"),AND(Z38="Alta",AB38="Leve"),AND(Z38="Alta",AB38="Menor")),"Moderado",IF(OR(AND(Z38="Muy Baja",AB38="Mayor"),AND(Z38="Baja",AB38="Mayor"),AND(Z38="Media",AB38="Mayor"),AND(Z38="Alta",AB38="Moderado"),AND(Z38="Alta",AB38="Mayor"),AND(Z38="Muy Alta",AB38="Leve"),AND(Z38="Muy Alta",AB38="Menor"),AND(Z38="Muy Alta",AB38="Moderado"),AND(Z38="Muy Alta",AB38="Mayor")),"Alto",IF(OR(AND(Z38="Muy Baja",AB38="Catastrófico"),AND(Z38="Baja",AB38="Catastrófico"),AND(Z38="Media",AB38="Catastrófico"),AND(Z38="Alta",AB38="Catastrófico"),AND(Z38="Muy Alta",AB38="Catastrófico")),"Extremo","")))),"") -> Extremo | AF38: Verificar el cumplimiento del plan de mantenimiento locativo en SAP | AG38: Ordenes ejecutadas / Ordenes planeadas | AH38: Subgerencia Administrativa | AI38: 2022-01-01 | AJ38: semanal | AL38: En curso | AM38: Se han venido realizando y verificando el cumplimiento del plan de mantenimiento locativo | AN38: =175/175 -> 1 | AO38: Se han venido realizando y verificando el cumplimiento del plan de mantenimiento locativo | AP38: =175/175 -> 1
L39: =IF(NOT(ISERROR(MATCH(K39,_xlfn.ANCHORARRAY(F50),0))),J52&"Por favor no seleccionar los criterios de impacto",K39) -> 0 | P39: 2 | R39: =IF(OR(S39="Preventivo",S39="Detectivo"),"Probabilidad",IF(S39="Correctivo","Impacto","")) ->  | U39: =IF(AND(S39="Preventivo",T39="Automático"),"50%",IF(AND(S39="Preventivo",T39="Manual"),"40%",IF(AND(S39="Detectivo",T39="Automático"),"40%",IF(AND(S39="Detectivo",T39="Manual"),"30%",IF(AND(S39="Correctivo",T39="Automático"),"35%",IF(AND(S39="Correctivo",T39="Manual"),"25%","")))))) ->  | Y39: =IFERROR(IF(AND(R38="Probabilidad",R39="Probabilidad"),(AA38-(+AA38*U39)),IF(R39="Probabilidad",(J38-(+J38*U39)),IF(R39="Impacto",AA38,""))),"") ->  | Z39: =IFERROR(IF(Y39="","",IF(Y39<=0.2,"Muy Baja",IF(Y39<=0.4,"Baja",IF(Y39<=0.6,"Media",IF(Y39<=0.8,"Alta","Muy Alta"))))),"") ->  | AA39: =+Y39 ->  | AB39: =IFERROR(IF(AC39="","",IF(AC39<=0.2,"Leve",IF(AC39<=0.4,"Menor",IF(AC39<=0.6,"Moderado",IF(AC39<=0.8,"Mayor","Catastrófico"))))),"") ->  | AC39: =IFERROR(IF(AND(R38="Impacto",R39="Impacto"),(AC38-(+AC38*U39)),IF(R39="Impacto",(N38-(+N38*U39)),IF(R39="Probabilidad",AC38,""))),"") ->  | AD39: =IFERROR(IF(OR(AND(Z39="Muy Baja",AB39="Leve"),AND(Z39="Muy Baja",AB39="Menor"),AND(Z39="Baja",AB39="Leve")),"Bajo",IF(OR(AND(Z39="Muy baja",AB39="Moderado"),AND(Z39="Baja",AB39="Menor"),AND(Z39="Baja",AB39="Moderado"),AND(Z39="Media",AB39="Leve"),AND(Z39="Media",AB39="Menor"),AND(Z39="Media",AB39="Moderado"),AND(Z39="Alta",AB39="Leve"),AND(Z39="Alta",AB39="Menor")),"Moderado",IF(OR(AND(Z39="Muy Baja",AB39="Mayor"),AND(Z39="Baja",AB39="Mayor"),AND(Z39="Media",AB39="Mayor"),AND(Z39="Alta",AB39="Moderado"),AND(Z39="Alta",AB39="Mayor"),AND(Z39="Muy Alta",AB39="Leve"),AND(Z39="Muy Alta",AB39="Menor"),AND(Z39="Muy Alta",AB39="Moderado"),AND(Z39="Muy Alta",AB39="Mayor")),"Alto",IF(OR(AND(Z39="Muy Baja",AB39="Catastrófico"),AND(Z39="Baja",AB39="Catastrófico"),AND(Z39="Media",AB39="Catastrófico"),AND(Z39="Alta",AB39="Catastrófico"),AND(Z39="Muy Alta",AB39="Catastrófico")),"Extremo","")))),"") -> 
L40: 0 | P40: 3 | R40: =IF(OR(S40="Preventivo",S40="Detectivo"),"Probabilidad",IF(S40="Correctivo","Impacto","")) ->  | Y40: =IFERROR(IF(AND(R39="Probabilidad",R40="Probabilidad"),(AA39-(+AA39*U40)),IF(AND(R39="Impacto",R40="Probabilidad"),(AA38-(+AA38*U40)),IF(R40="Impacto",AA39,""))),"") ->  | AC40: =IFERROR(IF(AND(R39="Impacto",R40="Impacto"),(AC39-(+AC39*U40)),IF(AND(R39="Probabilidad",R40="Impacto"),(AC38-(+AC38*U40)),IF(R40="Probabilidad",AC39,""))),"") -> 
L41: 0 | P41: 4 | R41: =IF(OR(S41="Preventivo",S41="Detectivo"),"Probabilidad",IF(S41="Correctivo","Impacto","")) ->  | Y41: =IFERROR(IF(AND(R40="Probabilidad",R41="Probabilidad"),(AA40-(+AA40*U41)),IF(AND(R40="Impacto",R41="Probabilidad"),(AA39-(+AA39*U41)),IF(R41="Impacto",AA40,""))),"") ->  | AC41: =IFERROR(IF(AND(R40="Impacto",R41="Impacto"),(AC40-(+AC40*U41)),IF(AND(R40="Probabilidad",R41="Impacto"),(AC39-(+AC39*U41)),IF(R41="Probabilidad",AC40,""))),"") ->  | AD41: =IFERROR(IF(OR(AND(Z41="Muy Baja",AB41="Leve"),AND(Z41="Muy Baja",AB41="Menor"),AND(Z41="Baja",AB41="Leve")),"Bajo",IF(OR(AND(Z41="Muy baja",AB41="Moderado"),AND(Z41="Baja",AB41="Menor"),AND(Z41="Baja",AB41="Moderado"),AND(Z41="Media",AB41="Leve"),AND(Z41="Media",AB41="Menor"),AND(Z41="Media",AB41="Moderado"),AND(Z41="Alta",AB41="Leve"),AND(Z41="Alta",AB41="Menor")),"Moderado",IF(OR(AND(Z41="Muy Baja",AB41="Mayor"),AND(Z41="Baja",AB41="Mayor"),AND(Z41="Media",AB41="Mayor"),AND(Z41="Alta",AB41="Moderado"),AND(Z41="Alta",AB41="Mayor"),AND(Z41="Muy Alta",AB41="Leve"),AND(Z41="Muy Alta",AB41="Menor"),AND(Z41="Muy Alta",AB41="Moderado"),AND(Z41="Muy Alta",AB41="Mayor")),"Alto",IF(OR(AND(Z41="Muy Baja",AB41="Catastrófico"),AND(Z41="Baja",AB41="Catastrófico"),AND(Z41="Media",AB41="Catastrófico"),AND(Z41="Alta",AB41="Catastrófico"),AND(Z41="Muy Alta",AB41="Catastrófico")),"Extremo","")))),"") -> 
L42: 0 | P42: 5 | Z42: =IFERROR(IF(Y42="","",IF(Y42<=0.2,"Muy Baja",IF(Y42<=0.4,"Baja",IF(Y42<=0.6,"Media",IF(Y42<=0.8,"Alta","Muy Alta"))))),"") ->  | AD42: =IFERROR(IF(OR(AND(Z42="Muy Baja",AB42="Leve"),AND(Z42="Muy Baja",AB42="Menor"),AND(Z42="Baja",AB42="Leve")),"Bajo",IF(OR(AND(Z42="Muy baja",AB42="Moderado"),AND(Z42="Baja",AB42="Menor"),AND(Z42="Baja",AB42="Moderado"),AND(Z42="Media",AB42="Leve"),AND(Z42="Media",AB42="Menor"),AND(Z42="Media",AB42="Moderado"),AND(Z42="Alta",AB42="Leve"),AND(Z42="Alta",AB42="Menor")),"Moderado",IF(OR(AND(Z42="Muy Baja",AB42="Mayor"),AND(Z42="Baja",AB42="Mayor"),AND(Z42="Media",AB42="Mayor"),AND(Z42="Alta",AB42="Moderado"),AND(Z42="Alta",AB42="Mayor"),AND(Z42="Muy Alta",AB42="Leve"),AND(Z42="Muy Alta",AB42="Menor"),AND(Z42="Muy Alta",AB42="Moderado"),AND(Z42="Muy Alta",AB42="Mayor")),"Alto",IF(OR(AND(Z42="Muy Baja",AB42="Catastrófico"),AND(Z42="Baja",AB42="Catastrófico"),AND(Z42="Media",AB42="Catastrófico"),AND(Z42="Alta",AB42="Catastrófico"),AND(Z42="Muy Alta",AB42="Catastrófico")),"Extremo","")))),"") -> 
L43: 0 | P43: 6
A44: 6 | I44: =IF(H44<=0,"",IF(H44<=2,"Muy Baja",IF(H44<=24,"Baja",IF(H44<=500,"Media",IF(H44<=5000,"Alta","Muy Alta"))))) ->  | J44: =IF(I44="","",IF(I44="Muy Baja",0.2,IF(I44="Baja",0.4,IF(I44="Media",0.6,IF(I44="Alta",0.8,IF(I44="Muy Alta",1,)))))) ->  | L44: =IF(NOT(ISERROR(MATCH(K44,'[1]Tabla Impacto'!$B$221:$B$223,0))),'[1]Tabla Impacto'!$F$223&"Por favor no seleccionar los criterios de impacto(Afectación Económica o presupuestal y Pérdida Reputacional)",K44) -> 0 | M44: =IF(OR(L44='[1]Tabla Impacto'!$C$11,L44='[1]Tabla Impacto'!$D$11),"Leve",IF(OR(L44='[1]Tabla Impacto'!$C$12,L44='[1]Tabla Impacto'!$D$12),"Menor",IF(OR(L44='[1]Tabla Impacto'!$C$13,L44='[1]Tabla Impacto'!$D$13),"Moderado",IF(OR(L44='[1]Tabla Impacto'!$C$14,L44='[1]Tabla Impacto'!$D$14),"Mayor",IF(OR(L44='[1]Tabla Impacto'!$C$15,L44='[1]Tabla Impacto'!$D$15),"Catastrófico",""))))) ->  | N44: =IF(M44="","",IF(M44="Leve",0.2,IF(M44="Menor",0.4,IF(M44="Moderado",0.6,IF(M44="Mayor",0.8,IF(M44="Catastrófico",1,)))))) ->  | O44: =IF(OR(AND(I44="Muy Baja",M44="Leve"),AND(I44="Muy Baja",M44="Menor"),AND(I44="Baja",M44="Leve")),"Bajo",IF(OR(AND(I44="Muy baja",M44="Moderado"),AND(I44="Baja",M44="Menor"),AND(I44="Baja",M44="Moderado"),AND(I44="Media",M44="Leve"),AND(I44="Media",M44="Menor"),AND(I44="Media",M44="Moderado"),AND(I44="Alta",M44="Leve"),AND(I44="Alta",M44="Menor")),"Moderado",IF(OR(AND(I44="Muy Baja",M44="Mayor"),AND(I44="Baja",M44="Mayor"),AND(I44="Media",M44="Mayor"),AND(I44="Alta",M44="Moderado"),AND(I44="Alta",M44="Mayor"),AND(I44="Muy Alta",M44="Leve"),AND(I44="Muy Alta",M44="Menor"),AND(I44="Muy Alta",M44="Moderado"),AND(I44="Muy Alta",M44="Mayor")),"Alto",IF(OR(AND(I44="Muy Baja",M44="Catastrófico"),AND(I44="Baja",M44="Catastrófico"),AND(I44="Media",M44="Catastrófico"),AND(I44="Alta",M44="Catastrófico"),AND(I44="Muy Alta",M44="Catastrófico")),"Extremo","")))) ->  | P44: 1 | R44: =IF(OR(S44="Preventivo",S44="Detectivo"),"Probabilidad",IF(S44="Correctivo","Impacto","")) ->  | U44: =IF(AND(S44="Preventivo",T44="Automático"),"50%",IF(AND(S44="Preventivo",T44="Manual"),"40%",IF(AND(S44="Detectivo",T44="Automático"),"40%",IF(AND(S44="Detectivo",T44="Manual"),"30%",IF(AND(S44="Correctivo",T44="Automático"),"35%",IF(AND(S44="Correctivo",T44="Manual"),"25%","")))))) ->  | Y44: =IFERROR(IF(R44="Probabilidad",(J44-(+J44*U44)),IF(R44="Impacto",J44,"")),"") ->  | Z44: =IFERROR(IF(Y44="","",IF(Y44<=0.2,"Muy Baja",IF(Y44<=0.4,"Baja",IF(Y44<=0.6,"Media",IF(Y44<=0.8,"Alta","Muy Alta"))))),"") ->  | AA44: =+Y44 ->  | AB44: =IFERROR(IF(AC44="","",IF(AC44<=0.2,"Leve",IF(AC44<=0.4,"Menor",IF(AC44<=0.6,"Moderado",IF(AC44<=0.8,"Mayor","Catastrófico"))))),"") ->  | AC44: =IFERROR(IF(R44="Impacto",(N44-(+N44*U44)),IF(R44="Probabilidad",N44,"")),"") ->  | AD44: =IFERROR(IF(OR(AND(Z44="Muy Baja",AB44="Leve"),AND(Z44="Muy Baja",AB44="Menor"),AND(Z44="Baja",AB44="Leve")),"Bajo",IF(OR(AND(Z44="Muy baja",AB44="Moderado"),AND(Z44="Baja",AB44="Menor"),AND(Z44="Baja",AB44="Moderado"),AND(Z44="Media",AB44="Leve"),AND(Z44="Media",AB44="Menor"),AND(Z44="Media",AB44="Moderado"),AND(Z44="Alta",AB44="Leve"),AND(Z44="Alta",AB44="Menor")),"Moderado",IF(OR(AND(Z44="Muy Baja",AB44="Mayor"),AND(Z44="Baja",AB44="Mayor"),AND(Z44="Media",AB44="Mayor"),AND(Z44="Alta",AB44="Moderado"),AND(Z44="Alta",AB44="Mayor"),AND(Z44="Muy Alta",AB44="Leve"),AND(Z44="Muy Alta",AB44="Menor"),AND(Z44="Muy Alta",AB44="Moderado"),AND(Z44="Muy Alta",AB44="Mayor")),"Alto",IF(OR(AND(Z44="Muy Baja",AB44="Catastrófico"),AND(Z44="Baja",AB44="Catastrófico"),AND(Z44="Media",AB44="Catastrófico"),AND(Z44="Alta",AB44="Catastrófico"),AND(Z44="Muy Alta",AB44="Catastrófico")),"Extremo","")))),"") -> 
L45: =IF(NOT(ISERROR(MATCH(K45,_xlfn.ANCHORARRAY(F56),0))),J58&"Por favor no seleccionar los criterios de impacto",K45) -> 0 | P45: 2 | R45: =IF(OR(S45="Preventivo",S45="Detectivo"),"Probabilidad",IF(S45="Correctivo","Impacto","")) ->  | U45: =IF(AND(S45="Preventivo",T45="Automático"),"50%",IF(AND(S45="Preventivo",T45="Manual"),"40%",IF(AND(S45="Detectivo",T45="Automático"),"40%",IF(AND(S45="Detectivo",T45="Manual"),"30%",IF(AND(S45="Correctivo",T45="Automático"),"35%",IF(AND(S45="Correctivo",T45="Manual"),"25%","")))))) ->  | Y45: =IFERROR(IF(AND(R44="Probabilidad",R45="Probabilidad"),(AA44-(+AA44*U45)),IF(R45="Probabilidad",(J44-(+J44*U45)),IF(R45="Impacto",AA44,""))),"") ->  | AA45: =+Y45 ->  | AC45: =IFERROR(IF(AND(R44="Impacto",R45="Impacto"),(AC44-(+AC44*U45)),IF(R45="Impacto",(N44-(+N44*U45)),IF(R45="Probabilidad",AC44,""))),"") ->  | AD45: =IFERROR(IF(OR(AND(Z45="Muy Baja",AB45="Leve"),AND(Z45="Muy Baja",AB45="Menor"),AND(Z45="Baja",AB45="Leve")),"Bajo",IF(OR(AND(Z45="Muy baja",AB45="Moderado"),AND(Z45="Baja",AB45="Menor"),AND(Z45="Baja",AB45="Moderado"),AND(Z45="Media",AB45="Leve"),AND(Z45="Media",AB45="Menor"),AND(Z45="Media",AB45="Moderado"),AND(Z45="Alta",AB45="Leve"),AND(Z45="Alta",AB45="Menor")),"Moderado",IF(OR(AND(Z45="Muy Baja",AB45="Mayor"),AND(Z45="Baja",AB45="Mayor"),AND(Z45="Media",AB45="Mayor"),AND(Z45="Alta",AB45="Moderado"),AND(Z45="Alta",AB45="Mayor"),AND(Z45="Muy Alta",AB45="Leve"),AND(Z45="Muy Alta",AB45="Menor"),AND(Z45="Muy Alta",AB45="Moderado"),AND(Z45="Muy Alta",AB45="Mayor")),"Alto",IF(OR(AND(Z45="Muy Baja",AB45="Catastrófico"),AND(Z45="Baja",AB45="Catastrófico"),AND(Z45="Media",AB45="Catastrófico"),AND(Z45="Alta",AB45="Catastrófico"),AND(Z45="Muy Alta",AB45="Catastrófico")),"Extremo","")))),"") -> 
L46: 0 | P46: 3 | R46: =IF(OR(S46="Preventivo",S46="Detectivo"),"Probabilidad",IF(S46="Correctivo","Impacto","")) ->  | Y46: =IFERROR(IF(AND(R45="Probabilidad",R46="Probabilidad"),(AA45-(+AA45*U46)),IF(AND(R45="Impacto",R46="Probabilidad"),(AA44-(+AA44*U46)),IF(R46="Impacto",AA45,""))),"") ->  | AC46: =IFERROR(IF(AND(R45="Impacto",R46="Impacto"),(AC45-(+AC45*U46)),IF(AND(R45="Probabilidad",R46="Impacto"),(AC44-(+AC44*U46)),IF(R46="Probabilidad",AC45,""))),"") -> 
L47: 0 | P47: 4 | R47: =IF(OR(S47="Preventivo",S47="Detectivo"),"Probabilidad",IF(S47="Correctivo","Impacto","")) ->  | Y47: =IFERROR(IF(AND(R46="Probabilidad",R47="Probabilidad"),(AA46-(+AA46*U47)),IF(AND(R46="Impacto",R47="Probabilidad"),(AA45-(+AA45*U47)),IF(R47="Impacto",AA46,""))),"") ->  | AC47: =IFERROR(IF(AND(R46="Impacto",R47="Impacto"),(AC46-(+AC46*U47)),IF(AND(R46="Probabilidad",R47="Impacto"),(AC45-(+AC45*U47)),IF(R47="Probabilidad",AC46,""))),"") ->  | AD47: =IFERROR(IF(OR(AND(Z47="Muy Baja",AB47="Leve"),AND(Z47="Muy Baja",AB47="Menor"),AND(Z47="Baja",AB47="Leve")),"Bajo",IF(OR(AND(Z47="Muy baja",AB47="Moderado"),AND(Z47="Baja",AB47="Menor"),AND(Z47="Baja",AB47="Moderado"),AND(Z47="Media",AB47="Leve"),AND(Z47="Media",AB47="Menor"),AND(Z47="Media",AB47="Moderado"),AND(Z47="Alta",AB47="Leve"),AND(Z47="Alta",AB47="Menor")),"Moderado",IF(OR(AND(Z47="Muy Baja",AB47="Mayor"),AND(Z47="Baja",AB47="Mayor"),AND(Z47="Media",AB47="Mayor"),AND(Z47="Alta",AB47="Moderado"),AND(Z47="Alta",AB47="Mayor"),AND(Z47="Muy Alta",AB47="Leve"),AND(Z47="Muy Alta",AB47="Menor"),AND(Z47="Muy Alta",AB47="Moderado"),AND(Z47="Muy Alta",AB47="Mayor")),"Alto",IF(OR(AND(Z47="Muy Baja",AB47="Catastrófico"),AND(Z47="Baja",AB47="Catastrófico"),AND(Z47="Media",AB47="Catastrófico"),AND(Z47="Alta",AB47="Catastrófico"),AND(Z47="Muy Alta",AB47="Catastrófico")),"Extremo","")))),"") -> 
L48: 0 | P48: 5 | AD48: =IFERROR(IF(OR(AND(Z48="Muy Baja",AB48="Leve"),AND(Z48="Muy Baja",AB48="Menor"),AND(Z48="Baja",AB48="Leve")),"Bajo",IF(OR(AND(Z48="Muy baja",AB48="Moderado"),AND(Z48="Baja",AB48="Menor"),AND(Z48="Baja",AB48="Moderado"),AND(Z48="Media",AB48="Leve"),AND(Z48="Media",AB48="Menor"),AND(Z48="Media",AB48="Moderado"),AND(Z48="Alta",AB48="Leve"),AND(Z48="Alta",AB48="Menor")),"Moderado",IF(OR(AND(Z48="Muy Baja",AB48="Mayor"),AND(Z48="Baja",AB48="Mayor"),AND(Z48="Media",AB48="Mayor"),AND(Z48="Alta",AB48="Moderado"),AND(Z48="Alta",AB48="Mayor"),AND(Z48="Muy Alta",AB48="Leve"),AND(Z48="Muy Alta",AB48="Menor"),AND(Z48="Muy Alta",AB48="Moderado"),AND(Z48="Muy Alta",AB48="Mayor")),"Alto",IF(OR(AND(Z48="Muy Baja",AB48="Catastrófico"),AND(Z48="Baja",AB48="Catastrófico"),AND(Z48="Media",AB48="Catastrófico"),AND(Z48="Alta",AB48="Catastrófico"),AND(Z48="Muy Alta",AB48="Catastrófico")),"Extremo","")))),"") -> 
L49: 0 | P49: 6 | AB49: =IFERROR(IF(AC49="","",IF(AC49<=0.2,"Leve",IF(AC49<=0.4,"Menor",IF(AC49<=0.6,"Moderado",IF(AC49<=0.8,"Mayor","Catastrófico"))))),"") ->  | AD49: =IFERROR(IF(OR(AND(Z49="Muy Baja",AB49="Leve"),AND(Z49="Muy Baja",AB49="Menor"),AND(Z49="Baja",AB49="Leve")),"Bajo",IF(OR(AND(Z49="Muy baja",AB49="Moderado"),AND(Z49="Baja",AB49="Menor"),AND(Z49="Baja",AB49="Moderado"),AND(Z49="Media",AB49="Leve"),AND(Z49="Media",AB49="Menor"),AND(Z49="Media",AB49="Moderado"),AND(Z49="Alta",AB49="Leve"),AND(Z49="Alta",AB49="Menor")),"Moderado",IF(OR(AND(Z49="Muy Baja",AB49="Mayor"),AND(Z49="Baja",AB49="Mayor"),AND(Z49="Media",AB49="Mayor"),AND(Z49="Alta",AB49="Moderado"),AND(Z49="Alta",AB49="Mayor"),AND(Z49="Muy Alta",AB49="Leve"),AND(Z49="Muy Alta",AB49="Menor"),AND(Z49="Muy Alta",AB49="Moderado"),AND(Z49="Muy Alta",AB49="Mayor")),"Alto",IF(OR(AND(Z49="Muy Baja",AB49="Catastrófico"),AND(Z49="Baja",AB49="Catastrófico"),AND(Z49="Media",AB49="Catastrófico"),AND(Z49="Alta",AB49="Catastrófico"),AND(Z49="Muy Alta",AB49="Catastrófico")),"Extremo","")))),"") -> 
A50: 7 | I50: =IF(H50<=0,"",IF(H50<=2,"Muy Baja",IF(H50<=24,"Baja",IF(H50<=500,"Media",IF(H50<=5000,"Alta","Muy Alta"))))) ->  | J50: =IF(I50="","",IF(I50="Muy Baja",0.2,IF(I50="Baja",0.4,IF(I50="Media",0.6,IF(I50="Alta",0.8,IF(I50="Muy Alta",1,)))))) ->  | L50: =IF(NOT(ISERROR(MATCH(K50,'[1]Tabla Impacto'!$B$221:$B$223,0))),'[1]Tabla Impacto'!$F$223&"Por favor no seleccionar los criterios de impacto(Afectación Económica o presupuestal y Pérdida Reputacional)",K50) -> 0 | M50: =IF(OR(L50='[1]Tabla Impacto'!$C$11,L50='[1]Tabla Impacto'!$D$11),"Leve",IF(OR(L50='[1]Tabla Impacto'!$C$12,L50='[1]Tabla Impacto'!$D$12),"Menor",IF(OR(L50='[1]Tabla Impacto'!$C$13,L50='[1]Tabla Impacto'!$D$13),"Moderado",IF(OR(L50='[1]Tabla Impacto'!$C$14,L50='[1]Tabla Impacto'!$D$14),"Mayor",IF(OR(L50='[1]Tabla Impacto'!$C$15,L50='[1]Tabla Impacto'!$D$15),"Catastrófico",""))))) ->  | N50: =IF(M50="","",IF(M50="Leve",0.2,IF(M50="Menor",0.4,IF(M50="Moderado",0.6,IF(M50="Mayor",0.8,IF(M50="Catastrófico",1,)))))) ->  | O50: =IF(OR(AND(I50="Muy Baja",M50="Leve"),AND(I50="Muy Baja",M50="Menor"),AND(I50="Baja",M50="Leve")),"Bajo",IF(OR(AND(I50="Muy baja",M50="Moderado"),AND(I50="Baja",M50="Menor"),AND(I50="Baja",M50="Moderado"),AND(I50="Media",M50="Leve"),AND(I50="Media",M50="Menor"),AND(I50="Media",M50="Moderado"),AND(I50="Alta",M50="Leve"),AND(I50="Alta",M50="Menor")),"Moderado",IF(OR(AND(I50="Muy Baja",M50="Mayor"),AND(I50="Baja",M50="Mayor"),AND(I50="Media",M50="Mayor"),AND(I50="Alta",M50="Moderado"),AND(I50="Alta",M50="Mayor"),AND(I50="Muy Alta",M50="Leve"),AND(I50="Muy Alta",M50="Menor"),AND(I50="Muy Alta",M50="Moderado"),AND(I50="Muy Alta",M50="Mayor")),"Alto",IF(OR(AND(I50="Muy Baja",M50="Catastrófico"),AND(I50="Baja",M50="Catastrófico"),AND(I50="Media",M50="Catastrófico"),AND(I50="Alta",M50="Catastrófico"),AND(I50="Muy Alta",M50="Catastrófico")),"Extremo","")))) ->  | P50: 1 | R50: =IF(OR(S50="Preventivo",S50="Detectivo"),"Probabilidad",IF(S50="Correctivo","Impacto","")) ->  | U50: =IF(AND(S50="Preventivo",T50="Automático"),"50%",IF(AND(S50="Preventivo",T50="Manual"),"40%",IF(AND(S50="Detectivo",T50="Automático"),"40%",IF(AND(S50="Detectivo",T50="Manual"),"30%",IF(AND(S50="Correctivo",T50="Automático"),"35%",IF(AND(S50="Correctivo",T50="Manual"),"25%","")))))) ->  | Y50: =IFERROR(IF(R50="Probabilidad",(J50-(+J50*U50)),IF(R50="Impacto",J50,"")),"") ->  | Z50: =IFERROR(IF(Y50="","",IF(Y50<=0.2,"Muy Baja",IF(Y50<=0.4,"Baja",IF(Y50<=0.6,"Media",IF(Y50<=0.8,"Alta","Muy Alta"))))),"") ->  | AA50: =+Y50 ->  | AB50: =IFERROR(IF(AC50="","",IF(AC50<=0.2,"Leve",IF(AC50<=0.4,"Menor",IF(AC50<=0.6,"Moderado",IF(AC50<=0.8,"Mayor","Catastrófico"))))),"") ->  | AC50: =IFERROR(IF(R50="Impacto",(N50-(+N50*U50)),IF(R50="Probabilidad",N50,"")),"") ->  | AD50: =IFERROR(IF(OR(AND(Z50="Muy Baja",AB50="Leve"),AND(Z50="Muy Baja",AB50="Menor"),AND(Z50="Baja",AB50="Leve")),"Bajo",IF(OR(AND(Z50="Muy baja",AB50="Moderado"),AND(Z50="Baja",AB50="Menor"),AND(Z50="Baja",AB50="Moderado"),AND(Z50="Media",AB50="Leve"),AND(Z50="Media",AB50="Menor"),AND(Z50="Media",AB50="Moderado"),AND(Z50="Alta",AB50="Leve"),AND(Z50="Alta",AB50="Menor")),"Moderado",IF(OR(AND(Z50="Muy Baja",AB50="Mayor"),AND(Z50="Baja",AB50="Mayor"),AND(Z50="Media",AB50="Mayor"),AND(Z50="Alta",AB50="Moderado"),AND(Z50="Alta",AB50="Mayor"),AND(Z50="Muy Alta",AB50="Leve"),AND(Z50="Muy Alta",AB50="Menor"),AND(Z50="Muy Alta",AB50="Moderado"),AND(Z50="Muy Alta",AB50="Mayor")),"Alto",IF(OR(AND(Z50="Muy Baja",AB50="Catastrófico"),AND(Z50="Baja",AB50="Catastrófico"),AND(Z50="Media",AB50="Catastrófico"),AND(Z50="Alta",AB50="Catastrófico"),AND(Z50="Muy Alta",AB50="Catastrófico")),"Extremo","")))),"") -> 
L51: =IF(NOT(ISERROR(MATCH(K51,_xlfn.ANCHORARRAY(F62),0))),J64&"Por favor no seleccionar los criterios de impacto",K51) -> 0 | P51: 2 | R51: =IF(OR(S51="Preventivo",S51="Detectivo"),"Probabilidad",IF(S51="Correctivo","Impacto","")) ->  | U51: =IF(AND(S51="Preventivo",T51="Automático"),"50%",IF(AND(S51="Preventivo",T51="Manual"),"40%",IF(AND(S51="Detectivo",T51="Automático"),"40%",IF(AND(S51="Detectivo",T51="Manual"),"30%",IF(AND(S51="Correctivo",T51="Automático"),"35%",IF(AND(S51="Correctivo",T51="Manual"),"25%","")))))) ->  | Y51: =IFERROR(IF(AND(R50="Probabilidad",R51="Probabilidad"),(AA50-(+AA50*U51)),IF(R51="Probabilidad",(J50-(+J50*U51)),IF(R51="Impacto",AA50,""))),"") ->  | AA51: =+Y51 ->  | AC51: =IFERROR(IF(AND(R50="Impacto",R51="Impacto"),(AC50-(+AC50*U51)),IF(R51="Impacto",(N50-(+N50*U51)),IF(R51="Probabilidad",AC50,""))),"") ->  | AD51: =IFERROR(IF(OR(AND(Z51="Muy Baja",AB51="Leve"),AND(Z51="Muy Baja",AB51="Menor"),AND(Z51="Baja",AB51="Leve")),"Bajo",IF(OR(AND(Z51="Muy baja",AB51="Moderado"),AND(Z51="Baja",AB51="Menor"),AND(Z51="Baja",AB51="Moderado"),AND(Z51="Media",AB51="Leve"),AND(Z51="Media",AB51="Menor"),AND(Z51="Media",AB51="Moderado"),AND(Z51="Alta",AB51="Leve"),AND(Z51="Alta",AB51="Menor")),"Moderado",IF(OR(AND(Z51="Muy Baja",AB51="Mayor"),AND(Z51="Baja",AB51="Mayor"),AND(Z51="Media",AB51="Mayor"),AND(Z51="Alta",AB51="Moderado"),AND(Z51="Alta",AB51="Mayor"),AND(Z51="Muy Alta",AB51="Leve"),AND(Z51="Muy Alta",AB51="Menor"),AND(Z51="Muy Alta",AB51="Moderado"),AND(Z51="Muy Alta",AB51="Mayor")),"Alto",IF(OR(AND(Z51="Muy Baja",AB51="Catastrófico"),AND(Z51="Baja",AB51="Catastrófico"),AND(Z51="Media",AB51="Catastrófico"),AND(Z51="Alta",AB51="Catastrófico"),AND(Z51="Muy Alta",AB51="Catastrófico")),"Extremo","")))),"") -> 
L52: 0 | P52: 3 | R52: =IF(OR(S52="Preventivo",S52="Detectivo"),"Probabilidad",IF(S52="Correctivo","Impacto","")) ->  | Y52: =IFERROR(IF(AND(R51="Probabilidad",R52="Probabilidad"),(AA51-(+AA51*U52)),IF(AND(R51="Impacto",R52="Probabilidad"),(AA50-(+AA50*U52)),IF(R52="Impacto",AA51,""))),"") ->  | AC52: =IFERROR(IF(AND(R51="Impacto",R52="Impacto"),(AC51-(+AC51*U52)),IF(AND(R51="Probabilidad",R52="Impacto"),(AC50-(+AC50*U52)),IF(R52="Probabilidad",AC51,""))),"") -> 
L53: 0 | P53: 4 | R53: =IF(OR(S53="Preventivo",S53="Detectivo"),"Probabilidad",IF(S53="Correctivo","Impacto","")) ->  | Y53: =IFERROR(IF(AND(R52="Probabilidad",R53="Probabilidad"),(AA52-(+AA52*U53)),IF(AND(R52="Impacto",R53="Probabilidad"),(AA51-(+AA51*U53)),IF(R53="Impacto",AA52,""))),"") ->  | AC53: =IFERROR(IF(AND(R52="Impacto",R53="Impacto"),(AC52-(+AC52*U53)),IF(AND(R52="Probabilidad",R53="Impacto"),(AC51-(+AC51*U53)),IF(R53="Probabilidad",AC52,""))),"") ->  | AD53: =IFERROR(IF(OR(AND(Z53="Muy Baja",AB53="Leve"),AND(Z53="Muy Baja",AB53="Menor"),AND(Z53="Baja",AB53="Leve")),"Bajo",IF(OR(AND(Z53="Muy baja",AB53="Moderado"),AND(Z53="Baja",AB53="Menor"),AND(Z53="Baja",AB53="Moderado"),AND(Z53="Media",AB53="Leve"),AND(Z53="Media",AB53="Menor"),AND(Z53="Media",AB53="Moderado"),AND(Z53="Alta",AB53="Leve"),AND(Z53="Alta",AB53="Menor")),"Moderado",IF(OR(AND(Z53="Muy Baja",AB53="Mayor"),AND(Z53="Baja",AB53="Mayor"),AND(Z53="Media",AB53="Mayor"),AND(Z53="Alta",AB53="Moderado"),AND(Z53="Alta",AB53="Mayor"),AND(Z53="Muy Alta",AB53="Leve"),AND(Z53="Muy Alta",AB53="Menor"),AND(Z53="Muy Alta",AB53="Moderado"),AND(Z53="Muy Alta",AB53="Mayor")),"Alto",IF(OR(AND(Z53="Muy Baja",AB53="Catastrófico"),AND(Z53="Baja",AB53="Catastrófico"),AND(Z53="Media",AB53="Catastrófico"),AND(Z53="Alta",AB53="Catastrófico"),AND(Z53="Muy Alta",AB53="Catastrófico")),"Extremo","")))),"") -> 
L54: 0 | P54: 5 | AD54: =IFERROR(IF(OR(AND(Z54="Muy Baja",AB54="Leve"),AND(Z54="Muy Baja",AB54="Menor"),AND(Z54="Baja",AB54="Leve")),"Bajo",IF(OR(AND(Z54="Muy baja",AB54="Moderado"),AND(Z54="Baja",AB54="Menor"),AND(Z54="Baja",AB54="Moderado"),AND(Z54="Media",AB54="Leve"),AND(Z54="Media",AB54="Menor"),AND(Z54="Media",AB54="Moderado"),AND(Z54="Alta",AB54="Leve"),AND(Z54="Alta",AB54="Menor")),"Moderado",IF(OR(AND(Z54="Muy Baja",AB54="Mayor"),AND(Z54="Baja",AB54="Mayor"),AND(Z54="Media",AB54="Mayor"),AND(Z54="Alta",AB54="Moderado"),AND(Z54="Alta",AB54="Mayor"),AND(Z54="Muy Alta",AB54="Leve"),AND(Z54="Muy Alta",AB54="Menor"),AND(Z54="Muy Alta",AB54="Moderado"),AND(Z54="Muy Alta",AB54="Mayor")),"Alto",IF(OR(AND(Z54="Muy Baja",AB54="Catastrófico"),AND(Z54="Baja",AB54="Catastrófico"),AND(Z54="Media",AB54="Catastrófico"),AND(Z54="Alta",AB54="Catastrófico"),AND(Z54="Muy Alta",AB54="Catastrófico")),"Extremo","")))),"") -> 
L55: 0 | P55: 6
A56: 8 | I56: =IF(H56<=0,"",IF(H56<=2,"Muy Baja",IF(H56<=24,"Baja",IF(H56<=500,"Media",IF(H56<=5000,"Alta","Muy Alta"))))) ->  | J56: =IF(I56="","",IF(I56="Muy Baja",0.2,IF(I56="Baja",0.4,IF(I56="Media",0.6,IF(I56="Alta",0.8,IF(I56="Muy Alta",1,)))))) ->  | L56: =IF(NOT(ISERROR(MATCH(K56,'[1]Tabla Impacto'!$B$221:$B$223,0))),'[1]Tabla Impacto'!$F$223&"Por favor no seleccionar los criterios de impacto(Afectación Económica o presupuestal y Pérdida Reputacional)",K56) -> 0 | M56: =IF(OR(L56='[1]Tabla Impacto'!$C$11,L56='[1]Tabla Impacto'!$D$11),"Leve",IF(OR(L56='[1]Tabla Impacto'!$C$12,L56='[1]Tabla Impacto'!$D$12),"Menor",IF(OR(L56='[1]Tabla Impacto'!$C$13,L56='[1]Tabla Impacto'!$D$13),"Moderado",IF(OR(L56='[1]Tabla Impacto'!$C$14,L56='[1]Tabla Impacto'!$D$14),"Mayor",IF(OR(L56='[1]Tabla Impacto'!$C$15,L56='[1]Tabla Impacto'!$D$15),"Catastrófico",""))))) ->  | N56: =IF(M56="","",IF(M56="Leve",0.2,IF(M56="Menor",0.4,IF(M56="Moderado",0.6,IF(M56="Mayor",0.8,IF(M56="Catastrófico",1,)))))) ->  | O56: =IF(OR(AND(I56="Muy Baja",M56="Leve"),AND(I56="Muy Baja",M56="Menor"),AND(I56="Baja",M56="Leve")),"Bajo",IF(OR(AND(I56="Muy baja",M56="Moderado"),AND(I56="Baja",M56="Menor"),AND(I56="Baja",M56="Moderado"),AND(I56="Media",M56="Leve"),AND(I56="Media",M56="Menor"),AND(I56="Media",M56="Moderado"),AND(I56="Alta",M56="Leve"),AND(I56="Alta",M56="Menor")),"Moderado",IF(OR(AND(I56="Muy Baja",M56="Mayor"),AND(I56="Baja",M56="Mayor"),AND(I56="Media",M56="Mayor"),AND(I56="Alta",M56="Moderado"),AND(I56="Alta",M56="Mayor"),AND(I56="Muy Alta",M56="Leve"),AND(I56="Muy Alta",M56="Menor"),AND(I56="Muy Alta",M56="Moderado"),AND(I56="Muy Alta",M56="Mayor")),"Alto",IF(OR(AND(I56="Muy Baja",M56="Catastrófico"),AND(I56="Baja",M56="Catastrófico"),AND(I56="Media",M56="Catastrófico"),AND(I56="Alta",M56="Catastrófico"),AND(I56="Muy Alta",M56="Catastrófico")),"Extremo","")))) ->  | P56: 1 | R56: =IF(OR(S56="Preventivo",S56="Detectivo"),"Probabilidad",IF(S56="Correctivo","Impacto","")) ->  | U56: =IF(AND(S56="Preventivo",T56="Automático"),"50%",IF(AND(S56="Preventivo",T56="Manual"),"40%",IF(AND(S56="Detectivo",T56="Automático"),"40%",IF(AND(S56="Detectivo",T56="Manual"),"30%",IF(AND(S56="Correctivo",T56="Automático"),"35%",IF(AND(S56="Correctivo",T56="Manual"),"25%","")))))) ->  | Y56: =IFERROR(IF(R56="Probabilidad",(J56-(+J56*U56)),IF(R56="Impacto",J56,"")),"") ->  | Z56: =IFERROR(IF(Y56="","",IF(Y56<=0.2,"Muy Baja",IF(Y56<=0.4,"Baja",IF(Y56<=0.6,"Media",IF(Y56<=0.8,"Alta","Muy Alta"))))),"") ->  | AA56: =+Y56 ->  | AB56: =IFERROR(IF(AC56="","",IF(AC56<=0.2,"Leve",IF(AC56<=0.4,"Menor",IF(AC56<=0.6,"Moderado",IF(AC56<=0.8,"Mayor","Catastrófico"))))),"") ->  | AC56: =IFERROR(IF(R56="Impacto",(N56-(+N56*U56)),IF(R56="Probabilidad",N56,"")),"") ->  | AD56: =IFERROR(IF(OR(AND(Z56="Muy Baja",AB56="Leve"),AND(Z56="Muy Baja",AB56="Menor"),AND(Z56="Baja",AB56="Leve")),"Bajo",IF(OR(AND(Z56="Muy baja",AB56="Moderado"),AND(Z56="Baja",AB56="Menor"),AND(Z56="Baja",AB56="Moderado"),AND(Z56="Media",AB56="Leve"),AND(Z56="Media",AB56="Menor"),AND(Z56="Media",AB56="Moderado"),AND(Z56="Alta",AB56="Leve"),AND(Z56="Alta",AB56="Menor")),"Moderado",IF(OR(AND(Z56="Muy Baja",AB56="Mayor"),AND(Z56="Baja",AB56="Mayor"),AND(Z56="Media",AB56="Mayor"),AND(Z56="Alta",AB56="Moderado"),AND(Z56="Alta",AB56="Mayor"),AND(Z56="Muy Alta",AB56="Leve"),AND(Z56="Muy Alta",AB56="Menor"),AND(Z56="Muy Alta",AB56="Moderado"),AND(Z56="Muy Alta",AB56="Mayor")),"Alto",IF(OR(AND(Z56="Muy Baja",AB56="Catastrófico"),AND(Z56="Baja",AB56="Catastrófico"),AND(Z56="Media",AB56="Catastrófico"),AND(Z56="Alta",AB56="Catastrófico"),AND(Z56="Muy Alta",AB56="Catastrófico")),"Extremo","")))),"") -> 
L57: =IF(NOT(ISERROR(MATCH(K57,_xlfn.ANCHORARRAY(F68),0))),J70&"Por favor no seleccionar los criterios de impacto",K57) -> 0 | P57: 2 | R57: =IF(OR(S57="Preventivo",S57="Detectivo"),"Probabilidad",IF(S57="Correctivo","Impacto","")) ->  | U57: =IF(AND(S57="Preventivo",T57="Automático"),"50%",IF(AND(S57="Preventivo",T57="Manual"),"40%",IF(AND(S57="Detectivo",T57="Automático"),"40%",IF(AND(S57="Detectivo",T57="Manual"),"30%",IF(AND(S57="Correctivo",T57="Automático"),"35%",IF(AND(S57="Correctivo",T57="Manual"),"25%","")))))) ->  | Y57: =IFERROR(IF(AND(R56="Probabilidad",R57="Probabilidad"),(AA56-(+AA56*U57)),IF(R57="Probabilidad",(J56-(+J56*U57)),IF(R57="Impacto",AA56,""))),"") ->  | AA57: =+Y57 ->  | AC57: =IFERROR(IF(AND(R56="Impacto",R57="Impacto"),(AC56-(+AC56*U57)),IF(R57="Impacto",(N56-(+N56*U57)),IF(R57="Probabilidad",AC56,""))),"") ->  | AD57: =IFERROR(IF(OR(AND(Z57="Muy Baja",AB57="Leve"),AND(Z57="Muy Baja",AB57="Menor"),AND(Z57="Baja",AB57="Leve")),"Bajo",IF(OR(AND(Z57="Muy baja",AB57="Moderado"),AND(Z57="Baja",AB57="Menor"),AND(Z57="Baja",AB57="Moderado"),AND(Z57="Media",AB57="Leve"),AND(Z57="Media",AB57="Menor"),AND(Z57="Media",AB57="Moderado"),AND(Z57="Alta",AB57="Leve"),AND(Z57="Alta",AB57="Menor")),"Moderado",IF(OR(AND(Z57="Muy Baja",AB57="Mayor"),AND(Z57="Baja",AB57="Mayor"),AND(Z57="Media",AB57="Mayor"),AND(Z57="Alta",AB57="Moderado"),AND(Z57="Alta",AB57="Mayor"),AND(Z57="Muy Alta",AB57="Leve"),AND(Z57="Muy Alta",AB57="Menor"),AND(Z57="Muy Alta",AB57="Moderado"),AND(Z57="Muy Alta",AB57="Mayor")),"Alto",IF(OR(AND(Z57="Muy Baja",AB57="Catastrófico"),AND(Z57="Baja",AB57="Catastrófico"),AND(Z57="Media",AB57="Catastrófico"),AND(Z57="Alta",AB57="Catastrófico"),AND(Z57="Muy Alta",AB57="Catastrófico")),"Extremo","")))),"") -> 
L58: =IF(NOT(ISERROR(MATCH(K58,_xlfn.ANCHORARRAY(F69),0))),J71&"Por favor no seleccionar los criterios de impacto",K58) -> 0 | P58: 3 | R58: =IF(OR(S58="Preventivo",S58="Detectivo"),"Probabilidad",IF(S58="Correctivo","Impacto","")) ->  | Y58: =IFERROR(IF(AND(R57="Probabilidad",R58="Probabilidad"),(AA57-(+AA57*U58)),IF(AND(R57="Impacto",R58="Probabilidad"),(AA56-(+AA56*U58)),IF(R58="Impacto",AA57,""))),"") ->  | AC58: =IFERROR(IF(AND(R57="Impacto",R58="Impacto"),(AC57-(+AC57*U58)),IF(AND(R57="Probabilidad",R58="Impacto"),(AC56-(+AC56*U58)),IF(R58="Probabilidad",AC57,""))),"") -> 
L59: =IF(NOT(ISERROR(MATCH(K59,_xlfn.ANCHORARRAY(F70),0))),J72&"Por favor no seleccionar los criterios de impacto",K59) -> 0 | P59: 4 | R59: =IF(OR(S59="Preventivo",S59="Detectivo"),"Probabilidad",IF(S59="Correctivo","Impacto","")) ->  | Y59: =IFERROR(IF(AND(R58="Probabilidad",R59="Probabilidad"),(AA58-(+AA58*U59)),IF(AND(R58="Impacto",R59="Probabilidad"),(AA57-(+AA57*U59)),IF(R59="Impacto",AA58,""))),"") ->  | AC59: =IFERROR(IF(AND(R58="Impacto",R59="Impacto"),(AC58-(+AC58*U59)),IF(AND(R58="Probabilidad",R59="Impacto"),(AC57-(+AC57*U59)),IF(R59="Probabilidad",AC58,""))),"") ->  | AD59: =IFERROR(IF(OR(AND(Z59="Muy Baja",AB59="Leve"),AND(Z59="Muy Baja",AB59="Menor"),AND(Z59="Baja",AB59="Leve")),"Bajo",IF(OR(AND(Z59="Muy baja",AB59="Moderado"),AND(Z59="Baja",AB59="Menor"),AND(Z59="Baja",AB59="Moderado"),AND(Z59="Media",AB59="Leve"),AND(Z59="Media",AB59="Menor"),AND(Z59="Media",AB59="Moderado"),AND(Z59="Alta",AB59="Leve"),AND(Z59="Alta",AB59="Menor")),"Moderado",IF(OR(AND(Z59="Muy Baja",AB59="Mayor"),AND(Z59="Baja",AB59="Mayor"),AND(Z59="Media",AB59="Mayor"),AND(Z59="Alta",AB59="Moderado"),AND(Z59="Alta",AB59="Mayor"),AND(Z59="Muy Alta",AB59="Leve"),AND(Z59="Muy Alta",AB59="Menor"),AND(Z59="Muy Alta",AB59="Moderado"),AND(Z59="Muy Alta",AB59="Mayor")),"Alto",IF(OR(AND(Z59="Muy Baja",AB59="Catastrófico"),AND(Z59="Baja",AB59="Catastrófico"),AND(Z59="Media",AB59="Catastrófico"),AND(Z59="Alta",AB59="Catastrófico"),AND(Z59="Muy Alta",AB59="Catastrófico")),"Extremo","")))),"") -> 
L60: =IF(NOT(ISERROR(MATCH(K60,_xlfn.ANCHORARRAY(F71),0))),J73&"Por favor no seleccionar los criterios de impacto",K60) -> 0 | P60: 5 | AD60: =IFERROR(IF(OR(AND(Z60="Muy Baja",AB60="Leve"),AND(Z60="Muy Baja",AB60="Menor"),AND(Z60="Baja",AB60="Leve")),"Bajo",IF(OR(AND(Z60="Muy baja",AB60="Moderado"),AND(Z60="Baja",AB60="Menor"),AND(Z60="Baja",AB60="Moderado"),AND(Z60="Media",AB60="Leve"),AND(Z60="Media",AB60="Menor"),AND(Z60="Media",AB60="Moderado"),AND(Z60="Alta",AB60="Leve"),AND(Z60="Alta",AB60="Menor")),"Moderado",IF(OR(AND(Z60="Muy Baja",AB60="Mayor"),AND(Z60="Baja",AB60="Mayor"),AND(Z60="Media",AB60="Mayor"),AND(Z60="Alta",AB60="Moderado"),AND(Z60="Alta",AB60="Mayor"),AND(Z60="Muy Alta",AB60="Leve"),AND(Z60="Muy Alta",AB60="Menor"),AND(Z60="Muy Alta",AB60="Moderado"),AND(Z60="Muy Alta",AB60="Mayor")),"Alto",IF(OR(AND(Z60="Muy Baja",AB60="Catastrófico"),AND(Z60="Baja",AB60="Catastrófico"),AND(Z60="Media",AB60="Catastrófico"),AND(Z60="Alta",AB60="Catastrófico"),AND(Z60="Muy Alta",AB60="Catastrófico")),"Extremo","")))),"") -> 
L61: =IF(NOT(ISERROR(MATCH(K61,_xlfn.ANCHORARRAY(F72),0))),J74&"Por favor no seleccionar los criterios de impacto",K61) -> 0 | P61: 6
A62: 9 | I62: =IF(H62<=0,"",IF(H62<=2,"Muy Baja",IF(H62<=24,"Baja",IF(H62<=500,"Media",IF(H62<=5000,"Alta","Muy Alta"))))) ->  | J62: =IF(I62="","",IF(I62="Muy Baja",0.2,IF(I62="Baja",0.4,IF(I62="Media",0.6,IF(I62="Alta",0.8,IF(I62="Muy Alta",1,)))))) ->  | L62: =IF(NOT(ISERROR(MATCH(K62,'[1]Tabla Impacto'!$B$221:$B$223,0))),'[1]Tabla Impacto'!$F$223&"Por favor no seleccionar los criterios de impacto(Afectación Económica o presupuestal y Pérdida Reputacional)",K62) -> 0 | M62: =IF(OR(L62='[1]Tabla Impacto'!$C$11,L62='[1]Tabla Impacto'!$D$11),"Leve",IF(OR(L62='[1]Tabla Impacto'!$C$12,L62='[1]Tabla Impacto'!$D$12),"Menor",IF(OR(L62='[1]Tabla Impacto'!$C$13,L62='[1]Tabla Impacto'!$D$13),"Moderado",IF(OR(L62='[1]Tabla Impacto'!$C$14,L62='[1]Tabla Impacto'!$D$14),"Mayor",IF(OR(L62='[1]Tabla Impacto'!$C$15,L62='[1]Tabla Impacto'!$D$15),"Catastrófico",""))))) ->  | N62: =IF(M62="","",IF(M62="Leve",0.2,IF(M62="Menor",0.4,IF(M62="Moderado",0.6,IF(M62="Mayor",0.8,IF(M62="Catastrófico",1,)))))) ->  | O62: =IF(OR(AND(I62="Muy Baja",M62="Leve"),AND(I62="Muy Baja",M62="Menor"),AND(I62="Baja",M62="Leve")),"Bajo",IF(OR(AND(I62="Muy baja",M62="Moderado"),AND(I62="Baja",M62="Menor"),AND(I62="Baja",M62="Moderado"),AND(I62="Media",M62="Leve"),AND(I62="Media",M62="Menor"),AND(I62="Media",M62="Moderado"),AND(I62="Alta",M62="Leve"),AND(I62="Alta",M62="Menor")),"Moderado",IF(OR(AND(I62="Muy Baja",M62="Mayor"),AND(I62="Baja",M62="Mayor"),AND(I62="Media",M62="Mayor"),AND(I62="Alta",M62="Moderado"),AND(I62="Alta",M62="Mayor"),AND(I62="Muy Alta",M62="Leve"),AND(I62="Muy Alta",M62="Menor"),AND(I62="Muy Alta",M62="Moderado"),AND(I62="Muy Alta",M62="Mayor")),"Alto",IF(OR(AND(I62="Muy Baja",M62="Catastrófico"),AND(I62="Baja",M62="Catastrófico"),AND(I62="Media",M62="Catastrófico"),AND(I62="Alta",M62="Catastrófico"),AND(I62="Muy Alta",M62="Catastrófico")),"Extremo","")))) ->  | P62: 1 | R62: =IF(OR(S62="Preventivo",S62="Detectivo"),"Probabilidad",IF(S62="Correctivo","Impacto","")) ->  | U62: =IF(AND(S62="Preventivo",T62="Automático"),"50%",IF(AND(S62="Preventivo",T62="Manual"),"40%",IF(AND(S62="Detectivo",T62="Automático"),"40%",IF(AND(S62="Detectivo",T62="Manual"),"30%",IF(AND(S62="Correctivo",T62="Automático"),"35%",IF(AND(S62="Correctivo",T62="Manual"),"25%","")))))) ->  | Y62: =IFERROR(IF(R62="Probabilidad",(J62-(+J62*U62)),IF(R62="Impacto",J62,"")),"") ->  | Z62: =IFERROR(IF(Y62="","",IF(Y62<=0.2,"Muy Baja",IF(Y62<=0.4,"Baja",IF(Y62<=0.6,"Media",IF(Y62<=0.8,"Alta","Muy Alta"))))),"") ->  | AA62: =+Y62 ->  | AB62: =IFERROR(IF(AC62="","",IF(AC62<=0.2,"Leve",IF(AC62<=0.4,"Menor",IF(AC62<=0.6,"Moderado",IF(AC62<=0.8,"Mayor","Catastrófico"))))),"") ->  | AC62: =IFERROR(IF(R62="Impacto",(N62-(+N62*U62)),IF(R62="Probabilidad",N62,"")),"") ->  | AD62: =IFERROR(IF(OR(AND(Z62="Muy Baja",AB62="Leve"),AND(Z62="Muy Baja",AB62="Menor"),AND(Z62="Baja",AB62="Leve")),"Bajo",IF(OR(AND(Z62="Muy baja",AB62="Moderado"),AND(Z62="Baja",AB62="Menor"),AND(Z62="Baja",AB62="Moderado"),AND(Z62="Media",AB62="Leve"),AND(Z62="Media",AB62="Menor"),AND(Z62="Media",AB62="Moderado"),AND(Z62="Alta",AB62="Leve"),AND(Z62="Alta",AB62="Menor")),"Moderado",IF(OR(AND(Z62="Muy Baja",AB62="Mayor"),AND(Z62="Baja",AB62="Mayor"),AND(Z62="Media",AB62="Mayor"),AND(Z62="Alta",AB62="Moderado"),AND(Z62="Alta",AB62="Mayor"),AND(Z62="Muy Alta",AB62="Leve"),AND(Z62="Muy Alta",AB62="Menor"),AND(Z62="Muy Alta",AB62="Moderado"),AND(Z62="Muy Alta",AB62="Mayor")),"Alto",IF(OR(AND(Z62="Muy Baja",AB62="Catastrófico"),AND(Z62="Baja",AB62="Catastrófico"),AND(Z62="Media",AB62="Catastrófico"),AND(Z62="Alta",AB62="Catastrófico"),AND(Z62="Muy Alta",AB62="Catastrófico")),"Extremo","")))),"") -> 
L63: =IF(NOT(ISERROR(MATCH(K63,_xlfn.ANCHORARRAY(F74),0))),J76&"Por favor no seleccionar los criterios de impacto",K63) -> 0 | P63: 2 | R63: =IF(OR(S63="Preventivo",S63="Detectivo"),"Probabilidad",IF(S63="Correctivo","Impacto","")) ->  | U63: =IF(AND(S63="Preventivo",T63="Automático"),"50%",IF(AND(S63="Preventivo",T63="Manual"),"40%",IF(AND(S63="Detectivo",T63="Automático"),"40%",IF(AND(S63="Detectivo",T63="Manual"),"30%",IF(AND(S63="Correctivo",T63="Automático"),"35%",IF(AND(S63="Correctivo",T63="Manual"),"25%","")))))) ->  | Y63: =IFERROR(IF(AND(R62="Probabilidad",R63="Probabilidad"),(AA62-(+AA62*U63)),IF(R63="Probabilidad",(J62-(+J62*U63)),IF(R63="Impacto",AA62,""))),"") ->  | AA63: =+Y63 ->  | AC63: =IFERROR(IF(AND(R62="Impacto",R63="Impacto"),(AC62-(+AC62*U63)),IF(R63="Impacto",(N62-(+N62*U63)),IF(R63="Probabilidad",AC62,""))),"") ->  | AD63: =IFERROR(IF(OR(AND(Z63="Muy Baja",AB63="Leve"),AND(Z63="Muy Baja",AB63="Menor"),AND(Z63="Baja",AB63="Leve")),"Bajo",IF(OR(AND(Z63="Muy baja",AB63="Moderado"),AND(Z63="Baja",AB63="Menor"),AND(Z63="Baja",AB63="Moderado"),AND(Z63="Media",AB63="Leve"),AND(Z63="Media",AB63="Menor"),AND(Z63="Media",AB63="Moderado"),AND(Z63="Alta",AB63="Leve"),AND(Z63="Alta",AB63="Menor")),"Moderado",IF(OR(AND(Z63="Muy Baja",AB63="Mayor"),AND(Z63="Baja",AB63="Mayor"),AND(Z63="Media",AB63="Mayor"),AND(Z63="Alta",AB63="Moderado"),AND(Z63="Alta",AB63="Mayor"),AND(Z63="Muy Alta",AB63="Leve"),AND(Z63="Muy Alta",AB63="Menor"),AND(Z63="Muy Alta",AB63="Moderado"),AND(Z63="Muy Alta",AB63="Mayor")),"Alto",IF(OR(AND(Z63="Muy Baja",AB63="Catastrófico"),AND(Z63="Baja",AB63="Catastrófico"),AND(Z63="Media",AB63="Catastrófico"),AND(Z63="Alta",AB63="Catastrófico"),AND(Z63="Muy Alta",AB63="Catastrófico")),"Extremo","")))),"") -> 
L64: =IF(NOT(ISERROR(MATCH(K64,_xlfn.ANCHORARRAY(F75),0))),J77&"Por favor no seleccionar los criterios de impacto",K64) -> 0 | P64: 3 | R64: =IF(OR(S64="Preventivo",S64="Detectivo"),"Probabilidad",IF(S64="Correctivo","Impacto","")) ->  | Y64: =IFERROR(IF(AND(R63="Probabilidad",R64="Probabilidad"),(AA63-(+AA63*U64)),IF(AND(R63="Impacto",R64="Probabilidad"),(AA62-(+AA62*U64)),IF(R64="Impacto",AA63,""))),"") ->  | AC64: =IFERROR(IF(AND(R63="Impacto",R64="Impacto"),(AC63-(+AC63*U64)),IF(AND(R63="Probabilidad",R64="Impacto"),(AC62-(+AC62*U64)),IF(R64="Probabilidad",AC63,""))),"") -> 
L65: =IF(NOT(ISERROR(MATCH(K65,_xlfn.ANCHORARRAY(F76),0))),J78&"Por favor no seleccionar los criterios de impacto",K65) -> 0 | P65: 4 | R65: =IF(OR(S65="Preventivo",S65="Detectivo"),"Probabilidad",IF(S65="Correctivo","Impacto","")) ->  | Y65: =IFERROR(IF(AND(R64="Probabilidad",R65="Probabilidad"),(AA64-(+AA64*U65)),IF(AND(R64="Impacto",R65="Probabilidad"),(AA63-(+AA63*U65)),IF(R65="Impacto",AA64,""))),"") ->  | AC65: =IFERROR(IF(AND(R64="Impacto",R65="Impacto"),(AC64-(+AC64*U65)),IF(AND(R64="Probabilidad",R65="Impacto"),(AC63-(+AC63*U65)),IF(R65="Probabilidad",AC64,""))),"") ->  | AD65: =IFERROR(IF(OR(AND(Z65="Muy Baja",AB65="Leve"),AND(Z65="Muy Baja",AB65="Menor"),AND(Z65="Baja",AB65="Leve")),"Bajo",IF(OR(AND(Z65="Muy baja",AB65="Moderado"),AND(Z65="Baja",AB65="Menor"),AND(Z65="Baja",AB65="Moderado"),AND(Z65="Media",AB65="Leve"),AND(Z65="Media",AB65="Menor"),AND(Z65="Media",AB65="Moderado"),AND(Z65="Alta",AB65="Leve"),AND(Z65="Alta",AB65="Menor")),"Moderado",IF(OR(AND(Z65="Muy Baja",AB65="Mayor"),AND(Z65="Baja",AB65="Mayor"),AND(Z65="Media",AB65="Mayor"),AND(Z65="Alta",AB65="Moderado"),AND(Z65="Alta",AB65="Mayor"),AND(Z65="Muy Alta",AB65="Leve"),AND(Z65="Muy Alta",AB65="Menor"),AND(Z65="Muy Alta",AB65="Moderado"),AND(Z65="Muy Alta",AB65="Mayor")),"Alto",IF(OR(AND(Z65="Muy Baja",AB65="Catastrófico"),AND(Z65="Baja",AB65="Catastrófico"),AND(Z65="Media",AB65="Catastrófico"),AND(Z65="Alta",AB65="Catastrófico"),AND(Z65="Muy Alta",AB65="Catastrófico")),"Extremo","")))),"") -> 
L66: =IF(NOT(ISERROR(MATCH(K66,_xlfn.ANCHORARRAY(F77),0))),J79&"Por favor no seleccionar los criterios de impacto",K66) -> 0 | P66: 5 | AD66: =IFERROR(IF(OR(AND(Z66="Muy Baja",AB66="Leve"),AND(Z66="Muy Baja",AB66="Menor"),AND(Z66="Baja",AB66="Leve")),"Bajo",IF(OR(AND(Z66="Muy baja",AB66="Moderado"),AND(Z66="Baja",AB66="Menor"),AND(Z66="Baja",AB66="Moderado"),AND(Z66="Media",AB66="Leve"),AND(Z66="Media",AB66="Menor"),AND(Z66="Media",AB66="Moderado"),AND(Z66="Alta",AB66="Leve"),AND(Z66="Alta",AB66="Menor")),"Moderado",IF(OR(AND(Z66="Muy Baja",AB66="Mayor"),AND(Z66="Baja",AB66="Mayor"),AND(Z66="Media",AB66="Mayor"),AND(Z66="Alta",AB66="Moderado"),AND(Z66="Alta",AB66="Mayor"),AND(Z66="Muy Alta",AB66="Leve"),AND(Z66="Muy Alta",AB66="Menor"),AND(Z66="Muy Alta",AB66="Moderado"),AND(Z66="Muy Alta",AB66="Mayor")),"Alto",IF(OR(AND(Z66="Muy Baja",AB66="Catastrófico"),AND(Z66="Baja",AB66="Catastrófico"),AND(Z66="Media",AB66="Catastrófico"),AND(Z66="Alta",AB66="Catastrófico"),AND(Z66="Muy Alta",AB66="Catastrófico")),"Extremo","")))),"") -> 
L67: =IF(NOT(ISERROR(MATCH(K67,_xlfn.ANCHORARRAY(F78),0))),J80&"Por favor no seleccionar los criterios de impacto",K67) -> 0 | P67: 6
A68: 10 | I68: =IF(H68<=0,"",IF(H68<=2,"Muy Baja",IF(H68<=24,"Baja",IF(H68<=500,"Media",IF(H68<=5000,"Alta","Muy Alta"))))) ->  | J68: =IF(I68="","",IF(I68="Muy Baja",0.2,IF(I68="Baja",0.4,IF(I68="Media",0.6,IF(I68="Alta",0.8,IF(I68="Muy Alta",1,)))))) ->  | L68: =IF(NOT(ISERROR(MATCH(K68,'[1]Tabla Impacto'!$B$221:$B$223,0))),'[1]Tabla Impacto'!$F$223&"Por favor no seleccionar los criterios de impacto(Afectación Económica o presupuestal y Pérdida Reputacional)",K68) -> 0 | M68: =IF(OR(L68='[1]Tabla Impacto'!$C$11,L68='[1]Tabla Impacto'!$D$11),"Leve",IF(OR(L68='[1]Tabla Impacto'!$C$12,L68='[1]Tabla Impacto'!$D$12),"Menor",IF(OR(L68='[1]Tabla Impacto'!$C$13,L68='[1]Tabla Impacto'!$D$13),"Moderado",IF(OR(L68='[1]Tabla Impacto'!$C$14,L68='[1]Tabla Impacto'!$D$14),"Mayor",IF(OR(L68='[1]Tabla Impacto'!$C$15,L68='[1]Tabla Impacto'!$D$15),"Catastrófico",""))))) ->  | N68: =IF(M68="","",IF(M68="Leve",0.2,IF(M68="Menor",0.4,IF(M68="Moderado",0.6,IF(M68="Mayor",0.8,IF(M68="Catastrófico",1,)))))) ->  | O68: =IF(OR(AND(I68="Muy Baja",M68="Leve"),AND(I68="Muy Baja",M68="Menor"),AND(I68="Baja",M68="Leve")),"Bajo",IF(OR(AND(I68="Muy baja",M68="Moderado"),AND(I68="Baja",M68="Menor"),AND(I68="Baja",M68="Moderado"),AND(I68="Media",M68="Leve"),AND(I68="Media",M68="Menor"),AND(I68="Media",M68="Moderado"),AND(I68="Alta",M68="Leve"),AND(I68="Alta",M68="Menor")),"Moderado",IF(OR(AND(I68="Muy Baja",M68="Mayor"),AND(I68="Baja",M68="Mayor"),AND(I68="Media",M68="Mayor"),AND(I68="Alta",M68="Moderado"),AND(I68="Alta",M68="Mayor"),AND(I68="Muy Alta",M68="Leve"),AND(I68="Muy Alta",M68="Menor"),AND(I68="Muy Alta",M68="Moderado"),AND(I68="Muy Alta",M68="Mayor")),"Alto",IF(OR(AND(I68="Muy Baja",M68="Catastrófico"),AND(I68="Baja",M68="Catastrófico"),AND(I68="Media",M68="Catastrófico"),AND(I68="Alta",M68="Catastrófico"),AND(I68="Muy Alta",M68="Catastrófico")),"Extremo","")))) ->  | P68: 1 | R68: =IF(OR(S68="Preventivo",S68="Detectivo"),"Probabilidad",IF(S68="Correctivo","Impacto","")) ->  | U68: =IF(AND(S68="Preventivo",T68="Automático"),"50%",IF(AND(S68="Preventivo",T68="Manual"),"40%",IF(AND(S68="Detectivo",T68="Automático"),"40%",IF(AND(S68="Detectivo",T68="Manual"),"30%",IF(AND(S68="Correctivo",T68="Automático"),"35%",IF(AND(S68="Correctivo",T68="Manual"),"25%","")))))) ->  | Y68: =IFERROR(IF(R68="Probabilidad",(J68-(+J68*U68)),IF(R68="Impacto",J68,"")),"") ->  | Z68: =IFERROR(IF(Y68="","",IF(Y68<=0.2,"Muy Baja",IF(Y68<=0.4,"Baja",IF(Y68<=0.6,"Media",IF(Y68<=0.8,"Alta","Muy Alta"))))),"") ->  | AA68: =+Y68 ->  | AB68: =IFERROR(IF(AC68="","",IF(AC68<=0.2,"Leve",IF(AC68<=0.4,"Menor",IF(AC68<=0.6,"Moderado",IF(AC68<=0.8,"Mayor","Catastrófico"))))),"") ->  | AC68: =IFERROR(IF(R68="Impacto",(N68-(+N68*U68)),IF(R68="Probabilidad",N68,"")),"") ->  | AD68: =IFERROR(IF(OR(AND(Z68="Muy Baja",AB68="Leve"),AND(Z68="Muy Baja",AB68="Menor"),AND(Z68="Baja",AB68="Leve")),"Bajo",IF(OR(AND(Z68="Muy baja",AB68="Moderado"),AND(Z68="Baja",AB68="Menor"),AND(Z68="Baja",AB68="Moderado"),AND(Z68="Media",AB68="Leve"),AND(Z68="Media",AB68="Menor"),AND(Z68="Media",AB68="Moderado"),AND(Z68="Alta",AB68="Leve"),AND(Z68="Alta",AB68="Menor")),"Moderado",IF(OR(AND(Z68="Muy Baja",AB68="Mayor"),AND(Z68="Baja",AB68="Mayor"),AND(Z68="Media",AB68="Mayor"),AND(Z68="Alta",AB68="Moderado"),AND(Z68="Alta",AB68="Mayor"),AND(Z68="Muy Alta",AB68="Leve"),AND(Z68="Muy Alta",AB68="Menor"),AND(Z68="Muy Alta",AB68="Moderado"),AND(Z68="Muy Alta",AB68="Mayor")),"Alto",IF(OR(AND(Z68="Muy Baja",AB68="Catastrófico"),AND(Z68="Baja",AB68="Catastrófico"),AND(Z68="Media",AB68="Catastrófico"),AND(Z68="Alta",AB68="Catastrófico"),AND(Z68="Muy Alta",AB68="Catastrófico")),"Extremo","")))),"") -> 
L69: =IF(NOT(ISERROR(MATCH(K69,_xlfn.ANCHORARRAY(F80),0))),J82&"Por favor no seleccionar los criterios de impacto",K69) -> 0 | P69: 2 | R69: =IF(OR(S69="Preventivo",S69="Detectivo"),"Probabilidad",IF(S69="Correctivo","Impacto","")) ->  | U69: =IF(AND(S69="Preventivo",T69="Automático"),"50%",IF(AND(S69="Preventivo",T69="Manual"),"40%",IF(AND(S69="Detectivo",T69="Automático"),"40%",IF(AND(S69="Detectivo",T69="Manual"),"30%",IF(AND(S69="Correctivo",T69="Automático"),"35%",IF(AND(S69="Correctivo",T69="Manual"),"25%","")))))) ->  | Y69: =IFERROR(IF(AND(R68="Probabilidad",R69="Probabilidad"),(AA68-(+AA68*U69)),IF(R69="Probabilidad",(J68-(+J68*U69)),IF(R69="Impacto",AA68,""))),"") ->  | AA69: =+Y69 ->  | AC69: =IFERROR(IF(AND(R68="Impacto",R69="Impacto"),(AC68-(+AC68*U69)),IF(R69="Impacto",(N68-(+N68*U69)),IF(R69="Probabilidad",AC68,""))),"") ->  | AD69: =IFERROR(IF(OR(AND(Z69="Muy Baja",AB69="Leve"),AND(Z69="Muy Baja",AB69="Menor"),AND(Z69="Baja",AB69="Leve")),"Bajo",IF(OR(AND(Z69="Muy baja",AB69="Moderado"),AND(Z69="Baja",AB69="Menor"),AND(Z69="Baja",AB69="Moderado"),AND(Z69="Media",AB69="Leve"),AND(Z69="Media",AB69="Menor"),AND(Z69="Media",AB69="Moderado"),AND(Z69="Alta",AB69="Leve"),AND(Z69="Alta",AB69="Menor")),"Moderado",IF(OR(AND(Z69="Muy Baja",AB69="Mayor"),AND(Z69="Baja",AB69="Mayor"),AND(Z69="Media",AB69="Mayor"),AND(Z69="Alta",AB69="Moderado"),AND(Z69="Alta",AB69="Mayor"),AND(Z69="Muy Alta",AB69="Leve"),AND(Z69="Muy Alta",AB69="Menor"),AND(Z69="Muy Alta",AB69="Moderado"),AND(Z69="Muy Alta",AB69="Mayor")),"Alto",IF(OR(AND(Z69="Muy Baja",AB69="Catastrófico"),AND(Z69="Baja",AB69="Catastrófico"),AND(Z69="Media",AB69="Catastrófico"),AND(Z69="Alta",AB69="Catastrófico"),AND(Z69="Muy Alta",AB69="Catastrófico")),"Extremo","")))),"") -> 
L70: =IF(NOT(ISERROR(MATCH(K70,_xlfn.ANCHORARRAY(F81),0))),J83&"Por favor no seleccionar los criterios de impacto",K70) -> 0 | P70: 3 | R70: =IF(OR(S70="Preventivo",S70="Detectivo"),"Probabilidad",IF(S70="Correctivo","Impacto","")) ->  | Y70: =IFERROR(IF(AND(R69="Probabilidad",R70="Probabilidad"),(AA69-(+AA69*U70)),IF(AND(R69="Impacto",R70="Probabilidad"),(AA68-(+AA68*U70)),IF(R70="Impacto",AA69,""))),"") ->  | AC70: =IFERROR(IF(AND(R69="Impacto",R70="Impacto"),(AC69-(+AC69*U70)),IF(AND(R69="Probabilidad",R70="Impacto"),(AC68-(+AC68*U70)),IF(R70="Probabilidad",AC69,""))),"") -> 
L71: =IF(NOT(ISERROR(MATCH(K71,_xlfn.ANCHORARRAY(F82),0))),J84&"Por favor no seleccionar los criterios de impacto",K71) -> 0 | P71: 4 | R71: =IF(OR(S71="Preventivo",S71="Detectivo"),"Probabilidad",IF(S71="Correctivo","Impacto","")) ->  | Y71: =IFERROR(IF(AND(R70="Probabilidad",R71="Probabilidad"),(AA70-(+AA70*U71)),IF(AND(R70="Impacto",R71="Probabilidad"),(AA69-(+AA69*U71)),IF(R71="Impacto",AA70,""))),"") ->  | AC71: =IFERROR(IF(AND(R70="Impacto",R71="Impacto"),(AC70-(+AC70*U71)),IF(AND(R70="Probabilidad",R71="Impacto"),(AC69-(+AC69*U71)),IF(R71="Probabilidad",AC70,""))),"") ->  | AD71: =IFERROR(IF(OR(AND(Z71="Muy Baja",AB71="Leve"),AND(Z71="Muy Baja",AB71="Menor"),AND(Z71="Baja",AB71="Leve")),"Bajo",IF(OR(AND(Z71="Muy baja",AB71="Moderado"),AND(Z71="Baja",AB71="Menor"),AND(Z71="Baja",AB71="Moderado"),AND(Z71="Media",AB71="Leve"),AND(Z71="Media",AB71="Menor"),AND(Z71="Media",AB71="Moderado"),AND(Z71="Alta",AB71="Leve"),AND(Z71="Alta",AB71="Menor")),"Moderado",IF(OR(AND(Z71="Muy Baja",AB71="Mayor"),AND(Z71="Baja",AB71="Mayor"),AND(Z71="Media",AB71="Mayor"),AND(Z71="Alta",AB71="Moderado"),AND(Z71="Alta",AB71="Mayor"),AND(Z71="Muy Alta",AB71="Leve"),AND(Z71="Muy Alta",AB71="Menor"),AND(Z71="Muy Alta",AB71="Moderado"),AND(Z71="Muy Alta",AB71="Mayor")),"Alto",IF(OR(AND(Z71="Muy Baja",AB71="Catastrófico"),AND(Z71="Baja",AB71="Catastrófico"),AND(Z71="Media",AB71="Catastrófico"),AND(Z71="Alta",AB71="Catastrófico"),AND(Z71="Muy Alta",AB71="Catastrófico")),"Extremo","")))),"") -> 
L72: =IF(NOT(ISERROR(MATCH(K72,_xlfn.ANCHORARRAY(F83),0))),J85&"Por favor no seleccionar los criterios de impacto",K72) -> 0 | P72: 5 | AD72: =IFERROR(IF(OR(AND(Z72="Muy Baja",AB72="Leve"),AND(Z72="Muy Baja",AB72="Menor"),AND(Z72="Baja",AB72="Leve")),"Bajo",IF(OR(AND(Z72="Muy baja",AB72="Moderado"),AND(Z72="Baja",AB72="Menor"),AND(Z72="Baja",AB72="Moderado"),AND(Z72="Media",AB72="Leve"),AND(Z72="Media",AB72="Menor"),AND(Z72="Media",AB72="Moderado"),AND(Z72="Alta",AB72="Leve"),AND(Z72="Alta",AB72="Menor")),"Moderado",IF(OR(AND(Z72="Muy Baja",AB72="Mayor"),AND(Z72="Baja",AB72="Mayor"),AND(Z72="Media",AB72="Mayor"),AND(Z72="Alta",AB72="Moderado"),AND(Z72="Alta",AB72="Mayor"),AND(Z72="Muy Alta",AB72="Leve"),AND(Z72="Muy Alta",AB72="Menor"),AND(Z72="Muy Alta",AB72="Moderado"),AND(Z72="Muy Alta",AB72="Mayor")),"Alto",IF(OR(AND(Z72="Muy Baja",AB72="Catastrófico"),AND(Z72="Baja",AB72="Catastrófico"),AND(Z72="Media",AB72="Catastrófico"),AND(Z72="Alta",AB72="Catastrófico"),AND(Z72="Muy Alta",AB72="Catastrófico")),"Extremo","")))),"") -> 
L73: =IF(NOT(ISERROR(MATCH(K73,_xlfn.ANCHORARRAY(F84),0))),J86&"Por favor no seleccionar los criterios de impacto",K73) -> 0 | P73: 6
C74: *Nota: La columna referencia se sugiere para mantener el consecutivo de riesgos, así el riesgo salga del mapa no existirá otro riesgo con el mismo número. Una entidad puede ir en el riesgo 150 pero tener 70 riesgos, lo que permite llevar una traza de los riesgos. Esta información la debe administrar la Oficina Asesora de Planeación o Gerencia de Riesgos.
C76: Fuente: Adaptado de Curso Riesgo Operativo Universidad del Rosario por Dirección de Gestión y Desempeño Institucional de Función Pública, 2020.

Sheet Tabla Impacto (hidden)
B1: Tabla Criterios para definir el nivel de impacto
C3: Afectación Económica (o presupuestal) | D3: Pérdida Reputacional
A4: Insignificante | B4: Leve 20% | C4: Afectación menor a 10 SMLMV | D4: El riesgo afecta la imagen de alguna área de la organización
A5: Menor | B5: Menor-40% | C5: Entre 10 y 50 SMLMV | D5: El riesgo afecta la imagen de la entidad internamente, de conocimiento general, nivel interno, de junta dircetiva y accionistas y/o de provedores
A6: Moderado | B6: Moderado 60% | C6: Entre 50 y 100 SMLMV | D6: El riesgo afecta la imagen de la entidad con algunos usuarios de relevancia frente al logro de los objetivos
A7: Mayor | B7: Mayor 80% | C7: Entre 100 y 500 SMLMV | D7: El riesgo afecta la imagen de de la entidad con efecto publicitario sostenido a nivel de sector administrativo, nivel departamental o municipal
A8: Catastrófico | B8: Catastrófico 100% | C8: Mayor a 500 SMLMV | D8: El riesgo afecta la imagen de la entidad a nivel nacional, con efecto publicitarios sostenible a nivel país
B11: Afectación_Económica_o_presupuestal | C11: Afectación menor a 10 SMLMV . | D11: El riesgo afecta la imagen de alguna área de la organización
B12: Pérdida_Reputacional | C12: Entre 10 y 50 SMLMV | D12: El riesgo afecta la imagen de la entidad internamente, de conocimiento general, nivel interno, de junta dircetiva y accionistas y/o de provedores
C13: Entre 50 y 100 SMLMV | D13: El riesgo afecta la imagen de la entidad con algunos usuarios de relevancia frente al logro de los objetivos
C14: Entre 100 y 500 SMLMV | D14: El riesgo afecta la imagen de de la entidad con efecto publicitario sostenido a nivel de sector administrativo, nivel departamental o municipal
C15: Mayor a 500 SMLMV | D15: El riesgo afecta la imagen de la entidad a nivel nacional, con efecto publicitarios sostenible a nivel país
B209: Criterios | C209: Subcriterios | D209: Criterios | E209: Subcriterios
B210: Afectación Económica o presupuestal | C210: Afectación menor a 10 SMLMV . | D210: Afectación Económica o presupuestal | F210: =IF(NOT(ISBLANK(D210)),D210,IF(NOT(ISBLANK(E210))," "&E210,FALSE)) -> Afectación Económica o presupuestal | G210: Afectación Económica o presupuestal | H210: =IF(NOT(ISERROR(MATCH(G210,_xlfn.ANCHORARRAY(B221),0))),F223&"Por favor no seleccionar los criterios de impacto",G210) -> ❌Por favor no seleccionar los criterios de impacto
B211: Afectación Económica o presupuestal | C211: Entre 10 y 50 SMLMV | E211: Afectación menor a 10 SMLMV . | F211: =IF(NOT(ISBLANK(D211)),D211,IF(NOT(ISBLANK(E211))," "&E211,FALSE)) -> Afectación menor a 10 SMLMV .
B212: Afectación Económica o presupuestal | C212: Entre 50 y 100 SMLMV | E212: Entre 10 y 50 SMLMV | F212: Entre 10 y 50 SMLMV
B213: Afectación Económica o presupuestal | C213: Entre 100 y 500 SMLMV | E213: Entre 50 y 100 SMLMV | F213: Entre 50 y 100 SMLMV
B214: Afectación Económica o presupuestal | C214: Mayor a 500 SMLMV | E214: Entre 100 y 500 SMLMV | F214: Entre 100 y 500 SMLMV
B215: Pérdida Reputacional | C215: El riesgo afecta la imagen de alguna área de la organización | E215: Mayor a 500 SMLMV | F215: Mayor a 500 SMLMV
B216: Pérdida Reputacional | C216: El riesgo afecta la imagen de la entidad internamente, de conocimiento general, nivel interno, de junta dircetiva y accionistas y/o de provedores | D216: Pérdida Reputacional | F216: Pérdida Reputacional
B217: Pérdida Reputacional | C217: El riesgo afecta la imagen de la entidad con algunos usuarios de relevancia frente al logro de los objetivos | E217: El riesgo afecta la imagen de alguna área de la organización | F217: El riesgo afecta la imagen de alguna área de la organización
B218: Pérdida Reputacional | C218: El riesgo afecta la imagen de de la entidad con efecto publicitario sostenido a nivel de sector administrativo, nivel departamental o municipal | E218: El riesgo afecta la imagen de la entidad internamente, de conocimiento general, nivel interno, de junta dircetiva y accionistas y/o de provedores | F218: El riesgo afecta la imagen de la entidad internamente, de conocimiento general, nivel interno, de junta dircetiva y accionistas y/o de provedores
B219: Pérdida Reputacional | C219: El riesgo afecta la imagen de la entidad a nivel nacional, con efecto publicitarios sostenible a nivel país | E219: El riesgo afecta la imagen de la entidad con algunos usuarios de relevancia frente al logro de los objetivos | F219: El riesgo afecta la imagen de la entidad con algunos usuarios de relevancia frente al logro de los objetivos
E220: El riesgo afecta la imagen de de la entidad con efecto publicitario sostenido a nivel de sector administrativo, nivel departamental o municipal | F220: El riesgo afecta la imagen de de la entidad con efecto publicitario sostenido a nivel de sector administrativo, nivel departamental o municipal
B221: =_xlfn.UNIQUE(Tabla1[[#All],[Criterios]]) -> Criterios | E221: El riesgo afecta la imagen de la entidad a nivel nacional, con efecto publicitarios sostenible a nivel país | F221: El riesgo afecta la imagen de la entidad a nivel nacional, con efecto publicitarios sostenible a nivel país
B222: Afectación Económica o presupuestal
B223: Pérdida Reputacional | F223: ❌
F224: ✔

Sheet Tabla Valoración controles (hidden)
B1: Tabla Atributos de para el diseño del control
B3: Características | E3: Descripción | F3: Peso
B4: Atributos de Eficiencia | C4: Tipo | D4: Preventivo | E4: Va hacia las causas del riesgo, aseguran el resultado final esperado. | F4: 0.25
D5: Detectivo | E5: Detecta que algo ocurre y devuelve el proceso a los controles preventivos. Se pueden generar reprocesos. | F5: 0.15
D6: Correctivo | E6: Dado que permiten reducir el impacto de la materialización del riesgo, tienen un costo en su implementación. | F6: 0.1
C7: Implementación | D7: Automático | E7: Son actividades de procesamiento o validación de información que se ejecutan por un sistema y/o aplicativo de manera automática sin la intervención de personas para su realización. | F7: 0.25
D8: Manual | E8: Controles que son ejecutados por una persona., tiene implícito el error humano. | F8: 0.15
B9: *Atributos de Formalización | C9: Documentación | D9: Documentado | E9: Controles que están documentados en el proceso, ya sea en manuales, procedimientos, flujogramas o cualquier otro documento propio del proceso. | F9: -
D10: Sin Documentar | E10: Identifica a los controles que pese a que se ejecutan en el proceso no se encuentran documentados en ningún documento propio del proceso | F10: -
C11: Frecuencia | D11: Continua | E11: Este atributo identifica a los controles que se ejecutan siempre que se realiza la actividad originadora del riesgo. | F11: -
D12: Aleatoria | E12: Este atributo identifica a los controles que no siempre se ejecutan cuando se realiza la actividad originadora del riesgo | F12: -
C13: Evidencia | D13: Con Registro | E13: El control deja un registro que permite evidenciar la ejecución del control | F13: -
D14: Sin Registro | E14: El control no deja registro de la ejecución del control | F14: -
B15: *Nota 1: Los atributos de formalización se recogerán de manera informativa, con el fin de conocer el entorno del control y complementar el análisis con elementos cualitativos; éstos no tienen una incidencia directa en su efectividad.

Sheet SIG (hidden)
G1: EMPRESA DE LICORES DE CUNDINAMARCA | AF1: Código: PC010100.F12-3
AF2: Versión: 3
G3: FORMATO MAPA DE RIESGOS | AF3: Fecha de emisión: 19/04/2022 | AJ3: Pagina: 2 de 2
A6: Macroproceso: | D6: Sistema Integrado de Gestión
A7: Objetivo: | D7: Establecer, implementar y mantener el Sistema Integrado de Gestión de la Entidad, mediante la elaboración y control de documento y registros, la medición de la gestión, la realización de auditorias internas a intervalos de tiempos planificados, la administración de riesgos y la revisión por la lata dirección con el fin de orientar, facilitar y tomar decisiones que permitan la mejora continua y el logo de los objetivos institucionales en términos de eficiencia, eficacia y efectividad.
A8: Alcance: | D8: Desde la orientación, acompañamiento y seguimiento y mantenimiento del Sistema Integrado de Gestión hasta la mejora continua del mismo.
A9: Identificación del riesgo | I9: Análisis del riesgo inherente | P9: Evaluación del riesgo - Valoración de los controles | Y9: Evaluación del riesgo - Nivel del riesgo residual | AF9: Plan de Acción | AL9: Autoevaluación | AN9: Autoevaluación | AP9: Evaluación
A10: Referencia | B10: Proceso | C10: Impacto | D10: Causa Inmediata | E10: Causa Raíz | F10: Descripción del Riesgo | G10: Clasificación del Riesgo | H10: Frecuencia con la cual se realiza la actividad | I10: Probabilidad Inherente | J10: % | K10: Criterios de impacto | L10: Observación de criterio | M10: Impacto Inherente | N10: % | O10: Zona de Riesgo Inherente | P10: No. Control | Q10: Descripción del Control | R10: Afectación | S10: Atributos | Y10: Probabilidad Residual | Z10: Probabilidad Residual Final | AA10: % | AB10: Impacto Residual Final | AC10: % | AD10: Zona de Riesgo Final | AE10: Tratamiento | AF10: Plan de Acción | AG10: Indicadores | AH10: Responsable | AI10: Fecha Implementación | AJ10: Fecha Seguimiento | AK10: Estado | AL10: 1er trimestre | AN10: 2do trimestre | AP10: Evaluación independiente de Control Interno | AQ10: Toma de desiciones
S11: Tipo | T11: Implementación | U11: Calificación | V11: Documentación | W11: Frecuencia | X11: Evidencia | AL11: Acciones | AM11: Calculo del indicador | AN11: Acciones | AO11: Calculo del indicador
A12: 1 | B12: Planificación control documental, seguimeinto del SIG | C12: Económico y Reputacional | D12: Desconocimiento del procedimiento | E12: * Desconocimiento y falta de apropiación e interiorización de los elementos que componen el Sistema Integrado de Gestión. * Falta de compromiso por parte de los lideres de los procesos para actualizar y socializar los procesos y procedimientos. * Falta de disciplina en la aplicación sistemática de los procesos y procedimientos / inadecuado entrenamiento del personal. * Publicación inoportuna de los documentos del SIG en el canal de comunicación oficial de la ELC-La Intranet. * Uso de documentos obsoletos. * Incumplimiento del programa anual de auditorías. *Inadecuada identificación de acciones correctivas y riesgos y mal diligenciamiento del formato de reporte de acciones correctivas. | F12: Perdida de la certificación en las NTC ISO 9001:2015, ISO 14001:2015. | G12: Ejecucion y Administracion de procesos | H12: 1 | I12: =IF(H12<=0,"",IF(H12<=2,"Muy Baja",IF(H12<=24,"Baja",IF(H12<=500,"Media",IF(H12<=5000,"Alta","Muy Alta"))))) -> Muy Baja | J12: =IF(I12="","",IF(I12="Muy Baja",0.2,IF(I12="Baja",0.4,IF(I12="Media",0.6,IF(I12="Alta",0.8,IF(I12="Muy Alta",1,)))))) -> 0.2 | K12: Entre 10 y 50 SMLMV | L12: =IF(NOT(ISERROR(MATCH(K12,'Tabla Impacto'!$B$221:$B$223,0))),'Tabla Impacto'!$F$223&"Por favor no seleccionar los criterios de impacto(Afectación Económica o presupuestal y Pérdida Reputacional)",K12) -> Entre 10 y 50 SMLMV | M12: =IF(OR(L12='Tabla Impacto'!$C$11,L12='Tabla Impacto'!$D$11),"Leve",IF(OR(L12='Tabla Impacto'!$C$12,L12='Tabla Impacto'!$D$12),"Menor",IF(OR(L12='Tabla Impacto'!$C$13,L12='Tabla Impacto'!$D$13),"Moderado",IF(OR(L12='Tabla Impacto'!$C$14,L12='Tabla Impacto'!$D$14),"Mayor",IF(OR(L12='Tabla Impacto'!$C$15,L12='Tabla Impacto'!$D$15),"Catastrófico",""))))) -> Menor | N12: =IF(M12="","",IF(M12="Leve",0.2,IF(M12="Menor",0.4,IF(M12="Moderado",0.6,IF(M12="Mayor",0.8,IF(M12="Catastrófico",1,)))))) -> 0.4 | O12: =IF(OR(AND(I12="Muy Baja",M12="Leve"),AND(I12="Muy Baja",M12="Menor"),AND(I12="Baja",M12="Leve")),"Bajo",IF(OR(AND(I12="Muy baja",M12="Moderado"),AND(I12="Baja",M12="Menor"),AND(I12="Baja",M12="Moderado"),AND(I12="Media",M12="Leve"),AND(I12="Media",M12="Menor"),AND(I12="Media",M12="Moderado"),AND(I12="Alta",M12="Leve"),AND(I12="Alta",M12="Menor")),"Moderado",IF(OR(AND(I12="Muy Baja",M12="Mayor"),AND(I12="Baja",M12="Mayor"),AND(I12="Media",M12="Mayor"),AND(I12="Alta",M12="Moderado"),AND(I12="Alta",M12="Mayor"),AND(I12="Muy Alta",M12="Leve"),AND(I12="Muy Alta",M12="Menor"),AND(I12="Muy Alta",M12="Moderado"),AND(I12="Muy Alta",M12="Mayor")),"Alto",IF(OR(AND(I12="Muy Baja",M12="Catastrófico"),AND(I12="Baja",M12="Catastrófico"),AND(I12="Media",M12="Catastrófico"),AND(I12="Alta",M12="Catastrófico"),AND(I12="Muy Alta",M12="Catastrófico")),"Extremo","")))) -> Bajo | P12: 1 | Q12: La alta dirección, verifica a través de la revisión por la dirección las oportunidades de mejora, las necesidades de cambio en el sistema integrado de gestión y las necesidades de recursos, con el fin de atender cualquier eventualidad que se presente para el mantenimiento de los sistemas. | R12: =IF(OR(S12="Preventivo",S12="Detectivo"),"Probabilidad",IF(S12="Correctivo","Impacto","")) -> Probabilidad | S12: Preventivo | T12: Manual | U12: =IF(AND(S12="Preventivo",T12="Automático"),"50%",IF(AND(S12="Preventivo",T12="Manual"),"40%",IF(AND(S12="Detectivo",T12="Automático"),"40%",IF(AND(S12="Detectivo",T12="Manual"),"30%",IF(AND(S12="Correctivo",T12="Automático"),"35%",IF(AND(S12="Correctivo",T12="Manual"),"25%","")))))) -> 40% | V12: Documentado | W12: Continua | X12: Con Registro | Y12: =IFERROR(IF(R12="Probabilidad",(J12-(+J12*U12)),IF(R12="Impacto",J12,"")),"") -> 0.12 | Z12: =IFERROR(IF(Y12="","",IF(Y12<=0.2,"Muy Baja",IF(Y12<=0.4,"Baja",IF(Y12<=0.6,"Media",IF(Y12<=0.8,"Alta","Muy Alta"))))),"") -> Muy Baja | AA12: =+Y12 -> 0.12 | AB12: =IFERROR(IF(AC12="","",IF(AC12<=0.2,"Leve",IF(AC12<=0.4,"Menor",IF(AC12<=0.6,"Moderado",IF(AC12<=0.8,"Mayor","Catastrófico"))))),"") -> Menor | AC12: =IFERROR(IF(R12="Impacto",(N12-(+N12*U12)),IF(R12="Probabilidad",N12,"")),"") -> 0.4 | AD12: =IFERROR(IF(OR(AND(Z12="Muy Baja",AB12="Leve"),AND(Z12="Muy Baja",AB12="Menor"),AND(Z12="Baja",AB12="Leve")),"Bajo",IF(OR(AND(Z12="Muy baja",AB12="Moderado"),AND(Z12="Baja",AB12="Menor"),AND(Z12="Baja",AB12="Moderado"),AND(Z12="Media",AB12="Leve"),AND(Z12="Media",AB12="Menor"),AND(Z12="Media",AB12="Moderado"),AND(Z12="Alta",AB12="Leve"),AND(Z12="Alta",AB12="Menor")),"Moderado",IF(OR(AND(Z12="Muy Baja",AB12="Mayor"),AND(Z12="Baja",AB12="Mayor"),AND(Z12="Media",AB12="Mayor"),AND(Z12="Alta",AB12="Moderado"),AND(Z12="Alta",AB12="Mayor"),AND(Z12="Muy Alta",AB12="Leve"),AND(Z12="Muy Alta",AB12="Menor"),AND(Z12="Muy Alta",AB12="Moderado"),AND(Z12="Muy Alta",AB12="Mayor")),"Alto",IF(OR(AND(Z12="Muy Baja",AB12="Catastrófico"),AND(Z12="Baja",AB12="Catastrófico"),AND(Z12="Media",AB12="Catastrófico"),AND(Z12="Alta",AB12="Catastrófico"),AND(Z12="Muy Alta",AB12="Catastrófico")),"Extremo","")))),"") -> Bajo | AE12: Reducir (mitigar) | AF12: * Realizar reportes periódicos a la Alta Dirección, para la toma de decisiones. | AG12: * # de revisiones por la dirección. | AH12: Oficina Asesora de Planeación | AI12: 2022-12-31 | AJ12: 2022-06-01 | AK12: En curso | AL12: La revisión por la dirección se programo para el segundo trimestre de 2022. | AM12: 0 | AN12: Se realizo la primera revisión por la dirección el 11 de mayo de 2022, en la cual se revisaron los temas de plataforma estratégica, objetivos integrales, auditorias, normas técnicas, riesgos, control documental, certificación y alertas tempranas, para la toma de decisión por parte de la Gerencia General. | AO12: =1/3 -> 0.3333333333
L13: =IF(NOT(ISERROR(MATCH(K13,_xlfn.ANCHORARRAY(F25),0))),J27&"Por favor no seleccionar los criterios de impacto",K13) -> 0 | P13: 2 | Q13: La oficina Asesora de Planeación, verifica a traves de la matriz de objetivos integrales, auditorias internas y externas, y el reportes de acciones correctivas la conformidad de la norma con relación a los requisitos. | R13: =IF(OR(S13="Preventivo",S13="Detectivo"),"Probabilidad",IF(S13="Correctivo","Impacto","")) -> Probabilidad | S13: Preventivo | T13: Manual | U13: =IF(AND(S13="Preventivo",T13="Automático"),"50%",IF(AND(S13="Preventivo",T13="Manual"),"40%",IF(AND(S13="Detectivo",T13="Automático"),"40%",IF(AND(S13="Detectivo",T13="Manual"),"30%",IF(AND(S13="Correctivo",T13="Automático"),"35%",IF(AND(S13="Correctivo",T13="Manual"),"25%","")))))) -> 40% | V13: Documentado | W13: Continua | X13: Con Registro | Y13: =IFERROR(IF(AND(R12="Probabilidad",R13="Probabilidad"),(AA12-(+AA12*U13)),IF(R13="Probabilidad",(J12-(+J12*U13)),IF(R13="Impacto",AA12,""))),"") -> 0.072 | Z13: =IFERROR(IF(Y13="","",IF(Y13<=0.2,"Muy Baja",IF(Y13<=0.4,"Baja",IF(Y13<=0.6,"Media",IF(Y13<=0.8,"Alta","Muy Alta"))))),"") -> Muy Baja | AA13: =+Y13 -> 0.072 | AB13: =IFERROR(IF(AC13="","",IF(AC13<=0.2,"Leve",IF(AC13<=0.4,"Menor",IF(AC13<=0.6,"Moderado",IF(AC13<=0.8,"Mayor","Catastrófico"))))),"") -> Menor | AC13: =IFERROR(IF(AND(R12="Impacto",R13="Impacto"),(AC12-(+AC12*U13)),IF(R13="Impacto",(N12-(+N12*U13)),IF(R13="Probabilidad",AC12,""))),"") -> 0.4 | AD13: =IFERROR(IF(OR(AND(Z13="Muy Baja",AB13="Leve"),AND(Z13="Muy Baja",AB13="Menor"),AND(Z13="Baja",AB13="Leve")),"Bajo",IF(OR(AND(Z13="Muy baja",AB13="Moderado"),AND(Z13="Baja",AB13="Menor"),AND(Z13="Baja",AB13="Moderado"),AND(Z13="Media",AB13="Leve"),AND(Z13="Media",AB13="Menor"),AND(Z13="Media",AB13="Moderado"),AND(Z13="Alta",AB13="Leve"),AND(Z13="Alta",AB13="Menor")),"Moderado",IF(OR(AND(Z13="Muy Baja",AB13="Mayor"),AND(Z13="Baja",AB13="Mayor"),AND(Z13="Media",AB13="Mayor"),AND(Z13="Alta",AB13="Moderado"),AND(Z13="Alta",AB13="Mayor"),AND(Z13="Muy Alta",AB13="Leve"),AND(Z13="Muy Alta",AB13="Menor"),AND(Z13="Muy Alta",AB13="Moderado"),AND(Z13="Muy Alta",AB13="Mayor")),"Alto",IF(OR(AND(Z13="Muy Baja",AB13="Catastrófico"),AND(Z13="Baja",AB13="Catastrófico"),AND(Z13="Media",AB13="Catastrófico"),AND(Z13="Alta",AB13="Catastrófico"),AND(Z13="Muy Alta",AB13="Catastrófico")),"Extremo","")))),"") -> Bajo | AE13: Reducir (mitigar) | AF13: * Realizar las inducciones, socializaciones, campañas, asesorías y acompañamientos permanentemente del Sistema Integrado de Gestión, a todas las partes interesadas. | AG13: * Inducciones y jornadas de sensibilización y/o capacitaciones realizadas/ inducciones y jornadas de sesibilización y/o capcitacion solicitadas. | AK13: En curso | AL13: En el presente periodo se realizaron 5 mesas de trabajo con la participación de 7 funcionarios donde se trataron temas de documentación. | AM13: =5/5 -> 1 | AN13: En el segundo trimestre del años se realizaron 71 mesas de trabajo con la participación de 202 funcionarios donde se trataron temas como plan estratégico, objetivos integrales, mapa de riesgos y documentación. | AO13: =71/71 -> 1
